Workbook

Sheet Simulator
F2: Plan 1 | G2: Plan 2 | H2: Plan 3 | I2: Plan 4 | J2: Plan 5 | K2: Plan 6 | L2: Plan 7 | M2: Plan 8 | N2: Plan 9 | O2: Plan 10 | P2: Plan 11 | Q2: Plan 12
F3: Yes | G3: Yes | H3: No | I3: No | J3: No | K3: No | L3: No | M3: No | N3: No | O3: No | P3: No | Q3: No
C5: Improving water treatment | F5: No reduction | G5: No reduction | H5: No reduction | I5: For 1.3 million customers | J5: No reduction | K5: No reduction | L5: No reduction | M5: No reduction | N5: No reduction | O5: No reduction | P5: No reduction | Q5: No reduction
C6: Replacing lead pipes | F6: 3,000 pipes | G6: 3,000 pipes | H6: 3,000 pipes | I6: 40,000 pipes | J6: 3,000 pipes | K6: 3,000 pipes | L6: 3,000 pipes | M6: 3,000 pipes | N6: 3,000 pipes | O6: 3,000 pipes | P6: 3,000 pipes | Q6: 3,000 pipes
C7: Replacing trunk mains | F7: 300 properties | G7: 300 properties | H7: 300 properties | I7: 4,500 properties | J7: 300 properties | K7: 300 properties | L7: 300 properties | M7: 300 properties | N7: 300 properties | O7: 300 properties | P7: 300 properties | Q7: 300 properties
C8: Improving water supply reliability | F8: 95,000 properties | G8: 95,000 properties | H8: 95,000 properties | I8: 2.3 million properties | J8: 95,000 properties | K8: 95,000 properties | L8: 95,000 properties | M8: 95,000 properties | N8: 95,000 properties | O8: 95,000 properties | P8: 95,000 properties | Q8: 95,000 properties
C9: Reducing sewer flooding | F9: 6,000 properties | G9: 6,000 properties | H9: None | I9: None | J9: None | K9: None | L9: None | M9: None | N9: None | O9: None | P9: None | Q9: None
C10: Reducing sewage spills into rivers | F10: 50% reduction | G10: 25% reduction | H10: 25% reduction | I10: 25% reduction | J10: 25% reduction | K10: 25% reduction | L10: 25% reduction | M10: 25% reduction | N10: 25% reduction | O10: 25% reduction | P10: 25% reduction | Q10: 25% reduction
C11: Improving river health | F11: 85% removal | G11: 85% removal | H11: 85% removal | I11: 85% removal | J11: 85% removal | K11: 85% removal | L11: 85% removal | M11: 85% removal | N11: 85% removal | O11: 85% removal | P11: 85% removal | Q11: 85% removal
C12: Reducing carbon emissions | F12: No reduction | G12: No reduction | H12: No reduction | I12: No reduction | J12: No reduction | K12: No reduction | L12: No reduction | M12: No reduction | N12: No reduction | O12: No reduction | P12: No reduction | Q12: No reduction
C14: =_xlfn.CONCAT("Preference (Base = ",Filters!$C$1,")") -> Preference (Base = 640) | F14: =Control!B26 -> 0.6590733244 | G14: =Control!C26 -> 0.3409266756 | H14: =Control!D26 -> 0 | I14: =Control!E26 -> 0 | J14: =Control!F26 -> 0 | K14: =Control!G26 -> 0 | L14: =Control!H26 -> 0 | M14: =Control!I26 -> 0 | N14: =Control!J26 -> 0 | O14: =Control!K26 -> 0 | P14: =Control!L26 -> 0 | Q14: =Control!M26 -> 0
C40: Range of Confidence | F40: =IF(F14>0,_xlfn.CONCAT(ROUND((F14-'Front Page'!B12)*100,1),"% -",ROUND((F14+'Front Page'!B12)*100,1),"%")," ") -> 65.2% -66.6% | G40: =IF(G14>0,_xlfn.CONCAT(ROUND((G14-'Front Page'!C12)*100,1),"% -",ROUND((G14+'Front Page'!C12)*100,1),"%")," ") -> 33.4% -34.8% | H40: =IF(H14>0,_xlfn.CONCAT(ROUND((H14-'Front Page'!D12)*100,1),"% -",ROUND((H14+'Front Page'!D12)*100,1),"%")," ") ->  | I40: =IF(I14>0,_xlfn.CONCAT(ROUND((I14-'Front Page'!E12)*100,1),"% -",ROUND((I14+'Front Page'!E12)*100,1),"%")," ") ->  | J40: =IF(J14>0,_xlfn.CONCAT(ROUND((J14-'Front Page'!F12)*100,1),"% -",ROUND((J14+'Front Page'!F12)*100,1),"%")," ") ->  | K40: =IF(K14>0,_xlfn.CONCAT(ROUND((K14-'Front Page'!G12)*100,1),"% -",ROUND((K14+'Front Page'!G12)*100,1),"%")," ") ->  | L40: =IF(L14>0,_xlfn.CONCAT(ROUND((L14-'Front Page'!H12)*100,1),"% -",ROUND((L14+'Front Page'!H12)*100,1),"%")," ") ->  | M40: =IF(M14>0,_xlfn.CONCAT(ROUND((M14-'Front Page'!I12)*100,1),"% -",ROUND((M14+'Front Page'!I12)*100,1),"%")," ") ->  | N40: =IF(N14>0,_xlfn.CONCAT(ROUND((N14-'Front Page'!J12)*100,1),"% -",ROUND((N14+'Front Page'!J12)*100,1),"%")," ") ->  | O40: =IF(O14>0,_xlfn.CONCAT(ROUND((O14-'Front Page'!K12)*100,1),"% -",ROUND((O14+'Front Page'!K12)*100,1),"%")," ") ->  | P40: =IF(P14>0,_xlfn.CONCAT(ROUND((P14-'Front Page'!L12)*100,1),"% -",ROUND((P14+'Front Page'!L12)*100,1),"%")," ") ->  | Q40: =IF(Q14>0,_xlfn.CONCAT(ROUND((Q14-'Front Page'!M12)*100,1),"% -",ROUND((Q14+'Front Page'!M12)*100,1),"%")," ") -> 
F42: =SUMPRODUCT(Filters!$F$4:$F$1503,'Share Calculation'!AO$4:AO$1503) -> 421.8069276 | G42: =SUMPRODUCT(Filters!$F$4:$F$1503,'Share Calculation'!AP$4:AP$1503) -> 218.1930724 | H42: =SUMPRODUCT(Filters!$F$4:$F$1503,'Share Calculation'!AQ$4:AQ$1503) -> 0 | I42: =SUMPRODUCT(Filters!$F$4:$F$1503,'Share Calculation'!AR$4:AR$1503) -> 0 | J42: =SUMPRODUCT(Filters!$F$4:$F$1503,'Share Calculation'!AS$4:AS$1503) -> 0 | K42: =SUMPRODUCT(Filters!$F$4:$F$1503,'Share Calculation'!AT$4:AT$1503) -> 0 | L42: =SUMPRODUCT(Filters!$F$4:$F$1503,'Share Calculation'!AU$4:AU$1503) -> 0 | M42: =SUMPRODUCT(Filters!$F$4:$F$1503,'Share Calculation'!AV$4:AV$1503) -> 0 | N42: =SUMPRODUCT(Filters!$F$4:$F$1503,'Share Calculation'!AW$4:AW$1503) -> 0 | O42: =SUMPRODUCT(Filters!$F$4:$F$1503,'Share Calculation'!AX$4:AX$1503) -> 0 | P42: =SUMPRODUCT(Filters!$F$4:$F$1503,'Share Calculation'!AY$4:AY$1503) -> 0 | Q42: =SUMPRODUCT(Filters!$F$4:$F$1503,'Share Calculation'!AZ$4:AZ$1503) -> 0
C43: Effective size | F43: =IF(F42=0,0,(F$42^2)/(SUMPRODUCT((Filters!$F$4:$F$1503)*'Share Calculation'!AO$4:AO$1503)^2))*F42 -> 421.8069276 | G43: =IF(G42=0,0,(G$42^2)/(SUMPRODUCT((Filters!$F$4:$F$1503)*'Share Calculation'!AP$4:AP$1503)^2))*G42 -> 218.1930724 | H43: =IF(H42=0,0,(H$42^2)/(SUMPRODUCT((Filters!$F$4:$F$1503)*'Share Calculation'!AQ$4:AQ$1503)^2))*H42 -> 0 | I43: =IF(I42=0,0,(I$42^2)/(SUMPRODUCT((Filters!$F$4:$F$1503)*'Share Calculation'!AR$4:AR$1503)^2))*I42 -> 0 | J43: =IF(J42=0,0,(J$42^2)/(SUMPRODUCT((Filters!$F$4:$F$1503)*'Share Calculation'!AS$4:AS$1503)^2))*J42 -> 0 | K43: =IF(K42=0,0,(K$42^2)/(SUMPRODUCT((Filters!$F$4:$F$1503)*'Share Calculation'!AT$4:AT$1503)^2))*K42 -> 0 | L43: =IF(L42=0,0,(L$42^2)/(SUMPRODUCT((Filters!$F$4:$F$1503)*'Share Calculation'!AU$4:AU$1503)^2))*L42 -> 0 | M43: =IF(M42=0,0,(M$42^2)/(SUMPRODUCT((Filters!$F$4:$F$1503)*'Share Calculation'!AV$4:AV$1503)^2))*M42 -> 0 | N43: =IF(N42=0,0,(N$42^2)/(SUMPRODUCT((Filters!$F$4:$F$1503)*'Share Calculation'!AW$4:AW$1503)^2))*N42 -> 0 | O43: =IF(O42=0,0,(O$42^2)/(SUMPRODUCT((Filters!$F$4:$F$1503)*'Share Calculation'!AX$4:AX$1503)^2))*O42 -> 0 | P43: =IF(P42=0,0,(P$42^2)/(SUMPRODUCT((Filters!$F$4:$F$1503)*'Share Calculation'!AY$4:AY$1503)^2))*P42 -> 0 | Q43: =IF(Q42=0,0,(Q$42^2)/(SUMPRODUCT((Filters!$F$4:$F$1503)*'Share Calculation'!AZ$4:AZ$1503)^2))*Q42 -> 0 | R43: =I46 -> 640 | T43: Base Size
F46: Signficantly Higher | H46: Effective sample size | I46: =Filters!$C$2 -> 640 | J46: Bonferoni Adjustment | K46: Yes
F47: Signficantly Lower | H47: Sig test | I47: 0.95
A51: 1 | C51: =VLOOKUP($A51,Filters!$H$4:$AG$1065,1+COUNTIFS($A$42:$A51,$A51),FALSE) -> Priorities | R51: =IF(COUNTIFS($A$42:$A51,$A51)=1,"",SUMIFS(Filters!$F$4:$F$1503,OFFSET(Filters!$BD$4:$BD$1503,0,$A51-1),COUNTIFS($A$42:$A51,$A51)-1)/Filters!$I$2) ->  | T51: =IF(COUNTIFS($A$42:$A51,$A51)=1,"",COUNTIFS(OFFSET(Filters!$BD$4:$BD$1503,0,$A51-1),COUNTIFS($A$42:$A51,$A51)-1,Filters!$B$4:$B$1503,1)) -> 
A52: 1 | C52: =VLOOKUP($A52,Filters!$H$4:$AG$1065,1+COUNTIFS($A$42:$A52,$A52),FALSE) -> Water Supply | F52: =IF(F$42>0,IF(OR($T52=0,COUNTIFS($A$42:$A52,$A52)=1),"",SUM((Filters!$F$4:$F$1503)*'Share Calculation'!AO$4:AO$1503*(OFFSET(Filters!$BD$4:$BD$1503,0,$A52-1)=COUNTIFS($A$42:$A52,$A52)-1))/ $T52),"") -> 0.6358918769 | G52: =IF(G$42>0,IF(OR($T52=0,COUNTIFS($A$42:$A52,$A52)=1),"",SUM((Filters!$F$4:$F$1503)*'Share Calculation'!AP$4:AP$1503*(OFFSET(Filters!$BD$4:$BD$1503,0,$A52-1)=COUNTIFS($A$42:$A52,$A52)-1))/ $T52),"") -> 0.3641081231 | H52: =IF(H$42>0,IF(OR($T52=0,COUNTIFS($A$42:$A52,$A52)=1),"",SUM((Filters!$F$4:$F$1503)*'Share Calculation'!AQ$4:AQ$1503*(OFFSET(Filters!$BD$4:$BD$1503,0,$A52-1)=COUNTIFS($A$42:$A52,$A52)-1))/ $T52),"") ->  | I52: =IF(I$42>0,IF(OR($T52=0,COUNTIFS($A$42:$A52,$A52)=1),"",SUM((Filters!$F$4:$F$1503)*'Share Calculation'!AR$4:AR$1503*(OFFSET(Filters!$BD$4:$BD$1503,0,$A52-1)=COUNTIFS($A$42:$A52,$A52)-1))/ $T52),"") ->  | J52: =IF(J$42>0,IF(OR($T52=0,COUNTIFS($A$42:$A52,$A52)=1),"",SUM((Filters!$F$4:$F$1503)*'Share Calculation'!AS$4:AS$1503*(OFFSET(Filters!$BD$4:$BD$1503,0,$A52-1)=COUNTIFS($A$42:$A52,$A52)-1))/ $T52),"") ->  | K52: =IF(K$42>0,IF(OR($T52=0,COUNTIFS($A$42:$A52,$A52)=1),"",SUM((Filters!$F$4:$F$1503)*'Share Calculation'!AT$4:AT$1503*(OFFSET(Filters!$BD$4:$BD$1503,0,$A52-1)=COUNTIFS($A$42:$A52,$A52)-1))/ $T52),"") ->  | L52: =IF(L$42>0,IF(OR($T52=0,COUNTIFS($A$42:$A52,$A52)=1),"",SUM((Filters!$F$4:$F$1503)*'Share Calculation'!AU$4:AU$1503*(OFFSET(Filters!$BD$4:$BD$1503,0,$A52-1)=COUNTIFS($A$42:$A52,$A52)-1))/ $T52),"") ->  | M52: =IF(M$42>0,IF(OR($T52=0,COUNTIFS($A$42:$A52,$A52)=1),"",SUM((Filters!$F$4:$F$1503)*'Share Calculation'!AV$4:AV$1503*(OFFSET(Filters!$BD$4:$BD$1503,0,$A52-1)=COUNTIFS($A$42:$A52,$A52)-1))/ $T52),"") ->  | N52: =IF(N$42>0,IF(OR($T52=0,COUNTIFS($A$42:$A52,$A52)=1),"",SUM((Filters!$F$4:$F$1503)*'Share Calculation'!AW$4:AW$1503*(OFFSET(Filters!$BD$4:$BD$1503,0,$A52-1)=COUNTIFS($A$42:$A52,$A52)-1))/ $T52),"") ->  | O52: =IF(O$42>0,IF(OR($T52=0,COUNTIFS($A$42:$A52,$A52)=1),"",SUM((Filters!$F$4:$F$1503)*'Share Calculation'!AX$4:AX$1503*(OFFSET(Filters!$BD$4:$BD$1503,0,$A52-1)=COUNTIFS($A$42:$A52,$A52)-1))/ $T52),"") ->  | P52: =IF(P$42>0,IF(OR($T52=0,COUNTIFS($A$42:$A52,$A52)=1),"",SUM((Filters!$F$4:$F$1503)*'Share Calculation'!AY$4:AY$1503*(OFFSET(Filters!$BD$4:$BD$1503,0,$A52-1)=COUNTIFS($A$42:$A52,$A52)-1))/ $T52),"") ->  | Q52: =IF(Q$42>0,IF(OR($T52=0,COUNTIFS($A$42:$A52,$A52)=1),"",SUM((Filters!$F$4:$F$1503)*'Share Calculation'!AZ$4:AZ$1503*(OFFSET(Filters!$BD$4:$BD$1503,0,$A52-1)=COUNTIFS($A$42:$A52,$A52)-1))/ $T52),"") ->  | R52: =IF(COUNTIFS($A$42:$A52,$A52)=1,"",SUMIFS(Filters!$F$4:$F$1503,OFFSET(Filters!$BD$4:$BD$1503,0,$A52-1),COUNTIFS($A$42:$A52,$A52)-1)/Filters!$I$2) -> 0.2 | S52: Yes | T52: =IF(COUNTIFS($A$42:$A52,$A52)=1,"",COUNTIFS(OFFSET(Filters!$BD$4:$BD$1503,0,$A52-1),COUNTIFS($A$42:$A52,$A52)-1,Filters!$B$4:$B$1503,1)) -> 128
A53: 1 | C53: =VLOOKUP($A53,Filters!$H$4:$AG$1065,1+COUNTIFS($A$42:$A53,$A53),FALSE) -> Waste Water Service | F53: =IF(F$42>0,IF(OR($T53=0,COUNTIFS($A$42:$A53,$A53)=1),"",SUM((Filters!$F$4:$F$1503)*'Share Calculation'!AO$4:AO$1503*(OFFSET(Filters!$BD$4:$BD$1503,0,$A53-1)=COUNTIFS($A$42:$A53,$A53)-1))/ $T53),"") -> 0.5158552022 | G53: =IF(G$42>0,IF(OR($T53=0,COUNTIFS($A$42:$A53,$A53)=1),"",SUM((Filters!$F$4:$F$1503)*'Share Calculation'!AP$4:AP$1503*(OFFSET(Filters!$BD$4:$BD$1503,0,$A53-1)=COUNTIFS($A$42:$A53,$A53)-1))/ $T53),"") -> 0.4841447978 | H53: =IF(H$42>0,IF(OR($T53=0,COUNTIFS($A$42:$A53,$A53)=1),"",SUM((Filters!$F$4:$F$1503)*'Share Calculation'!AQ$4:AQ$1503*(OFFSET(Filters!$BD$4:$BD$1503,0,$A53-1)=COUNTIFS($A$42:$A53,$A53)-1))/ $T53),"") ->  | I53: =IF(I$42>0,IF(OR($T53=0,COUNTIFS($A$42:$A53,$A53)=1),"",SUM((Filters!$F$4:$F$1503)*'Share Calculation'!AR$4:AR$1503*(OFFSET(Filters!$BD$4:$BD$1503,0,$A53-1)=COUNTIFS($A$42:$A53,$A53)-1))/ $T53),"") ->  | J53: =IF(J$42>0,IF(OR($T53=0,COUNTIFS($A$42:$A53,$A53)=1),"",SUM((Filters!$F$4:$F$1503)*'Share Calculation'!AS$4:AS$1503*(OFFSET(Filters!$BD$4:$BD$1503,0,$A53-1)=COUNTIFS($A$42:$A53,$A53)-1))/ $T53),"") ->  | K53: =IF(K$42>0,IF(OR($T53=0,COUNTIFS($A$42:$A53,$A53)=1),"",SUM((Filters!$F$4:$F$1503)*'Share Calculation'!AT$4:AT$1503*(OFFSET(Filters!$BD$4:$BD$1503,0,$A53-1)=COUNTIFS($A$42:$A53,$A53)-1))/ $T53),"") ->  | L53: =IF(L$42>0,IF(OR($T53=0,COUNTIFS($A$42:$A53,$A53)=1),"",SUM((Filters!$F$4:$F$1503)*'Share Calculation'!AU$4:AU$1503*(OFFSET(Filters!$BD$4:$BD$1503,0,$A53-1)=COUNTIFS($A$42:$A53,$A53)-1))/ $T53),"") ->  | M53: =IF(M$42>0,IF(OR($T53=0,COUNTIFS($A$42:$A53,$A53)=1),"",SUM((Filters!$F$4:$F$1503)*'Share Calculation'!AV$4:AV$1503*(OFFSET(Filters!$BD$4:$BD$1503,0,$A53-1)=COUNTIFS($A$42:$A53,$A53)-1))/ $T53),"") ->  | N53: =IF(N$42>0,IF(OR($T53=0,COUNTIFS($A$42:$A53,$A53)=1),"",SUM((Filters!$F$4:$F$1503)*'Share Calculation'!AW$4:AW$1503*(OFFSET(Filters!$BD$4:$BD$1503,0,$A53-1)=COUNTIFS($A$42:$A53,$A53)-1))/ $T53),"") ->  | O53: =IF(O$42>0,IF(OR($T53=0,COUNTIFS($A$42:$A53,$A53)=1),"",SUM((Filters!$F$4:$F$1503)*'Share Calculation'!AX$4:AX$1503*(OFFSET(Filters!$BD$4:$BD$1503,0,$A53-1)=COUNTIFS($A$42:$A53,$A53)-1))/ $T53),"") ->  | P53: =IF(P$42>0,IF(OR($T53=0,COUNTIFS($A$42:$A53,$A53)=1),"",SUM((Filters!$F$4:$F$1503)*'Share Calculation'!AY$4:AY$1503*(OFFSET(Filters!$BD$4:$BD$1503,0,$A53-1)=COUNTIFS($A$42:$A53,$A53)-1))/ $T53),"") ->  | Q53: =IF(Q$42>0,IF(OR($T53=0,COUNTIFS($A$42:$A53,$A53)=1),"",SUM((Filters!$F$4:$F$1503)*'Share Calculation'!AZ$4:AZ$1503*(OFFSET(Filters!$BD$4:$BD$1503,0,$A53-1)=COUNTIFS($A$42:$A53,$A53)-1))/ $T53),"") ->  | R53: =IF(COUNTIFS($A$42:$A53,$A53)=1,"",SUMIFS(Filters!$F$4:$F$1503,OFFSET(Filters!$BD$4:$BD$1503,0,$A53-1),COUNTIFS($A$42:$A53,$A53)-1)/Filters!$I$2) -> 0.459375 | S53: Yes | T53: =IF(COUNTIFS($A$42:$A53,$A53)=1,"",COUNTIFS(OFFSET(Filters!$BD$4:$BD$1503,0,$A53-1),COUNTIFS($A$42:$A53,$A53)-1,Filters!$B$4:$B$1503,1)) -> 294
A54: 1 | C54: =VLOOKUP($A54,Filters!$H$4:$AG$1065,1+COUNTIFS($A$42:$A54,$A54),FALSE) -> River health | F54: =IF(F$42>0,IF(OR($T54=0,COUNTIFS($A$42:$A54,$A54)=1),"",SUM((Filters!$F$4:$F$1503)*'Share Calculation'!AO$4:AO$1503*(OFFSET(Filters!$BD$4:$BD$1503,0,$A54-1)=COUNTIFS($A$42:$A54,$A54)-1))/ $T54),"") -> 0.8797736803 | G54: =IF(G$42>0,IF(OR($T54=0,COUNTIFS($A$42:$A54,$A54)=1),"",SUM((Filters!$F$4:$F$1503)*'Share Calculation'!AP$4:AP$1503*(OFFSET(Filters!$BD$4:$BD$1503,0,$A54-1)=COUNTIFS($A$42:$A54,$A54)-1))/ $T54),"") -> 0.1202263197 | H54: =IF(H$42>0,IF(OR($T54=0,COUNTIFS($A$42:$A54,$A54)=1),"",SUM((Filters!$F$4:$F$1503)*'Share Calculation'!AQ$4:AQ$1503*(OFFSET(Filters!$BD$4:$BD$1503,0,$A54-1)=COUNTIFS($A$42:$A54,$A54)-1))/ $T54),"") ->  | I54: =IF(I$42>0,IF(OR($T54=0,COUNTIFS($A$42:$A54,$A54)=1),"",SUM((Filters!$F$4:$F$1503)*'Share Calculation'!AR$4:AR$1503*(OFFSET(Filters!$BD$4:$BD$1503,0,$A54-1)=COUNTIFS($A$42:$A54,$A54)-1))/ $T54),"") ->  | J54: =IF(J$42>0,IF(OR($T54=0,COUNTIFS($A$42:$A54,$A54)=1),"",SUM((Filters!$F$4:$F$1503)*'Share Calculation'!AS$4:AS$1503*(OFFSET(Filters!$BD$4:$BD$1503,0,$A54-1)=COUNTIFS($A$42:$A54,$A54)-1))/ $T54),"") ->  | K54: =IF(K$42>0,IF(OR($T54=0,COUNTIFS($A$42:$A54,$A54)=1),"",SUM((Filters!$F$4:$F$1503)*'Share Calculation'!AT$4:AT$1503*(OFFSET(Filters!$BD$4:$BD$1503,0,$A54-1)=COUNTIFS($A$42:$A54,$A54)-1))/ $T54),"") ->  | L54: =IF(L$42>0,IF(OR($T54=0,COUNTIFS($A$42:$A54,$A54)=1),"",SUM((Filters!$F$4:$F$1503)*'Share Calculation'!AU$4:AU$1503*(OFFSET(Filters!$BD$4:$BD$1503,0,$A54-1)=COUNTIFS($A$42:$A54,$A54)-1))/ $T54),"") ->  | M54: =IF(M$42>0,IF(OR($T54=0,COUNTIFS($A$42:$A54,$A54)=1),"",SUM((Filters!$F$4:$F$1503)*'Share Calculation'!AV$4:AV$1503*(OFFSET(Filters!$BD$4:$BD$1503,0,$A54-1)=COUNTIFS($A$42:$A54,$A54)-1))/ $T54),"") ->  | N54: =IF(N$42>0,IF(OR($T54=0,COUNTIFS($A$42:$A54,$A54)=1),"",SUM((Filters!$F$4:$F$1503)*'Share Calculation'!AW$4:AW$1503*(OFFSET(Filters!$BD$4:$BD$1503,0,$A54-1)=COUNTIFS($A$42:$A54,$A54)-1))/ $T54),"") ->  | O54: =IF(O$42>0,IF(OR($T54=0,COUNTIFS($A$42:$A54,$A54)=1),"",SUM((Filters!$F$4:$F$1503)*'Share Calculation'!AX$4:AX$1503*(OFFSET(Filters!$BD$4:$BD$1503,0,$A54-1)=COUNTIFS($A$42:$A54,$A54)-1))/ $T54),"") ->  | P54: =IF(P$42>0,IF(OR($T54=0,COUNTIFS($A$42:$A54,$A54)=1),"",SUM((Filters!$F$4:$F$1503)*'Share Calculation'!AY$4:AY$1503*(OFFSET(Filters!$BD$4:$BD$1503,0,$A54-1)=COUNTIFS($A$42:$A54,$A54)-1))/ $T54),"") ->  | Q54: =IF(Q$42>0,IF(OR($T54=0,COUNTIFS($A$42:$A54,$A54)=1),"",SUM((Filters!$F$4:$F$1503)*'Share Calculation'!AZ$4:AZ$1503*(OFFSET(Filters!$BD$4:$BD$1503,0,$A54-1)=COUNTIFS($A$42:$A54,$A54)-1))/ $T54),"") ->  | R54: =IF(COUNTIFS($A$42:$A54,$A54)=1,"",SUMIFS(Filters!$F$4:$F$1503,OFFSET(Filters!$BD$4:$BD$1503,0,$A54-1),COUNTIFS($A$42:$A54,$A54)-1)/Filters!$I$2) -> 0.2578125 | S54: Yes | T54: =IF(COUNTIFS($A$42:$A54,$A54)=1,"",COUNTIFS(OFFSET(Filters!$BD$4:$BD$1503,0,$A54-1),COUNTIFS($A$42:$A54,$A54)-1,Filters!$B$4:$B$1503,1)) -> 165
A55: 1 | C55: =VLOOKUP($A55,Filters!$H$4:$AG$1065,1+COUNTIFS($A$42:$A55,$A55),FALSE) -> Carbon reduction | F55: =IF(F$42>0,IF(OR($T55=0,COUNTIFS($A$42:$A55,$A55)=1),"",SUM((Filters!$F$4:$F$1503)*'Share Calculation'!AO$4:AO$1503*(OFFSET(Filters!$BD$4:$BD$1503,0,$A55-1)=COUNTIFS($A$42:$A55,$A55)-1))/ $T55),"") -> 0.8224279372 | G55: =IF(G$42>0,IF(OR($T55=0,COUNTIFS($A$42:$A55,$A55)=1),"",SUM((Filters!$F$4:$F$1503)*'Share Calculation'!AP$4:AP$1503*(OFFSET(Filters!$BD$4:$BD$1503,0,$A55-1)=COUNTIFS($A$42:$A55,$A55)-1))/ $T55),"") -> 0.1775720628 | H55: =IF(H$42>0,IF(OR($T55=0,COUNTIFS($A$42:$A55,$A55)=1),"",SUM((Filters!$F$4:$F$1503)*'Share Calculation'!AQ$4:AQ$1503*(OFFSET(Filters!$BD$4:$BD$1503,0,$A55-1)=COUNTIFS($A$42:$A55,$A55)-1))/ $T55),"") ->  | I55: =IF(I$42>0,IF(OR($T55=0,COUNTIFS($A$42:$A55,$A55)=1),"",SUM((Filters!$F$4:$F$1503)*'Share Calculation'!AR$4:AR$1503*(OFFSET(Filters!$BD$4:$BD$1503,0,$A55-1)=COUNTIFS($A$42:$A55,$A55)-1))/ $T55),"") ->  | J55: =IF(J$42>0,IF(OR($T55=0,COUNTIFS($A$42:$A55,$A55)=1),"",SUM((Filters!$F$4:$F$1503)*'Share Calculation'!AS$4:AS$1503*(OFFSET(Filters!$BD$4:$BD$1503,0,$A55-1)=COUNTIFS($A$42:$A55,$A55)-1))/ $T55),"") ->  | K55: =IF(K$42>0,IF(OR($T55=0,COUNTIFS($A$42:$A55,$A55)=1),"",SUM((Filters!$F$4:$F$1503)*'Share Calculation'!AT$4:AT$1503*(OFFSET(Filters!$BD$4:$BD$1503,0,$A55-1)=COUNTIFS($A$42:$A55,$A55)-1))/ $T55),"") ->  | L55: =IF(L$42>0,IF(OR($T55=0,COUNTIFS($A$42:$A55,$A55)=1),"",SUM((Filters!$F$4:$F$1503)*'Share Calculation'!AU$4:AU$1503*(OFFSET(Filters!$BD$4:$BD$1503,0,$A55-1)=COUNTIFS($A$42:$A55,$A55)-1))/ $T55),"") ->  | M55: =IF(M$42>0,IF(OR($T55=0,COUNTIFS($A$42:$A55,$A55)=1),"",SUM((Filters!$F$4:$F$1503)*'Share Calculation'!AV$4:AV$1503*(OFFSET(Filters!$BD$4:$BD$1503,0,$A55-1)=COUNTIFS($A$42:$A55,$A55)-1))/ $T55),"") ->  | N55: =IF(N$42>0,IF(OR($T55=0,COUNTIFS($A$42:$A55,$A55)=1),"",SUM((Filters!$F$4:$F$1503)*'Share Calculation'!AW$4:AW$1503*(OFFSET(Filters!$BD$4:$BD$1503,0,$A55-1)=COUNTIFS($A$42:$A55,$A55)-1))/ $T55),"") ->  | O55: =IF(O$42>0,IF(OR($T55=0,COUNTIFS($A$42:$A55,$A55)=1),"",SUM((Filters!$F$4:$F$1503)*'Share Calculation'!AX$4:AX$1503*(OFFSET(Filters!$BD$4:$BD$1503,0,$A55-1)=COUNTIFS($A$42:$A55,$A55)-1))/ $T55),"") ->  | P55: =IF(P$42>0,IF(OR($T55=0,COUNTIFS($A$42:$A55,$A55)=1),"",SUM((Filters!$F$4:$F$1503)*'Share Calculation'!AY$4:AY$1503*(OFFSET(Filters!$BD$4:$BD$1503,0,$A55-1)=COUNTIFS($A$42:$A55,$A55)-1))/ $T55),"") ->  | Q55: =IF(Q$42>0,IF(OR($T55=0,COUNTIFS($A$42:$A55,$A55)=1),"",SUM((Filters!$F$4:$F$1503)*'Share Calculation'!AZ$4:AZ$1503*(OFFSET(Filters!$BD$4:$BD$1503,0,$A55-1)=COUNTIFS($A$42:$A55,$A55)-1))/ $T55),"") ->  | R55: =IF(COUNTIFS($A$42:$A55,$A55)=1,"",SUMIFS(Filters!$F$4:$F$1503,OFFSET(Filters!$BD$4:$BD$1503,0,$A55-1),COUNTIFS($A$42:$A55,$A55)-1)/Filters!$I$2) -> 0.0828125 | S55: Yes | T55: =IF(COUNTIFS($A$42:$A55,$A55)=1,"",COUNTIFS(OFFSET(Filters!$BD$4:$BD$1503,0,$A55-1),COUNTIFS($A$42:$A55,$A55)-1,Filters!$B$4:$B$1503,1)) -> 53
A56: 2 | C56: =VLOOKUP($A56,Filters!$H$4:$AG$1065,1+COUNTIFS($A$42:$A56,$A56),FALSE) -> Service Type | F56: =IF(F$42>0,IF(OR($T56=0,COUNTIFS($A$42:$A56,$A56)=1),"",SUM((Filters!$F$4:$F$1503)*'Share Calculation'!AO$4:AO$1503*(OFFSET(Filters!$BD$4:$BD$1503,0,$A56-1)=COUNTIFS($A$42:$A56,$A56)-1))/ $T56),"") ->  | G56: =IF(G$42>0,IF(OR($T56=0,COUNTIFS($A$42:$A56,$A56)=1),"",SUM((Filters!$F$4:$F$1503)*'Share Calculation'!AP$4:AP$1503*(OFFSET(Filters!$BD$4:$BD$1503,0,$A56-1)=COUNTIFS($A$42:$A56,$A56)-1))/ $T56),"") ->  | H56: =IF(H$42>0,IF(OR($T56=0,COUNTIFS($A$42:$A56,$A56)=1),"",SUM((Filters!$F$4:$F$1503)*'Share Calculation'!AQ$4:AQ$1503*(OFFSET(Filters!$BD$4:$BD$1503,0,$A56-1)=COUNTIFS($A$42:$A56,$A56)-1))/ $T56),"") ->  | I56: =IF(I$42>0,IF(OR($T56=0,COUNTIFS($A$42:$A56,$A56)=1),"",SUM((Filters!$F$4:$F$1503)*'Share Calculation'!AR$4:AR$1503*(OFFSET(Filters!$BD$4:$BD$1503,0,$A56-1)=COUNTIFS($A$42:$A56,$A56)-1))/ $T56),"") ->  | J56: =IF(J$42>0,IF(OR($T56=0,COUNTIFS($A$42:$A56,$A56)=1),"",SUM((Filters!$F$4:$F$1503)*'Share Calculation'!AS$4:AS$1503*(OFFSET(Filters!$BD$4:$BD$1503,0,$A56-1)=COUNTIFS($A$42:$A56,$A56)-1))/ $T56),"") ->  | K56: =IF(K$42>0,IF(OR($T56=0,COUNTIFS($A$42:$A56,$A56)=1),"",SUM((Filters!$F$4:$F$1503)*'Share Calculation'!AT$4:AT$1503*(OFFSET(Filters!$BD$4:$BD$1503,0,$A56-1)=COUNTIFS($A$42:$A56,$A56)-1))/ $T56),"") ->  | L56: =IF(L$42>0,IF(OR($T56=0,COUNTIFS($A$42:$A56,$A56)=1),"",SUM((Filters!$F$4:$F$1503)*'Share Calculation'!AU$4:AU$1503*(OFFSET(Filters!$BD$4:$BD$1503,0,$A56-1)=COUNTIFS($A$42:$A56,$A56)-1))/ $T56),"") ->  | M56: =IF(M$42>0,IF(OR($T56=0,COUNTIFS($A$42:$A56,$A56)=1),"",SUM((Filters!$F$4:$F$1503)*'Share Calculation'!AV$4:AV$1503*(OFFSET(Filters!$BD$4:$BD$1503,0,$A56-1)=COUNTIFS($A$42:$A56,$A56)-1))/ $T56),"") ->  | N56: =IF(N$42>0,IF(OR($T56=0,COUNTIFS($A$42:$A56,$A56)=1),"",SUM((Filters!$F$4:$F$1503)*'Share Calculation'!AW$4:AW$1503*(OFFSET(Filters!$BD$4:$BD$1503,0,$A56-1)=COUNTIFS($A$42:$A56,$A56)-1))/ $T56),"") ->  | O56: =IF(O$42>0,IF(OR($T56=0,COUNTIFS($A$42:$A56,$A56)=1),"",SUM((Filters!$F$4:$F$1503)*'Share Calculation'!AX$4:AX$1503*(OFFSET(Filters!$BD$4:$BD$1503,0,$A56-1)=COUNTIFS($A$42:$A56,$A56)-1))/ $T56),"") ->  | P56: =IF(P$42>0,IF(OR($T56=0,COUNTIFS($A$42:$A56,$A56)=1),"",SUM((Filters!$F$4:$F$1503)*'Share Calculation'!AY$4:AY$1503*(OFFSET(Filters!$BD$4:$BD$1503,0,$A56-1)=COUNTIFS($A$42:$A56,$A56)-1))/ $T56),"") ->  | Q56: =IF(Q$42>0,IF(OR($T56=0,COUNTIFS($A$42:$A56,$A56)=1),"",SUM((Filters!$F$4:$F$1503)*'Share Calculation'!AZ$4:AZ$1503*(OFFSET(Filters!$BD$4:$BD$1503,0,$A56-1)=COUNTIFS($A$42:$A56,$A56)-1))/ $T56),"") ->  | R56: =IF(COUNTIFS($A$42:$A56,$A56)=1,"",SUMIFS(Filters!$F$4:$F$1503,OFFSET(Filters!$BD$4:$BD$1503,0,$A56-1),COUNTIFS($A$42:$A56,$A56)-1)/Filters!$I$2) ->  | T56: =IF(COUNTIFS($A$42:$A56,$A56)=1,"",COUNTIFS(OFFSET(Filters!$BD$4:$BD$1503,0,$A56-1),COUNTIFS($A$42:$A56,$A56)-1,Filters!$B$4:$B$1503,1)) -> 
A57: 2 | C57: =VLOOKUP($A57,Filters!$H$4:$AG$1065,1+COUNTIFS($A$42:$A57,$A57),FALSE) -> Clean & Waste | F57: =IF(F$42>0,IF(OR($T57=0,COUNTIFS($A$42:$A57,$A57)=1),"",SUM((Filters!$F$4:$F$1503)*'Share Calculation'!AO$4:AO$1503*(OFFSET(Filters!$BD$4:$BD$1503,0,$A57-1)=COUNTIFS($A$42:$A57,$A57)-1))/ $T57),"") -> 0.6590733244 | G57: =IF(G$42>0,IF(OR($T57=0,COUNTIFS($A$42:$A57,$A57)=1),"",SUM((Filters!$F$4:$F$1503)*'Share Calculation'!AP$4:AP$1503*(OFFSET(Filters!$BD$4:$BD$1503,0,$A57-1)=COUNTIFS($A$42:$A57,$A57)-1))/ $T57),"") -> 0.3409266756 | H57: =IF(H$42>0,IF(OR($T57=0,COUNTIFS($A$42:$A57,$A57)=1),"",SUM((Filters!$F$4:$F$1503)*'Share Calculation'!AQ$4:AQ$1503*(OFFSET(Filters!$BD$4:$BD$1503,0,$A57-1)=COUNTIFS($A$42:$A57,$A57)-1))/ $T57),"") ->  | I57: =IF(I$42>0,IF(OR($T57=0,COUNTIFS($A$42:$A57,$A57)=1),"",SUM((Filters!$F$4:$F$1503)*'Share Calculation'!AR$4:AR$1503*(OFFSET(Filters!$BD$4:$BD$1503,0,$A57-1)=COUNTIFS($A$42:$A57,$A57)-1))/ $T57),"") ->  | J57: =IF(J$42>0,IF(OR($T57=0,COUNTIFS($A$42:$A57,$A57)=1),"",SUM((Filters!$F$4:$F$1503)*'Share Calculation'!AS$4:AS$1503*(OFFSET(Filters!$BD$4:$BD$1503,0,$A57-1)=COUNTIFS($A$42:$A57,$A57)-1))/ $T57),"") ->  | K57: =IF(K$42>0,IF(OR($T57=0,COUNTIFS($A$42:$A57,$A57)=1),"",SUM((Filters!$F$4:$F$1503)*'Share Calculation'!AT$4:AT$1503*(OFFSET(Filters!$BD$4:$BD$1503,0,$A57-1)=COUNTIFS($A$42:$A57,$A57)-1))/ $T57),"") ->  | L57: =IF(L$42>0,IF(OR($T57=0,COUNTIFS($A$42:$A57,$A57)=1),"",SUM((Filters!$F$4:$F$1503)*'Share Calculation'!AU$4:AU$1503*(OFFSET(Filters!$BD$4:$BD$1503,0,$A57-1)=COUNTIFS($A$42:$A57,$A57)-1))/ $T57),"") ->  | M57: =IF(M$42>0,IF(OR($T57=0,COUNTIFS($A$42:$A57,$A57)=1),"",SUM((Filters!$F$4:$F$1503)*'Share Calculation'!AV$4:AV$1503*(OFFSET(Filters!$BD$4:$BD$1503,0,$A57-1)=COUNTIFS($A$42:$A57,$A57)-1))/ $T57),"") ->  | N57: =IF(N$42>0,IF(OR($T57=0,COUNTIFS($A$42:$A57,$A57)=1),"",SUM((Filters!$F$4:$F$1503)*'Share Calculation'!AW$4:AW$1503*(OFFSET(Filters!$BD$4:$BD$1503,0,$A57-1)=COUNTIFS($A$42:$A57,$A57)-1))/ $T57),"") ->  | O57: =IF(O$42>0,IF(OR($T57=0,COUNTIFS($A$42:$A57,$A57)=1),"",SUM((Filters!$F$4:$F$1503)*'Share Calculation'!AX$4:AX$1503*(OFFSET(Filters!$BD$4:$BD$1503,0,$A57-1)=COUNTIFS($A$42:$A57,$A57)-1))/ $T57),"") ->  | P57: =IF(P$42>0,IF(OR($T57=0,COUNTIFS($A$42:$A57,$A57)=1),"",SUM((Filters!$F$4:$F$1503)*'Share Calculation'!AY$4:AY$1503*(OFFSET(Filters!$BD$4:$BD$1503,0,$A57-1)=COUNTIFS($A$42:$A57,$A57)-1))/ $T57),"") ->  | Q57: =IF(Q$42>0,IF(OR($T57=0,COUNTIFS($A$42:$A57,$A57)=1),"",SUM((Filters!$F$4:$F$1503)*'Share Calculation'!AZ$4:AZ$1503*(OFFSET(Filters!$BD$4:$BD$1503,0,$A57-1)=COUNTIFS($A$42:$A57,$A57)-1))/ $T57),"") ->  | R57: =IF(COUNTIFS($A$42:$A57,$A57)=1,"",SUMIFS(Filters!$F$4:$F$1503,OFFSET(Filters!$BD$4:$BD$1503,0,$A57-1),COUNTIFS($A$42:$A57,$A57)-1)/Filters!$I$2) -> 1 | S57: Yes | T57: =IF(COUNTIFS($A$42:$A57,$A57)=1,"",COUNTIFS(OFFSET(Filters!$BD$4:$BD$1503,0,$A57-1),COUNTIFS($A$42:$A57,$A57)-1,Filters!$B$4:$B$1503,1)) -> 640
A58: 2 | C58: =VLOOKUP($A58,Filters!$H$4:$AG$1065,1+COUNTIFS($A$42:$A58,$A58),FALSE) -> Waste Only | F58: =IF(F$42>0,IF(OR($T58=0,COUNTIFS($A$42:$A58,$A58)=1),"",SUM((Filters!$F$4:$F$1503)*'Share Calculation'!AO$4:AO$1503*(OFFSET(Filters!$BD$4:$BD$1503,0,$A58-1)=COUNTIFS($A$42:$A58,$A58)-1))/ $T58),"") ->  | G58: =IF(G$42>0,IF(OR($T58=0,COUNTIFS($A$42:$A58,$A58)=1),"",SUM((Filters!$F$4:$F$1503)*'Share Calculation'!AP$4:AP$1503*(OFFSET(Filters!$BD$4:$BD$1503,0,$A58-1)=COUNTIFS($A$42:$A58,$A58)-1))/ $T58),"") ->  | H58: =IF(H$42>0,IF(OR($T58=0,COUNTIFS($A$42:$A58,$A58)=1),"",SUM((Filters!$F$4:$F$1503)*'Share Calculation'!AQ$4:AQ$1503*(OFFSET(Filters!$BD$4:$BD$1503,0,$A58-1)=COUNTIFS($A$42:$A58,$A58)-1))/ $T58),"") ->  | I58: =IF(I$42>0,IF(OR($T58=0,COUNTIFS($A$42:$A58,$A58)=1),"",SUM((Filters!$F$4:$F$1503)*'Share Calculation'!AR$4:AR$1503*(OFFSET(Filters!$BD$4:$BD$1503,0,$A58-1)=COUNTIFS($A$42:$A58,$A58)-1))/ $T58),"") ->  | J58: =IF(J$42>0,IF(OR($T58=0,COUNTIFS($A$42:$A58,$A58)=1),"",SUM((Filters!$F$4:$F$1503)*'Share Calculation'!AS$4:AS$1503*(OFFSET(Filters!$BD$4:$BD$1503,0,$A58-1)=COUNTIFS($A$42:$A58,$A58)-1))/ $T58),"") ->  | K58: =IF(K$42>0,IF(OR($T58=0,COUNTIFS($A$42:$A58,$A58)=1),"",SUM((Filters!$F$4:$F$1503)*'Share Calculation'!AT$4:AT$1503*(OFFSET(Filters!$BD$4:$BD$1503,0,$A58-1)=COUNTIFS($A$42:$A58,$A58)-1))/ $T58),"") ->  | L58: =IF(L$42>0,IF(OR($T58=0,COUNTIFS($A$42:$A58,$A58)=1),"",SUM((Filters!$F$4:$F$1503)*'Share Calculation'!AU$4:AU$1503*(OFFSET(Filters!$BD$4:$BD$1503,0,$A58-1)=COUNTIFS($A$42:$A58,$A58)-1))/ $T58),"") ->  | M58: =IF(M$42>0,IF(OR($T58=0,COUNTIFS($A$42:$A58,$A58)=1),"",SUM((Filters!$F$4:$F$1503)*'Share Calculation'!AV$4:AV$1503*(OFFSET(Filters!$BD$4:$BD$1503,0,$A58-1)=COUNTIFS($A$42:$A58,$A58)-1))/ $T58),"") ->  | N58: =IF(N$42>0,IF(OR($T58=0,COUNTIFS($A$42:$A58,$A58)=1),"",SUM((Filters!$F$4:$F$1503)*'Share Calculation'!AW$4:AW$1503*(OFFSET(Filters!$BD$4:$BD$1503,0,$A58-1)=COUNTIFS($A$42:$A58,$A58)-1))/ $T58),"") ->  | O58: =IF(O$42>0,IF(OR($T58=0,COUNTIFS($A$42:$A58,$A58)=1),"",SUM((Filters!$F$4:$F$1503)*'Share Calculation'!AX$4:AX$1503*(OFFSET(Filters!$BD$4:$BD$1503,0,$A58-1)=COUNTIFS($A$42:$A58,$A58)-1))/ $T58),"") ->  | P58: =IF(P$42>0,IF(OR($T58=0,COUNTIFS($A$42:$A58,$A58)=1),"",SUM((Filters!$F$4:$F$1503)*'Share Calculation'!AY$4:AY$1503*(OFFSET(Filters!$BD$4:$BD$1503,0,$A58-1)=COUNTIFS($A$42:$A58,$A58)-1))/ $T58),"") ->  | Q58: =IF(Q$42>0,IF(OR($T58=0,COUNTIFS($A$42:$A58,$A58)=1),"",SUM((Filters!$F$4:$F$1503)*'Share Calculation'!AZ$4:AZ$1503*(OFFSET(Filters!$BD$4:$BD$1503,0,$A58-1)=COUNTIFS($A$42:$A58,$A58)-1))/ $T58),"") ->  | R58: =IF(COUNTIFS($A$42:$A58,$A58)=1,"",SUMIFS(Filters!$F$4:$F$1503,OFFSET(Filters!$BD$4:$BD$1503,0,$A58-1),COUNTIFS($A$42:$A58,$A58)-1)/Filters!$I$2) -> 0 | T58: =IF(COUNTIFS($A$42:$A58,$A58)=1,"",COUNTIFS(OFFSET(Filters!$BD$4:$BD$1503,0,$A58-1),COUNTIFS($A$42:$A58,$A58)-1,Filters!$B$4:$B$1503,1)) -> 0
A59: 3 | C59: =VLOOKUP($A59,Filters!$H$4:$AG$1065,1+COUNTIFS($A$42:$A59,$A59),FALSE) -> Customer Type | F59: =IF(F$42>0,IF(OR($T59=0,COUNTIFS($A$42:$A59,$A59)=1),"",SUM((Filters!$F$4:$F$1503)*'Share Calculation'!AO$4:AO$1503*(OFFSET(Filters!$BD$4:$BD$1503,0,$A59-1)=COUNTIFS($A$42:$A59,$A59)-1))/ $T59),"") ->  | G59: =IF(G$42>0,IF(OR($T59=0,COUNTIFS($A$42:$A59,$A59)=1),"",SUM((Filters!$F$4:$F$1503)*'Share Calculation'!AP$4:AP$1503*(OFFSET(Filters!$BD$4:$BD$1503,0,$A59-1)=COUNTIFS($A$42:$A59,$A59)-1))/ $T59),"") ->  | H59: =IF(H$42>0,IF(OR($T59=0,COUNTIFS($A$42:$A59,$A59)=1),"",SUM((Filters!$F$4:$F$1503)*'Share Calculation'!AQ$4:AQ$1503*(OFFSET(Filters!$BD$4:$BD$1503,0,$A59-1)=COUNTIFS($A$42:$A59,$A59)-1))/ $T59),"") ->  | I59: =IF(I$42>0,IF(OR($T59=0,COUNTIFS($A$42:$A59,$A59)=1),"",SUM((Filters!$F$4:$F$1503)*'Share Calculation'!AR$4:AR$1503*(OFFSET(Filters!$BD$4:$BD$1503,0,$A59-1)=COUNTIFS($A$42:$A59,$A59)-1))/ $T59),"") ->  | J59: =IF(J$42>0,IF(OR($T59=0,COUNTIFS($A$42:$A59,$A59)=1),"",SUM((Filters!$F$4:$F$1503)*'Share Calculation'!AS$4:AS$1503*(OFFSET(Filters!$BD$4:$BD$1503,0,$A59-1)=COUNTIFS($A$42:$A59,$A59)-1))/ $T59),"") ->  | K59: =IF(K$42>0,IF(OR($T59=0,COUNTIFS($A$42:$A59,$A59)=1),"",SUM((Filters!$F$4:$F$1503)*'Share Calculation'!AT$4:AT$1503*(OFFSET(Filters!$BD$4:$BD$1503,0,$A59-1)=COUNTIFS($A$42:$A59,$A59)-1))/ $T59),"") ->  | L59: =IF(L$42>0,IF(OR($T59=0,COUNTIFS($A$42:$A59,$A59)=1),"",SUM((Filters!$F$4:$F$1503)*'Share Calculation'!AU$4:AU$1503*(OFFSET(Filters!$BD$4:$BD$1503,0,$A59-1)=COUNTIFS($A$42:$A59,$A59)-1))/ $T59),"") ->  | M59: =IF(M$42>0,IF(OR($T59=0,COUNTIFS($A$42:$A59,$A59)=1),"",SUM((Filters!$F$4:$F$1503)*'Share Calculation'!AV$4:AV$1503*(OFFSET(Filters!$BD$4:$BD$1503,0,$A59-1)=COUNTIFS($A$42:$A59,$A59)-1))/ $T59),"") ->  | N59: =IF(N$42>0,IF(OR($T59=0,COUNTIFS($A$42:$A59,$A59)=1),"",SUM((Filters!$F$4:$F$1503)*'Share Calculation'!AW$4:AW$1503*(OFFSET(Filters!$BD$4:$BD$1503,0,$A59-1)=COUNTIFS($A$42:$A59,$A59)-1))/ $T59),"") ->  | O59: =IF(O$42>0,IF(OR($T59=0,COUNTIFS($A$42:$A59,$A59)=1),"",SUM((Filters!$F$4:$F$1503)*'Share Calculation'!AX$4:AX$1503*(OFFSET(Filters!$BD$4:$BD$1503,0,$A59-1)=COUNTIFS($A$42:$A59,$A59)-1))/ $T59),"") ->  | P59: =IF(P$42>0,IF(OR($T59=0,COUNTIFS($A$42:$A59,$A59)=1),"",SUM((Filters!$F$4:$F$1503)*'Share Calculation'!AY$4:AY$1503*(OFFSET(Filters!$BD$4:$BD$1503,0,$A59-1)=COUNTIFS($A$42:$A59,$A59)-1))/ $T59),"") ->  | Q59: =IF(Q$42>0,IF(OR($T59=0,COUNTIFS($A$42:$A59,$A59)=1),"",SUM((Filters!$F$4:$F$1503)*'Share Calculation'!AZ$4:AZ$1503*(OFFSET(Filters!$BD$4:$BD$1503,0,$A59-1)=COUNTIFS($A$42:$A59,$A59)-1))/ $T59),"") ->  | R59: =IF(COUNTIFS($A$42:$A59,$A59)=1,"",SUMIFS(Filters!$F$4:$F$1503,OFFSET(Filters!$BD$4:$BD$1503,0,$A59-1),COUNTIFS($A$42:$A59,$A59)-1)/Filters!$I$2) ->  | T59: =IF(COUNTIFS($A$42:$A59,$A59)=1,"",COUNTIFS(OFFSET(Filters!$BD$4:$BD$1503,0,$A59-1),COUNTIFS($A$42:$A59,$A59)-1,Filters!$B$4:$B$1503,1)) -> 
A60: 3 | C60: =VLOOKUP($A60,Filters!$H$4:$AG$1065,1+COUNTIFS($A$42:$A60,$A60),FALSE) -> Households | F60: =IF(F$42>0,IF(OR($T60=0,COUNTIFS($A$42:$A60,$A60)=1),"",SUM((Filters!$F$4:$F$1503)*'Share Calculation'!AO$4:AO$1503*(OFFSET(Filters!$BD$4:$BD$1503,0,$A60-1)=COUNTIFS($A$42:$A60,$A60)-1))/ $T60),"") -> 0.6590733244 | G60: =IF(G$42>0,IF(OR($T60=0,COUNTIFS($A$42:$A60,$A60)=1),"",SUM((Filters!$F$4:$F$1503)*'Share Calculation'!AP$4:AP$1503*(OFFSET(Filters!$BD$4:$BD$1503,0,$A60-1)=COUNTIFS($A$42:$A60,$A60)-1))/ $T60),"") -> 0.3409266756 | H60: =IF(H$42>0,IF(OR($T60=0,COUNTIFS($A$42:$A60,$A60)=1),"",SUM((Filters!$F$4:$F$1503)*'Share Calculation'!AQ$4:AQ$1503*(OFFSET(Filters!$BD$4:$BD$1503,0,$A60-1)=COUNTIFS($A$42:$A60,$A60)-1))/ $T60),"") ->  | I60: =IF(I$42>0,IF(OR($T60=0,COUNTIFS($A$42:$A60,$A60)=1),"",SUM((Filters!$F$4:$F$1503)*'Share Calculation'!AR$4:AR$1503*(OFFSET(Filters!$BD$4:$BD$1503,0,$A60-1)=COUNTIFS($A$42:$A60,$A60)-1))/ $T60),"") ->  | J60: =IF(J$42>0,IF(OR($T60=0,COUNTIFS($A$42:$A60,$A60)=1),"",SUM((Filters!$F$4:$F$1503)*'Share Calculation'!AS$4:AS$1503*(OFFSET(Filters!$BD$4:$BD$1503,0,$A60-1)=COUNTIFS($A$42:$A60,$A60)-1))/ $T60),"") ->  | K60: =IF(K$42>0,IF(OR($T60=0,COUNTIFS($A$42:$A60,$A60)=1),"",SUM((Filters!$F$4:$F$1503)*'Share Calculation'!AT$4:AT$1503*(OFFSET(Filters!$BD$4:$BD$1503,0,$A60-1)=COUNTIFS($A$42:$A60,$A60)-1))/ $T60),"") ->  | L60: =IF(L$42>0,IF(OR($T60=0,COUNTIFS($A$42:$A60,$A60)=1),"",SUM((Filters!$F$4:$F$1503)*'Share Calculation'!AU$4:AU$1503*(OFFSET(Filters!$BD$4:$BD$1503,0,$A60-1)=COUNTIFS($A$42:$A60,$A60)-1))/ $T60),"") ->  | M60: =IF(M$42>0,IF(OR($T60=0,COUNTIFS($A$42:$A60,$A60)=1),"",SUM((Filters!$F$4:$F$1503)*'Share Calculation'!AV$4:AV$1503*(OFFSET(Filters!$BD$4:$BD$1503,0,$A60-1)=COUNTIFS($A$42:$A60,$A60)-1))/ $T60),"") ->  | N60: =IF(N$42>0,IF(OR($T60=0,COUNTIFS($A$42:$A60,$A60)=1),"",SUM((Filters!$F$4:$F$1503)*'Share Calculation'!AW$4:AW$1503*(OFFSET(Filters!$BD$4:$BD$1503,0,$A60-1)=COUNTIFS($A$42:$A60,$A60)-1))/ $T60),"") ->  | O60: =IF(O$42>0,IF(OR($T60=0,COUNTIFS($A$42:$A60,$A60)=1),"",SUM((Filters!$F$4:$F$1503)*'Share Calculation'!AX$4:AX$1503*(OFFSET(Filters!$BD$4:$BD$1503,0,$A60-1)=COUNTIFS($A$42:$A60,$A60)-1))/ $T60),"") ->  | P60: =IF(P$42>0,IF(OR($T60=0,COUNTIFS($A$42:$A60,$A60)=1),"",SUM((Filters!$F$4:$F$1503)*'Share Calculation'!AY$4:AY$1503*(OFFSET(Filters!$BD$4:$BD$1503,0,$A60-1)=COUNTIFS($A$42:$A60,$A60)-1))/ $T60),"") ->  | Q60: =IF(Q$42>0,IF(OR($T60=0,COUNTIFS($A$42:$A60,$A60)=1),"",SUM((Filters!$F$4:$F$1503)*'Share Calculation'!AZ$4:AZ$1503*(OFFSET(Filters!$BD$4:$BD$1503,0,$A60-1)=COUNTIFS($A$42:$A60,$A60)-1))/ $T60),"") ->  | R60: =IF(COUNTIFS($A$42:$A60,$A60)=1,"",SUMIFS(Filters!$F$4:$F$1503,OFFSET(Filters!$BD$4:$BD$1503,0,$A60-1),COUNTIFS($A$42:$A60,$A60)-1)/Filters!$I$2) -> 1 | S60: Yes | T60: =IF(COUNTIFS($A$42:$A60,$A60)=1,"",COUNTIFS(OFFSET(Filters!$BD$4:$BD$1503,0,$A60-1),COUNTIFS($A$42:$A60,$A60)-1,Filters!$B$4:$B$1503,1)) -> 640
A61: 3 | C61: =VLOOKUP($A61,Filters!$H$4:$AG$1065,1+COUNTIFS($A$42:$A61,$A61),FALSE) -> Non-Households | F61: =IF(F$42>0,IF(OR($T61=0,COUNTIFS($A$42:$A61,$A61)=1),"",SUM((Filters!$F$4:$F$1503)*'Share Calculation'!AO$4:AO$1503*(OFFSET(Filters!$BD$4:$BD$1503,0,$A61-1)=COUNTIFS($A$42:$A61,$A61)-1))/ $T61),"") ->  | G61: =IF(G$42>0,IF(OR($T61=0,COUNTIFS($A$42:$A61,$A61)=1),"",SUM((Filters!$F$4:$F$1503)*'Share Calculation'!AP$4:AP$1503*(OFFSET(Filters!$BD$4:$BD$1503,0,$A61-1)=COUNTIFS($A$42:$A61,$A61)-1))/ $T61),"") ->  | H61: =IF(H$42>0,IF(OR($T61=0,COUNTIFS($A$42:$A61,$A61)=1),"",SUM((Filters!$F$4:$F$1503)*'Share Calculation'!AQ$4:AQ$1503*(OFFSET(Filters!$BD$4:$BD$1503,0,$A61-1)=COUNTIFS($A$42:$A61,$A61)-1))/ $T61),"") ->  | I61: =IF(I$42>0,IF(OR($T61=0,COUNTIFS($A$42:$A61,$A61)=1),"",SUM((Filters!$F$4:$F$1503)*'Share Calculation'!AR$4:AR$1503*(OFFSET(Filters!$BD$4:$BD$1503,0,$A61-1)=COUNTIFS($A$42:$A61,$A61)-1))/ $T61),"") ->  | J61: =IF(J$42>0,IF(OR($T61=0,COUNTIFS($A$42:$A61,$A61)=1),"",SUM((Filters!$F$4:$F$1503)*'Share Calculation'!AS$4:AS$1503*(OFFSET(Filters!$BD$4:$BD$1503,0,$A61-1)=COUNTIFS($A$42:$A61,$A61)-1))/ $T61),"") ->  | K61: =IF(K$42>0,IF(OR($T61=0,COUNTIFS($A$42:$A61,$A61)=1),"",SUM((Filters!$F$4:$F$1503)*'Share Calculation'!AT$4:AT$1503*(OFFSET(Filters!$BD$4:$BD$1503,0,$A61-1)=COUNTIFS($A$42:$A61,$A61)-1))/ $T61),"") ->  | L61: =IF(L$42>0,IF(OR($T61=0,COUNTIFS($A$42:$A61,$A61)=1),"",SUM((Filters!$F$4:$F$1503)*'Share Calculation'!AU$4:AU$1503*(OFFSET(Filters!$BD$4:$BD$1503,0,$A61-1)=COUNTIFS($A$42:$A61,$A61)-1))/ $T61),"") ->  | M61: =IF(M$42>0,IF(OR($T61=0,COUNTIFS($A$42:$A61,$A61)=1),"",SUM((Filters!$F$4:$F$1503)*'Share Calculation'!AV$4:AV$1503*(OFFSET(Filters!$BD$4:$BD$1503,0,$A61-1)=COUNTIFS($A$42:$A61,$A61)-1))/ $T61),"") ->  | N61: =IF(N$42>0,IF(OR($T61=0,COUNTIFS($A$42:$A61,$A61)=1),"",SUM((Filters!$F$4:$F$1503)*'Share Calculation'!AW$4:AW$1503*(OFFSET(Filters!$BD$4:$BD$1503,0,$A61-1)=COUNTIFS($A$42:$A61,$A61)-1))/ $T61),"") ->  | O61: =IF(O$42>0,IF(OR($T61=0,COUNTIFS($A$42:$A61,$A61)=1),"",SUM((Filters!$F$4:$F$1503)*'Share Calculation'!AX$4:AX$1503*(OFFSET(Filters!$BD$4:$BD$1503,0,$A61-1)=COUNTIFS($A$42:$A61,$A61)-1))/ $T61),"") ->  | P61: =IF(P$42>0,IF(OR($T61=0,COUNTIFS($A$42:$A61,$A61)=1),"",SUM((Filters!$F$4:$F$1503)*'Share Calculation'!AY$4:AY$1503*(OFFSET(Filters!$BD$4:$BD$1503,0,$A61-1)=COUNTIFS($A$42:$A61,$A61)-1))/ $T61),"") ->  | Q61: =IF(Q$42>0,IF(OR($T61=0,COUNTIFS($A$42:$A61,$A61)=1),"",SUM((Filters!$F$4:$F$1503)*'Share Calculation'!AZ$4:AZ$1503*(OFFSET(Filters!$BD$4:$BD$1503,0,$A61-1)=COUNTIFS($A$42:$A61,$A61)-1))/ $T61),"") ->  | R61: =IF(COUNTIFS($A$42:$A61,$A61)=1,"",SUMIFS(Filters!$F$4:$F$1503,OFFSET(Filters!$BD$4:$BD$1503,0,$A61-1),COUNTIFS($A$42:$A61,$A61)-1)/Filters!$I$2) -> 0 | T61: =IF(COUNTIFS($A$42:$A61,$A61)=1,"",COUNTIFS(OFFSET(Filters!$BD$4:$BD$1503,0,$A61-1),COUNTIFS($A$42:$A61,$A61)-1,Filters!$B$4:$B$1503,1)) -> 0
A62: 4 | C62: =VLOOKUP($A62,Filters!$H$4:$AG$1065,1+COUNTIFS($A$42:$A62,$A62),FALSE) -> Boundary | F62: =IF(F$42>0,IF(OR($T62=0,COUNTIFS($A$42:$A62,$A62)=1),"",SUM((Filters!$F$4:$F$1503)*'Share Calculation'!AO$4:AO$1503*(OFFSET(Filters!$BD$4:$BD$1503,0,$A62-1)=COUNTIFS($A$42:$A62,$A62)-1))/ $T62),"") ->  | G62: =IF(G$42>0,IF(OR($T62=0,COUNTIFS($A$42:$A62,$A62)=1),"",SUM((Filters!$F$4:$F$1503)*'Share Calculation'!AP$4:AP$1503*(OFFSET(Filters!$BD$4:$BD$1503,0,$A62-1)=COUNTIFS($A$42:$A62,$A62)-1))/ $T62),"") ->  | H62: =IF(H$42>0,IF(OR($T62=0,COUNTIFS($A$42:$A62,$A62)=1),"",SUM((Filters!$F$4:$F$1503)*'Share Calculation'!AQ$4:AQ$1503*(OFFSET(Filters!$BD$4:$BD$1503,0,$A62-1)=COUNTIFS($A$42:$A62,$A62)-1))/ $T62),"") ->  | I62: =IF(I$42>0,IF(OR($T62=0,COUNTIFS($A$42:$A62,$A62)=1),"",SUM((Filters!$F$4:$F$1503)*'Share Calculation'!AR$4:AR$1503*(OFFSET(Filters!$BD$4:$BD$1503,0,$A62-1)=COUNTIFS($A$42:$A62,$A62)-1))/ $T62),"") ->  | J62: =IF(J$42>0,IF(OR($T62=0,COUNTIFS($A$42:$A62,$A62)=1),"",SUM((Filters!$F$4:$F$1503)*'Share Calculation'!AS$4:AS$1503*(OFFSET(Filters!$BD$4:$BD$1503,0,$A62-1)=COUNTIFS($A$42:$A62,$A62)-1))/ $T62),"") ->  | K62: =IF(K$42>0,IF(OR($T62=0,COUNTIFS($A$42:$A62,$A62)=1),"",SUM((Filters!$F$4:$F$1503)*'Share Calculation'!AT$4:AT$1503*(OFFSET(Filters!$BD$4:$BD$1503,0,$A62-1)=COUNTIFS($A$42:$A62,$A62)-1))/ $T62),"") ->  | L62: =IF(L$42>0,IF(OR($T62=0,COUNTIFS($A$42:$A62,$A62)=1),"",SUM((Filters!$F$4:$F$1503)*'Share Calculation'!AU$4:AU$1503*(OFFSET(Filters!$BD$4:$BD$1503,0,$A62-1)=COUNTIFS($A$42:$A62,$A62)-1))/ $T62),"") ->  | M62: =IF(M$42>0,IF(OR($T62=0,COUNTIFS($A$42:$A62,$A62)=1),"",SUM((Filters!$F$4:$F$1503)*'Share Calculation'!AV$4:AV$1503*(OFFSET(Filters!$BD$4:$BD$1503,0,$A62-1)=COUNTIFS($A$42:$A62,$A62)-1))/ $T62),"") ->  | N62: =IF(N$42>0,IF(OR($T62=0,COUNTIFS($A$42:$A62,$A62)=1),"",SUM((Filters!$F$4:$F$1503)*'Share Calculation'!AW$4:AW$1503*(OFFSET(Filters!$BD$4:$BD$1503,0,$A62-1)=COUNTIFS($A$42:$A62,$A62)-1))/ $T62),"") ->  | O62: =IF(O$42>0,IF(OR($T62=0,COUNTIFS($A$42:$A62,$A62)=1),"",SUM((Filters!$F$4:$F$1503)*'Share Calculation'!AX$4:AX$1503*(OFFSET(Filters!$BD$4:$BD$1503,0,$A62-1)=COUNTIFS($A$42:$A62,$A62)-1))/ $T62),"") ->  | P62: =IF(P$42>0,IF(OR($T62=0,COUNTIFS($A$42:$A62,$A62)=1),"",SUM((Filters!$F$4:$F$1503)*'Share Calculation'!AY$4:AY$1503*(OFFSET(Filters!$BD$4:$BD$1503,0,$A62-1)=COUNTIFS($A$42:$A62,$A62)-1))/ $T62),"") ->  | Q62: =IF(Q$42>0,IF(OR($T62=0,COUNTIFS($A$42:$A62,$A62)=1),"",SUM((Filters!$F$4:$F$1503)*'Share Calculation'!AZ$4:AZ$1503*(OFFSET(Filters!$BD$4:$BD$1503,0,$A62-1)=COUNTIFS($A$42:$A62,$A62)-1))/ $T62),"") ->  | R62: =IF(COUNTIFS($A$42:$A62,$A62)=1,"",SUMIFS(Filters!$F$4:$F$1503,OFFSET(Filters!$BD$4:$BD$1503,0,$A62-1),COUNTIFS($A$42:$A62,$A62)-1)/Filters!$I$2) ->  | T62: =IF(COUNTIFS($A$42:$A62,$A62)=1,"",COUNTIFS(OFFSET(Filters!$BD$4:$BD$1503,0,$A62-1),COUNTIFS($A$42:$A62,$A62)-1,Filters!$B$4:$B$1503,1)) -> 
A63: 4 | C63: =VLOOKUP($A63,Filters!$H$4:$AG$1065,1+COUNTIFS($A$42:$A63,$A63),FALSE) -> Yes | F63: =IF(F$42>0,IF(OR($T63=0,COUNTIFS($A$42:$A63,$A63)=1),"",SUM((Filters!$F$4:$F$1503)*'Share Calculation'!AO$4:AO$1503*(OFFSET(Filters!$BD$4:$BD$1503,0,$A63-1)=COUNTIFS($A$42:$A63,$A63)-1))/ $T63),"") -> 0.6123455786 | G63: =IF(G$42>0,IF(OR($T63=0,COUNTIFS($A$42:$A63,$A63)=1),"",SUM((Filters!$F$4:$F$1503)*'Share Calculation'!AP$4:AP$1503*(OFFSET(Filters!$BD$4:$BD$1503,0,$A63-1)=COUNTIFS($A$42:$A63,$A63)-1))/ $T63),"") -> 0.3876544214 | H63: =IF(H$42>0,IF(OR($T63=0,COUNTIFS($A$42:$A63,$A63)=1),"",SUM((Filters!$F$4:$F$1503)*'Share Calculation'!AQ$4:AQ$1503*(OFFSET(Filters!$BD$4:$BD$1503,0,$A63-1)=COUNTIFS($A$42:$A63,$A63)-1))/ $T63),"") ->  | I63: =IF(I$42>0,IF(OR($T63=0,COUNTIFS($A$42:$A63,$A63)=1),"",SUM((Filters!$F$4:$F$1503)*'Share Calculation'!AR$4:AR$1503*(OFFSET(Filters!$BD$4:$BD$1503,0,$A63-1)=COUNTIFS($A$42:$A63,$A63)-1))/ $T63),"") ->  | J63: =IF(J$42>0,IF(OR($T63=0,COUNTIFS($A$42:$A63,$A63)=1),"",SUM((Filters!$F$4:$F$1503)*'Share Calculation'!AS$4:AS$1503*(OFFSET(Filters!$BD$4:$BD$1503,0,$A63-1)=COUNTIFS($A$42:$A63,$A63)-1))/ $T63),"") ->  | K63: =IF(K$42>0,IF(OR($T63=0,COUNTIFS($A$42:$A63,$A63)=1),"",SUM((Filters!$F$4:$F$1503)*'Share Calculation'!AT$4:AT$1503*(OFFSET(Filters!$BD$4:$BD$1503,0,$A63-1)=COUNTIFS($A$42:$A63,$A63)-1))/ $T63),"") ->  | L63: =IF(L$42>0,IF(OR($T63=0,COUNTIFS($A$42:$A63,$A63)=1),"",SUM((Filters!$F$4:$F$1503)*'Share Calculation'!AU$4:AU$1503*(OFFSET(Filters!$BD$4:$BD$1503,0,$A63-1)=COUNTIFS($A$42:$A63,$A63)-1))/ $T63),"") ->  | M63: =IF(M$42>0,IF(OR($T63=0,COUNTIFS($A$42:$A63,$A63)=1),"",SUM((Filters!$F$4:$F$1503)*'Share Calculation'!AV$4:AV$1503*(OFFSET(Filters!$BD$4:$BD$1503,0,$A63-1)=COUNTIFS($A$42:$A63,$A63)-1))/ $T63),"") ->  | N63: =IF(N$42>0,IF(OR($T63=0,COUNTIFS($A$42:$A63,$A63)=1),"",SUM((Filters!$F$4:$F$1503)*'Share Calculation'!AW$4:AW$1503*(OFFSET(Filters!$BD$4:$BD$1503,0,$A63-1)=COUNTIFS($A$42:$A63,$A63)-1))/ $T63),"") ->  | O63: =IF(O$42>0,IF(OR($T63=0,COUNTIFS($A$42:$A63,$A63)=1),"",SUM((Filters!$F$4:$F$1503)*'Share Calculation'!AX$4:AX$1503*(OFFSET(Filters!$BD$4:$BD$1503,0,$A63-1)=COUNTIFS($A$42:$A63,$A63)-1))/ $T63),"") ->  | P63: =IF(P$42>0,IF(OR($T63=0,COUNTIFS($A$42:$A63,$A63)=1),"",SUM((Filters!$F$4:$F$1503)*'Share Calculation'!AY$4:AY$1503*(OFFSET(Filters!$BD$4:$BD$1503,0,$A63-1)=COUNTIFS($A$42:$A63,$A63)-1))/ $T63),"") ->  | Q63: =IF(Q$42>0,IF(OR($T63=0,COUNTIFS($A$42:$A63,$A63)=1),"",SUM((Filters!$F$4:$F$1503)*'Share Calculation'!AZ$4:AZ$1503*(OFFSET(Filters!$BD$4:$BD$1503,0,$A63-1)=COUNTIFS($A$42:$A63,$A63)-1))/ $T63),"") ->  | R63: =IF(COUNTIFS($A$42:$A63,$A63)=1,"",SUMIFS(Filters!$F$4:$F$1503,OFFSET(Filters!$BD$4:$BD$1503,0,$A63-1),COUNTIFS($A$42:$A63,$A63)-1)/Filters!$I$2) -> 0.0234375 | S63: Yes | T63: =IF(COUNTIFS($A$42:$A63,$A63)=1,"",COUNTIFS(OFFSET(Filters!$BD$4:$BD$1503,0,$A63-1),COUNTIFS($A$42:$A63,$A63)-1,Filters!$B$4:$B$1503,1)) -> 15
A64: 4 | C64: =VLOOKUP($A64,Filters!$H$4:$AG$1065,1+COUNTIFS($A$42:$A64,$A64),FALSE) -> No | F64: =IF(F$42>0,IF(OR($T64=0,COUNTIFS($A$42:$A64,$A64)=1),"",SUM((Filters!$F$4:$F$1503)*'Share Calculation'!AO$4:AO$1503*(OFFSET(Filters!$BD$4:$BD$1503,0,$A64-1)=COUNTIFS($A$42:$A64,$A64)-1))/ $T64),"") -> 0.6601947903 | G64: =IF(G$42>0,IF(OR($T64=0,COUNTIFS($A$42:$A64,$A64)=1),"",SUM((Filters!$F$4:$F$1503)*'Share Calculation'!AP$4:AP$1503*(OFFSET(Filters!$BD$4:$BD$1503,0,$A64-1)=COUNTIFS($A$42:$A64,$A64)-1))/ $T64),"") -> 0.3398052097 | H64: =IF(H$42>0,IF(OR($T64=0,COUNTIFS($A$42:$A64,$A64)=1),"",SUM((Filters!$F$4:$F$1503)*'Share Calculation'!AQ$4:AQ$1503*(OFFSET(Filters!$BD$4:$BD$1503,0,$A64-1)=COUNTIFS($A$42:$A64,$A64)-1))/ $T64),"") ->  | I64: =IF(I$42>0,IF(OR($T64=0,COUNTIFS($A$42:$A64,$A64)=1),"",SUM((Filters!$F$4:$F$1503)*'Share Calculation'!AR$4:AR$1503*(OFFSET(Filters!$BD$4:$BD$1503,0,$A64-1)=COUNTIFS($A$42:$A64,$A64)-1))/ $T64),"") ->  | J64: =IF(J$42>0,IF(OR($T64=0,COUNTIFS($A$42:$A64,$A64)=1),"",SUM((Filters!$F$4:$F$1503)*'Share Calculation'!AS$4:AS$1503*(OFFSET(Filters!$BD$4:$BD$1503,0,$A64-1)=COUNTIFS($A$42:$A64,$A64)-1))/ $T64),"") ->  | K64: =IF(K$42>0,IF(OR($T64=0,COUNTIFS($A$42:$A64,$A64)=1),"",SUM((Filters!$F$4:$F$1503)*'Share Calculation'!AT$4:AT$1503*(OFFSET(Filters!$BD$4:$BD$1503,0,$A64-1)=COUNTIFS($A$42:$A64,$A64)-1))/ $T64),"") ->  | L64: =IF(L$42>0,IF(OR($T64=0,COUNTIFS($A$42:$A64,$A64)=1),"",SUM((Filters!$F$4:$F$1503)*'Share Calculation'!AU$4:AU$1503*(OFFSET(Filters!$BD$4:$BD$1503,0,$A64-1)=COUNTIFS($A$42:$A64,$A64)-1))/ $T64),"") ->  | M64: =IF(M$42>0,IF(OR($T64=0,COUNTIFS($A$42:$A64,$A64)=1),"",SUM((Filters!$F$4:$F$1503)*'Share Calculation'!AV$4:AV$1503*(OFFSET(Filters!$BD$4:$BD$1503,0,$A64-1)=COUNTIFS($A$42:$A64,$A64)-1))/ $T64),"") ->  | N64: =IF(N$42>0,IF(OR($T64=0,COUNTIFS($A$42:$A64,$A64)=1),"",SUM((Filters!$F$4:$F$1503)*'Share Calculation'!AW$4:AW$1503*(OFFSET(Filters!$BD$4:$BD$1503,0,$A64-1)=COUNTIFS($A$42:$A64,$A64)-1))/ $T64),"") ->  | O64: =IF(O$42>0,IF(OR($T64=0,COUNTIFS($A$42:$A64,$A64)=1),"",SUM((Filters!$F$4:$F$1503)*'Share Calculation'!AX$4:AX$1503*(OFFSET(Filters!$BD$4:$BD$1503,0,$A64-1)=COUNTIFS($A$42:$A64,$A64)-1))/ $T64),"") ->  | P64: =IF(P$42>0,IF(OR($T64=0,COUNTIFS($A$42:$A64,$A64)=1),"",SUM((Filters!$F$4:$F$1503)*'Share Calculation'!AY$4:AY$1503*(OFFSET(Filters!$BD$4:$BD$1503,0,$A64-1)=COUNTIFS($A$42:$A64,$A64)-1))/ $T64),"") ->  | Q64: =IF(Q$42>0,IF(OR($T64=0,COUNTIFS($A$42:$A64,$A64)=1),"",SUM((Filters!$F$4:$F$1503)*'Share Calculation'!AZ$4:AZ$1503*(OFFSET(Filters!$BD$4:$BD$1503,0,$A64-1)=COUNTIFS($A$42:$A64,$A64)-1))/ $T64),"") ->  | R64: =IF(COUNTIFS($A$42:$A64,$A64)=1,"",SUMIFS(Filters!$F$4:$F$1503,OFFSET(Filters!$BD$4:$BD$1503,0,$A64-1),COUNTIFS($A$42:$A64,$A64)-1)/Filters!$I$2) -> 0.9765625 | S64: Yes | T64: =IF(COUNTIFS($A$42:$A64,$A64)=1,"",COUNTIFS(OFFSET(Filters!$BD$4:$BD$1503,0,$A64-1),COUNTIFS($A$42:$A64,$A64)-1,Filters!$B$4:$B$1503,1)) -> 625
A65: 4 | C65: =VLOOKUP($A65,Filters!$H$4:$AG$1065,1+COUNTIFS($A$42:$A65,$A65),FALSE) -> n/a | F65: =IF(F$42>0,IF(OR($T65=0,COUNTIFS($A$42:$A65,$A65)=1),"",SUM((Filters!$F$4:$F$1503)*'Share Calculation'!AO$4:AO$1503*(OFFSET(Filters!$BD$4:$BD$1503,0,$A65-1)=COUNTIFS($A$42:$A65,$A65)-1))/ $T65),"") ->  | G65: =IF(G$42>0,IF(OR($T65=0,COUNTIFS($A$42:$A65,$A65)=1),"",SUM((Filters!$F$4:$F$1503)*'Share Calculation'!AP$4:AP$1503*(OFFSET(Filters!$BD$4:$BD$1503,0,$A65-1)=COUNTIFS($A$42:$A65,$A65)-1))/ $T65),"") ->  | H65: =IF(H$42>0,IF(OR($T65=0,COUNTIFS($A$42:$A65,$A65)=1),"",SUM((Filters!$F$4:$F$1503)*'Share Calculation'!AQ$4:AQ$1503*(OFFSET(Filters!$BD$4:$BD$1503,0,$A65-1)=COUNTIFS($A$42:$A65,$A65)-1))/ $T65),"") ->  | I65: =IF(I$42>0,IF(OR($T65=0,COUNTIFS($A$42:$A65,$A65)=1),"",SUM((Filters!$F$4:$F$1503)*'Share Calculation'!AR$4:AR$1503*(OFFSET(Filters!$BD$4:$BD$1503,0,$A65-1)=COUNTIFS($A$42:$A65,$A65)-1))/ $T65),"") ->  | J65: =IF(J$42>0,IF(OR($T65=0,COUNTIFS($A$42:$A65,$A65)=1),"",SUM((Filters!$F$4:$F$1503)*'Share Calculation'!AS$4:AS$1503*(OFFSET(Filters!$BD$4:$BD$1503,0,$A65-1)=COUNTIFS($A$42:$A65,$A65)-1))/ $T65),"") ->  | K65: =IF(K$42>0,IF(OR($T65=0,COUNTIFS($A$42:$A65,$A65)=1),"",SUM((Filters!$F$4:$F$1503)*'Share Calculation'!AT$4:AT$1503*(OFFSET(Filters!$BD$4:$BD$1503,0,$A65-1)=COUNTIFS($A$42:$A65,$A65)-1))/ $T65),"") ->  | L65: =IF(L$42>0,IF(OR($T65=0,COUNTIFS($A$42:$A65,$A65)=1),"",SUM((Filters!$F$4:$F$1503)*'Share Calculation'!AU$4:AU$1503*(OFFSET(Filters!$BD$4:$BD$1503,0,$A65-1)=COUNTIFS($A$42:$A65,$A65)-1))/ $T65),"") ->  | M65: =IF(M$42>0,IF(OR($T65=0,COUNTIFS($A$42:$A65,$A65)=1),"",SUM((Filters!$F$4:$F$1503)*'Share Calculation'!AV$4:AV$1503*(OFFSET(Filters!$BD$4:$BD$1503,0,$A65-1)=COUNTIFS($A$42:$A65,$A65)-1))/ $T65),"") ->  | N65: =IF(N$42>0,IF(OR($T65=0,COUNTIFS($A$42:$A65,$A65)=1),"",SUM((Filters!$F$4:$F$1503)*'Share Calculation'!AW$4:AW$1503*(OFFSET(Filters!$BD$4:$BD$1503,0,$A65-1)=COUNTIFS($A$42:$A65,$A65)-1))/ $T65),"") ->  | O65: =IF(O$42>0,IF(OR($T65=0,COUNTIFS($A$42:$A65,$A65)=1),"",SUM((Filters!$F$4:$F$1503)*'Share Calculation'!AX$4:AX$1503*(OFFSET(Filters!$BD$4:$BD$1503,0,$A65-1)=COUNTIFS($A$42:$A65,$A65)-1))/ $T65),"") ->  | P65: =IF(P$42>0,IF(OR($T65=0,COUNTIFS($A$42:$A65,$A65)=1),"",SUM((Filters!$F$4:$F$1503)*'Share Calculation'!AY$4:AY$1503*(OFFSET(Filters!$BD$4:$BD$1503,0,$A65-1)=COUNTIFS($A$42:$A65,$A65)-1))/ $T65),"") ->  | Q65: =IF(Q$42>0,IF(OR($T65=0,COUNTIFS($A$42:$A65,$A65)=1),"",SUM((Filters!$F$4:$F$1503)*'Share Calculation'!AZ$4:AZ$1503*(OFFSET(Filters!$BD$4:$BD$1503,0,$A65-1)=COUNTIFS($A$42:$A65,$A65)-1))/ $T65),"") ->  | R65: =IF(COUNTIFS($A$42:$A65,$A65)=1,"",SUMIFS(Filters!$F$4:$F$1503,OFFSET(Filters!$BD$4:$BD$1503,0,$A65-1),COUNTIFS($A$42:$A65,$A65)-1)/Filters!$I$2) -> 0 | S65: Yes | T65: =IF(COUNTIFS($A$42:$A65,$A65)=1,"",COUNTIFS(OFFSET(Filters!$BD$4:$BD$1503,0,$A65-1),COUNTIFS($A$42:$A65,$A65)-1,Filters!$B$4:$B$1503,1)) -> 0
A66: 5 | C66: =VLOOKUP($A66,Filters!$H$4:$AG$1065,1+COUNTIFS($A$42:$A66,$A66),FALSE) -> London | F66: =IF(F$42>0,IF(OR($T66=0,COUNTIFS($A$42:$A66,$A66)=1),"",SUM((Filters!$F$4:$F$1503)*'Share Calculation'!AO$4:AO$1503*(OFFSET(Filters!$BD$4:$BD$1503,0,$A66-1)=COUNTIFS($A$42:$A66,$A66)-1))/ $T66),"") ->  | G66: =IF(G$42>0,IF(OR($T66=0,COUNTIFS($A$42:$A66,$A66)=1),"",SUM((Filters!$F$4:$F$1503)*'Share Calculation'!AP$4:AP$1503*(OFFSET(Filters!$BD$4:$BD$1503,0,$A66-1)=COUNTIFS($A$42:$A66,$A66)-1))/ $T66),"") ->  | H66: =IF(H$42>0,IF(OR($T66=0,COUNTIFS($A$42:$A66,$A66)=1),"",SUM((Filters!$F$4:$F$1503)*'Share Calculation'!AQ$4:AQ$1503*(OFFSET(Filters!$BD$4:$BD$1503,0,$A66-1)=COUNTIFS($A$42:$A66,$A66)-1))/ $T66),"") ->  | I66: =IF(I$42>0,IF(OR($T66=0,COUNTIFS($A$42:$A66,$A66)=1),"",SUM((Filters!$F$4:$F$1503)*'Share Calculation'!AR$4:AR$1503*(OFFSET(Filters!$BD$4:$BD$1503,0,$A66-1)=COUNTIFS($A$42:$A66,$A66)-1))/ $T66),"") ->  | J66: =IF(J$42>0,IF(OR($T66=0,COUNTIFS($A$42:$A66,$A66)=1),"",SUM((Filters!$F$4:$F$1503)*'Share Calculation'!AS$4:AS$1503*(OFFSET(Filters!$BD$4:$BD$1503,0,$A66-1)=COUNTIFS($A$42:$A66,$A66)-1))/ $T66),"") ->  | K66: =IF(K$42>0,IF(OR($T66=0,COUNTIFS($A$42:$A66,$A66)=1),"",SUM((Filters!$F$4:$F$1503)*'Share Calculation'!AT$4:AT$1503*(OFFSET(Filters!$BD$4:$BD$1503,0,$A66-1)=COUNTIFS($A$42:$A66,$A66)-1))/ $T66),"") ->  | L66: =IF(L$42>0,IF(OR($T66=0,COUNTIFS($A$42:$A66,$A66)=1),"",SUM((Filters!$F$4:$F$1503)*'Share Calculation'!AU$4:AU$1503*(OFFSET(Filters!$BD$4:$BD$1503,0,$A66-1)=COUNTIFS($A$42:$A66,$A66)-1))/ $T66),"") ->  | M66: =IF(M$42>0,IF(OR($T66=0,COUNTIFS($A$42:$A66,$A66)=1),"",SUM((Filters!$F$4:$F$1503)*'Share Calculation'!AV$4:AV$1503*(OFFSET(Filters!$BD$4:$BD$1503,0,$A66-1)=COUNTIFS($A$42:$A66,$A66)-1))/ $T66),"") ->  | N66: =IF(N$42>0,IF(OR($T66=0,COUNTIFS($A$42:$A66,$A66)=1),"",SUM((Filters!$F$4:$F$1503)*'Share Calculation'!AW$4:AW$1503*(OFFSET(Filters!$BD$4:$BD$1503,0,$A66-1)=COUNTIFS($A$42:$A66,$A66)-1))/ $T66),"") ->  | O66: =IF(O$42>0,IF(OR($T66=0,COUNTIFS($A$42:$A66,$A66)=1),"",SUM((Filters!$F$4:$F$1503)*'Share Calculation'!AX$4:AX$1503*(OFFSET(Filters!$BD$4:$BD$1503,0,$A66-1)=COUNTIFS($A$42:$A66,$A66)-1))/ $T66),"") ->  | P66: =IF(P$42>0,IF(OR($T66=0,COUNTIFS($A$42:$A66,$A66)=1),"",SUM((Filters!$F$4:$F$1503)*'Share Calculation'!AY$4:AY$1503*(OFFSET(Filters!$BD$4:$BD$1503,0,$A66-1)=COUNTIFS($A$42:$A66,$A66)-1))/ $T66),"") ->  | Q66: =IF(Q$42>0,IF(OR($T66=0,COUNTIFS($A$42:$A66,$A66)=1),"",SUM((Filters!$F$4:$F$1503)*'Share Calculation'!AZ$4:AZ$1503*(OFFSET(Filters!$BD$4:$BD$1503,0,$A66-1)=COUNTIFS($A$42:$A66,$A66)-1))/ $T66),"") ->  | R66: =IF(COUNTIFS($A$42:$A66,$A66)=1,"",SUMIFS(Filters!$F$4:$F$1503,OFFSET(Filters!$BD$4:$BD$1503,0,$A66-1),COUNTIFS($A$42:$A66,$A66)-1)/Filters!$I$2) ->  | T66: =IF(COUNTIFS($A$42:$A66,$A66)=1,"",COUNTIFS(OFFSET(Filters!$BD$4:$BD$1503,0,$A66-1),COUNTIFS($A$42:$A66,$A66)-1,Filters!$B$4:$B$1503,1)) -> 
A67: 5 | C67: =VLOOKUP($A67,Filters!$H$4:$AG$1065,1+COUNTIFS($A$42:$A67,$A67),FALSE) -> London | F67: =IF(F$42>0,IF(OR($T67=0,COUNTIFS($A$42:$A67,$A67)=1),"",SUM((Filters!$F$4:$F$1503)*'Share Calculation'!AO$4:AO$1503*(OFFSET(Filters!$BD$4:$BD$1503,0,$A67-1)=COUNTIFS($A$42:$A67,$A67)-1))/ $T67),"") ->  | G67: =IF(G$42>0,IF(OR($T67=0,COUNTIFS($A$42:$A67,$A67)=1),"",SUM((Filters!$F$4:$F$1503)*'Share Calculation'!AP$4:AP$1503*(OFFSET(Filters!$BD$4:$BD$1503,0,$A67-1)=COUNTIFS($A$42:$A67,$A67)-1))/ $T67),"") ->  | H67: =IF(H$42>0,IF(OR($T67=0,COUNTIFS($A$42:$A67,$A67)=1),"",SUM((Filters!$F$4:$F$1503)*'Share Calculation'!AQ$4:AQ$1503*(OFFSET(Filters!$BD$4:$BD$1503,0,$A67-1)=COUNTIFS($A$42:$A67,$A67)-1))/ $T67),"") ->  | I67: =IF(I$42>0,IF(OR($T67=0,COUNTIFS($A$42:$A67,$A67)=1),"",SUM((Filters!$F$4:$F$1503)*'Share Calculation'!AR$4:AR$1503*(OFFSET(Filters!$BD$4:$BD$1503,0,$A67-1)=COUNTIFS($A$42:$A67,$A67)-1))/ $T67),"") ->  | J67: =IF(J$42>0,IF(OR($T67=0,COUNTIFS($A$42:$A67,$A67)=1),"",SUM((Filters!$F$4:$F$1503)*'Share Calculation'!AS$4:AS$1503*(OFFSET(Filters!$BD$4:$BD$1503,0,$A67-1)=COUNTIFS($A$42:$A67,$A67)-1))/ $T67),"") ->  | K67: =IF(K$42>0,IF(OR($T67=0,COUNTIFS($A$42:$A67,$A67)=1),"",SUM((Filters!$F$4:$F$1503)*'Share Calculation'!AT$4:AT$1503*(OFFSET(Filters!$BD$4:$BD$1503,0,$A67-1)=COUNTIFS($A$42:$A67,$A67)-1))/ $T67),"") ->  | L67: =IF(L$42>0,IF(OR($T67=0,COUNTIFS($A$42:$A67,$A67)=1),"",SUM((Filters!$F$4:$F$1503)*'Share Calculation'!AU$4:AU$1503*(OFFSET(Filters!$BD$4:$BD$1503,0,$A67-1)=COUNTIFS($A$42:$A67,$A67)-1))/ $T67),"") ->  | M67: =IF(M$42>0,IF(OR($T67=0,COUNTIFS($A$42:$A67,$A67)=1),"",SUM((Filters!$F$4:$F$1503)*'Share Calculation'!AV$4:AV$1503*(OFFSET(Filters!$BD$4:$BD$1503,0,$A67-1)=COUNTIFS($A$42:$A67,$A67)-1))/ $T67),"") ->  | N67: =IF(N$42>0,IF(OR($T67=0,COUNTIFS($A$42:$A67,$A67)=1),"",SUM((Filters!$F$4:$F$1503)*'Share Calculation'!AW$4:AW$1503*(OFFSET(Filters!$BD$4:$BD$1503,0,$A67-1)=COUNTIFS($A$42:$A67,$A67)-1))/ $T67),"") ->  | O67: =IF(O$42>0,IF(OR($T67=0,COUNTIFS($A$42:$A67,$A67)=1),"",SUM((Filters!$F$4:$F$1503)*'Share Calculation'!AX$4:AX$1503*(OFFSET(Filters!$BD$4:$BD$1503,0,$A67-1)=COUNTIFS($A$42:$A67,$A67)-1))/ $T67),"") ->  | P67: =IF(P$42>0,IF(OR($T67=0,COUNTIFS($A$42:$A67,$A67)=1),"",SUM((Filters!$F$4:$F$1503)*'Share Calculation'!AY$4:AY$1503*(OFFSET(Filters!$BD$4:$BD$1503,0,$A67-1)=COUNTIFS($A$42:$A67,$A67)-1))/ $T67),"") ->  | Q67: =IF(Q$42>0,IF(OR($T67=0,COUNTIFS($A$42:$A67,$A67)=1),"",SUM((Filters!$F$4:$F$1503)*'Share Calculation'!AZ$4:AZ$1503*(OFFSET(Filters!$BD$4:$BD$1503,0,$A67-1)=COUNTIFS($A$42:$A67,$A67)-1))/ $T67),"") ->  | R67: =IF(COUNTIFS($A$42:$A67,$A67)=1,"",SUMIFS(Filters!$F$4:$F$1503,OFFSET(Filters!$BD$4:$BD$1503,0,$A67-1),COUNTIFS($A$42:$A67,$A67)-1)/Filters!$I$2) -> 0 | S67: Yes | T67: =IF(COUNTIFS($A$42:$A67,$A67)=1,"",COUNTIFS(OFFSET(Filters!$BD$4:$BD$1503,0,$A67-1),COUNTIFS($A$42:$A67,$A67)-1,Filters!$B$4:$B$1503,1)) -> 0
A68: 5 | C68: =VLOOKUP($A68,Filters!$H$4:$AG$1065,1+COUNTIFS($A$42:$A68,$A68),FALSE) -> Not London but inside the M25 | F68: =IF(F$42>0,IF(OR($T68=0,COUNTIFS($A$42:$A68,$A68)=1),"",SUM((Filters!$F$4:$F$1503)*'Share Calculation'!AO$4:AO$1503*(OFFSET(Filters!$BD$4:$BD$1503,0,$A68-1)=COUNTIFS($A$42:$A68,$A68)-1))/ $T68),"") ->  | G68: =IF(G$42>0,IF(OR($T68=0,COUNTIFS($A$42:$A68,$A68)=1),"",SUM((Filters!$F$4:$F$1503)*'Share Calculation'!AP$4:AP$1503*(OFFSET(Filters!$BD$4:$BD$1503,0,$A68-1)=COUNTIFS($A$42:$A68,$A68)-1))/ $T68),"") ->  | H68: =IF(H$42>0,IF(OR($T68=0,COUNTIFS($A$42:$A68,$A68)=1),"",SUM((Filters!$F$4:$F$1503)*'Share Calculation'!AQ$4:AQ$1503*(OFFSET(Filters!$BD$4:$BD$1503,0,$A68-1)=COUNTIFS($A$42:$A68,$A68)-1))/ $T68),"") ->  | I68: =IF(I$42>0,IF(OR($T68=0,COUNTIFS($A$42:$A68,$A68)=1),"",SUM((Filters!$F$4:$F$1503)*'Share Calculation'!AR$4:AR$1503*(OFFSET(Filters!$BD$4:$BD$1503,0,$A68-1)=COUNTIFS($A$42:$A68,$A68)-1))/ $T68),"") ->  | J68: =IF(J$42>0,IF(OR($T68=0,COUNTIFS($A$42:$A68,$A68)=1),"",SUM((Filters!$F$4:$F$1503)*'Share Calculation'!AS$4:AS$1503*(OFFSET(Filters!$BD$4:$BD$1503,0,$A68-1)=COUNTIFS($A$42:$A68,$A68)-1))/ $T68),"") ->  | K68: =IF(K$42>0,IF(OR($T68=0,COUNTIFS($A$42:$A68,$A68)=1),"",SUM((Filters!$F$4:$F$1503)*'Share Calculation'!AT$4:AT$1503*(OFFSET(Filters!$BD$4:$BD$1503,0,$A68-1)=COUNTIFS($A$42:$A68,$A68)-1))/ $T68),"") ->  | L68: =IF(L$42>0,IF(OR($T68=0,COUNTIFS($A$42:$A68,$A68)=1),"",SUM((Filters!$F$4:$F$1503)*'Share Calculation'!AU$4:AU$1503*(OFFSET(Filters!$BD$4:$BD$1503,0,$A68-1)=COUNTIFS($A$42:$A68,$A68)-1))/ $T68),"") ->  | M68: =IF(M$42>0,IF(OR($T68=0,COUNTIFS($A$42:$A68,$A68)=1),"",SUM((Filters!$F$4:$F$1503)*'Share Calculation'!AV$4:AV$1503*(OFFSET(Filters!$BD$4:$BD$1503,0,$A68-1)=COUNTIFS($A$42:$A68,$A68)-1))/ $T68),"") ->  | N68: =IF(N$42>0,IF(OR($T68=0,COUNTIFS($A$42:$A68,$A68)=1),"",SUM((Filters!$F$4:$F$1503)*'Share Calculation'!AW$4:AW$1503*(OFFSET(Filters!$BD$4:$BD$1503,0,$A68-1)=COUNTIFS($A$42:$A68,$A68)-1))/ $T68),"") ->  | O68: =IF(O$42>0,IF(OR($T68=0,COUNTIFS($A$42:$A68,$A68)=1),"",SUM((Filters!$F$4:$F$1503)*'Share Calculation'!AX$4:AX$1503*(OFFSET(Filters!$BD$4:$BD$1503,0,$A68-1)=COUNTIFS($A$42:$A68,$A68)-1))/ $T68),"") ->  | P68: =IF(P$42>0,IF(OR($T68=0,COUNTIFS($A$42:$A68,$A68)=1),"",SUM((Filters!$F$4:$F$1503)*'Share Calculation'!AY$4:AY$1503*(OFFSET(Filters!$BD$4:$BD$1503,0,$A68-1)=COUNTIFS($A$42:$A68,$A68)-1))/ $T68),"") ->  | Q68: =IF(Q$42>0,IF(OR($T68=0,COUNTIFS($A$42:$A68,$A68)=1),"",SUM((Filters!$F$4:$F$1503)*'Share Calculation'!AZ$4:AZ$1503*(OFFSET(Filters!$BD$4:$BD$1503,0,$A68-1)=COUNTIFS($A$42:$A68,$A68)-1))/ $T68),"") ->  | R68: =IF(COUNTIFS($A$42:$A68,$A68)=1,"",SUMIFS(Filters!$F$4:$F$1503,OFFSET(Filters!$BD$4:$BD$1503,0,$A68-1),COUNTIFS($A$42:$A68,$A68)-1)/Filters!$I$2) -> 0 | S68: Yes | T68: =IF(COUNTIFS($A$42:$A68,$A68)=1,"",COUNTIFS(OFFSET(Filters!$BD$4:$BD$1503,0,$A68-1),COUNTIFS($A$42:$A68,$A68)-1,Filters!$B$4:$B$1503,1)) -> 0
A69: 5 | C69: =VLOOKUP($A69,Filters!$H$4:$AG$1065,1+COUNTIFS($A$42:$A69,$A69),FALSE) -> Outside M25 | F69: =IF(F$42>0,IF(OR($T69=0,COUNTIFS($A$42:$A69,$A69)=1),"",SUM((Filters!$F$4:$F$1503)*'Share Calculation'!AO$4:AO$1503*(OFFSET(Filters!$BD$4:$BD$1503,0,$A69-1)=COUNTIFS($A$42:$A69,$A69)-1))/ $T69),"") ->  | G69: =IF(G$42>0,IF(OR($T69=0,COUNTIFS($A$42:$A69,$A69)=1),"",SUM((Filters!$F$4:$F$1503)*'Share Calculation'!AP$4:AP$1503*(OFFSET(Filters!$BD$4:$BD$1503,0,$A69-1)=COUNTIFS($A$42:$A69,$A69)-1))/ $T69),"") ->  | H69: =IF(H$42>0,IF(OR($T69=0,COUNTIFS($A$42:$A69,$A69)=1),"",SUM((Filters!$F$4:$F$1503)*'Share Calculation'!AQ$4:AQ$1503*(OFFSET(Filters!$BD$4:$BD$1503,0,$A69-1)=COUNTIFS($A$42:$A69,$A69)-1))/ $T69),"") ->  | I69: =IF(I$42>0,IF(OR($T69=0,COUNTIFS($A$42:$A69,$A69)=1),"",SUM((Filters!$F$4:$F$1503)*'Share Calculation'!AR$4:AR$1503*(OFFSET(Filters!$BD$4:$BD$1503,0,$A69-1)=COUNTIFS($A$42:$A69,$A69)-1))/ $T69),"") ->  | J69: =IF(J$42>0,IF(OR($T69=0,COUNTIFS($A$42:$A69,$A69)=1),"",SUM((Filters!$F$4:$F$1503)*'Share Calculation'!AS$4:AS$1503*(OFFSET(Filters!$BD$4:$BD$1503,0,$A69-1)=COUNTIFS($A$42:$A69,$A69)-1))/ $T69),"") ->  | K69: =IF(K$42>0,IF(OR($T69=0,COUNTIFS($A$42:$A69,$A69)=1),"",SUM((Filters!$F$4:$F$1503)*'Share Calculation'!AT$4:AT$1503*(OFFSET(Filters!$BD$4:$BD$1503,0,$A69-1)=COUNTIFS($A$42:$A69,$A69)-1))/ $T69),"") ->  | L69: =IF(L$42>0,IF(OR($T69=0,COUNTIFS($A$42:$A69,$A69)=1),"",SUM((Filters!$F$4:$F$1503)*'Share Calculation'!AU$4:AU$1503*(OFFSET(Filters!$BD$4:$BD$1503,0,$A69-1)=COUNTIFS($A$42:$A69,$A69)-1))/ $T69),"") ->  | M69: =IF(M$42>0,IF(OR($T69=0,COUNTIFS($A$42:$A69,$A69)=1),"",SUM((Filters!$F$4:$F$1503)*'Share Calculation'!AV$4:AV$1503*(OFFSET(Filters!$BD$4:$BD$1503,0,$A69-1)=COUNTIFS($A$42:$A69,$A69)-1))/ $T69),"") ->  | N69: =IF(N$42>0,IF(OR($T69=0,COUNTIFS($A$42:$A69,$A69)=1),"",SUM((Filters!$F$4:$F$1503)*'Share Calculation'!AW$4:AW$1503*(OFFSET(Filters!$BD$4:$BD$1503,0,$A69-1)=COUNTIFS($A$42:$A69,$A69)-1))/ $T69),"") ->  | O69: =IF(O$42>0,IF(OR($T69=0,COUNTIFS($A$42:$A69,$A69)=1),"",SUM((Filters!$F$4:$F$1503)*'Share Calculation'!AX$4:AX$1503*(OFFSET(Filters!$BD$4:$BD$1503,0,$A69-1)=COUNTIFS($A$42:$A69,$A69)-1))/ $T69),"") ->  | P69: =IF(P$42>0,IF(OR($T69=0,COUNTIFS($A$42:$A69,$A69)=1),"",SUM((Filters!$F$4:$F$1503)*'Share Calculation'!AY$4:AY$1503*(OFFSET(Filters!$BD$4:$BD$1503,0,$A69-1)=COUNTIFS($A$42:$A69,$A69)-1))/ $T69),"") ->  | Q69: =IF(Q$42>0,IF(OR($T69=0,COUNTIFS($A$42:$A69,$A69)=1),"",SUM((Filters!$F$4:$F$1503)*'Share Calculation'!AZ$4:AZ$1503*(OFFSET(Filters!$BD$4:$BD$1503,0,$A69-1)=COUNTIFS($A$42:$A69,$A69)-1))/ $T69),"") ->  | R69: =IF(COUNTIFS($A$42:$A69,$A69)=1,"",SUMIFS(Filters!$F$4:$F$1503,OFFSET(Filters!$BD$4:$BD$1503,0,$A69-1),COUNTIFS($A$42:$A69,$A69)-1)/Filters!$I$2) -> 0 | S69: Yes | T69: =IF(COUNTIFS($A$42:$A69,$A69)=1,"",COUNTIFS(OFFSET(Filters!$BD$4:$BD$1503,0,$A69-1),COUNTIFS($A$42:$A69,$A69)-1,Filters!$B$4:$B$1503,1)) -> 0
A70: 5 | C70: =VLOOKUP($A70,Filters!$H$4:$AG$1065,1+COUNTIFS($A$42:$A70,$A70),FALSE) -> n/a | F70: =IF(F$42>0,IF(OR($T70=0,COUNTIFS($A$42:$A70,$A70)=1),"",SUM((Filters!$F$4:$F$1503)*'Share Calculation'!AO$4:AO$1503*(OFFSET(Filters!$BD$4:$BD$1503,0,$A70-1)=COUNTIFS($A$42:$A70,$A70)-1))/ $T70),"") -> 0.6590733244 | G70: =IF(G$42>0,IF(OR($T70=0,COUNTIFS($A$42:$A70,$A70)=1),"",SUM((Filters!$F$4:$F$1503)*'Share Calculation'!AP$4:AP$1503*(OFFSET(Filters!$BD$4:$BD$1503,0,$A70-1)=COUNTIFS($A$42:$A70,$A70)-1))/ $T70),"") -> 0.3409266756 | H70: =IF(H$42>0,IF(OR($T70=0,COUNTIFS($A$42:$A70,$A70)=1),"",SUM((Filters!$F$4:$F$1503)*'Share Calculation'!AQ$4:AQ$1503*(OFFSET(Filters!$BD$4:$BD$1503,0,$A70-1)=COUNTIFS($A$42:$A70,$A70)-1))/ $T70),"") ->  | I70: =IF(I$42>0,IF(OR($T70=0,COUNTIFS($A$42:$A70,$A70)=1),"",SUM((Filters!$F$4:$F$1503)*'Share Calculation'!AR$4:AR$1503*(OFFSET(Filters!$BD$4:$BD$1503,0,$A70-1)=COUNTIFS($A$42:$A70,$A70)-1))/ $T70),"") ->  | J70: =IF(J$42>0,IF(OR($T70=0,COUNTIFS($A$42:$A70,$A70)=1),"",SUM((Filters!$F$4:$F$1503)*'Share Calculation'!AS$4:AS$1503*(OFFSET(Filters!$BD$4:$BD$1503,0,$A70-1)=COUNTIFS($A$42:$A70,$A70)-1))/ $T70),"") ->  | K70: =IF(K$42>0,IF(OR($T70=0,COUNTIFS($A$42:$A70,$A70)=1),"",SUM((Filters!$F$4:$F$1503)*'Share Calculation'!AT$4:AT$1503*(OFFSET(Filters!$BD$4:$BD$1503,0,$A70-1)=COUNTIFS($A$42:$A70,$A70)-1))/ $T70),"") ->  | L70: =IF(L$42>0,IF(OR($T70=0,COUNTIFS($A$42:$A70,$A70)=1),"",SUM((Filters!$F$4:$F$1503)*'Share Calculation'!AU$4:AU$1503*(OFFSET(Filters!$BD$4:$BD$1503,0,$A70-1)=COUNTIFS($A$42:$A70,$A70)-1))/ $T70),"") ->  | M70: =IF(M$42>0,IF(OR($T70=0,COUNTIFS($A$42:$A70,$A70)=1),"",SUM((Filters!$F$4:$F$1503)*'Share Calculation'!AV$4:AV$1503*(OFFSET(Filters!$BD$4:$BD$1503,0,$A70-1)=COUNTIFS($A$42:$A70,$A70)-1))/ $T70),"") ->  | N70: =IF(N$42>0,IF(OR($T70=0,COUNTIFS($A$42:$A70,$A70)=1),"",SUM((Filters!$F$4:$F$1503)*'Share Calculation'!AW$4:AW$1503*(OFFSET(Filters!$BD$4:$BD$1503,0,$A70-1)=COUNTIFS($A$42:$A70,$A70)-1))/ $T70),"") ->  | O70: =IF(O$42>0,IF(OR($T70=0,COUNTIFS($A$42:$A70,$A70)=1),"",SUM((Filters!$F$4:$F$1503)*'Share Calculation'!AX$4:AX$1503*(OFFSET(Filters!$BD$4:$BD$1503,0,$A70-1)=COUNTIFS($A$42:$A70,$A70)-1))/ $T70),"") ->  | P70: =IF(P$42>0,IF(OR($T70=0,COUNTIFS($A$42:$A70,$A70)=1),"",SUM((Filters!$F$4:$F$1503)*'Share Calculation'!AY$4:AY$1503*(OFFSET(Filters!$BD$4:$BD$1503,0,$A70-1)=COUNTIFS($A$42:$A70,$A70)-1))/ $T70),"") ->  | Q70: =IF(Q$42>0,IF(OR($T70=0,COUNTIFS($A$42:$A70,$A70)=1),"",SUM((Filters!$F$4:$F$1503)*'Share Calculation'!AZ$4:AZ$1503*(OFFSET(Filters!$BD$4:$BD$1503,0,$A70-1)=COUNTIFS($A$42:$A70,$A70)-1))/ $T70),"") ->  | R70: =IF(COUNTIFS($A$42:$A70,$A70)=1,"",SUMIFS(Filters!$F$4:$F$1503,OFFSET(Filters!$BD$4:$BD$1503,0,$A70-1),COUNTIFS($A$42:$A70,$A70)-1)/Filters!$I$2) -> 1 | S70: Yes | T70: =IF(COUNTIFS($A$42:$A70,$A70)=1,"",COUNTIFS(OFFSET(Filters!$BD$4:$BD$1503,0,$A70-1),COUNTIFS($A$42:$A70,$A70)-1,Filters!$B$4:$B$1503,1)) -> 640
A71: 6 | C71: =VLOOKUP($A71,Filters!$H$4:$AG$1065,1+COUNTIFS($A$42:$A71,$A71),FALSE) -> Age | F71: =IF(F$42>0,IF(OR($T71=0,COUNTIFS($A$42:$A71,$A71)=1),"",SUM((Filters!$F$4:$F$1503)*'Share Calculation'!AO$4:AO$1503*(OFFSET(Filters!$BD$4:$BD$1503,0,$A71-1)=COUNTIFS($A$42:$A71,$A71)-1))/ $T71),"") ->  | G71: =IF(G$42>0,IF(OR($T71=0,COUNTIFS($A$42:$A71,$A71)=1),"",SUM((Filters!$F$4:$F$1503)*'Share Calculation'!AP$4:AP$1503*(OFFSET(Filters!$BD$4:$BD$1503,0,$A71-1)=COUNTIFS($A$42:$A71,$A71)-1))/ $T71),"") ->  | H71: =IF(H$42>0,IF(OR($T71=0,COUNTIFS($A$42:$A71,$A71)=1),"",SUM((Filters!$F$4:$F$1503)*'Share Calculation'!AQ$4:AQ$1503*(OFFSET(Filters!$BD$4:$BD$1503,0,$A71-1)=COUNTIFS($A$42:$A71,$A71)-1))/ $T71),"") ->  | I71: =IF(I$42>0,IF(OR($T71=0,COUNTIFS($A$42:$A71,$A71)=1),"",SUM((Filters!$F$4:$F$1503)*'Share Calculation'!AR$4:AR$1503*(OFFSET(Filters!$BD$4:$BD$1503,0,$A71-1)=COUNTIFS($A$42:$A71,$A71)-1))/ $T71),"") ->  | J71: =IF(J$42>0,IF(OR($T71=0,COUNTIFS($A$42:$A71,$A71)=1),"",SUM((Filters!$F$4:$F$1503)*'Share Calculation'!AS$4:AS$1503*(OFFSET(Filters!$BD$4:$BD$1503,0,$A71-1)=COUNTIFS($A$42:$A71,$A71)-1))/ $T71),"") ->  | K71: =IF(K$42>0,IF(OR($T71=0,COUNTIFS($A$42:$A71,$A71)=1),"",SUM((Filters!$F$4:$F$1503)*'Share Calculation'!AT$4:AT$1503*(OFFSET(Filters!$BD$4:$BD$1503,0,$A71-1)=COUNTIFS($A$42:$A71,$A71)-1))/ $T71),"") ->  | L71: =IF(L$42>0,IF(OR($T71=0,COUNTIFS($A$42:$A71,$A71)=1),"",SUM((Filters!$F$4:$F$1503)*'Share Calculation'!AU$4:AU$1503*(OFFSET(Filters!$BD$4:$BD$1503,0,$A71-1)=COUNTIFS($A$42:$A71,$A71)-1))/ $T71),"") ->  | M71: =IF(M$42>0,IF(OR($T71=0,COUNTIFS($A$42:$A71,$A71)=1),"",SUM((Filters!$F$4:$F$1503)*'Share Calculation'!AV$4:AV$1503*(OFFSET(Filters!$BD$4:$BD$1503,0,$A71-1)=COUNTIFS($A$42:$A71,$A71)-1))/ $T71),"") ->  | N71: =IF(N$42>0,IF(OR($T71=0,COUNTIFS($A$42:$A71,$A71)=1),"",SUM((Filters!$F$4:$F$1503)*'Share Calculation'!AW$4:AW$1503*(OFFSET(Filters!$BD$4:$BD$1503,0,$A71-1)=COUNTIFS($A$42:$A71,$A71)-1))/ $T71),"") ->  | O71: =IF(O$42>0,IF(OR($T71=0,COUNTIFS($A$42:$A71,$A71)=1),"",SUM((Filters!$F$4:$F$1503)*'Share Calculation'!AX$4:AX$1503*(OFFSET(Filters!$BD$4:$BD$1503,0,$A71-1)=COUNTIFS($A$42:$A71,$A71)-1))/ $T71),"") ->  | P71: =IF(P$42>0,IF(OR($T71=0,COUNTIFS($A$42:$A71,$A71)=1),"",SUM((Filters!$F$4:$F$1503)*'Share Calculation'!AY$4:AY$1503*(OFFSET(Filters!$BD$4:$BD$1503,0,$A71-1)=COUNTIFS($A$42:$A71,$A71)-1))/ $T71),"") ->  | Q71: =IF(Q$42>0,IF(OR($T71=0,COUNTIFS($A$42:$A71,$A71)=1),"",SUM((Filters!$F$4:$F$1503)*'Share Calculation'!AZ$4:AZ$1503*(OFFSET(Filters!$BD$4:$BD$1503,0,$A71-1)=COUNTIFS($A$42:$A71,$A71)-1))/ $T71),"") ->  | R71: =IF(COUNTIFS($A$42:$A71,$A71)=1,"",SUMIFS(Filters!$F$4:$F$1503,OFFSET(Filters!$BD$4:$BD$1503,0,$A71-1),COUNTIFS($A$42:$A71,$A71)-1)/Filters!$I$2) ->  | T71: =IF(COUNTIFS($A$42:$A71,$A71)=1,"",COUNTIFS(OFFSET(Filters!$BD$4:$BD$1503,0,$A71-1),COUNTIFS($A$42:$A71,$A71)-1,Filters!$B$4:$B$1503,1)) -> 
A72: 6 | C72: =VLOOKUP($A72,Filters!$H$4:$AG$1065,1+COUNTIFS($A$42:$A72,$A72),FALSE) -> 16-24 | F72: =IF(F$42>0,IF(OR($T72=0,COUNTIFS($A$42:$A72,$A72)=1),"",SUM((Filters!$F$4:$F$1503)*'Share Calculation'!AO$4:AO$1503*(OFFSET(Filters!$BD$4:$BD$1503,0,$A72-1)=COUNTIFS($A$42:$A72,$A72)-1))/ $T72),"") -> 0.6258594833 | G72: =IF(G$42>0,IF(OR($T72=0,COUNTIFS($A$42:$A72,$A72)=1),"",SUM((Filters!$F$4:$F$1503)*'Share Calculation'!AP$4:AP$1503*(OFFSET(Filters!$BD$4:$BD$1503,0,$A72-1)=COUNTIFS($A$42:$A72,$A72)-1))/ $T72),"") -> 0.3741405167 | H72: =IF(H$42>0,IF(OR($T72=0,COUNTIFS($A$42:$A72,$A72)=1),"",SUM((Filters!$F$4:$F$1503)*'Share Calculation'!AQ$4:AQ$1503*(OFFSET(Filters!$BD$4:$BD$1503,0,$A72-1)=COUNTIFS($A$42:$A72,$A72)-1))/ $T72),"") ->  | I72: =IF(I$42>0,IF(OR($T72=0,COUNTIFS($A$42:$A72,$A72)=1),"",SUM((Filters!$F$4:$F$1503)*'Share Calculation'!AR$4:AR$1503*(OFFSET(Filters!$BD$4:$BD$1503,0,$A72-1)=COUNTIFS($A$42:$A72,$A72)-1))/ $T72),"") ->  | J72: =IF(J$42>0,IF(OR($T72=0,COUNTIFS($A$42:$A72,$A72)=1),"",SUM((Filters!$F$4:$F$1503)*'Share Calculation'!AS$4:AS$1503*(OFFSET(Filters!$BD$4:$BD$1503,0,$A72-1)=COUNTIFS($A$42:$A72,$A72)-1))/ $T72),"") ->  | K72: =IF(K$42>0,IF(OR($T72=0,COUNTIFS($A$42:$A72,$A72)=1),"",SUM((Filters!$F$4:$F$1503)*'Share Calculation'!AT$4:AT$1503*(OFFSET(Filters!$BD$4:$BD$1503,0,$A72-1)=COUNTIFS($A$42:$A72,$A72)-1))/ $T72),"") ->  | L72: =IF(L$42>0,IF(OR($T72=0,COUNTIFS($A$42:$A72,$A72)=1),"",SUM((Filters!$F$4:$F$1503)*'Share Calculation'!AU$4:AU$1503*(OFFSET(Filters!$BD$4:$BD$1503,0,$A72-1)=COUNTIFS($A$42:$A72,$A72)-1))/ $T72),"") ->  | M72: =IF(M$42>0,IF(OR($T72=0,COUNTIFS($A$42:$A72,$A72)=1),"",SUM((Filters!$F$4:$F$1503)*'Share Calculation'!AV$4:AV$1503*(OFFSET(Filters!$BD$4:$BD$1503,0,$A72-1)=COUNTIFS($A$42:$A72,$A72)-1))/ $T72),"") ->  | N72: =IF(N$42>0,IF(OR($T72=0,COUNTIFS($A$42:$A72,$A72)=1),"",SUM((Filters!$F$4:$F$1503)*'Share Calculation'!AW$4:AW$1503*(OFFSET(Filters!$BD$4:$BD$1503,0,$A72-1)=COUNTIFS($A$42:$A72,$A72)-1))/ $T72),"") ->  | O72: =IF(O$42>0,IF(OR($T72=0,COUNTIFS($A$42:$A72,$A72)=1),"",SUM((Filters!$F$4:$F$1503)*'Share Calculation'!AX$4:AX$1503*(OFFSET(Filters!$BD$4:$BD$1503,0,$A72-1)=COUNTIFS($A$42:$A72,$A72)-1))/ $T72),"") ->  | P72: =IF(P$42>0,IF(OR($T72=0,COUNTIFS($A$42:$A72,$A72)=1),"",SUM((Filters!$F$4:$F$1503)*'Share Calculation'!AY$4:AY$1503*(OFFSET(Filters!$BD$4:$BD$1503,0,$A72-1)=COUNTIFS($A$42:$A72,$A72)-1))/ $T72),"") ->  | Q72: =IF(Q$42>0,IF(OR($T72=0,COUNTIFS($A$42:$A72,$A72)=1),"",SUM((Filters!$F$4:$F$1503)*'Share Calculation'!AZ$4:AZ$1503*(OFFSET(Filters!$BD$4:$BD$1503,0,$A72-1)=COUNTIFS($A$42:$A72,$A72)-1))/ $T72),"") ->  | R72: =IF(COUNTIFS($A$42:$A72,$A72)=1,"",SUMIFS(Filters!$F$4:$F$1503,OFFSET(Filters!$BD$4:$BD$1503,0,$A72-1),COUNTIFS($A$42:$A72,$A72)-1)/Filters!$I$2) -> 0.1453125 | S72: Yes | T72: =IF(COUNTIFS($A$42:$A72,$A72)=1,"",COUNTIFS(OFFSET(Filters!$BD$4:$BD$1503,0,$A72-1),COUNTIFS($A$42:$A72,$A72)-1,Filters!$B$4:$B$1503,1)) -> 93
A73: 6 | C73: =VLOOKUP($A73,Filters!$H$4:$AG$1065,1+COUNTIFS($A$42:$A73,$A73),FALSE) -> 25-34 | F73: =IF(F$42>0,IF(OR($T73=0,COUNTIFS($A$42:$A73,$A73)=1),"",SUM((Filters!$F$4:$F$1503)*'Share Calculation'!AO$4:AO$1503*(OFFSET(Filters!$BD$4:$BD$1503,0,$A73-1)=COUNTIFS($A$42:$A73,$A73)-1))/ $T73),"") -> 0.6579003388 | G73: =IF(G$42>0,IF(OR($T73=0,COUNTIFS($A$42:$A73,$A73)=1),"",SUM((Filters!$F$4:$F$1503)*'Share Calculation'!AP$4:AP$1503*(OFFSET(Filters!$BD$4:$BD$1503,0,$A73-1)=COUNTIFS($A$42:$A73,$A73)-1))/ $T73),"") -> 0.3420996612 | H73: =IF(H$42>0,IF(OR($T73=0,COUNTIFS($A$42:$A73,$A73)=1),"",SUM((Filters!$F$4:$F$1503)*'Share Calculation'!AQ$4:AQ$1503*(OFFSET(Filters!$BD$4:$BD$1503,0,$A73-1)=COUNTIFS($A$42:$A73,$A73)-1))/ $T73),"") ->  | I73: =IF(I$42>0,IF(OR($T73=0,COUNTIFS($A$42:$A73,$A73)=1),"",SUM((Filters!$F$4:$F$1503)*'Share Calculation'!AR$4:AR$1503*(OFFSET(Filters!$BD$4:$BD$1503,0,$A73-1)=COUNTIFS($A$42:$A73,$A73)-1))/ $T73),"") ->  | J73: =IF(J$42>0,IF(OR($T73=0,COUNTIFS($A$42:$A73,$A73)=1),"",SUM((Filters!$F$4:$F$1503)*'Share Calculation'!AS$4:AS$1503*(OFFSET(Filters!$BD$4:$BD$1503,0,$A73-1)=COUNTIFS($A$42:$A73,$A73)-1))/ $T73),"") ->  | K73: =IF(K$42>0,IF(OR($T73=0,COUNTIFS($A$42:$A73,$A73)=1),"",SUM((Filters!$F$4:$F$1503)*'Share Calculation'!AT$4:AT$1503*(OFFSET(Filters!$BD$4:$BD$1503,0,$A73-1)=COUNTIFS($A$42:$A73,$A73)-1))/ $T73),"") ->  | L73: =IF(L$42>0,IF(OR($T73=0,COUNTIFS($A$42:$A73,$A73)=1),"",SUM((Filters!$F$4:$F$1503)*'Share Calculation'!AU$4:AU$1503*(OFFSET(Filters!$BD$4:$BD$1503,0,$A73-1)=COUNTIFS($A$42:$A73,$A73)-1))/ $T73),"") ->  | M73: =IF(M$42>0,IF(OR($T73=0,COUNTIFS($A$42:$A73,$A73)=1),"",SUM((Filters!$F$4:$F$1503)*'Share Calculation'!AV$4:AV$1503*(OFFSET(Filters!$BD$4:$BD$1503,0,$A73-1)=COUNTIFS($A$42:$A73,$A73)-1))/ $T73),"") ->  | N73: =IF(N$42>0,IF(OR($T73=0,COUNTIFS($A$42:$A73,$A73)=1),"",SUM((Filters!$F$4:$F$1503)*'Share Calculation'!AW$4:AW$1503*(OFFSET(Filters!$BD$4:$BD$1503,0,$A73-1)=COUNTIFS($A$42:$A73,$A73)-1))/ $T73),"") ->  | O73: =IF(O$42>0,IF(OR($T73=0,COUNTIFS($A$42:$A73,$A73)=1),"",SUM((Filters!$F$4:$F$1503)*'Share Calculation'!AX$4:AX$1503*(OFFSET(Filters!$BD$4:$BD$1503,0,$A73-1)=COUNTIFS($A$42:$A73,$A73)-1))/ $T73),"") ->  | P73: =IF(P$42>0,IF(OR($T73=0,COUNTIFS($A$42:$A73,$A73)=1),"",SUM((Filters!$F$4:$F$1503)*'Share Calculation'!AY$4:AY$1503*(OFFSET(Filters!$BD$4:$BD$1503,0,$A73-1)=COUNTIFS($A$42:$A73,$A73)-1))/ $T73),"") ->  | Q73: =IF(Q$42>0,IF(OR($T73=0,COUNTIFS($A$42:$A73,$A73)=1),"",SUM((Filters!$F$4:$F$1503)*'Share Calculation'!AZ$4:AZ$1503*(OFFSET(Filters!$BD$4:$BD$1503,0,$A73-1)=COUNTIFS($A$42:$A73,$A73)-1))/ $T73),"") ->  | R73: =IF(COUNTIFS($A$42:$A73,$A73)=1,"",SUMIFS(Filters!$F$4:$F$1503,OFFSET(Filters!$BD$4:$BD$1503,0,$A73-1),COUNTIFS($A$42:$A73,$A73)-1)/Filters!$I$2) -> 0.2125 | S73: Yes | T73: =IF(COUNTIFS($A$42:$A73,$A73)=1,"",COUNTIFS(OFFSET(Filters!$BD$4:$BD$1503,0,$A73-1),COUNTIFS($A$42:$A73,$A73)-1,Filters!$B$4:$B$1503,1)) -> 136
A74: 6 | C74: =VLOOKUP($A74,Filters!$H$4:$AG$1065,1+COUNTIFS($A$42:$A74,$A74),FALSE) -> 35-44 | F74: =IF(F$42>0,IF(OR($T74=0,COUNTIFS($A$42:$A74,$A74)=1),"",SUM((Filters!$F$4:$F$1503)*'Share Calculation'!AO$4:AO$1503*(OFFSET(Filters!$BD$4:$BD$1503,0,$A74-1)=COUNTIFS($A$42:$A74,$A74)-1))/ $T74),"") -> 0.6291807844 | G74: =IF(G$42>0,IF(OR($T74=0,COUNTIFS($A$42:$A74,$A74)=1),"",SUM((Filters!$F$4:$F$1503)*'Share Calculation'!AP$4:AP$1503*(OFFSET(Filters!$BD$4:$BD$1503,0,$A74-1)=COUNTIFS($A$42:$A74,$A74)-1))/ $T74),"") -> 0.3708192156 | H74: =IF(H$42>0,IF(OR($T74=0,COUNTIFS($A$42:$A74,$A74)=1),"",SUM((Filters!$F$4:$F$1503)*'Share Calculation'!AQ$4:AQ$1503*(OFFSET(Filters!$BD$4:$BD$1503,0,$A74-1)=COUNTIFS($A$42:$A74,$A74)-1))/ $T74),"") ->  | I74: =IF(I$42>0,IF(OR($T74=0,COUNTIFS($A$42:$A74,$A74)=1),"",SUM((Filters!$F$4:$F$1503)*'Share Calculation'!AR$4:AR$1503*(OFFSET(Filters!$BD$4:$BD$1503,0,$A74-1)=COUNTIFS($A$42:$A74,$A74)-1))/ $T74),"") ->  | J74: =IF(J$42>0,IF(OR($T74=0,COUNTIFS($A$42:$A74,$A74)=1),"",SUM((Filters!$F$4:$F$1503)*'Share Calculation'!AS$4:AS$1503*(OFFSET(Filters!$BD$4:$BD$1503,0,$A74-1)=COUNTIFS($A$42:$A74,$A74)-1))/ $T74),"") ->  | K74: =IF(K$42>0,IF(OR($T74=0,COUNTIFS($A$42:$A74,$A74)=1),"",SUM((Filters!$F$4:$F$1503)*'Share Calculation'!AT$4:AT$1503*(OFFSET(Filters!$BD$4:$BD$1503,0,$A74-1)=COUNTIFS($A$42:$A74,$A74)-1))/ $T74),"") ->  | L74: =IF(L$42>0,IF(OR($T74=0,COUNTIFS($A$42:$A74,$A74)=1),"",SUM((Filters!$F$4:$F$1503)*'Share Calculation'!AU$4:AU$1503*(OFFSET(Filters!$BD$4:$BD$1503,0,$A74-1)=COUNTIFS($A$42:$A74,$A74)-1))/ $T74),"") ->  | M74: =IF(M$42>0,IF(OR($T74=0,COUNTIFS($A$42:$A74,$A74)=1),"",SUM((Filters!$F$4:$F$1503)*'Share Calculation'!AV$4:AV$1503*(OFFSET(Filters!$BD$4:$BD$1503,0,$A74-1)=COUNTIFS($A$42:$A74,$A74)-1))/ $T74),"") ->  | N74: =IF(N$42>0,IF(OR($T74=0,COUNTIFS($A$42:$A74,$A74)=1),"",SUM((Filters!$F$4:$F$1503)*'Share Calculation'!AW$4:AW$1503*(OFFSET(Filters!$BD$4:$BD$1503,0,$A74-1)=COUNTIFS($A$42:$A74,$A74)-1))/ $T74),"") ->  | O74: =IF(O$42>0,IF(OR($T74=0,COUNTIFS($A$42:$A74,$A74)=1),"",SUM((Filters!$F$4:$F$1503)*'Share Calculation'!AX$4:AX$1503*(OFFSET(Filters!$BD$4:$BD$1503,0,$A74-1)=COUNTIFS($A$42:$A74,$A74)-1))/ $T74),"") ->  | P74: =IF(P$42>0,IF(OR($T74=0,COUNTIFS($A$42:$A74,$A74)=1),"",SUM((Filters!$F$4:$F$1503)*'Share Calculation'!AY$4:AY$1503*(OFFSET(Filters!$BD$4:$BD$1503,0,$A74-1)=COUNTIFS($A$42:$A74,$A74)-1))/ $T74),"") ->  | Q74: =IF(Q$42>0,IF(OR($T74=0,COUNTIFS($A$42:$A74,$A74)=1),"",SUM((Filters!$F$4:$F$1503)*'Share Calculation'!AZ$4:AZ$1503*(OFFSET(Filters!$BD$4:$BD$1503,0,$A74-1)=COUNTIFS($A$42:$A74,$A74)-1))/ $T74),"") ->  | R74: =IF(COUNTIFS($A$42:$A74,$A74)=1,"",SUMIFS(Filters!$F$4:$F$1503,OFFSET(Filters!$BD$4:$BD$1503,0,$A74-1),COUNTIFS($A$42:$A74,$A74)-1)/Filters!$I$2) -> 0.190625 | S74: Yes | T74: =IF(COUNTIFS($A$42:$A74,$A74)=1,"",COUNTIFS(OFFSET(Filters!$BD$4:$BD$1503,0,$A74-1),COUNTIFS($A$42:$A74,$A74)-1,Filters!$B$4:$B$1503,1)) -> 122
A75: 6 | C75: =VLOOKUP($A75,Filters!$H$4:$AG$1065,1+COUNTIFS($A$42:$A75,$A75),FALSE) -> 45-54 | F75: =IF(F$42>0,IF(OR($T75=0,COUNTIFS($A$42:$A75,$A75)=1),"",SUM((Filters!$F$4:$F$1503)*'Share Calculation'!AO$4:AO$1503*(OFFSET(Filters!$BD$4:$BD$1503,0,$A75-1)=COUNTIFS($A$42:$A75,$A75)-1))/ $T75),"") -> 0.6764782369 | G75: =IF(G$42>0,IF(OR($T75=0,COUNTIFS($A$42:$A75,$A75)=1),"",SUM((Filters!$F$4:$F$1503)*'Share Calculation'!AP$4:AP$1503*(OFFSET(Filters!$BD$4:$BD$1503,0,$A75-1)=COUNTIFS($A$42:$A75,$A75)-1))/ $T75),"") -> 0.3235217631 | H75: =IF(H$42>0,IF(OR($T75=0,COUNTIFS($A$42:$A75,$A75)=1),"",SUM((Filters!$F$4:$F$1503)*'Share Calculation'!AQ$4:AQ$1503*(OFFSET(Filters!$BD$4:$BD$1503,0,$A75-1)=COUNTIFS($A$42:$A75,$A75)-1))/ $T75),"") ->  | I75: =IF(I$42>0,IF(OR($T75=0,COUNTIFS($A$42:$A75,$A75)=1),"",SUM((Filters!$F$4:$F$1503)*'Share Calculation'!AR$4:AR$1503*(OFFSET(Filters!$BD$4:$BD$1503,0,$A75-1)=COUNTIFS($A$42:$A75,$A75)-1))/ $T75),"") ->  | J75: =IF(J$42>0,IF(OR($T75=0,COUNTIFS($A$42:$A75,$A75)=1),"",SUM((Filters!$F$4:$F$1503)*'Share Calculation'!AS$4:AS$1503*(OFFSET(Filters!$BD$4:$BD$1503,0,$A75-1)=COUNTIFS($A$42:$A75,$A75)-1))/ $T75),"") ->  | K75: =IF(K$42>0,IF(OR($T75=0,COUNTIFS($A$42:$A75,$A75)=1),"",SUM((Filters!$F$4:$F$1503)*'Share Calculation'!AT$4:AT$1503*(OFFSET(Filters!$BD$4:$BD$1503,0,$A75-1)=COUNTIFS($A$42:$A75,$A75)-1))/ $T75),"") ->  | L75: =IF(L$42>0,IF(OR($T75=0,COUNTIFS($A$42:$A75,$A75)=1),"",SUM((Filters!$F$4:$F$1503)*'Share Calculation'!AU$4:AU$1503*(OFFSET(Filters!$BD$4:$BD$1503,0,$A75-1)=COUNTIFS($A$42:$A75,$A75)-1))/ $T75),"") ->  | M75: =IF(M$42>0,IF(OR($T75=0,COUNTIFS($A$42:$A75,$A75)=1),"",SUM((Filters!$F$4:$F$1503)*'Share Calculation'!AV$4:AV$1503*(OFFSET(Filters!$BD$4:$BD$1503,0,$A75-1)=COUNTIFS($A$42:$A75,$A75)-1))/ $T75),"") ->  | N75: =IF(N$42>0,IF(OR($T75=0,COUNTIFS($A$42:$A75,$A75)=1),"",SUM((Filters!$F$4:$F$1503)*'Share Calculation'!AW$4:AW$1503*(OFFSET(Filters!$BD$4:$BD$1503,0,$A75-1)=COUNTIFS($A$42:$A75,$A75)-1))/ $T75),"") ->  | O75: =IF(O$42>0,IF(OR($T75=0,COUNTIFS($A$42:$A75,$A75)=1),"",SUM((Filters!$F$4:$F$1503)*'Share Calculation'!AX$4:AX$1503*(OFFSET(Filters!$BD$4:$BD$1503,0,$A75-1)=COUNTIFS($A$42:$A75,$A75)-1))/ $T75),"") ->  | P75: =IF(P$42>0,IF(OR($T75=0,COUNTIFS($A$42:$A75,$A75)=1),"",SUM((Filters!$F$4:$F$1503)*'Share Calculation'!AY$4:AY$1503*(OFFSET(Filters!$BD$4:$BD$1503,0,$A75-1)=COUNTIFS($A$42:$A75,$A75)-1))/ $T75),"") ->  | Q75: =IF(Q$42>0,IF(OR($T75=0,COUNTIFS($A$42:$A75,$A75)=1),"",SUM((Filters!$F$4:$F$1503)*'Share Calculation'!AZ$4:AZ$1503*(OFFSET(Filters!$BD$4:$BD$1503,0,$A75-1)=COUNTIFS($A$42:$A75,$A75)-1))/ $T75),"") ->  | R75: =IF(COUNTIFS($A$42:$A75,$A75)=1,"",SUMIFS(Filters!$F$4:$F$1503,OFFSET(Filters!$BD$4:$BD$1503,0,$A75-1),COUNTIFS($A$42:$A75,$A75)-1)/Filters!$I$2) -> 0.1734375 | S75: Yes | T75: =IF(COUNTIFS($A$42:$A75,$A75)=1,"",COUNTIFS(OFFSET(Filters!$BD$4:$BD$1503,0,$A75-1),COUNTIFS($A$42:$A75,$A75)-1,Filters!$B$4:$B$1503,1)) -> 111
A76: 6 | C76: =VLOOKUP($A76,Filters!$H$4:$AG$1065,1+COUNTIFS($A$42:$A76,$A76),FALSE) -> 55-64 | F76: =IF(F$42>0,IF(OR($T76=0,COUNTIFS($A$42:$A76,$A76)=1),"",SUM((Filters!$F$4:$F$1503)*'Share Calculation'!AO$4:AO$1503*(OFFSET(Filters!$BD$4:$BD$1503,0,$A76-1)=COUNTIFS($A$42:$A76,$A76)-1))/ $T76),"") -> 0.6737502475 | G76: =IF(G$42>0,IF(OR($T76=0,COUNTIFS($A$42:$A76,$A76)=1),"",SUM((Filters!$F$4:$F$1503)*'Share Calculation'!AP$4:AP$1503*(OFFSET(Filters!$BD$4:$BD$1503,0,$A76-1)=COUNTIFS($A$42:$A76,$A76)-1))/ $T76),"") -> 0.3262497525 | H76: =IF(H$42>0,IF(OR($T76=0,COUNTIFS($A$42:$A76,$A76)=1),"",SUM((Filters!$F$4:$F$1503)*'Share Calculation'!AQ$4:AQ$1503*(OFFSET(Filters!$BD$4:$BD$1503,0,$A76-1)=COUNTIFS($A$42:$A76,$A76)-1))/ $T76),"") ->  | I76: =IF(I$42>0,IF(OR($T76=0,COUNTIFS($A$42:$A76,$A76)=1),"",SUM((Filters!$F$4:$F$1503)*'Share Calculation'!AR$4:AR$1503*(OFFSET(Filters!$BD$4:$BD$1503,0,$A76-1)=COUNTIFS($A$42:$A76,$A76)-1))/ $T76),"") ->  | J76: =IF(J$42>0,IF(OR($T76=0,COUNTIFS($A$42:$A76,$A76)=1),"",SUM((Filters!$F$4:$F$1503)*'Share Calculation'!AS$4:AS$1503*(OFFSET(Filters!$BD$4:$BD$1503,0,$A76-1)=COUNTIFS($A$42:$A76,$A76)-1))/ $T76),"") ->  | K76: =IF(K$42>0,IF(OR($T76=0,COUNTIFS($A$42:$A76,$A76)=1),"",SUM((Filters!$F$4:$F$1503)*'Share Calculation'!AT$4:AT$1503*(OFFSET(Filters!$BD$4:$BD$1503,0,$A76-1)=COUNTIFS($A$42:$A76,$A76)-1))/ $T76),"") ->  | L76: =IF(L$42>0,IF(OR($T76=0,COUNTIFS($A$42:$A76,$A76)=1),"",SUM((Filters!$F$4:$F$1503)*'Share Calculation'!AU$4:AU$1503*(OFFSET(Filters!$BD$4:$BD$1503,0,$A76-1)=COUNTIFS($A$42:$A76,$A76)-1))/ $T76),"") ->  | M76: =IF(M$42>0,IF(OR($T76=0,COUNTIFS($A$42:$A76,$A76)=1),"",SUM((Filters!$F$4:$F$1503)*'Share Calculation'!AV$4:AV$1503*(OFFSET(Filters!$BD$4:$BD$1503,0,$A76-1)=COUNTIFS($A$42:$A76,$A76)-1))/ $T76),"") ->  | N76: =IF(N$42>0,IF(OR($T76=0,COUNTIFS($A$42:$A76,$A76)=1),"",SUM((Filters!$F$4:$F$1503)*'Share Calculation'!AW$4:AW$1503*(OFFSET(Filters!$BD$4:$BD$1503,0,$A76-1)=COUNTIFS($A$42:$A76,$A76)-1))/ $T76),"") ->  | O76: =IF(O$42>0,IF(OR($T76=0,COUNTIFS($A$42:$A76,$A76)=1),"",SUM((Filters!$F$4:$F$1503)*'Share Calculation'!AX$4:AX$1503*(OFFSET(Filters!$BD$4:$BD$1503,0,$A76-1)=COUNTIFS($A$42:$A76,$A76)-1))/ $T76),"") ->  | P76: =IF(P$42>0,IF(OR($T76=0,COUNTIFS($A$42:$A76,$A76)=1),"",SUM((Filters!$F$4:$F$1503)*'Share Calculation'!AY$4:AY$1503*(OFFSET(Filters!$BD$4:$BD$1503,0,$A76-1)=COUNTIFS($A$42:$A76,$A76)-1))/ $T76),"") ->  | Q76: =IF(Q$42>0,IF(OR($T76=0,COUNTIFS($A$42:$A76,$A76)=1),"",SUM((Filters!$F$4:$F$1503)*'Share Calculation'!AZ$4:AZ$1503*(OFFSET(Filters!$BD$4:$BD$1503,0,$A76-1)=COUNTIFS($A$42:$A76,$A76)-1))/ $T76),"") ->  | R76: =IF(COUNTIFS($A$42:$A76,$A76)=1,"",SUMIFS(Filters!$F$4:$F$1503,OFFSET(Filters!$BD$4:$BD$1503,0,$A76-1),COUNTIFS($A$42:$A76,$A76)-1)/Filters!$I$2) -> 0.13125 | S76: Yes | T76: =IF(COUNTIFS($A$42:$A76,$A76)=1,"",COUNTIFS(OFFSET(Filters!$BD$4:$BD$1503,0,$A76-1),COUNTIFS($A$42:$A76,$A76)-1,Filters!$B$4:$B$1503,1)) -> 84
A77: 6 | C77: =VLOOKUP($A77,Filters!$H$4:$AG$1065,1+COUNTIFS($A$42:$A77,$A77),FALSE) -> 65+ | F77: =IF(F$42>0,IF(OR($T77=0,COUNTIFS($A$42:$A77,$A77)=1),"",SUM((Filters!$F$4:$F$1503)*'Share Calculation'!AO$4:AO$1503*(OFFSET(Filters!$BD$4:$BD$1503,0,$A77-1)=COUNTIFS($A$42:$A77,$A77)-1))/ $T77),"") -> 0.6987594553 | G77: =IF(G$42>0,IF(OR($T77=0,COUNTIFS($A$42:$A77,$A77)=1),"",SUM((Filters!$F$4:$F$1503)*'Share Calculation'!AP$4:AP$1503*(OFFSET(Filters!$BD$4:$BD$1503,0,$A77-1)=COUNTIFS($A$42:$A77,$A77)-1))/ $T77),"") -> 0.3012405447 | H77: =IF(H$42>0,IF(OR($T77=0,COUNTIFS($A$42:$A77,$A77)=1),"",SUM((Filters!$F$4:$F$1503)*'Share Calculation'!AQ$4:AQ$1503*(OFFSET(Filters!$BD$4:$BD$1503,0,$A77-1)=COUNTIFS($A$42:$A77,$A77)-1))/ $T77),"") ->  | I77: =IF(I$42>0,IF(OR($T77=0,COUNTIFS($A$42:$A77,$A77)=1),"",SUM((Filters!$F$4:$F$1503)*'Share Calculation'!AR$4:AR$1503*(OFFSET(Filters!$BD$4:$BD$1503,0,$A77-1)=COUNTIFS($A$42:$A77,$A77)-1))/ $T77),"") ->  | J77: =IF(J$42>0,IF(OR($T77=0,COUNTIFS($A$42:$A77,$A77)=1),"",SUM((Filters!$F$4:$F$1503)*'Share Calculation'!AS$4:AS$1503*(OFFSET(Filters!$BD$4:$BD$1503,0,$A77-1)=COUNTIFS($A$42:$A77,$A77)-1))/ $T77),"") ->  | K77: =IF(K$42>0,IF(OR($T77=0,COUNTIFS($A$42:$A77,$A77)=1),"",SUM((Filters!$F$4:$F$1503)*'Share Calculation'!AT$4:AT$1503*(OFFSET(Filters!$BD$4:$BD$1503,0,$A77-1)=COUNTIFS($A$42:$A77,$A77)-1))/ $T77),"") ->  | L77: =IF(L$42>0,IF(OR($T77=0,COUNTIFS($A$42:$A77,$A77)=1),"",SUM((Filters!$F$4:$F$1503)*'Share Calculation'!AU$4:AU$1503*(OFFSET(Filters!$BD$4:$BD$1503,0,$A77-1)=COUNTIFS($A$42:$A77,$A77)-1))/ $T77),"") ->  | M77: =IF(M$42>0,IF(OR($T77=0,COUNTIFS($A$42:$A77,$A77)=1),"",SUM((Filters!$F$4:$F$1503)*'Share Calculation'!AV$4:AV$1503*(OFFSET(Filters!$BD$4:$BD$1503,0,$A77-1)=COUNTIFS($A$42:$A77,$A77)-1))/ $T77),"") ->  | N77: =IF(N$42>0,IF(OR($T77=0,COUNTIFS($A$42:$A77,$A77)=1),"",SUM((Filters!$F$4:$F$1503)*'Share Calculation'!AW$4:AW$1503*(OFFSET(Filters!$BD$4:$BD$1503,0,$A77-1)=COUNTIFS($A$42:$A77,$A77)-1))/ $T77),"") ->  | O77: =IF(O$42>0,IF(OR($T77=0,COUNTIFS($A$42:$A77,$A77)=1),"",SUM((Filters!$F$4:$F$1503)*'Share Calculation'!AX$4:AX$1503*(OFFSET(Filters!$BD$4:$BD$1503,0,$A77-1)=COUNTIFS($A$42:$A77,$A77)-1))/ $T77),"") ->  | P77: =IF(P$42>0,IF(OR($T77=0,COUNTIFS($A$42:$A77,$A77)=1),"",SUM((Filters!$F$4:$F$1503)*'Share Calculation'!AY$4:AY$1503*(OFFSET(Filters!$BD$4:$BD$1503,0,$A77-1)=COUNTIFS($A$42:$A77,$A77)-1))/ $T77),"") ->  | Q77: =IF(Q$42>0,IF(OR($T77=0,COUNTIFS($A$42:$A77,$A77)=1),"",SUM((Filters!$F$4:$F$1503)*'Share Calculation'!AZ$4:AZ$1503*(OFFSET(Filters!$BD$4:$BD$1503,0,$A77-1)=COUNTIFS($A$42:$A77,$A77)-1))/ $T77),"") ->  | R77: =IF(COUNTIFS($A$42:$A77,$A77)=1,"",SUMIFS(Filters!$F$4:$F$1503,OFFSET(Filters!$BD$4:$BD$1503,0,$A77-1),COUNTIFS($A$42:$A77,$A77)-1)/Filters!$I$2) -> 0.146875 | S77: Yes | T77: =IF(COUNTIFS($A$42:$A77,$A77)=1,"",COUNTIFS(OFFSET(Filters!$BD$4:$BD$1503,0,$A77-1),COUNTIFS($A$42:$A77,$A77)-1,Filters!$B$4:$B$1503,1)) -> 94
A78: 6 | C78: =VLOOKUP($A78,Filters!$H$4:$AG$1065,1+COUNTIFS($A$42:$A78,$A78),FALSE) -> n/a | F78: =IF(F$42>0,IF(OR($T78=0,COUNTIFS($A$42:$A78,$A78)=1),"",SUM((Filters!$F$4:$F$1503)*'Share Calculation'!AO$4:AO$1503*(OFFSET(Filters!$BD$4:$BD$1503,0,$A78-1)=COUNTIFS($A$42:$A78,$A78)-1))/ $T78),"") ->  | G78: =IF(G$42>0,IF(OR($T78=0,COUNTIFS($A$42:$A78,$A78)=1),"",SUM((Filters!$F$4:$F$1503)*'Share Calculation'!AP$4:AP$1503*(OFFSET(Filters!$BD$4:$BD$1503,0,$A78-1)=COUNTIFS($A$42:$A78,$A78)-1))/ $T78),"") ->  | H78: =IF(H$42>0,IF(OR($T78=0,COUNTIFS($A$42:$A78,$A78)=1),"",SUM((Filters!$F$4:$F$1503)*'Share Calculation'!AQ$4:AQ$1503*(OFFSET(Filters!$BD$4:$BD$1503,0,$A78-1)=COUNTIFS($A$42:$A78,$A78)-1))/ $T78),"") ->  | I78: =IF(I$42>0,IF(OR($T78=0,COUNTIFS($A$42:$A78,$A78)=1),"",SUM((Filters!$F$4:$F$1503)*'Share Calculation'!AR$4:AR$1503*(OFFSET(Filters!$BD$4:$BD$1503,0,$A78-1)=COUNTIFS($A$42:$A78,$A78)-1))/ $T78),"") ->  | J78: =IF(J$42>0,IF(OR($T78=0,COUNTIFS($A$42:$A78,$A78)=1),"",SUM((Filters!$F$4:$F$1503)*'Share Calculation'!AS$4:AS$1503*(OFFSET(Filters!$BD$4:$BD$1503,0,$A78-1)=COUNTIFS($A$42:$A78,$A78)-1))/ $T78),"") ->  | K78: =IF(K$42>0,IF(OR($T78=0,COUNTIFS($A$42:$A78,$A78)=1),"",SUM((Filters!$F$4:$F$1503)*'Share Calculation'!AT$4:AT$1503*(OFFSET(Filters!$BD$4:$BD$1503,0,$A78-1)=COUNTIFS($A$42:$A78,$A78)-1))/ $T78),"") ->  | L78: =IF(L$42>0,IF(OR($T78=0,COUNTIFS($A$42:$A78,$A78)=1),"",SUM((Filters!$F$4:$F$1503)*'Share Calculation'!AU$4:AU$1503*(OFFSET(Filters!$BD$4:$BD$1503,0,$A78-1)=COUNTIFS($A$42:$A78,$A78)-1))/ $T78),"") ->  | M78: =IF(M$42>0,IF(OR($T78=0,COUNTIFS($A$42:$A78,$A78)=1),"",SUM((Filters!$F$4:$F$1503)*'Share Calculation'!AV$4:AV$1503*(OFFSET(Filters!$BD$4:$BD$1503,0,$A78-1)=COUNTIFS($A$42:$A78,$A78)-1))/ $T78),"") ->  | N78: =IF(N$42>0,IF(OR($T78=0,COUNTIFS($A$42:$A78,$A78)=1),"",SUM((Filters!$F$4:$F$1503)*'Share Calculation'!AW$4:AW$1503*(OFFSET(Filters!$BD$4:$BD$1503,0,$A78-1)=COUNTIFS($A$42:$A78,$A78)-1))/ $T78),"") ->  | O78: =IF(O$42>0,IF(OR($T78=0,COUNTIFS($A$42:$A78,$A78)=1),"",SUM((Filters!$F$4:$F$1503)*'Share Calculation'!AX$4:AX$1503*(OFFSET(Filters!$BD$4:$BD$1503,0,$A78-1)=COUNTIFS($A$42:$A78,$A78)-1))/ $T78),"") ->  | P78: =IF(P$42>0,IF(OR($T78=0,COUNTIFS($A$42:$A78,$A78)=1),"",SUM((Filters!$F$4:$F$1503)*'Share Calculation'!AY$4:AY$1503*(OFFSET(Filters!$BD$4:$BD$1503,0,$A78-1)=COUNTIFS($A$42:$A78,$A78)-1))/ $T78),"") ->  | Q78: =IF(Q$42>0,IF(OR($T78=0,COUNTIFS($A$42:$A78,$A78)=1),"",SUM((Filters!$F$4:$F$1503)*'Share Calculation'!AZ$4:AZ$1503*(OFFSET(Filters!$BD$4:$BD$1503,0,$A78-1)=COUNTIFS($A$42:$A78,$A78)-1))/ $T78),"") ->  | R78: =IF(COUNTIFS($A$42:$A78,$A78)=1,"",SUMIFS(Filters!$F$4:$F$1503,OFFSET(Filters!$BD$4:$BD$1503,0,$A78-1),COUNTIFS($A$42:$A78,$A78)-1)/Filters!$I$2) -> 0 | S78: Yes | T78: =IF(COUNTIFS($A$42:$A78,$A78)=1,"",COUNTIFS(OFFSET(Filters!$BD$4:$BD$1503,0,$A78-1),COUNTIFS($A$42:$A78,$A78)-1,Filters!$B$4:$B$1503,1)) -> 0
A79: 7 | C79: =VLOOKUP($A79,Filters!$H$4:$AG$1065,1+COUNTIFS($A$42:$A79,$A79),FALSE) -> Social Grade | F79: =IF(F$42>0,IF(OR($T79=0,COUNTIFS($A$42:$A79,$A79)=1),"",SUM((Filters!$F$4:$F$1503)*'Share Calculation'!AO$4:AO$1503*(OFFSET(Filters!$BD$4:$BD$1503,0,$A79-1)=COUNTIFS($A$42:$A79,$A79)-1))/ $T79),"") ->  | G79: =IF(G$42>0,IF(OR($T79=0,COUNTIFS($A$42:$A79,$A79)=1),"",SUM((Filters!$F$4:$F$1503)*'Share Calculation'!AP$4:AP$1503*(OFFSET(Filters!$BD$4:$BD$1503,0,$A79-1)=COUNTIFS($A$42:$A79,$A79)-1))/ $T79),"") ->  | H79: =IF(H$42>0,IF(OR($T79=0,COUNTIFS($A$42:$A79,$A79)=1),"",SUM((Filters!$F$4:$F$1503)*'Share Calculation'!AQ$4:AQ$1503*(OFFSET(Filters!$BD$4:$BD$1503,0,$A79-1)=COUNTIFS($A$42:$A79,$A79)-1))/ $T79),"") ->  | I79: =IF(I$42>0,IF(OR($T79=0,COUNTIFS($A$42:$A79,$A79)=1),"",SUM((Filters!$F$4:$F$1503)*'Share Calculation'!AR$4:AR$1503*(OFFSET(Filters!$BD$4:$BD$1503,0,$A79-1)=COUNTIFS($A$42:$A79,$A79)-1))/ $T79),"") ->  | J79: =IF(J$42>0,IF(OR($T79=0,COUNTIFS($A$42:$A79,$A79)=1),"",SUM((Filters!$F$4:$F$1503)*'Share Calculation'!AS$4:AS$1503*(OFFSET(Filters!$BD$4:$BD$1503,0,$A79-1)=COUNTIFS($A$42:$A79,$A79)-1))/ $T79),"") ->  | K79: =IF(K$42>0,IF(OR($T79=0,COUNTIFS($A$42:$A79,$A79)=1),"",SUM((Filters!$F$4:$F$1503)*'Share Calculation'!AT$4:AT$1503*(OFFSET(Filters!$BD$4:$BD$1503,0,$A79-1)=COUNTIFS($A$42:$A79,$A79)-1))/ $T79),"") ->  | L79: =IF(L$42>0,IF(OR($T79=0,COUNTIFS($A$42:$A79,$A79)=1),"",SUM((Filters!$F$4:$F$1503)*'Share Calculation'!AU$4:AU$1503*(OFFSET(Filters!$BD$4:$BD$1503,0,$A79-1)=COUNTIFS($A$42:$A79,$A79)-1))/ $T79),"") ->  | M79: =IF(M$42>0,IF(OR($T79=0,COUNTIFS($A$42:$A79,$A79)=1),"",SUM((Filters!$F$4:$F$1503)*'Share Calculation'!AV$4:AV$1503*(OFFSET(Filters!$BD$4:$BD$1503,0,$A79-1)=COUNTIFS($A$42:$A79,$A79)-1))/ $T79),"") ->  | N79: =IF(N$42>0,IF(OR($T79=0,COUNTIFS($A$42:$A79,$A79)=1),"",SUM((Filters!$F$4:$F$1503)*'Share Calculation'!AW$4:AW$1503*(OFFSET(Filters!$BD$4:$BD$1503,0,$A79-1)=COUNTIFS($A$42:$A79,$A79)-1))/ $T79),"") ->  | O79: =IF(O$42>0,IF(OR($T79=0,COUNTIFS($A$42:$A79,$A79)=1),"",SUM((Filters!$F$4:$F$1503)*'Share Calculation'!AX$4:AX$1503*(OFFSET(Filters!$BD$4:$BD$1503,0,$A79-1)=COUNTIFS($A$42:$A79,$A79)-1))/ $T79),"") ->  | P79: =IF(P$42>0,IF(OR($T79=0,COUNTIFS($A$42:$A79,$A79)=1),"",SUM((Filters!$F$4:$F$1503)*'Share Calculation'!AY$4:AY$1503*(OFFSET(Filters!$BD$4:$BD$1503,0,$A79-1)=COUNTIFS($A$42:$A79,$A79)-1))/ $T79),"") ->  | Q79: =IF(Q$42>0,IF(OR($T79=0,COUNTIFS($A$42:$A79,$A79)=1),"",SUM((Filters!$F$4:$F$1503)*'Share Calculation'!AZ$4:AZ$1503*(OFFSET(Filters!$BD$4:$BD$1503,0,$A79-1)=COUNTIFS($A$42:$A79,$A79)-1))/ $T79),"") ->  | R79: =IF(COUNTIFS($A$42:$A79,$A79)=1,"",SUMIFS(Filters!$F$4:$F$1503,OFFSET(Filters!$BD$4:$BD$1503,0,$A79-1),COUNTIFS($A$42:$A79,$A79)-1)/Filters!$I$2) ->  | T79: =IF(COUNTIFS($A$42:$A79,$A79)=1,"",COUNTIFS(OFFSET(Filters!$BD$4:$BD$1503,0,$A79-1),COUNTIFS($A$42:$A79,$A79)-1,Filters!$B$4:$B$1503,1)) -> 
A80: 7 | C80: =VLOOKUP($A80,Filters!$H$4:$AG$1065,1+COUNTIFS($A$42:$A80,$A80),FALSE) -> A | F80: =IF(F$42>0,IF(OR($T80=0,COUNTIFS($A$42:$A80,$A80)=1),"",SUM((Filters!$F$4:$F$1503)*'Share Calculation'!AO$4:AO$1503*(OFFSET(Filters!$BD$4:$BD$1503,0,$A80-1)=COUNTIFS($A$42:$A80,$A80)-1))/ $T80),"") -> 0.6237573228 | G80: =IF(G$42>0,IF(OR($T80=0,COUNTIFS($A$42:$A80,$A80)=1),"",SUM((Filters!$F$4:$F$1503)*'Share Calculation'!AP$4:AP$1503*(OFFSET(Filters!$BD$4:$BD$1503,0,$A80-1)=COUNTIFS($A$42:$A80,$A80)-1))/ $T80),"") -> 0.3762426772 | H80: =IF(H$42>0,IF(OR($T80=0,COUNTIFS($A$42:$A80,$A80)=1),"",SUM((Filters!$F$4:$F$1503)*'Share Calculation'!AQ$4:AQ$1503*(OFFSET(Filters!$BD$4:$BD$1503,0,$A80-1)=COUNTIFS($A$42:$A80,$A80)-1))/ $T80),"") ->  | I80: =IF(I$42>0,IF(OR($T80=0,COUNTIFS($A$42:$A80,$A80)=1),"",SUM((Filters!$F$4:$F$1503)*'Share Calculation'!AR$4:AR$1503*(OFFSET(Filters!$BD$4:$BD$1503,0,$A80-1)=COUNTIFS($A$42:$A80,$A80)-1))/ $T80),"") ->  | J80: =IF(J$42>0,IF(OR($T80=0,COUNTIFS($A$42:$A80,$A80)=1),"",SUM((Filters!$F$4:$F$1503)*'Share Calculation'!AS$4:AS$1503*(OFFSET(Filters!$BD$4:$BD$1503,0,$A80-1)=COUNTIFS($A$42:$A80,$A80)-1))/ $T80),"") ->  | K80: =IF(K$42>0,IF(OR($T80=0,COUNTIFS($A$42:$A80,$A80)=1),"",SUM((Filters!$F$4:$F$1503)*'Share Calculation'!AT$4:AT$1503*(OFFSET(Filters!$BD$4:$BD$1503,0,$A80-1)=COUNTIFS($A$42:$A80,$A80)-1))/ $T80),"") ->  | L80: =IF(L$42>0,IF(OR($T80=0,COUNTIFS($A$42:$A80,$A80)=1),"",SUM((Filters!$F$4:$F$1503)*'Share Calculation'!AU$4:AU$1503*(OFFSET(Filters!$BD$4:$BD$1503,0,$A80-1)=COUNTIFS($A$42:$A80,$A80)-1))/ $T80),"") ->  | M80: =IF(M$42>0,IF(OR($T80=0,COUNTIFS($A$42:$A80,$A80)=1),"",SUM((Filters!$F$4:$F$1503)*'Share Calculation'!AV$4:AV$1503*(OFFSET(Filters!$BD$4:$BD$1503,0,$A80-1)=COUNTIFS($A$42:$A80,$A80)-1))/ $T80),"") ->  | N80: =IF(N$42>0,IF(OR($T80=0,COUNTIFS($A$42:$A80,$A80)=1),"",SUM((Filters!$F$4:$F$1503)*'Share Calculation'!AW$4:AW$1503*(OFFSET(Filters!$BD$4:$BD$1503,0,$A80-1)=COUNTIFS($A$42:$A80,$A80)-1))/ $T80),"") ->  | O80: =IF(O$42>0,IF(OR($T80=0,COUNTIFS($A$42:$A80,$A80)=1),"",SUM((Filters!$F$4:$F$1503)*'Share Calculation'!AX$4:AX$1503*(OFFSET(Filters!$BD$4:$BD$1503,0,$A80-1)=COUNTIFS($A$42:$A80,$A80)-1))/ $T80),"") ->  | P80: =IF(P$42>0,IF(OR($T80=0,COUNTIFS($A$42:$A80,$A80)=1),"",SUM((Filters!$F$4:$F$1503)*'Share Calculation'!AY$4:AY$1503*(OFFSET(Filters!$BD$4:$BD$1503,0,$A80-1)=COUNTIFS($A$42:$A80,$A80)-1))/ $T80),"") ->  | Q80: =IF(Q$42>0,IF(OR($T80=0,COUNTIFS($A$42:$A80,$A80)=1),"",SUM((Filters!$F$4:$F$1503)*'Share Calculation'!AZ$4:AZ$1503*(OFFSET(Filters!$BD$4:$BD$1503,0,$A80-1)=COUNTIFS($A$42:$A80,$A80)-1))/ $T80),"") ->  | R80: =IF(COUNTIFS($A$42:$A80,$A80)=1,"",SUMIFS(Filters!$F$4:$F$1503,OFFSET(Filters!$BD$4:$BD$1503,0,$A80-1),COUNTIFS($A$42:$A80,$A80)-1)/Filters!$I$2) -> 0.134375 | S80: Yes | T80: =IF(COUNTIFS($A$42:$A80,$A80)=1,"",COUNTIFS(OFFSET(Filters!$BD$4:$BD$1503,0,$A80-1),COUNTIFS($A$42:$A80,$A80)-1,Filters!$B$4:$B$1503,1)) -> 86
A81: 7 | C81: =VLOOKUP($A81,Filters!$H$4:$AG$1065,1+COUNTIFS($A$42:$A81,$A81),FALSE) -> B | F81: =IF(F$42>0,IF(OR($T81=0,COUNTIFS($A$42:$A81,$A81)=1),"",SUM((Filters!$F$4:$F$1503)*'Share Calculation'!AO$4:AO$1503*(OFFSET(Filters!$BD$4:$BD$1503,0,$A81-1)=COUNTIFS($A$42:$A81,$A81)-1))/ $T81),"") -> 0.6759946625 | G81: =IF(G$42>0,IF(OR($T81=0,COUNTIFS($A$42:$A81,$A81)=1),"",SUM((Filters!$F$4:$F$1503)*'Share Calculation'!AP$4:AP$1503*(OFFSET(Filters!$BD$4:$BD$1503,0,$A81-1)=COUNTIFS($A$42:$A81,$A81)-1))/ $T81),"") -> 0.3240053375 | H81: =IF(H$42>0,IF(OR($T81=0,COUNTIFS($A$42:$A81,$A81)=1),"",SUM((Filters!$F$4:$F$1503)*'Share Calculation'!AQ$4:AQ$1503*(OFFSET(Filters!$BD$4:$BD$1503,0,$A81-1)=COUNTIFS($A$42:$A81,$A81)-1))/ $T81),"") ->  | I81: =IF(I$42>0,IF(OR($T81=0,COUNTIFS($A$42:$A81,$A81)=1),"",SUM((Filters!$F$4:$F$1503)*'Share Calculation'!AR$4:AR$1503*(OFFSET(Filters!$BD$4:$BD$1503,0,$A81-1)=COUNTIFS($A$42:$A81,$A81)-1))/ $T81),"") ->  | J81: =IF(J$42>0,IF(OR($T81=0,COUNTIFS($A$42:$A81,$A81)=1),"",SUM((Filters!$F$4:$F$1503)*'Share Calculation'!AS$4:AS$1503*(OFFSET(Filters!$BD$4:$BD$1503,0,$A81-1)=COUNTIFS($A$42:$A81,$A81)-1))/ $T81),"") ->  | K81: =IF(K$42>0,IF(OR($T81=0,COUNTIFS($A$42:$A81,$A81)=1),"",SUM((Filters!$F$4:$F$1503)*'Share Calculation'!AT$4:AT$1503*(OFFSET(Filters!$BD$4:$BD$1503,0,$A81-1)=COUNTIFS($A$42:$A81,$A81)-1))/ $T81),"") ->  | L81: =IF(L$42>0,IF(OR($T81=0,COUNTIFS($A$42:$A81,$A81)=1),"",SUM((Filters!$F$4:$F$1503)*'Share Calculation'!AU$4:AU$1503*(OFFSET(Filters!$BD$4:$BD$1503,0,$A81-1)=COUNTIFS($A$42:$A81,$A81)-1))/ $T81),"") ->  | M81: =IF(M$42>0,IF(OR($T81=0,COUNTIFS($A$42:$A81,$A81)=1),"",SUM((Filters!$F$4:$F$1503)*'Share Calculation'!AV$4:AV$1503*(OFFSET(Filters!$BD$4:$BD$1503,0,$A81-1)=COUNTIFS($A$42:$A81,$A81)-1))/ $T81),"") ->  | N81: =IF(N$42>0,IF(OR($T81=0,COUNTIFS($A$42:$A81,$A81)=1),"",SUM((Filters!$F$4:$F$1503)*'Share Calculation'!AW$4:AW$1503*(OFFSET(Filters!$BD$4:$BD$1503,0,$A81-1)=COUNTIFS($A$42:$A81,$A81)-1))/ $T81),"") ->  | O81: =IF(O$42>0,IF(OR($T81=0,COUNTIFS($A$42:$A81,$A81)=1),"",SUM((Filters!$F$4:$F$1503)*'Share Calculation'!AX$4:AX$1503*(OFFSET(Filters!$BD$4:$BD$1503,0,$A81-1)=COUNTIFS($A$42:$A81,$A81)-1))/ $T81),"") ->  | P81: =IF(P$42>0,IF(OR($T81=0,COUNTIFS($A$42:$A81,$A81)=1),"",SUM((Filters!$F$4:$F$1503)*'Share Calculation'!AY$4:AY$1503*(OFFSET(Filters!$BD$4:$BD$1503,0,$A81-1)=COUNTIFS($A$42:$A81,$A81)-1))/ $T81),"") ->  | Q81: =IF(Q$42>0,IF(OR($T81=0,COUNTIFS($A$42:$A81,$A81)=1),"",SUM((Filters!$F$4:$F$1503)*'Share Calculation'!AZ$4:AZ$1503*(OFFSET(Filters!$BD$4:$BD$1503,0,$A81-1)=COUNTIFS($A$42:$A81,$A81)-1))/ $T81),"") ->  | R81: =IF(COUNTIFS($A$42:$A81,$A81)=1,"",SUMIFS(Filters!$F$4:$F$1503,OFFSET(Filters!$BD$4:$BD$1503,0,$A81-1),COUNTIFS($A$42:$A81,$A81)-1)/Filters!$I$2) -> 0.290625 | S81: Yes | T81: =IF(COUNTIFS($A$42:$A81,$A81)=1,"",COUNTIFS(OFFSET(Filters!$BD$4:$BD$1503,0,$A81-1),COUNTIFS($A$42:$A81,$A81)-1,Filters!$B$4:$B$1503,1)) -> 186
A82: 7 | C82: =VLOOKUP($A82,Filters!$H$4:$AG$1065,1+COUNTIFS($A$42:$A82,$A82),FALSE) -> C1 | F82: =IF(F$42>0,IF(OR($T82=0,COUNTIFS($A$42:$A82,$A82)=1),"",SUM((Filters!$F$4:$F$1503)*'Share Calculation'!AO$4:AO$1503*(OFFSET(Filters!$BD$4:$BD$1503,0,$A82-1)=COUNTIFS($A$42:$A82,$A82)-1))/ $T82),"") -> 0.6610454204 | G82: =IF(G$42>0,IF(OR($T82=0,COUNTIFS($A$42:$A82,$A82)=1),"",SUM((Filters!$F$4:$F$1503)*'Share Calculation'!AP$4:AP$1503*(OFFSET(Filters!$BD$4:$BD$1503,0,$A82-1)=COUNTIFS($A$42:$A82,$A82)-1))/ $T82),"") -> 0.3389545796 | H82: =IF(H$42>0,IF(OR($T82=0,COUNTIFS($A$42:$A82,$A82)=1),"",SUM((Filters!$F$4:$F$1503)*'Share Calculation'!AQ$4:AQ$1503*(OFFSET(Filters!$BD$4:$BD$1503,0,$A82-1)=COUNTIFS($A$42:$A82,$A82)-1))/ $T82),"") ->  | I82: =IF(I$42>0,IF(OR($T82=0,COUNTIFS($A$42:$A82,$A82)=1),"",SUM((Filters!$F$4:$F$1503)*'Share Calculation'!AR$4:AR$1503*(OFFSET(Filters!$BD$4:$BD$1503,0,$A82-1)=COUNTIFS($A$42:$A82,$A82)-1))/ $T82),"") ->  | J82: =IF(J$42>0,IF(OR($T82=0,COUNTIFS($A$42:$A82,$A82)=1),"",SUM((Filters!$F$4:$F$1503)*'Share Calculation'!AS$4:AS$1503*(OFFSET(Filters!$BD$4:$BD$1503,0,$A82-1)=COUNTIFS($A$42:$A82,$A82)-1))/ $T82),"") ->  | K82: =IF(K$42>0,IF(OR($T82=0,COUNTIFS($A$42:$A82,$A82)=1),"",SUM((Filters!$F$4:$F$1503)*'Share Calculation'!AT$4:AT$1503*(OFFSET(Filters!$BD$4:$BD$1503,0,$A82-1)=COUNTIFS($A$42:$A82,$A82)-1))/ $T82),"") ->  | L82: =IF(L$42>0,IF(OR($T82=0,COUNTIFS($A$42:$A82,$A82)=1),"",SUM((Filters!$F$4:$F$1503)*'Share Calculation'!AU$4:AU$1503*(OFFSET(Filters!$BD$4:$BD$1503,0,$A82-1)=COUNTIFS($A$42:$A82,$A82)-1))/ $T82),"") ->  | M82: =IF(M$42>0,IF(OR($T82=0,COUNTIFS($A$42:$A82,$A82)=1),"",SUM((Filters!$F$4:$F$1503)*'Share Calculation'!AV$4:AV$1503*(OFFSET(Filters!$BD$4:$BD$1503,0,$A82-1)=COUNTIFS($A$42:$A82,$A82)-1))/ $T82),"") ->  | N82: =IF(N$42>0,IF(OR($T82=0,COUNTIFS($A$42:$A82,$A82)=1),"",SUM((Filters!$F$4:$F$1503)*'Share Calculation'!AW$4:AW$1503*(OFFSET(Filters!$BD$4:$BD$1503,0,$A82-1)=COUNTIFS($A$42:$A82,$A82)-1))/ $T82),"") ->  | O82: =IF(O$42>0,IF(OR($T82=0,COUNTIFS($A$42:$A82,$A82)=1),"",SUM((Filters!$F$4:$F$1503)*'Share Calculation'!AX$4:AX$1503*(OFFSET(Filters!$BD$4:$BD$1503,0,$A82-1)=COUNTIFS($A$42:$A82,$A82)-1))/ $T82),"") ->  | P82: =IF(P$42>0,IF(OR($T82=0,COUNTIFS($A$42:$A82,$A82)=1),"",SUM((Filters!$F$4:$F$1503)*'Share Calculation'!AY$4:AY$1503*(OFFSET(Filters!$BD$4:$BD$1503,0,$A82-1)=COUNTIFS($A$42:$A82,$A82)-1))/ $T82),"") ->  | Q82: =IF(Q$42>0,IF(OR($T82=0,COUNTIFS($A$42:$A82,$A82)=1),"",SUM((Filters!$F$4:$F$1503)*'Share Calculation'!AZ$4:AZ$1503*(OFFSET(Filters!$BD$4:$BD$1503,0,$A82-1)=COUNTIFS($A$42:$A82,$A82)-1))/ $T82),"") ->  | R82: =IF(COUNTIFS($A$42:$A82,$A82)=1,"",SUMIFS(Filters!$F$4:$F$1503,OFFSET(Filters!$BD$4:$BD$1503,0,$A82-1),COUNTIFS($A$42:$A82,$A82)-1)/Filters!$I$2) -> 0.19375 | S82: Yes | T82: =IF(COUNTIFS($A$42:$A82,$A82)=1,"",COUNTIFS(OFFSET(Filters!$BD$4:$BD$1503,0,$A82-1),COUNTIFS($A$42:$A82,$A82)-1,Filters!$B$4:$B$1503,1)) -> 124
A83: 7 | C83: =VLOOKUP($A83,Filters!$H$4:$AG$1065,1+COUNTIFS($A$42:$A83,$A83),FALSE) -> C2 | F83: =IF(F$42>0,IF(OR($T83=0,COUNTIFS($A$42:$A83,$A83)=1),"",SUM((Filters!$F$4:$F$1503)*'Share Calculation'!AO$4:AO$1503*(OFFSET(Filters!$BD$4:$BD$1503,0,$A83-1)=COUNTIFS($A$42:$A83,$A83)-1))/ $T83),"") -> 0.6711888434 | G83: =IF(G$42>0,IF(OR($T83=0,COUNTIFS($A$42:$A83,$A83)=1),"",SUM((Filters!$F$4:$F$1503)*'Share Calculation'!AP$4:AP$1503*(OFFSET(Filters!$BD$4:$BD$1503,0,$A83-1)=COUNTIFS($A$42:$A83,$A83)-1))/ $T83),"") -> 0.3288111566 | H83: =IF(H$42>0,IF(OR($T83=0,COUNTIFS($A$42:$A83,$A83)=1),"",SUM((Filters!$F$4:$F$1503)*'Share Calculation'!AQ$4:AQ$1503*(OFFSET(Filters!$BD$4:$BD$1503,0,$A83-1)=COUNTIFS($A$42:$A83,$A83)-1))/ $T83),"") ->  | I83: =IF(I$42>0,IF(OR($T83=0,COUNTIFS($A$42:$A83,$A83)=1),"",SUM((Filters!$F$4:$F$1503)*'Share Calculation'!AR$4:AR$1503*(OFFSET(Filters!$BD$4:$BD$1503,0,$A83-1)=COUNTIFS($A$42:$A83,$A83)-1))/ $T83),"") ->  | J83: =IF(J$42>0,IF(OR($T83=0,COUNTIFS($A$42:$A83,$A83)=1),"",SUM((Filters!$F$4:$F$1503)*'Share Calculation'!AS$4:AS$1503*(OFFSET(Filters!$BD$4:$BD$1503,0,$A83-1)=COUNTIFS($A$42:$A83,$A83)-1))/ $T83),"") ->  | K83: =IF(K$42>0,IF(OR($T83=0,COUNTIFS($A$42:$A83,$A83)=1),"",SUM((Filters!$F$4:$F$1503)*'Share Calculation'!AT$4:AT$1503*(OFFSET(Filters!$BD$4:$BD$1503,0,$A83-1)=COUNTIFS($A$42:$A83,$A83)-1))/ $T83),"") ->  | L83: =IF(L$42>0,IF(OR($T83=0,COUNTIFS($A$42:$A83,$A83)=1),"",SUM((Filters!$F$4:$F$1503)*'Share Calculation'!AU$4:AU$1503*(OFFSET(Filters!$BD$4:$BD$1503,0,$A83-1)=COUNTIFS($A$42:$A83,$A83)-1))/ $T83),"") ->  | M83: =IF(M$42>0,IF(OR($T83=0,COUNTIFS($A$42:$A83,$A83)=1),"",SUM((Filters!$F$4:$F$1503)*'Share Calculation'!AV$4:AV$1503*(OFFSET(Filters!$BD$4:$BD$1503,0,$A83-1)=COUNTIFS($A$42:$A83,$A83)-1))/ $T83),"") ->  | N83: =IF(N$42>0,IF(OR($T83=0,COUNTIFS($A$42:$A83,$A83)=1),"",SUM((Filters!$F$4:$F$1503)*'Share Calculation'!AW$4:AW$1503*(OFFSET(Filters!$BD$4:$BD$1503,0,$A83-1)=COUNTIFS($A$42:$A83,$A83)-1))/ $T83),"") ->  | O83: =IF(O$42>0,IF(OR($T83=0,COUNTIFS($A$42:$A83,$A83)=1),"",SUM((Filters!$F$4:$F$1503)*'Share Calculation'!AX$4:AX$1503*(OFFSET(Filters!$BD$4:$BD$1503,0,$A83-1)=COUNTIFS($A$42:$A83,$A83)-1))/ $T83),"") ->  | P83: =IF(P$42>0,IF(OR($T83=0,COUNTIFS($A$42:$A83,$A83)=1),"",SUM((Filters!$F$4:$F$1503)*'Share Calculation'!AY$4:AY$1503*(OFFSET(Filters!$BD$4:$BD$1503,0,$A83-1)=COUNTIFS($A$42:$A83,$A83)-1))/ $T83),"") ->  | Q83: =IF(Q$42>0,IF(OR($T83=0,COUNTIFS($A$42:$A83,$A83)=1),"",SUM((Filters!$F$4:$F$1503)*'Share Calculation'!AZ$4:AZ$1503*(OFFSET(Filters!$BD$4:$BD$1503,0,$A83-1)=COUNTIFS($A$42:$A83,$A83)-1))/ $T83),"") ->  | R83: =IF(COUNTIFS($A$42:$A83,$A83)=1,"",SUMIFS(Filters!$F$4:$F$1503,OFFSET(Filters!$BD$4:$BD$1503,0,$A83-1),COUNTIFS($A$42:$A83,$A83)-1)/Filters!$I$2) -> 0.221875 | S83: Yes | T83: =IF(COUNTIFS($A$42:$A83,$A83)=1,"",COUNTIFS(OFFSET(Filters!$BD$4:$BD$1503,0,$A83-1),COUNTIFS($A$42:$A83,$A83)-1,Filters!$B$4:$B$1503,1)) -> 142
A84: 7 | C84: =VLOOKUP($A84,Filters!$H$4:$AG$1065,1+COUNTIFS($A$42:$A84,$A84),FALSE) -> D | F84: =IF(F$42>0,IF(OR($T84=0,COUNTIFS($A$42:$A84,$A84)=1),"",SUM((Filters!$F$4:$F$1503)*'Share Calculation'!AO$4:AO$1503*(OFFSET(Filters!$BD$4:$BD$1503,0,$A84-1)=COUNTIFS($A$42:$A84,$A84)-1))/ $T84),"") -> 0.623364756 | G84: =IF(G$42>0,IF(OR($T84=0,COUNTIFS($A$42:$A84,$A84)=1),"",SUM((Filters!$F$4:$F$1503)*'Share Calculation'!AP$4:AP$1503*(OFFSET(Filters!$BD$4:$BD$1503,0,$A84-1)=COUNTIFS($A$42:$A84,$A84)-1))/ $T84),"") -> 0.376635244 | H84: =IF(H$42>0,IF(OR($T84=0,COUNTIFS($A$42:$A84,$A84)=1),"",SUM((Filters!$F$4:$F$1503)*'Share Calculation'!AQ$4:AQ$1503*(OFFSET(Filters!$BD$4:$BD$1503,0,$A84-1)=COUNTIFS($A$42:$A84,$A84)-1))/ $T84),"") ->  | I84: =IF(I$42>0,IF(OR($T84=0,COUNTIFS($A$42:$A84,$A84)=1),"",SUM((Filters!$F$4:$F$1503)*'Share Calculation'!AR$4:AR$1503*(OFFSET(Filters!$BD$4:$BD$1503,0,$A84-1)=COUNTIFS($A$42:$A84,$A84)-1))/ $T84),"") ->  | J84: =IF(J$42>0,IF(OR($T84=0,COUNTIFS($A$42:$A84,$A84)=1),"",SUM((Filters!$F$4:$F$1503)*'Share Calculation'!AS$4:AS$1503*(OFFSET(Filters!$BD$4:$BD$1503,0,$A84-1)=COUNTIFS($A$42:$A84,$A84)-1))/ $T84),"") ->  | K84: =IF(K$42>0,IF(OR($T84=0,COUNTIFS($A$42:$A84,$A84)=1),"",SUM((Filters!$F$4:$F$1503)*'Share Calculation'!AT$4:AT$1503*(OFFSET(Filters!$BD$4:$BD$1503,0,$A84-1)=COUNTIFS($A$42:$A84,$A84)-1))/ $T84),"") ->  | L84: =IF(L$42>0,IF(OR($T84=0,COUNTIFS($A$42:$A84,$A84)=1),"",SUM((Filters!$F$4:$F$1503)*'Share Calculation'!AU$4:AU$1503*(OFFSET(Filters!$BD$4:$BD$1503,0,$A84-1)=COUNTIFS($A$42:$A84,$A84)-1))/ $T84),"") ->  | M84: =IF(M$42>0,IF(OR($T84=0,COUNTIFS($A$42:$A84,$A84)=1),"",SUM((Filters!$F$4:$F$1503)*'Share Calculation'!AV$4:AV$1503*(OFFSET(Filters!$BD$4:$BD$1503,0,$A84-1)=COUNTIFS($A$42:$A84,$A84)-1))/ $T84),"") ->  | N84: =IF(N$42>0,IF(OR($T84=0,COUNTIFS($A$42:$A84,$A84)=1),"",SUM((Filters!$F$4:$F$1503)*'Share Calculation'!AW$4:AW$1503*(OFFSET(Filters!$BD$4:$BD$1503,0,$A84-1)=COUNTIFS($A$42:$A84,$A84)-1))/ $T84),"") ->  | O84: =IF(O$42>0,IF(OR($T84=0,COUNTIFS($A$42:$A84,$A84)=1),"",SUM((Filters!$F$4:$F$1503)*'Share Calculation'!AX$4:AX$1503*(OFFSET(Filters!$BD$4:$BD$1503,0,$A84-1)=COUNTIFS($A$42:$A84,$A84)-1))/ $T84),"") ->  | P84: =IF(P$42>0,IF(OR($T84=0,COUNTIFS($A$42:$A84,$A84)=1),"",SUM((Filters!$F$4:$F$1503)*'Share Calculation'!AY$4:AY$1503*(OFFSET(Filters!$BD$4:$BD$1503,0,$A84-1)=COUNTIFS($A$42:$A84,$A84)-1))/ $T84),"") ->  | Q84: =IF(Q$42>0,IF(OR($T84=0,COUNTIFS($A$42:$A84,$A84)=1),"",SUM((Filters!$F$4:$F$1503)*'Share Calculation'!AZ$4:AZ$1503*(OFFSET(Filters!$BD$4:$BD$1503,0,$A84-1)=COUNTIFS($A$42:$A84,$A84)-1))/ $T84),"") ->  | R84: =IF(COUNTIFS($A$42:$A84,$A84)=1,"",SUMIFS(Filters!$F$4:$F$1503,OFFSET(Filters!$BD$4:$BD$1503,0,$A84-1),COUNTIFS($A$42:$A84,$A84)-1)/Filters!$I$2) -> 0.08125 | S84: Yes | T84: =IF(COUNTIFS($A$42:$A84,$A84)=1,"",COUNTIFS(OFFSET(Filters!$BD$4:$BD$1503,0,$A84-1),COUNTIFS($A$42:$A84,$A84)-1,Filters!$B$4:$B$1503,1)) -> 52
A85: 7 | C85: =VLOOKUP($A85,Filters!$H$4:$AG$1065,1+COUNTIFS($A$42:$A85,$A85),FALSE) -> E | F85: =IF(F$42>0,IF(OR($T85=0,COUNTIFS($A$42:$A85,$A85)=1),"",SUM((Filters!$F$4:$F$1503)*'Share Calculation'!AO$4:AO$1503*(OFFSET(Filters!$BD$4:$BD$1503,0,$A85-1)=COUNTIFS($A$42:$A85,$A85)-1))/ $T85),"") -> 0.6547075084 | G85: =IF(G$42>0,IF(OR($T85=0,COUNTIFS($A$42:$A85,$A85)=1),"",SUM((Filters!$F$4:$F$1503)*'Share Calculation'!AP$4:AP$1503*(OFFSET(Filters!$BD$4:$BD$1503,0,$A85-1)=COUNTIFS($A$42:$A85,$A85)-1))/ $T85),"") -> 0.3452924916 | H85: =IF(H$42>0,IF(OR($T85=0,COUNTIFS($A$42:$A85,$A85)=1),"",SUM((Filters!$F$4:$F$1503)*'Share Calculation'!AQ$4:AQ$1503*(OFFSET(Filters!$BD$4:$BD$1503,0,$A85-1)=COUNTIFS($A$42:$A85,$A85)-1))/ $T85),"") ->  | I85: =IF(I$42>0,IF(OR($T85=0,COUNTIFS($A$42:$A85,$A85)=1),"",SUM((Filters!$F$4:$F$1503)*'Share Calculation'!AR$4:AR$1503*(OFFSET(Filters!$BD$4:$BD$1503,0,$A85-1)=COUNTIFS($A$42:$A85,$A85)-1))/ $T85),"") ->  | J85: =IF(J$42>0,IF(OR($T85=0,COUNTIFS($A$42:$A85,$A85)=1),"",SUM((Filters!$F$4:$F$1503)*'Share Calculation'!AS$4:AS$1503*(OFFSET(Filters!$BD$4:$BD$1503,0,$A85-1)=COUNTIFS($A$42:$A85,$A85)-1))/ $T85),"") ->  | K85: =IF(K$42>0,IF(OR($T85=0,COUNTIFS($A$42:$A85,$A85)=1),"",SUM((Filters!$F$4:$F$1503)*'Share Calculation'!AT$4:AT$1503*(OFFSET(Filters!$BD$4:$BD$1503,0,$A85-1)=COUNTIFS($A$42:$A85,$A85)-1))/ $T85),"") ->  | L85: =IF(L$42>0,IF(OR($T85=0,COUNTIFS($A$42:$A85,$A85)=1),"",SUM((Filters!$F$4:$F$1503)*'Share Calculation'!AU$4:AU$1503*(OFFSET(Filters!$BD$4:$BD$1503,0,$A85-1)=COUNTIFS($A$42:$A85,$A85)-1))/ $T85),"") ->  | M85: =IF(M$42>0,IF(OR($T85=0,COUNTIFS($A$42:$A85,$A85)=1),"",SUM((Filters!$F$4:$F$1503)*'Share Calculation'!AV$4:AV$1503*(OFFSET(Filters!$BD$4:$BD$1503,0,$A85-1)=COUNTIFS($A$42:$A85,$A85)-1))/ $T85),"") ->  | N85: =IF(N$42>0,IF(OR($T85=0,COUNTIFS($A$42:$A85,$A85)=1),"",SUM((Filters!$F$4:$F$1503)*'Share Calculation'!AW$4:AW$1503*(OFFSET(Filters!$BD$4:$BD$1503,0,$A85-1)=COUNTIFS($A$42:$A85,$A85)-1))/ $T85),"") ->  | O85: =IF(O$42>0,IF(OR($T85=0,COUNTIFS($A$42:$A85,$A85)=1),"",SUM((Filters!$F$4:$F$1503)*'Share Calculation'!AX$4:AX$1503*(OFFSET(Filters!$BD$4:$BD$1503,0,$A85-1)=COUNTIFS($A$42:$A85,$A85)-1))/ $T85),"") ->  | P85: =IF(P$42>0,IF(OR($T85=0,COUNTIFS($A$42:$A85,$A85)=1),"",SUM((Filters!$F$4:$F$1503)*'Share Calculation'!AY$4:AY$1503*(OFFSET(Filters!$BD$4:$BD$1503,0,$A85-1)=COUNTIFS($A$42:$A85,$A85)-1))/ $T85),"") ->  | Q85: =IF(Q$42>0,IF(OR($T85=0,COUNTIFS($A$42:$A85,$A85)=1),"",SUM((Filters!$F$4:$F$1503)*'Share Calculation'!AZ$4:AZ$1503*(OFFSET(Filters!$BD$4:$BD$1503,0,$A85-1)=COUNTIFS($A$42:$A85,$A85)-1))/ $T85),"") ->  | R85: =IF(COUNTIFS($A$42:$A85,$A85)=1,"",SUMIFS(Filters!$F$4:$F$1503,OFFSET(Filters!$BD$4:$BD$1503,0,$A85-1),COUNTIFS($A$42:$A85,$A85)-1)/Filters!$I$2) -> 0.078125 | S85: Yes | T85: =IF(COUNTIFS($A$42:$A85,$A85)=1,"",COUNTIFS(OFFSET(Filters!$BD$4:$BD$1503,0,$A85-1),COUNTIFS($A$42:$A85,$A85)-1,Filters!$B$4:$B$1503,1)) -> 50
A86: 7 | C86: =VLOOKUP($A86,Filters!$H$4:$AG$1065,1+COUNTIFS($A$42:$A86,$A86),FALSE) -> n/a | F86: =IF(F$42>0,IF(OR($T86=0,COUNTIFS($A$42:$A86,$A86)=1),"",SUM((Filters!$F$4:$F$1503)*'Share Calculation'!AO$4:AO$1503*(OFFSET(Filters!$BD$4:$BD$1503,0,$A86-1)=COUNTIFS($A$42:$A86,$A86)-1))/ $T86),"") ->  | G86: =IF(G$42>0,IF(OR($T86=0,COUNTIFS($A$42:$A86,$A86)=1),"",SUM((Filters!$F$4:$F$1503)*'Share Calculation'!AP$4:AP$1503*(OFFSET(Filters!$BD$4:$BD$1503,0,$A86-1)=COUNTIFS($A$42:$A86,$A86)-1))/ $T86),"") ->  | H86: =IF(H$42>0,IF(OR($T86=0,COUNTIFS($A$42:$A86,$A86)=1),"",SUM((Filters!$F$4:$F$1503)*'Share Calculation'!AQ$4:AQ$1503*(OFFSET(Filters!$BD$4:$BD$1503,0,$A86-1)=COUNTIFS($A$42:$A86,$A86)-1))/ $T86),"") ->  | I86: =IF(I$42>0,IF(OR($T86=0,COUNTIFS($A$42:$A86,$A86)=1),"",SUM((Filters!$F$4:$F$1503)*'Share Calculation'!AR$4:AR$1503*(OFFSET(Filters!$BD$4:$BD$1503,0,$A86-1)=COUNTIFS($A$42:$A86,$A86)-1))/ $T86),"") ->  | J86: =IF(J$42>0,IF(OR($T86=0,COUNTIFS($A$42:$A86,$A86)=1),"",SUM((Filters!$F$4:$F$1503)*'Share Calculation'!AS$4:AS$1503*(OFFSET(Filters!$BD$4:$BD$1503,0,$A86-1)=COUNTIFS($A$42:$A86,$A86)-1))/ $T86),"") ->  | K86: =IF(K$42>0,IF(OR($T86=0,COUNTIFS($A$42:$A86,$A86)=1),"",SUM((Filters!$F$4:$F$1503)*'Share Calculation'!AT$4:AT$1503*(OFFSET(Filters!$BD$4:$BD$1503,0,$A86-1)=COUNTIFS($A$42:$A86,$A86)-1))/ $T86),"") ->  | L86: =IF(L$42>0,IF(OR($T86=0,COUNTIFS($A$42:$A86,$A86)=1),"",SUM((Filters!$F$4:$F$1503)*'Share Calculation'!AU$4:AU$1503*(OFFSET(Filters!$BD$4:$BD$1503,0,$A86-1)=COUNTIFS($A$42:$A86,$A86)-1))/ $T86),"") ->  | M86: =IF(M$42>0,IF(OR($T86=0,COUNTIFS($A$42:$A86,$A86)=1),"",SUM((Filters!$F$4:$F$1503)*'Share Calculation'!AV$4:AV$1503*(OFFSET(Filters!$BD$4:$BD$1503,0,$A86-1)=COUNTIFS($A$42:$A86,$A86)-1))/ $T86),"") ->  | N86: =IF(N$42>0,IF(OR($T86=0,COUNTIFS($A$42:$A86,$A86)=1),"",SUM((Filters!$F$4:$F$1503)*'Share Calculation'!AW$4:AW$1503*(OFFSET(Filters!$BD$4:$BD$1503,0,$A86-1)=COUNTIFS($A$42:$A86,$A86)-1))/ $T86),"") ->  | O86: =IF(O$42>0,IF(OR($T86=0,COUNTIFS($A$42:$A86,$A86)=1),"",SUM((Filters!$F$4:$F$1503)*'Share Calculation'!AX$4:AX$1503*(OFFSET(Filters!$BD$4:$BD$1503,0,$A86-1)=COUNTIFS($A$42:$A86,$A86)-1))/ $T86),"") ->  | P86: =IF(P$42>0,IF(OR($T86=0,COUNTIFS($A$42:$A86,$A86)=1),"",SUM((Filters!$F$4:$F$1503)*'Share Calculation'!AY$4:AY$1503*(OFFSET(Filters!$BD$4:$BD$1503,0,$A86-1)=COUNTIFS($A$42:$A86,$A86)-1))/ $T86),"") ->  | Q86: =IF(Q$42>0,IF(OR($T86=0,COUNTIFS($A$42:$A86,$A86)=1),"",SUM((Filters!$F$4:$F$1503)*'Share Calculation'!AZ$4:AZ$1503*(OFFSET(Filters!$BD$4:$BD$1503,0,$A86-1)=COUNTIFS($A$42:$A86,$A86)-1))/ $T86),"") ->  | R86: =IF(COUNTIFS($A$42:$A86,$A86)=1,"",SUMIFS(Filters!$F$4:$F$1503,OFFSET(Filters!$BD$4:$BD$1503,0,$A86-1),COUNTIFS($A$42:$A86,$A86)-1)/Filters!$I$2) -> 0 | S86: Yes | T86: =IF(COUNTIFS($A$42:$A86,$A86)=1,"",COUNTIFS(OFFSET(Filters!$BD$4:$BD$1503,0,$A86-1),COUNTIFS($A$42:$A86,$A86)-1,Filters!$B$4:$B$1503,1)) -> 0
A87: 8 | C87: =VLOOKUP($A87,Filters!$H$4:$AG$1065,1+COUNTIFS($A$42:$A87,$A87),FALSE) -> How would you describe the area you live in? | F87: =IF(F$42>0,IF(OR($T87=0,COUNTIFS($A$42:$A87,$A87)=1),"",SUM((Filters!$F$4:$F$1503)*'Share Calculation'!AO$4:AO$1503*(OFFSET(Filters!$BD$4:$BD$1503,0,$A87-1)=COUNTIFS($A$42:$A87,$A87)-1))/ $T87),"") ->  | G87: =IF(G$42>0,IF(OR($T87=0,COUNTIFS($A$42:$A87,$A87)=1),"",SUM((Filters!$F$4:$F$1503)*'Share Calculation'!AP$4:AP$1503*(OFFSET(Filters!$BD$4:$BD$1503,0,$A87-1)=COUNTIFS($A$42:$A87,$A87)-1))/ $T87),"") ->  | H87: =IF(H$42>0,IF(OR($T87=0,COUNTIFS($A$42:$A87,$A87)=1),"",SUM((Filters!$F$4:$F$1503)*'Share Calculation'!AQ$4:AQ$1503*(OFFSET(Filters!$BD$4:$BD$1503,0,$A87-1)=COUNTIFS($A$42:$A87,$A87)-1))/ $T87),"") ->  | I87: =IF(I$42>0,IF(OR($T87=0,COUNTIFS($A$42:$A87,$A87)=1),"",SUM((Filters!$F$4:$F$1503)*'Share Calculation'!AR$4:AR$1503*(OFFSET(Filters!$BD$4:$BD$1503,0,$A87-1)=COUNTIFS($A$42:$A87,$A87)-1))/ $T87),"") ->  | J87: =IF(J$42>0,IF(OR($T87=0,COUNTIFS($A$42:$A87,$A87)=1),"",SUM((Filters!$F$4:$F$1503)*'Share Calculation'!AS$4:AS$1503*(OFFSET(Filters!$BD$4:$BD$1503,0,$A87-1)=COUNTIFS($A$42:$A87,$A87)-1))/ $T87),"") ->  | K87: =IF(K$42>0,IF(OR($T87=0,COUNTIFS($A$42:$A87,$A87)=1),"",SUM((Filters!$F$4:$F$1503)*'Share Calculation'!AT$4:AT$1503*(OFFSET(Filters!$BD$4:$BD$1503,0,$A87-1)=COUNTIFS($A$42:$A87,$A87)-1))/ $T87),"") ->  | L87: =IF(L$42>0,IF(OR($T87=0,COUNTIFS($A$42:$A87,$A87)=1),"",SUM((Filters!$F$4:$F$1503)*'Share Calculation'!AU$4:AU$1503*(OFFSET(Filters!$BD$4:$BD$1503,0,$A87-1)=COUNTIFS($A$42:$A87,$A87)-1))/ $T87),"") ->  | M87: =IF(M$42>0,IF(OR($T87=0,COUNTIFS($A$42:$A87,$A87)=1),"",SUM((Filters!$F$4:$F$1503)*'Share Calculation'!AV$4:AV$1503*(OFFSET(Filters!$BD$4:$BD$1503,0,$A87-1)=COUNTIFS($A$42:$A87,$A87)-1))/ $T87),"") ->  | N87: =IF(N$42>0,IF(OR($T87=0,COUNTIFS($A$42:$A87,$A87)=1),"",SUM((Filters!$F$4:$F$1503)*'Share Calculation'!AW$4:AW$1503*(OFFSET(Filters!$BD$4:$BD$1503,0,$A87-1)=COUNTIFS($A$42:$A87,$A87)-1))/ $T87),"") ->  | O87: =IF(O$42>0,IF(OR($T87=0,COUNTIFS($A$42:$A87,$A87)=1),"",SUM((Filters!$F$4:$F$1503)*'Share Calculation'!AX$4:AX$1503*(OFFSET(Filters!$BD$4:$BD$1503,0,$A87-1)=COUNTIFS($A$42:$A87,$A87)-1))/ $T87),"") ->  | P87: =IF(P$42>0,IF(OR($T87=0,COUNTIFS($A$42:$A87,$A87)=1),"",SUM((Filters!$F$4:$F$1503)*'Share Calculation'!AY$4:AY$1503*(OFFSET(Filters!$BD$4:$BD$1503,0,$A87-1)=COUNTIFS($A$42:$A87,$A87)-1))/ $T87),"") ->  | Q87: =IF(Q$42>0,IF(OR($T87=0,COUNTIFS($A$42:$A87,$A87)=1),"",SUM((Filters!$F$4:$F$1503)*'Share Calculation'!AZ$4:AZ$1503*(OFFSET(Filters!$BD$4:$BD$1503,0,$A87-1)=COUNTIFS($A$42:$A87,$A87)-1))/ $T87),"") ->  | R87: =IF(COUNTIFS($A$42:$A87,$A87)=1,"",SUMIFS(Filters!$F$4:$F$1503,OFFSET(Filters!$BD$4:$BD$1503,0,$A87-1),COUNTIFS($A$42:$A87,$A87)-1)/Filters!$I$2) ->  | T87: =IF(COUNTIFS($A$42:$A87,$A87)=1,"",COUNTIFS(OFFSET(Filters!$BD$4:$BD$1503,0,$A87-1),COUNTIFS($A$42:$A87,$A87)-1,Filters!$B$4:$B$1503,1)) -> 
A88: 8 | C88: =VLOOKUP($A88,Filters!$H$4:$AG$1065,1+COUNTIFS($A$42:$A88,$A88),FALSE) -> Urban | F88: =IF(F$42>0,IF(OR($T88=0,COUNTIFS($A$42:$A88,$A88)=1),"",SUM((Filters!$F$4:$F$1503)*'Share Calculation'!AO$4:AO$1503*(OFFSET(Filters!$BD$4:$BD$1503,0,$A88-1)=COUNTIFS($A$42:$A88,$A88)-1))/ $T88),"") -> 0.6662203141 | G88: =IF(G$42>0,IF(OR($T88=0,COUNTIFS($A$42:$A88,$A88)=1),"",SUM((Filters!$F$4:$F$1503)*'Share Calculation'!AP$4:AP$1503*(OFFSET(Filters!$BD$4:$BD$1503,0,$A88-1)=COUNTIFS($A$42:$A88,$A88)-1))/ $T88),"") -> 0.3337796859 | H88: =IF(H$42>0,IF(OR($T88=0,COUNTIFS($A$42:$A88,$A88)=1),"",SUM((Filters!$F$4:$F$1503)*'Share Calculation'!AQ$4:AQ$1503*(OFFSET(Filters!$BD$4:$BD$1503,0,$A88-1)=COUNTIFS($A$42:$A88,$A88)-1))/ $T88),"") ->  | I88: =IF(I$42>0,IF(OR($T88=0,COUNTIFS($A$42:$A88,$A88)=1),"",SUM((Filters!$F$4:$F$1503)*'Share Calculation'!AR$4:AR$1503*(OFFSET(Filters!$BD$4:$BD$1503,0,$A88-1)=COUNTIFS($A$42:$A88,$A88)-1))/ $T88),"") ->  | J88: =IF(J$42>0,IF(OR($T88=0,COUNTIFS($A$42:$A88,$A88)=1),"",SUM((Filters!$F$4:$F$1503)*'Share Calculation'!AS$4:AS$1503*(OFFSET(Filters!$BD$4:$BD$1503,0,$A88-1)=COUNTIFS($A$42:$A88,$A88)-1))/ $T88),"") ->  | K88: =IF(K$42>0,IF(OR($T88=0,COUNTIFS($A$42:$A88,$A88)=1),"",SUM((Filters!$F$4:$F$1503)*'Share Calculation'!AT$4:AT$1503*(OFFSET(Filters!$BD$4:$BD$1503,0,$A88-1)=COUNTIFS($A$42:$A88,$A88)-1))/ $T88),"") ->  | L88: =IF(L$42>0,IF(OR($T88=0,COUNTIFS($A$42:$A88,$A88)=1),"",SUM((Filters!$F$4:$F$1503)*'Share Calculation'!AU$4:AU$1503*(OFFSET(Filters!$BD$4:$BD$1503,0,$A88-1)=COUNTIFS($A$42:$A88,$A88)-1))/ $T88),"") ->  | M88: =IF(M$42>0,IF(OR($T88=0,COUNTIFS($A$42:$A88,$A88)=1),"",SUM((Filters!$F$4:$F$1503)*'Share Calculation'!AV$4:AV$1503*(OFFSET(Filters!$BD$4:$BD$1503,0,$A88-1)=COUNTIFS($A$42:$A88,$A88)-1))/ $T88),"") ->  | N88: =IF(N$42>0,IF(OR($T88=0,COUNTIFS($A$42:$A88,$A88)=1),"",SUM((Filters!$F$4:$F$1503)*'Share Calculation'!AW$4:AW$1503*(OFFSET(Filters!$BD$4:$BD$1503,0,$A88-1)=COUNTIFS($A$42:$A88,$A88)-1))/ $T88),"") ->  | O88: =IF(O$42>0,IF(OR($T88=0,COUNTIFS($A$42:$A88,$A88)=1),"",SUM((Filters!$F$4:$F$1503)*'Share Calculation'!AX$4:AX$1503*(OFFSET(Filters!$BD$4:$BD$1503,0,$A88-1)=COUNTIFS($A$42:$A88,$A88)-1))/ $T88),"") ->  | P88: =IF(P$42>0,IF(OR($T88=0,COUNTIFS($A$42:$A88,$A88)=1),"",SUM((Filters!$F$4:$F$1503)*'Share Calculation'!AY$4:AY$1503*(OFFSET(Filters!$BD$4:$BD$1503,0,$A88-1)=COUNTIFS($A$42:$A88,$A88)-1))/ $T88),"") ->  | Q88: =IF(Q$42>0,IF(OR($T88=0,COUNTIFS($A$42:$A88,$A88)=1),"",SUM((Filters!$F$4:$F$1503)*'Share Calculation'!AZ$4:AZ$1503*(OFFSET(Filters!$BD$4:$BD$1503,0,$A88-1)=COUNTIFS($A$42:$A88,$A88)-1))/ $T88),"") ->  | R88: =IF(COUNTIFS($A$42:$A88,$A88)=1,"",SUMIFS(Filters!$F$4:$F$1503,OFFSET(Filters!$BD$4:$BD$1503,0,$A88-1),COUNTIFS($A$42:$A88,$A88)-1)/Filters!$I$2) -> 0.596875 | S88: Yes | T88: =IF(COUNTIFS($A$42:$A88,$A88)=1,"",COUNTIFS(OFFSET(Filters!$BD$4:$BD$1503,0,$A88-1),COUNTIFS($A$42:$A88,$A88)-1,Filters!$B$4:$B$1503,1)) -> 382
A89: 8 | C89: =VLOOKUP($A89,Filters!$H$4:$AG$1065,1+COUNTIFS($A$42:$A89,$A89),FALSE) -> Suburban | F89: =IF(F$42>0,IF(OR($T89=0,COUNTIFS($A$42:$A89,$A89)=1),"",SUM((Filters!$F$4:$F$1503)*'Share Calculation'!AO$4:AO$1503*(OFFSET(Filters!$BD$4:$BD$1503,0,$A89-1)=COUNTIFS($A$42:$A89,$A89)-1))/ $T89),"") -> 0.6428206774 | G89: =IF(G$42>0,IF(OR($T89=0,COUNTIFS($A$42:$A89,$A89)=1),"",SUM((Filters!$F$4:$F$1503)*'Share Calculation'!AP$4:AP$1503*(OFFSET(Filters!$BD$4:$BD$1503,0,$A89-1)=COUNTIFS($A$42:$A89,$A89)-1))/ $T89),"") -> 0.3571793226 | H89: =IF(H$42>0,IF(OR($T89=0,COUNTIFS($A$42:$A89,$A89)=1),"",SUM((Filters!$F$4:$F$1503)*'Share Calculation'!AQ$4:AQ$1503*(OFFSET(Filters!$BD$4:$BD$1503,0,$A89-1)=COUNTIFS($A$42:$A89,$A89)-1))/ $T89),"") ->  | I89: =IF(I$42>0,IF(OR($T89=0,COUNTIFS($A$42:$A89,$A89)=1),"",SUM((Filters!$F$4:$F$1503)*'Share Calculation'!AR$4:AR$1503*(OFFSET(Filters!$BD$4:$BD$1503,0,$A89-1)=COUNTIFS($A$42:$A89,$A89)-1))/ $T89),"") ->  | J89: =IF(J$42>0,IF(OR($T89=0,COUNTIFS($A$42:$A89,$A89)=1),"",SUM((Filters!$F$4:$F$1503)*'Share Calculation'!AS$4:AS$1503*(OFFSET(Filters!$BD$4:$BD$1503,0,$A89-1)=COUNTIFS($A$42:$A89,$A89)-1))/ $T89),"") ->  | K89: =IF(K$42>0,IF(OR($T89=0,COUNTIFS($A$42:$A89,$A89)=1),"",SUM((Filters!$F$4:$F$1503)*'Share Calculation'!AT$4:AT$1503*(OFFSET(Filters!$BD$4:$BD$1503,0,$A89-1)=COUNTIFS($A$42:$A89,$A89)-1))/ $T89),"") ->  | L89: =IF(L$42>0,IF(OR($T89=0,COUNTIFS($A$42:$A89,$A89)=1),"",SUM((Filters!$F$4:$F$1503)*'Share Calculation'!AU$4:AU$1503*(OFFSET(Filters!$BD$4:$BD$1503,0,$A89-1)=COUNTIFS($A$42:$A89,$A89)-1))/ $T89),"") ->  | M89: =IF(M$42>0,IF(OR($T89=0,COUNTIFS($A$42:$A89,$A89)=1),"",SUM((Filters!$F$4:$F$1503)*'Share Calculation'!AV$4:AV$1503*(OFFSET(Filters!$BD$4:$BD$1503,0,$A89-1)=COUNTIFS($A$42:$A89,$A89)-1))/ $T89),"") ->  | N89: =IF(N$42>0,IF(OR($T89=0,COUNTIFS($A$42:$A89,$A89)=1),"",SUM((Filters!$F$4:$F$1503)*'Share Calculation'!AW$4:AW$1503*(OFFSET(Filters!$BD$4:$BD$1503,0,$A89-1)=COUNTIFS($A$42:$A89,$A89)-1))/ $T89),"") ->  | O89: =IF(O$42>0,IF(OR($T89=0,COUNTIFS($A$42:$A89,$A89)=1),"",SUM((Filters!$F$4:$F$1503)*'Share Calculation'!AX$4:AX$1503*(OFFSET(Filters!$BD$4:$BD$1503,0,$A89-1)=COUNTIFS($A$42:$A89,$A89)-1))/ $T89),"") ->  | P89: =IF(P$42>0,IF(OR($T89=0,COUNTIFS($A$42:$A89,$A89)=1),"",SUM((Filters!$F$4:$F$1503)*'Share Calculation'!AY$4:AY$1503*(OFFSET(Filters!$BD$4:$BD$1503,0,$A89-1)=COUNTIFS($A$42:$A89,$A89)-1))/ $T89),"") ->  | Q89: =IF(Q$42>0,IF(OR($T89=0,COUNTIFS($A$42:$A89,$A89)=1),"",SUM((Filters!$F$4:$F$1503)*'Share Calculation'!AZ$4:AZ$1503*(OFFSET(Filters!$BD$4:$BD$1503,0,$A89-1)=COUNTIFS($A$42:$A89,$A89)-1))/ $T89),"") ->  | R89: =IF(COUNTIFS($A$42:$A89,$A89)=1,"",SUMIFS(Filters!$F$4:$F$1503,OFFSET(Filters!$BD$4:$BD$1503,0,$A89-1),COUNTIFS($A$42:$A89,$A89)-1)/Filters!$I$2) -> 0.334375 | S89: Yes | T89: =IF(COUNTIFS($A$42:$A89,$A89)=1,"",COUNTIFS(OFFSET(Filters!$BD$4:$BD$1503,0,$A89-1),COUNTIFS($A$42:$A89,$A89)-1,Filters!$B$4:$B$1503,1)) -> 214
A90: 8 | C90: =VLOOKUP($A90,Filters!$H$4:$AG$1065,1+COUNTIFS($A$42:$A90,$A90),FALSE) -> Rural | F90: =IF(F$42>0,IF(OR($T90=0,COUNTIFS($A$42:$A90,$A90)=1),"",SUM((Filters!$F$4:$F$1503)*'Share Calculation'!AO$4:AO$1503*(OFFSET(Filters!$BD$4:$BD$1503,0,$A90-1)=COUNTIFS($A$42:$A90,$A90)-1))/ $T90),"") -> 0.6760714245 | G90: =IF(G$42>0,IF(OR($T90=0,COUNTIFS($A$42:$A90,$A90)=1),"",SUM((Filters!$F$4:$F$1503)*'Share Calculation'!AP$4:AP$1503*(OFFSET(Filters!$BD$4:$BD$1503,0,$A90-1)=COUNTIFS($A$42:$A90,$A90)-1))/ $T90),"") -> 0.3239285755 | H90: =IF(H$42>0,IF(OR($T90=0,COUNTIFS($A$42:$A90,$A90)=1),"",SUM((Filters!$F$4:$F$1503)*'Share Calculation'!AQ$4:AQ$1503*(OFFSET(Filters!$BD$4:$BD$1503,0,$A90-1)=COUNTIFS($A$42:$A90,$A90)-1))/ $T90),"") ->  | I90: =IF(I$42>0,IF(OR($T90=0,COUNTIFS($A$42:$A90,$A90)=1),"",SUM((Filters!$F$4:$F$1503)*'Share Calculation'!AR$4:AR$1503*(OFFSET(Filters!$BD$4:$BD$1503,0,$A90-1)=COUNTIFS($A$42:$A90,$A90)-1))/ $T90),"") ->  | J90: =IF(J$42>0,IF(OR($T90=0,COUNTIFS($A$42:$A90,$A90)=1),"",SUM((Filters!$F$4:$F$1503)*'Share Calculation'!AS$4:AS$1503*(OFFSET(Filters!$BD$4:$BD$1503,0,$A90-1)=COUNTIFS($A$42:$A90,$A90)-1))/ $T90),"") ->  | K90: =IF(K$42>0,IF(OR($T90=0,COUNTIFS($A$42:$A90,$A90)=1),"",SUM((Filters!$F$4:$F$1503)*'Share Calculation'!AT$4:AT$1503*(OFFSET(Filters!$BD$4:$BD$1503,0,$A90-1)=COUNTIFS($A$42:$A90,$A90)-1))/ $T90),"") ->  | L90: =IF(L$42>0,IF(OR($T90=0,COUNTIFS($A$42:$A90,$A90)=1),"",SUM((Filters!$F$4:$F$1503)*'Share Calculation'!AU$4:AU$1503*(OFFSET(Filters!$BD$4:$BD$1503,0,$A90-1)=COUNTIFS($A$42:$A90,$A90)-1))/ $T90),"") ->  | M90: =IF(M$42>0,IF(OR($T90=0,COUNTIFS($A$42:$A90,$A90)=1),"",SUM((Filters!$F$4:$F$1503)*'Share Calculation'!AV$4:AV$1503*(OFFSET(Filters!$BD$4:$BD$1503,0,$A90-1)=COUNTIFS($A$42:$A90,$A90)-1))/ $T90),"") ->  | N90: =IF(N$42>0,IF(OR($T90=0,COUNTIFS($A$42:$A90,$A90)=1),"",SUM((Filters!$F$4:$F$1503)*'Share Calculation'!AW$4:AW$1503*(OFFSET(Filters!$BD$4:$BD$1503,0,$A90-1)=COUNTIFS($A$42:$A90,$A90)-1))/ $T90),"") ->  | O90: =IF(O$42>0,IF(OR($T90=0,COUNTIFS($A$42:$A90,$A90)=1),"",SUM((Filters!$F$4:$F$1503)*'Share Calculation'!AX$4:AX$1503*(OFFSET(Filters!$BD$4:$BD$1503,0,$A90-1)=COUNTIFS($A$42:$A90,$A90)-1))/ $T90),"") ->  | P90: =IF(P$42>0,IF(OR($T90=0,COUNTIFS($A$42:$A90,$A90)=1),"",SUM((Filters!$F$4:$F$1503)*'Share Calculation'!AY$4:AY$1503*(OFFSET(Filters!$BD$4:$BD$1503,0,$A90-1)=COUNTIFS($A$42:$A90,$A90)-1))/ $T90),"") ->  | Q90: =IF(Q$42>0,IF(OR($T90=0,COUNTIFS($A$42:$A90,$A90)=1),"",SUM((Filters!$F$4:$F$1503)*'Share Calculation'!AZ$4:AZ$1503*(OFFSET(Filters!$BD$4:$BD$1503,0,$A90-1)=COUNTIFS($A$42:$A90,$A90)-1))/ $T90),"") ->  | R90: =IF(COUNTIFS($A$42:$A90,$A90)=1,"",SUMIFS(Filters!$F$4:$F$1503,OFFSET(Filters!$BD$4:$BD$1503,0,$A90-1),COUNTIFS($A$42:$A90,$A90)-1)/Filters!$I$2) -> 0.06875 | S90: Yes | T90: =IF(COUNTIFS($A$42:$A90,$A90)=1,"",COUNTIFS(OFFSET(Filters!$BD$4:$BD$1503,0,$A90-1),COUNTIFS($A$42:$A90,$A90)-1,Filters!$B$4:$B$1503,1)) -> 44
A91: 8 | C91: =VLOOKUP($A91,Filters!$H$4:$AG$1065,1+COUNTIFS($A$42:$A91,$A91),FALSE) -> n/a | F91: =IF(F$42>0,IF(OR($T91=0,COUNTIFS($A$42:$A91,$A91)=1),"",SUM((Filters!$F$4:$F$1503)*'Share Calculation'!AO$4:AO$1503*(OFFSET(Filters!$BD$4:$BD$1503,0,$A91-1)=COUNTIFS($A$42:$A91,$A91)-1))/ $T91),"") ->  | G91: =IF(G$42>0,IF(OR($T91=0,COUNTIFS($A$42:$A91,$A91)=1),"",SUM((Filters!$F$4:$F$1503)*'Share Calculation'!AP$4:AP$1503*(OFFSET(Filters!$BD$4:$BD$1503,0,$A91-1)=COUNTIFS($A$42:$A91,$A91)-1))/ $T91),"") ->  | H91: =IF(H$42>0,IF(OR($T91=0,COUNTIFS($A$42:$A91,$A91)=1),"",SUM((Filters!$F$4:$F$1503)*'Share Calculation'!AQ$4:AQ$1503*(OFFSET(Filters!$BD$4:$BD$1503,0,$A91-1)=COUNTIFS($A$42:$A91,$A91)-1))/ $T91),"") ->  | I91: =IF(I$42>0,IF(OR($T91=0,COUNTIFS($A$42:$A91,$A91)=1),"",SUM((Filters!$F$4:$F$1503)*'Share Calculation'!AR$4:AR$1503*(OFFSET(Filters!$BD$4:$BD$1503,0,$A91-1)=COUNTIFS($A$42:$A91,$A91)-1))/ $T91),"") ->  | J91: =IF(J$42>0,IF(OR($T91=0,COUNTIFS($A$42:$A91,$A91)=1),"",SUM((Filters!$F$4:$F$1503)*'Share Calculation'!AS$4:AS$1503*(OFFSET(Filters!$BD$4:$BD$1503,0,$A91-1)=COUNTIFS($A$42:$A91,$A91)-1))/ $T91),"") ->  | K91: =IF(K$42>0,IF(OR($T91=0,COUNTIFS($A$42:$A91,$A91)=1),"",SUM((Filters!$F$4:$F$1503)*'Share Calculation'!AT$4:AT$1503*(OFFSET(Filters!$BD$4:$BD$1503,0,$A91-1)=COUNTIFS($A$42:$A91,$A91)-1))/ $T91),"") ->  | L91: =IF(L$42>0,IF(OR($T91=0,COUNTIFS($A$42:$A91,$A91)=1),"",SUM((Filters!$F$4:$F$1503)*'Share Calculation'!AU$4:AU$1503*(OFFSET(Filters!$BD$4:$BD$1503,0,$A91-1)=COUNTIFS($A$42:$A91,$A91)-1))/ $T91),"") ->  | M91: =IF(M$42>0,IF(OR($T91=0,COUNTIFS($A$42:$A91,$A91)=1),"",SUM((Filters!$F$4:$F$1503)*'Share Calculation'!AV$4:AV$1503*(OFFSET(Filters!$BD$4:$BD$1503,0,$A91-1)=COUNTIFS($A$42:$A91,$A91)-1))/ $T91),"") ->  | N91: =IF(N$42>0,IF(OR($T91=0,COUNTIFS($A$42:$A91,$A91)=1),"",SUM((Filters!$F$4:$F$1503)*'Share Calculation'!AW$4:AW$1503*(OFFSET(Filters!$BD$4:$BD$1503,0,$A91-1)=COUNTIFS($A$42:$A91,$A91)-1))/ $T91),"") ->  | O91: =IF(O$42>0,IF(OR($T91=0,COUNTIFS($A$42:$A91,$A91)=1),"",SUM((Filters!$F$4:$F$1503)*'Share Calculation'!AX$4:AX$1503*(OFFSET(Filters!$BD$4:$BD$1503,0,$A91-1)=COUNTIFS($A$42:$A91,$A91)-1))/ $T91),"") ->  | P91: =IF(P$42>0,IF(OR($T91=0,COUNTIFS($A$42:$A91,$A91)=1),"",SUM((Filters!$F$4:$F$1503)*'Share Calculation'!AY$4:AY$1503*(OFFSET(Filters!$BD$4:$BD$1503,0,$A91-1)=COUNTIFS($A$42:$A91,$A91)-1))/ $T91),"") ->  | Q91: =IF(Q$42>0,IF(OR($T91=0,COUNTIFS($A$42:$A91,$A91)=1),"",SUM((Filters!$F$4:$F$1503)*'Share Calculation'!AZ$4:AZ$1503*(OFFSET(Filters!$BD$4:$BD$1503,0,$A91-1)=COUNTIFS($A$42:$A91,$A91)-1))/ $T91),"") ->  | R91: =IF(COUNTIFS($A$42:$A91,$A91)=1,"",SUMIFS(Filters!$F$4:$F$1503,OFFSET(Filters!$BD$4:$BD$1503,0,$A91-1),COUNTIFS($A$42:$A91,$A91)-1)/Filters!$I$2) -> 0 | S91: Yes | T91: =IF(COUNTIFS($A$42:$A91,$A91)=1,"",COUNTIFS(OFFSET(Filters!$BD$4:$BD$1503,0,$A91-1),COUNTIFS($A$42:$A91,$A91)-1,Filters!$B$4:$B$1503,1)) -> 0
A92: 9 | C92: =VLOOKUP($A92,Filters!$H$4:$AG$1065,1+COUNTIFS($A$42:$A92,$A92),FALSE) -> Affordability of the essentials | F92: =IF(F$42>0,IF(OR($T92=0,COUNTIFS($A$42:$A92,$A92)=1),"",SUM((Filters!$F$4:$F$1503)*'Share Calculation'!AO$4:AO$1503*(OFFSET(Filters!$BD$4:$BD$1503,0,$A92-1)=COUNTIFS($A$42:$A92,$A92)-1))/ $T92),"") ->  | G92: =IF(G$42>0,IF(OR($T92=0,COUNTIFS($A$42:$A92,$A92)=1),"",SUM((Filters!$F$4:$F$1503)*'Share Calculation'!AP$4:AP$1503*(OFFSET(Filters!$BD$4:$BD$1503,0,$A92-1)=COUNTIFS($A$42:$A92,$A92)-1))/ $T92),"") ->  | H92: =IF(H$42>0,IF(OR($T92=0,COUNTIFS($A$42:$A92,$A92)=1),"",SUM((Filters!$F$4:$F$1503)*'Share Calculation'!AQ$4:AQ$1503*(OFFSET(Filters!$BD$4:$BD$1503,0,$A92-1)=COUNTIFS($A$42:$A92,$A92)-1))/ $T92),"") ->  | I92: =IF(I$42>0,IF(OR($T92=0,COUNTIFS($A$42:$A92,$A92)=1),"",SUM((Filters!$F$4:$F$1503)*'Share Calculation'!AR$4:AR$1503*(OFFSET(Filters!$BD$4:$BD$1503,0,$A92-1)=COUNTIFS($A$42:$A92,$A92)-1))/ $T92),"") ->  | J92: =IF(J$42>0,IF(OR($T92=0,COUNTIFS($A$42:$A92,$A92)=1),"",SUM((Filters!$F$4:$F$1503)*'Share Calculation'!AS$4:AS$1503*(OFFSET(Filters!$BD$4:$BD$1503,0,$A92-1)=COUNTIFS($A$42:$A92,$A92)-1))/ $T92),"") ->  | K92: =IF(K$42>0,IF(OR($T92=0,COUNTIFS($A$42:$A92,$A92)=1),"",SUM((Filters!$F$4:$F$1503)*'Share Calculation'!AT$4:AT$1503*(OFFSET(Filters!$BD$4:$BD$1503,0,$A92-1)=COUNTIFS($A$42:$A92,$A92)-1))/ $T92),"") ->  | L92: =IF(L$42>0,IF(OR($T92=0,COUNTIFS($A$42:$A92,$A92)=1),"",SUM((Filters!$F$4:$F$1503)*'Share Calculation'!AU$4:AU$1503*(OFFSET(Filters!$BD$4:$BD$1503,0,$A92-1)=COUNTIFS($A$42:$A92,$A92)-1))/ $T92),"") ->  | M92: =IF(M$42>0,IF(OR($T92=0,COUNTIFS($A$42:$A92,$A92)=1),"",SUM((Filters!$F$4:$F$1503)*'Share Calculation'!AV$4:AV$1503*(OFFSET(Filters!$BD$4:$BD$1503,0,$A92-1)=COUNTIFS($A$42:$A92,$A92)-1))/ $T92),"") ->  | N92: =IF(N$42>0,IF(OR($T92=0,COUNTIFS($A$42:$A92,$A92)=1),"",SUM((Filters!$F$4:$F$1503)*'Share Calculation'!AW$4:AW$1503*(OFFSET(Filters!$BD$4:$BD$1503,0,$A92-1)=COUNTIFS($A$42:$A92,$A92)-1))/ $T92),"") ->  | O92: =IF(O$42>0,IF(OR($T92=0,COUNTIFS($A$42:$A92,$A92)=1),"",SUM((Filters!$F$4:$F$1503)*'Share Calculation'!AX$4:AX$1503*(OFFSET(Filters!$BD$4:$BD$1503,0,$A92-1)=COUNTIFS($A$42:$A92,$A92)-1))/ $T92),"") ->  | P92: =IF(P$42>0,IF(OR($T92=0,COUNTIFS($A$42:$A92,$A92)=1),"",SUM((Filters!$F$4:$F$1503)*'Share Calculation'!AY$4:AY$1503*(OFFSET(Filters!$BD$4:$BD$1503,0,$A92-1)=COUNTIFS($A$42:$A92,$A92)-1))/ $T92),"") ->  | Q92: =IF(Q$42>0,IF(OR($T92=0,COUNTIFS($A$42:$A92,$A92)=1),"",SUM((Filters!$F$4:$F$1503)*'Share Calculation'!AZ$4:AZ$1503*(OFFSET(Filters!$BD$4:$BD$1503,0,$A92-1)=COUNTIFS($A$42:$A92,$A92)-1))/ $T92),"") ->  | R92: =IF(COUNTIFS($A$42:$A92,$A92)=1,"",SUMIFS(Filters!$F$4:$F$1503,OFFSET(Filters!$BD$4:$BD$1503,0,$A92-1),COUNTIFS($A$42:$A92,$A92)-1)/Filters!$I$2) ->  | T92: =IF(COUNTIFS($A$42:$A92,$A92)=1,"",COUNTIFS(OFFSET(Filters!$BD$4:$BD$1503,0,$A92-1),COUNTIFS($A$42:$A92,$A92)-1,Filters!$B$4:$B$1503,1)) -> 
A93: 9 | C93: =VLOOKUP($A93,Filters!$H$4:$AG$1065,1+COUNTIFS($A$42:$A93,$A93),FALSE) -> Very optimistic | F93: =IF(F$42>0,IF(OR($T93=0,COUNTIFS($A$42:$A93,$A93)=1),"",SUM((Filters!$F$4:$F$1503)*'Share Calculation'!AO$4:AO$1503*(OFFSET(Filters!$BD$4:$BD$1503,0,$A93-1)=COUNTIFS($A$42:$A93,$A93)-1))/ $T93),"") -> 0.6088752288 | G93: =IF(G$42>0,IF(OR($T93=0,COUNTIFS($A$42:$A93,$A93)=1),"",SUM((Filters!$F$4:$F$1503)*'Share Calculation'!AP$4:AP$1503*(OFFSET(Filters!$BD$4:$BD$1503,0,$A93-1)=COUNTIFS($A$42:$A93,$A93)-1))/ $T93),"") -> 0.3911247712 | H93: =IF(H$42>0,IF(OR($T93=0,COUNTIFS($A$42:$A93,$A93)=1),"",SUM((Filters!$F$4:$F$1503)*'Share Calculation'!AQ$4:AQ$1503*(OFFSET(Filters!$BD$4:$BD$1503,0,$A93-1)=COUNTIFS($A$42:$A93,$A93)-1))/ $T93),"") ->  | I93: =IF(I$42>0,IF(OR($T93=0,COUNTIFS($A$42:$A93,$A93)=1),"",SUM((Filters!$F$4:$F$1503)*'Share Calculation'!AR$4:AR$1503*(OFFSET(Filters!$BD$4:$BD$1503,0,$A93-1)=COUNTIFS($A$42:$A93,$A93)-1))/ $T93),"") ->  | J93: =IF(J$42>0,IF(OR($T93=0,COUNTIFS($A$42:$A93,$A93)=1),"",SUM((Filters!$F$4:$F$1503)*'Share Calculation'!AS$4:AS$1503*(OFFSET(Filters!$BD$4:$BD$1503,0,$A93-1)=COUNTIFS($A$42:$A93,$A93)-1))/ $T93),"") ->  | K93: =IF(K$42>0,IF(OR($T93=0,COUNTIFS($A$42:$A93,$A93)=1),"",SUM((Filters!$F$4:$F$1503)*'Share Calculation'!AT$4:AT$1503*(OFFSET(Filters!$BD$4:$BD$1503,0,$A93-1)=COUNTIFS($A$42:$A93,$A93)-1))/ $T93),"") ->  | L93: =IF(L$42>0,IF(OR($T93=0,COUNTIFS($A$42:$A93,$A93)=1),"",SUM((Filters!$F$4:$F$1503)*'Share Calculation'!AU$4:AU$1503*(OFFSET(Filters!$BD$4:$BD$1503,0,$A93-1)=COUNTIFS($A$42:$A93,$A93)-1))/ $T93),"") ->  | M93: =IF(M$42>0,IF(OR($T93=0,COUNTIFS($A$42:$A93,$A93)=1),"",SUM((Filters!$F$4:$F$1503)*'Share Calculation'!AV$4:AV$1503*(OFFSET(Filters!$BD$4:$BD$1503,0,$A93-1)=COUNTIFS($A$42:$A93,$A93)-1))/ $T93),"") ->  | N93: =IF(N$42>0,IF(OR($T93=0,COUNTIFS($A$42:$A93,$A93)=1),"",SUM((Filters!$F$4:$F$1503)*'Share Calculation'!AW$4:AW$1503*(OFFSET(Filters!$BD$4:$BD$1503,0,$A93-1)=COUNTIFS($A$42:$A93,$A93)-1))/ $T93),"") ->  | O93: =IF(O$42>0,IF(OR($T93=0,COUNTIFS($A$42:$A93,$A93)=1),"",SUM((Filters!$F$4:$F$1503)*'Share Calculation'!AX$4:AX$1503*(OFFSET(Filters!$BD$4:$BD$1503,0,$A93-1)=COUNTIFS($A$42:$A93,$A93)-1))/ $T93),"") ->  | P93: =IF(P$42>0,IF(OR($T93=0,COUNTIFS($A$42:$A93,$A93)=1),"",SUM((Filters!$F$4:$F$1503)*'Share Calculation'!AY$4:AY$1503*(OFFSET(Filters!$BD$4:$BD$1503,0,$A93-1)=COUNTIFS($A$42:$A93,$A93)-1))/ $T93),"") ->  | Q93: =IF(Q$42>0,IF(OR($T93=0,COUNTIFS($A$42:$A93,$A93)=1),"",SUM((Filters!$F$4:$F$1503)*'Share Calculation'!AZ$4:AZ$1503*(OFFSET(Filters!$BD$4:$BD$1503,0,$A93-1)=COUNTIFS($A$42:$A93,$A93)-1))/ $T93),"") ->  | R93: =IF(COUNTIFS($A$42:$A93,$A93)=1,"",SUMIFS(Filters!$F$4:$F$1503,OFFSET(Filters!$BD$4:$BD$1503,0,$A93-1),COUNTIFS($A$42:$A93,$A93)-1)/Filters!$I$2) -> 0.2171875 | S93: Yes | T93: =IF(COUNTIFS($A$42:$A93,$A93)=1,"",COUNTIFS(OFFSET(Filters!$BD$4:$BD$1503,0,$A93-1),COUNTIFS($A$42:$A93,$A93)-1,Filters!$B$4:$B$1503,1)) -> 139
A94: 9 | C94: =VLOOKUP($A94,Filters!$H$4:$AG$1065,1+COUNTIFS($A$42:$A94,$A94),FALSE) -> Fairly optimistic | F94: =IF(F$42>0,IF(OR($T94=0,COUNTIFS($A$42:$A94,$A94)=1),"",SUM((Filters!$F$4:$F$1503)*'Share Calculation'!AO$4:AO$1503*(OFFSET(Filters!$BD$4:$BD$1503,0,$A94-1)=COUNTIFS($A$42:$A94,$A94)-1))/ $T94),"") -> 0.6751004107 | G94: =IF(G$42>0,IF(OR($T94=0,COUNTIFS($A$42:$A94,$A94)=1),"",SUM((Filters!$F$4:$F$1503)*'Share Calculation'!AP$4:AP$1503*(OFFSET(Filters!$BD$4:$BD$1503,0,$A94-1)=COUNTIFS($A$42:$A94,$A94)-1))/ $T94),"") -> 0.3248995893 | H94: =IF(H$42>0,IF(OR($T94=0,COUNTIFS($A$42:$A94,$A94)=1),"",SUM((Filters!$F$4:$F$1503)*'Share Calculation'!AQ$4:AQ$1503*(OFFSET(Filters!$BD$4:$BD$1503,0,$A94-1)=COUNTIFS($A$42:$A94,$A94)-1))/ $T94),"") ->  | I94: =IF(I$42>0,IF(OR($T94=0,COUNTIFS($A$42:$A94,$A94)=1),"",SUM((Filters!$F$4:$F$1503)*'Share Calculation'!AR$4:AR$1503*(OFFSET(Filters!$BD$4:$BD$1503,0,$A94-1)=COUNTIFS($A$42:$A94,$A94)-1))/ $T94),"") ->  | J94: =IF(J$42>0,IF(OR($T94=0,COUNTIFS($A$42:$A94,$A94)=1),"",SUM((Filters!$F$4:$F$1503)*'Share Calculation'!AS$4:AS$1503*(OFFSET(Filters!$BD$4:$BD$1503,0,$A94-1)=COUNTIFS($A$42:$A94,$A94)-1))/ $T94),"") ->  | K94: =IF(K$42>0,IF(OR($T94=0,COUNTIFS($A$42:$A94,$A94)=1),"",SUM((Filters!$F$4:$F$1503)*'Share Calculation'!AT$4:AT$1503*(OFFSET(Filters!$BD$4:$BD$1503,0,$A94-1)=COUNTIFS($A$42:$A94,$A94)-1))/ $T94),"") ->  | L94: =IF(L$42>0,IF(OR($T94=0,COUNTIFS($A$42:$A94,$A94)=1),"",SUM((Filters!$F$4:$F$1503)*'Share Calculation'!AU$4:AU$1503*(OFFSET(Filters!$BD$4:$BD$1503,0,$A94-1)=COUNTIFS($A$42:$A94,$A94)-1))/ $T94),"") ->  | M94: =IF(M$42>0,IF(OR($T94=0,COUNTIFS($A$42:$A94,$A94)=1),"",SUM((Filters!$F$4:$F$1503)*'Share Calculation'!AV$4:AV$1503*(OFFSET(Filters!$BD$4:$BD$1503,0,$A94-1)=COUNTIFS($A$42:$A94,$A94)-1))/ $T94),"") ->  | N94: =IF(N$42>0,IF(OR($T94=0,COUNTIFS($A$42:$A94,$A94)=1),"",SUM((Filters!$F$4:$F$1503)*'Share Calculation'!AW$4:AW$1503*(OFFSET(Filters!$BD$4:$BD$1503,0,$A94-1)=COUNTIFS($A$42:$A94,$A94)-1))/ $T94),"") ->  | O94: =IF(O$42>0,IF(OR($T94=0,COUNTIFS($A$42:$A94,$A94)=1),"",SUM((Filters!$F$4:$F$1503)*'Share Calculation'!AX$4:AX$1503*(OFFSET(Filters!$BD$4:$BD$1503,0,$A94-1)=COUNTIFS($A$42:$A94,$A94)-1))/ $T94),"") ->  | P94: =IF(P$42>0,IF(OR($T94=0,COUNTIFS($A$42:$A94,$A94)=1),"",SUM((Filters!$F$4:$F$1503)*'Share Calculation'!AY$4:AY$1503*(OFFSET(Filters!$BD$4:$BD$1503,0,$A94-1)=COUNTIFS($A$42:$A94,$A94)-1))/ $T94),"") ->  | Q94: =IF(Q$42>0,IF(OR($T94=0,COUNTIFS($A$42:$A94,$A94)=1),"",SUM((Filters!$F$4:$F$1503)*'Share Calculation'!AZ$4:AZ$1503*(OFFSET(Filters!$BD$4:$BD$1503,0,$A94-1)=COUNTIFS($A$42:$A94,$A94)-1))/ $T94),"") ->  | R94: =IF(COUNTIFS($A$42:$A94,$A94)=1,"",SUMIFS(Filters!$F$4:$F$1503,OFFSET(Filters!$BD$4:$BD$1503,0,$A94-1),COUNTIFS($A$42:$A94,$A94)-1)/Filters!$I$2) -> 0.371875 | S94: Yes | T94: =IF(COUNTIFS($A$42:$A94,$A94)=1,"",COUNTIFS(OFFSET(Filters!$BD$4:$BD$1503,0,$A94-1),COUNTIFS($A$42:$A94,$A94)-1,Filters!$B$4:$B$1503,1)) -> 238
A95: 9 | C95: =VLOOKUP($A95,Filters!$H$4:$AG$1065,1+COUNTIFS($A$42:$A95,$A95),FALSE) -> Fairly pessimistic | F95: =IF(F$42>0,IF(OR($T95=0,COUNTIFS($A$42:$A95,$A95)=1),"",SUM((Filters!$F$4:$F$1503)*'Share Calculation'!AO$4:AO$1503*(OFFSET(Filters!$BD$4:$BD$1503,0,$A95-1)=COUNTIFS($A$42:$A95,$A95)-1))/ $T95),"") -> 0.6862138005 | G95: =IF(G$42>0,IF(OR($T95=0,COUNTIFS($A$42:$A95,$A95)=1),"",SUM((Filters!$F$4:$F$1503)*'Share Calculation'!AP$4:AP$1503*(OFFSET(Filters!$BD$4:$BD$1503,0,$A95-1)=COUNTIFS($A$42:$A95,$A95)-1))/ $T95),"") -> 0.3137861995 | H95: =IF(H$42>0,IF(OR($T95=0,COUNTIFS($A$42:$A95,$A95)=1),"",SUM((Filters!$F$4:$F$1503)*'Share Calculation'!AQ$4:AQ$1503*(OFFSET(Filters!$BD$4:$BD$1503,0,$A95-1)=COUNTIFS($A$42:$A95,$A95)-1))/ $T95),"") ->  | I95: =IF(I$42>0,IF(OR($T95=0,COUNTIFS($A$42:$A95,$A95)=1),"",SUM((Filters!$F$4:$F$1503)*'Share Calculation'!AR$4:AR$1503*(OFFSET(Filters!$BD$4:$BD$1503,0,$A95-1)=COUNTIFS($A$42:$A95,$A95)-1))/ $T95),"") ->  | J95: =IF(J$42>0,IF(OR($T95=0,COUNTIFS($A$42:$A95,$A95)=1),"",SUM((Filters!$F$4:$F$1503)*'Share Calculation'!AS$4:AS$1503*(OFFSET(Filters!$BD$4:$BD$1503,0,$A95-1)=COUNTIFS($A$42:$A95,$A95)-1))/ $T95),"") ->  | K95: =IF(K$42>0,IF(OR($T95=0,COUNTIFS($A$42:$A95,$A95)=1),"",SUM((Filters!$F$4:$F$1503)*'Share Calculation'!AT$4:AT$1503*(OFFSET(Filters!$BD$4:$BD$1503,0,$A95-1)=COUNTIFS($A$42:$A95,$A95)-1))/ $T95),"") ->  | L95: =IF(L$42>0,IF(OR($T95=0,COUNTIFS($A$42:$A95,$A95)=1),"",SUM((Filters!$F$4:$F$1503)*'Share Calculation'!AU$4:AU$1503*(OFFSET(Filters!$BD$4:$BD$1503,0,$A95-1)=COUNTIFS($A$42:$A95,$A95)-1))/ $T95),"") ->  | M95: =IF(M$42>0,IF(OR($T95=0,COUNTIFS($A$42:$A95,$A95)=1),"",SUM((Filters!$F$4:$F$1503)*'Share Calculation'!AV$4:AV$1503*(OFFSET(Filters!$BD$4:$BD$1503,0,$A95-1)=COUNTIFS($A$42:$A95,$A95)-1))/ $T95),"") ->  | N95: =IF(N$42>0,IF(OR($T95=0,COUNTIFS($A$42:$A95,$A95)=1),"",SUM((Filters!$F$4:$F$1503)*'Share Calculation'!AW$4:AW$1503*(OFFSET(Filters!$BD$4:$BD$1503,0,$A95-1)=COUNTIFS($A$42:$A95,$A95)-1))/ $T95),"") ->  | O95: =IF(O$42>0,IF(OR($T95=0,COUNTIFS($A$42:$A95,$A95)=1),"",SUM((Filters!$F$4:$F$1503)*'Share Calculation'!AX$4:AX$1503*(OFFSET(Filters!$BD$4:$BD$1503,0,$A95-1)=COUNTIFS($A$42:$A95,$A95)-1))/ $T95),"") ->  | P95: =IF(P$42>0,IF(OR($T95=0,COUNTIFS($A$42:$A95,$A95)=1),"",SUM((Filters!$F$4:$F$1503)*'Share Calculation'!AY$4:AY$1503*(OFFSET(Filters!$BD$4:$BD$1503,0,$A95-1)=COUNTIFS($A$42:$A95,$A95)-1))/ $T95),"") ->  | Q95: =IF(Q$42>0,IF(OR($T95=0,COUNTIFS($A$42:$A95,$A95)=1),"",SUM((Filters!$F$4:$F$1503)*'Share Calculation'!AZ$4:AZ$1503*(OFFSET(Filters!$BD$4:$BD$1503,0,$A95-1)=COUNTIFS($A$42:$A95,$A95)-1))/ $T95),"") ->  | R95: =IF(COUNTIFS($A$42:$A95,$A95)=1,"",SUMIFS(Filters!$F$4:$F$1503,OFFSET(Filters!$BD$4:$BD$1503,0,$A95-1),COUNTIFS($A$42:$A95,$A95)-1)/Filters!$I$2) -> 0.228125 | S95: Yes | T95: =IF(COUNTIFS($A$42:$A95,$A95)=1,"",COUNTIFS(OFFSET(Filters!$BD$4:$BD$1503,0,$A95-1),COUNTIFS($A$42:$A95,$A95)-1,Filters!$B$4:$B$1503,1)) -> 146
A96: 9 | C96: =VLOOKUP($A96,Filters!$H$4:$AG$1065,1+COUNTIFS($A$42:$A96,$A96),FALSE) -> Very pessimistic | F96: =IF(F$42>0,IF(OR($T96=0,COUNTIFS($A$42:$A96,$A96)=1),"",SUM((Filters!$F$4:$F$1503)*'Share Calculation'!AO$4:AO$1503*(OFFSET(Filters!$BD$4:$BD$1503,0,$A96-1)=COUNTIFS($A$42:$A96,$A96)-1))/ $T96),"") -> 0.6714517206 | G96: =IF(G$42>0,IF(OR($T96=0,COUNTIFS($A$42:$A96,$A96)=1),"",SUM((Filters!$F$4:$F$1503)*'Share Calculation'!AP$4:AP$1503*(OFFSET(Filters!$BD$4:$BD$1503,0,$A96-1)=COUNTIFS($A$42:$A96,$A96)-1))/ $T96),"") -> 0.3285482794 | H96: =IF(H$42>0,IF(OR($T96=0,COUNTIFS($A$42:$A96,$A96)=1),"",SUM((Filters!$F$4:$F$1503)*'Share Calculation'!AQ$4:AQ$1503*(OFFSET(Filters!$BD$4:$BD$1503,0,$A96-1)=COUNTIFS($A$42:$A96,$A96)-1))/ $T96),"") ->  | I96: =IF(I$42>0,IF(OR($T96=0,COUNTIFS($A$42:$A96,$A96)=1),"",SUM((Filters!$F$4:$F$1503)*'Share Calculation'!AR$4:AR$1503*(OFFSET(Filters!$BD$4:$BD$1503,0,$A96-1)=COUNTIFS($A$42:$A96,$A96)-1))/ $T96),"") ->  | J96: =IF(J$42>0,IF(OR($T96=0,COUNTIFS($A$42:$A96,$A96)=1),"",SUM((Filters!$F$4:$F$1503)*'Share Calculation'!AS$4:AS$1503*(OFFSET(Filters!$BD$4:$BD$1503,0,$A96-1)=COUNTIFS($A$42:$A96,$A96)-1))/ $T96),"") ->  | K96: =IF(K$42>0,IF(OR($T96=0,COUNTIFS($A$42:$A96,$A96)=1),"",SUM((Filters!$F$4:$F$1503)*'Share Calculation'!AT$4:AT$1503*(OFFSET(Filters!$BD$4:$BD$1503,0,$A96-1)=COUNTIFS($A$42:$A96,$A96)-1))/ $T96),"") ->  | L96: =IF(L$42>0,IF(OR($T96=0,COUNTIFS($A$42:$A96,$A96)=1),"",SUM((Filters!$F$4:$F$1503)*'Share Calculation'!AU$4:AU$1503*(OFFSET(Filters!$BD$4:$BD$1503,0,$A96-1)=COUNTIFS($A$42:$A96,$A96)-1))/ $T96),"") ->  | M96: =IF(M$42>0,IF(OR($T96=0,COUNTIFS($A$42:$A96,$A96)=1),"",SUM((Filters!$F$4:$F$1503)*'Share Calculation'!AV$4:AV$1503*(OFFSET(Filters!$BD$4:$BD$1503,0,$A96-1)=COUNTIFS($A$42:$A96,$A96)-1))/ $T96),"") ->  | N96: =IF(N$42>0,IF(OR($T96=0,COUNTIFS($A$42:$A96,$A96)=1),"",SUM((Filters!$F$4:$F$1503)*'Share Calculation'!AW$4:AW$1503*(OFFSET(Filters!$BD$4:$BD$1503,0,$A96-1)=COUNTIFS($A$42:$A96,$A96)-1))/ $T96),"") ->  | O96: =IF(O$42>0,IF(OR($T96=0,COUNTIFS($A$42:$A96,$A96)=1),"",SUM((Filters!$F$4:$F$1503)*'Share Calculation'!AX$4:AX$1503*(OFFSET(Filters!$BD$4:$BD$1503,0,$A96-1)=COUNTIFS($A$42:$A96,$A96)-1))/ $T96),"") ->  | P96: =IF(P$42>0,IF(OR($T96=0,COUNTIFS($A$42:$A96,$A96)=1),"",SUM((Filters!$F$4:$F$1503)*'Share Calculation'!AY$4:AY$1503*(OFFSET(Filters!$BD$4:$BD$1503,0,$A96-1)=COUNTIFS($A$42:$A96,$A96)-1))/ $T96),"") ->  | Q96: =IF(Q$42>0,IF(OR($T96=0,COUNTIFS($A$42:$A96,$A96)=1),"",SUM((Filters!$F$4:$F$1503)*'Share Calculation'!AZ$4:AZ$1503*(OFFSET(Filters!$BD$4:$BD$1503,0,$A96-1)=COUNTIFS($A$42:$A96,$A96)-1))/ $T96),"") ->  | R96: =IF(COUNTIFS($A$42:$A96,$A96)=1,"",SUMIFS(Filters!$F$4:$F$1503,OFFSET(Filters!$BD$4:$BD$1503,0,$A96-1),COUNTIFS($A$42:$A96,$A96)-1)/Filters!$I$2) -> 0.1515625 | S96: Yes | T96: =IF(COUNTIFS($A$42:$A96,$A96)=1,"",COUNTIFS(OFFSET(Filters!$BD$4:$BD$1503,0,$A96-1),COUNTIFS($A$42:$A96,$A96)-1,Filters!$B$4:$B$1503,1)) -> 97
A97: 9 | C97: =VLOOKUP($A97,Filters!$H$4:$AG$1065,1+COUNTIFS($A$42:$A97,$A97),FALSE) -> Don’t know/No opinion | F97: =IF(F$42>0,IF(OR($T97=0,COUNTIFS($A$42:$A97,$A97)=1),"",SUM((Filters!$F$4:$F$1503)*'Share Calculation'!AO$4:AO$1503*(OFFSET(Filters!$BD$4:$BD$1503,0,$A97-1)=COUNTIFS($A$42:$A97,$A97)-1))/ $T97),"") -> 0.5590670644 | G97: =IF(G$42>0,IF(OR($T97=0,COUNTIFS($A$42:$A97,$A97)=1),"",SUM((Filters!$F$4:$F$1503)*'Share Calculation'!AP$4:AP$1503*(OFFSET(Filters!$BD$4:$BD$1503,0,$A97-1)=COUNTIFS($A$42:$A97,$A97)-1))/ $T97),"") -> 0.4409329356 | H97: =IF(H$42>0,IF(OR($T97=0,COUNTIFS($A$42:$A97,$A97)=1),"",SUM((Filters!$F$4:$F$1503)*'Share Calculation'!AQ$4:AQ$1503*(OFFSET(Filters!$BD$4:$BD$1503,0,$A97-1)=COUNTIFS($A$42:$A97,$A97)-1))/ $T97),"") ->  | I97: =IF(I$42>0,IF(OR($T97=0,COUNTIFS($A$42:$A97,$A97)=1),"",SUM((Filters!$F$4:$F$1503)*'Share Calculation'!AR$4:AR$1503*(OFFSET(Filters!$BD$4:$BD$1503,0,$A97-1)=COUNTIFS($A$42:$A97,$A97)-1))/ $T97),"") ->  | J97: =IF(J$42>0,IF(OR($T97=0,COUNTIFS($A$42:$A97,$A97)=1),"",SUM((Filters!$F$4:$F$1503)*'Share Calculation'!AS$4:AS$1503*(OFFSET(Filters!$BD$4:$BD$1503,0,$A97-1)=COUNTIFS($A$42:$A97,$A97)-1))/ $T97),"") ->  | K97: =IF(K$42>0,IF(OR($T97=0,COUNTIFS($A$42:$A97,$A97)=1),"",SUM((Filters!$F$4:$F$1503)*'Share Calculation'!AT$4:AT$1503*(OFFSET(Filters!$BD$4:$BD$1503,0,$A97-1)=COUNTIFS($A$42:$A97,$A97)-1))/ $T97),"") ->  | L97: =IF(L$42>0,IF(OR($T97=0,COUNTIFS($A$42:$A97,$A97)=1),"",SUM((Filters!$F$4:$F$1503)*'Share Calculation'!AU$4:AU$1503*(OFFSET(Filters!$BD$4:$BD$1503,0,$A97-1)=COUNTIFS($A$42:$A97,$A97)-1))/ $T97),"") ->  | M97: =IF(M$42>0,IF(OR($T97=0,COUNTIFS($A$42:$A97,$A97)=1),"",SUM((Filters!$F$4:$F$1503)*'Share Calculation'!AV$4:AV$1503*(OFFSET(Filters!$BD$4:$BD$1503,0,$A97-1)=COUNTIFS($A$42:$A97,$A97)-1))/ $T97),"") ->  | N97: =IF(N$42>0,IF(OR($T97=0,COUNTIFS($A$42:$A97,$A97)=1),"",SUM((Filters!$F$4:$F$1503)*'Share Calculation'!AW$4:AW$1503*(OFFSET(Filters!$BD$4:$BD$1503,0,$A97-1)=COUNTIFS($A$42:$A97,$A97)-1))/ $T97),"") ->  | O97: =IF(O$42>0,IF(OR($T97=0,COUNTIFS($A$42:$A97,$A97)=1),"",SUM((Filters!$F$4:$F$1503)*'Share Calculation'!AX$4:AX$1503*(OFFSET(Filters!$BD$4:$BD$1503,0,$A97-1)=COUNTIFS($A$42:$A97,$A97)-1))/ $T97),"") ->  | P97: =IF(P$42>0,IF(OR($T97=0,COUNTIFS($A$42:$A97,$A97)=1),"",SUM((Filters!$F$4:$F$1503)*'Share Calculation'!AY$4:AY$1503*(OFFSET(Filters!$BD$4:$BD$1503,0,$A97-1)=COUNTIFS($A$42:$A97,$A97)-1))/ $T97),"") ->  | Q97: =IF(Q$42>0,IF(OR($T97=0,COUNTIFS($A$42:$A97,$A97)=1),"",SUM((Filters!$F$4:$F$1503)*'Share Calculation'!AZ$4:AZ$1503*(OFFSET(Filters!$BD$4:$BD$1503,0,$A97-1)=COUNTIFS($A$42:$A97,$A97)-1))/ $T97),"") ->  | R97: =IF(COUNTIFS($A$42:$A97,$A97)=1,"",SUMIFS(Filters!$F$4:$F$1503,OFFSET(Filters!$BD$4:$BD$1503,0,$A97-1),COUNTIFS($A$42:$A97,$A97)-1)/Filters!$I$2) -> 0.03125 | S97: Yes | T97: =IF(COUNTIFS($A$42:$A97,$A97)=1,"",COUNTIFS(OFFSET(Filters!$BD$4:$BD$1503,0,$A97-1),COUNTIFS($A$42:$A97,$A97)-1,Filters!$B$4:$B$1503,1)) -> 20
A98: 9 | C98: =VLOOKUP($A98,Filters!$H$4:$AG$1065,1+COUNTIFS($A$42:$A98,$A98),FALSE) -> n/a | F98: =IF(F$42>0,IF(OR($T98=0,COUNTIFS($A$42:$A98,$A98)=1),"",SUM((Filters!$F$4:$F$1503)*'Share Calculation'!AO$4:AO$1503*(OFFSET(Filters!$BD$4:$BD$1503,0,$A98-1)=COUNTIFS($A$42:$A98,$A98)-1))/ $T98),"") ->  | G98: =IF(G$42>0,IF(OR($T98=0,COUNTIFS($A$42:$A98,$A98)=1),"",SUM((Filters!$F$4:$F$1503)*'Share Calculation'!AP$4:AP$1503*(OFFSET(Filters!$BD$4:$BD$1503,0,$A98-1)=COUNTIFS($A$42:$A98,$A98)-1))/ $T98),"") ->  | H98: =IF(H$42>0,IF(OR($T98=0,COUNTIFS($A$42:$A98,$A98)=1),"",SUM((Filters!$F$4:$F$1503)*'Share Calculation'!AQ$4:AQ$1503*(OFFSET(Filters!$BD$4:$BD$1503,0,$A98-1)=COUNTIFS($A$42:$A98,$A98)-1))/ $T98),"") ->  | I98: =IF(I$42>0,IF(OR($T98=0,COUNTIFS($A$42:$A98,$A98)=1),"",SUM((Filters!$F$4:$F$1503)*'Share Calculation'!AR$4:AR$1503*(OFFSET(Filters!$BD$4:$BD$1503,0,$A98-1)=COUNTIFS($A$42:$A98,$A98)-1))/ $T98),"") ->  | J98: =IF(J$42>0,IF(OR($T98=0,COUNTIFS($A$42:$A98,$A98)=1),"",SUM((Filters!$F$4:$F$1503)*'Share Calculation'!AS$4:AS$1503*(OFFSET(Filters!$BD$4:$BD$1503,0,$A98-1)=COUNTIFS($A$42:$A98,$A98)-1))/ $T98),"") ->  | K98: =IF(K$42>0,IF(OR($T98=0,COUNTIFS($A$42:$A98,$A98)=1),"",SUM((Filters!$F$4:$F$1503)*'Share Calculation'!AT$4:AT$1503*(OFFSET(Filters!$BD$4:$BD$1503,0,$A98-1)=COUNTIFS($A$42:$A98,$A98)-1))/ $T98),"") ->  | L98: =IF(L$42>0,IF(OR($T98=0,COUNTIFS($A$42:$A98,$A98)=1),"",SUM((Filters!$F$4:$F$1503)*'Share Calculation'!AU$4:AU$1503*(OFFSET(Filters!$BD$4:$BD$1503,0,$A98-1)=COUNTIFS($A$42:$A98,$A98)-1))/ $T98),"") ->  | M98: =IF(M$42>0,IF(OR($T98=0,COUNTIFS($A$42:$A98,$A98)=1),"",SUM((Filters!$F$4:$F$1503)*'Share Calculation'!AV$4:AV$1503*(OFFSET(Filters!$BD$4:$BD$1503,0,$A98-1)=COUNTIFS($A$42:$A98,$A98)-1))/ $T98),"") ->  | N98: =IF(N$42>0,IF(OR($T98=0,COUNTIFS($A$42:$A98,$A98)=1),"",SUM((Filters!$F$4:$F$1503)*'Share Calculation'!AW$4:AW$1503*(OFFSET(Filters!$BD$4:$BD$1503,0,$A98-1)=COUNTIFS($A$42:$A98,$A98)-1))/ $T98),"") ->  | O98: =IF(O$42>0,IF(OR($T98=0,COUNTIFS($A$42:$A98,$A98)=1),"",SUM((Filters!$F$4:$F$1503)*'Share Calculation'!AX$4:AX$1503*(OFFSET(Filters!$BD$4:$BD$1503,0,$A98-1)=COUNTIFS($A$42:$A98,$A98)-1))/ $T98),"") ->  | P98: =IF(P$42>0,IF(OR($T98=0,COUNTIFS($A$42:$A98,$A98)=1),"",SUM((Filters!$F$4:$F$1503)*'Share Calculation'!AY$4:AY$1503*(OFFSET(Filters!$BD$4:$BD$1503,0,$A98-1)=COUNTIFS($A$42:$A98,$A98)-1))/ $T98),"") ->  | Q98: =IF(Q$42>0,IF(OR($T98=0,COUNTIFS($A$42:$A98,$A98)=1),"",SUM((Filters!$F$4:$F$1503)*'Share Calculation'!AZ$4:AZ$1503*(OFFSET(Filters!$BD$4:$BD$1503,0,$A98-1)=COUNTIFS($A$42:$A98,$A98)-1))/ $T98),"") ->  | R98: =IF(COUNTIFS($A$42:$A98,$A98)=1,"",SUMIFS(Filters!$F$4:$F$1503,OFFSET(Filters!$BD$4:$BD$1503,0,$A98-1),COUNTIFS($A$42:$A98,$A98)-1)/Filters!$I$2) -> 0 | S98: Yes | T98: =IF(COUNTIFS($A$42:$A98,$A98)=1,"",COUNTIFS(OFFSET(Filters!$BD$4:$BD$1503,0,$A98-1),COUNTIFS($A$42:$A98,$A98)-1,Filters!$B$4:$B$1503,1)) -> 0
A99: 10 | C99: =VLOOKUP($A99,Filters!$H$4:$AG$1065,1+COUNTIFS($A$42:$A99,$A99),FALSE) -> Affordability of luxuries | F99: =IF(F$42>0,IF(OR($T99=0,COUNTIFS($A$42:$A99,$A99)=1),"",SUM((Filters!$F$4:$F$1503)*'Share Calculation'!AO$4:AO$1503*(OFFSET(Filters!$BD$4:$BD$1503,0,$A99-1)=COUNTIFS($A$42:$A99,$A99)-1))/ $T99),"") ->  | G99: =IF(G$42>0,IF(OR($T99=0,COUNTIFS($A$42:$A99,$A99)=1),"",SUM((Filters!$F$4:$F$1503)*'Share Calculation'!AP$4:AP$1503*(OFFSET(Filters!$BD$4:$BD$1503,0,$A99-1)=COUNTIFS($A$42:$A99,$A99)-1))/ $T99),"") ->  | H99: =IF(H$42>0,IF(OR($T99=0,COUNTIFS($A$42:$A99,$A99)=1),"",SUM((Filters!$F$4:$F$1503)*'Share Calculation'!AQ$4:AQ$1503*(OFFSET(Filters!$BD$4:$BD$1503,0,$A99-1)=COUNTIFS($A$42:$A99,$A99)-1))/ $T99),"") ->  | I99: =IF(I$42>0,IF(OR($T99=0,COUNTIFS($A$42:$A99,$A99)=1),"",SUM((Filters!$F$4:$F$1503)*'Share Calculation'!AR$4:AR$1503*(OFFSET(Filters!$BD$4:$BD$1503,0,$A99-1)=COUNTIFS($A$42:$A99,$A99)-1))/ $T99),"") ->  | J99: =IF(J$42>0,IF(OR($T99=0,COUNTIFS($A$42:$A99,$A99)=1),"",SUM((Filters!$F$4:$F$1503)*'Share Calculation'!AS$4:AS$1503*(OFFSET(Filters!$BD$4:$BD$1503,0,$A99-1)=COUNTIFS($A$42:$A99,$A99)-1))/ $T99),"") ->  | K99: =IF(K$42>0,IF(OR($T99=0,COUNTIFS($A$42:$A99,$A99)=1),"",SUM((Filters!$F$4:$F$1503)*'Share Calculation'!AT$4:AT$1503*(OFFSET(Filters!$BD$4:$BD$1503,0,$A99-1)=COUNTIFS($A$42:$A99,$A99)-1))/ $T99),"") ->  | L99: =IF(L$42>0,IF(OR($T99=0,COUNTIFS($A$42:$A99,$A99)=1),"",SUM((Filters!$F$4:$F$1503)*'Share Calculation'!AU$4:AU$1503*(OFFSET(Filters!$BD$4:$BD$1503,0,$A99-1)=COUNTIFS($A$42:$A99,$A99)-1))/ $T99),"") ->  | M99: =IF(M$42>0,IF(OR($T99=0,COUNTIFS($A$42:$A99,$A99)=1),"",SUM((Filters!$F$4:$F$1503)*'Share Calculation'!AV$4:AV$1503*(OFFSET(Filters!$BD$4:$BD$1503,0,$A99-1)=COUNTIFS($A$42:$A99,$A99)-1))/ $T99),"") ->  | N99: =IF(N$42>0,IF(OR($T99=0,COUNTIFS($A$42:$A99,$A99)=1),"",SUM((Filters!$F$4:$F$1503)*'Share Calculation'!AW$4:AW$1503*(OFFSET(Filters!$BD$4:$BD$1503,0,$A99-1)=COUNTIFS($A$42:$A99,$A99)-1))/ $T99),"") ->  | O99: =IF(O$42>0,IF(OR($T99=0,COUNTIFS($A$42:$A99,$A99)=1),"",SUM((Filters!$F$4:$F$1503)*'Share Calculation'!AX$4:AX$1503*(OFFSET(Filters!$BD$4:$BD$1503,0,$A99-1)=COUNTIFS($A$42:$A99,$A99)-1))/ $T99),"") ->  | P99: =IF(P$42>0,IF(OR($T99=0,COUNTIFS($A$42:$A99,$A99)=1),"",SUM((Filters!$F$4:$F$1503)*'Share Calculation'!AY$4:AY$1503*(OFFSET(Filters!$BD$4:$BD$1503,0,$A99-1)=COUNTIFS($A$42:$A99,$A99)-1))/ $T99),"") ->  | Q99: =IF(Q$42>0,IF(OR($T99=0,COUNTIFS($A$42:$A99,$A99)=1),"",SUM((Filters!$F$4:$F$1503)*'Share Calculation'!AZ$4:AZ$1503*(OFFSET(Filters!$BD$4:$BD$1503,0,$A99-1)=COUNTIFS($A$42:$A99,$A99)-1))/ $T99),"") ->  | R99: =IF(COUNTIFS($A$42:$A99,$A99)=1,"",SUMIFS(Filters!$F$4:$F$1503,OFFSET(Filters!$BD$4:$BD$1503,0,$A99-1),COUNTIFS($A$42:$A99,$A99)-1)/Filters!$I$2) ->  | T99: =IF(COUNTIFS($A$42:$A99,$A99)=1,"",COUNTIFS(OFFSET(Filters!$BD$4:$BD$1503,0,$A99-1),COUNTIFS($A$42:$A99,$A99)-1,Filters!$B$4:$B$1503,1)) -> 
A100: 10 | C100: =VLOOKUP($A100,Filters!$H$4:$AG$1065,1+COUNTIFS($A$42:$A100,$A100),FALSE) -> Very optimistic | F100: =IF(F$42>0,IF(OR($T100=0,COUNTIFS($A$42:$A100,$A100)=1),"",SUM((Filters!$F$4:$F$1503)*'Share Calculation'!AO$4:AO$1503*(OFFSET(Filters!$BD$4:$BD$1503,0,$A100-1)=COUNTIFS($A$42:$A100,$A100)-1))/ $T100),"") -> 0.6005646236 | G100: =IF(G$42>0,IF(OR($T100=0,COUNTIFS($A$42:$A100,$A100)=1),"",SUM((Filters!$F$4:$F$1503)*'Share Calculation'!AP$4:AP$1503*(OFFSET(Filters!$BD$4:$BD$1503,0,$A100-1)=COUNTIFS($A$42:$A100,$A100)-1))/ $T100),"") -> 0.3994353764 | H100: =IF(H$42>0,IF(OR($T100=0,COUNTIFS($A$42:$A100,$A100)=1),"",SUM((Filters!$F$4:$F$1503)*'Share Calculation'!AQ$4:AQ$1503*(OFFSET(Filters!$BD$4:$BD$1503,0,$A100-1)=COUNTIFS($A$42:$A100,$A100)-1))/ $T100),"") ->  | I100: =IF(I$42>0,IF(OR($T100=0,COUNTIFS($A$42:$A100,$A100)=1),"",SUM((Filters!$F$4:$F$1503)*'Share Calculation'!AR$4:AR$1503*(OFFSET(Filters!$BD$4:$BD$1503,0,$A100-1)=COUNTIFS($A$42:$A100,$A100)-1))/ $T100),"") ->  | J100: =IF(J$42>0,IF(OR($T100=0,COUNTIFS($A$42:$A100,$A100)=1),"",SUM((Filters!$F$4:$F$1503)*'Share Calculation'!AS$4:AS$1503*(OFFSET(Filters!$BD$4:$BD$1503,0,$A100-1)=COUNTIFS($A$42:$A100,$A100)-1))/ $T100),"") ->  | K100: =IF(K$42>0,IF(OR($T100=0,COUNTIFS($A$42:$A100,$A100)=1),"",SUM((Filters!$F$4:$F$1503)*'Share Calculation'!AT$4:AT$1503*(OFFSET(Filters!$BD$4:$BD$1503,0,$A100-1)=COUNTIFS($A$42:$A100,$A100)-1))/ $T100),"") ->  | L100: =IF(L$42>0,IF(OR($T100=0,COUNTIFS($A$42:$A100,$A100)=1),"",SUM((Filters!$F$4:$F$1503)*'Share Calculation'!AU$4:AU$1503*(OFFSET(Filters!$BD$4:$BD$1503,0,$A100-1)=COUNTIFS($A$42:$A100,$A100)-1))/ $T100),"") ->  | M100: =IF(M$42>0,IF(OR($T100=0,COUNTIFS($A$42:$A100,$A100)=1),"",SUM((Filters!$F$4:$F$1503)*'Share Calculation'!AV$4:AV$1503*(OFFSET(Filters!$BD$4:$BD$1503,0,$A100-1)=COUNTIFS($A$42:$A100,$A100)-1))/ $T100),"") ->  | N100: =IF(N$42>0,IF(OR($T100=0,COUNTIFS($A$42:$A100,$A100)=1),"",SUM((Filters!$F$4:$F$1503)*'Share Calculation'!AW$4:AW$1503*(OFFSET(Filters!$BD$4:$BD$1503,0,$A100-1)=COUNTIFS($A$42:$A100,$A100)-1))/ $T100),"") ->  | O100: =IF(O$42>0,IF(OR($T100=0,COUNTIFS($A$42:$A100,$A100)=1),"",SUM((Filters!$F$4:$F$1503)*'Share Calculation'!AX$4:AX$1503*(OFFSET(Filters!$BD$4:$BD$1503,0,$A100-1)=COUNTIFS($A$42:$A100,$A100)-1))/ $T100),"") ->  | P100: =IF(P$42>0,IF(OR($T100=0,COUNTIFS($A$42:$A100,$A100)=1),"",SUM((Filters!$F$4:$F$1503)*'Share Calculation'!AY$4:AY$1503*(OFFSET(Filters!$BD$4:$BD$1503,0,$A100-1)=COUNTIFS($A$42:$A100,$A100)-1))/ $T100),"") ->  | Q100: =IF(Q$42>0,IF(OR($T100=0,COUNTIFS($A$42:$A100,$A100)=1),"",SUM((Filters!$F$4:$F$1503)*'Share Calculation'!AZ$4:AZ$1503*(OFFSET(Filters!$BD$4:$BD$1503,0,$A100-1)=COUNTIFS($A$42:$A100,$A100)-1))/ $T100),"") ->  | R100: =IF(COUNTIFS($A$42:$A100,$A100)=1,"",SUMIFS(Filters!$F$4:$F$1503,OFFSET(Filters!$BD$4:$BD$1503,0,$A100-1),COUNTIFS($A$42:$A100,$A100)-1)/Filters!$I$2) -> 0.103125 | S100: Yes | T100: =IF(COUNTIFS($A$42:$A100,$A100)=1,"",COUNTIFS(OFFSET(Filters!$BD$4:$BD$1503,0,$A100-1),COUNTIFS($A$42:$A100,$A100)-1,Filters!$B$4:$B$1503,1)) -> 66
A101: 10 | C101: =VLOOKUP($A101,Filters!$H$4:$AG$1065,1+COUNTIFS($A$42:$A101,$A101),FALSE) -> Fairly optimistic | F101: =IF(F$42>0,IF(OR($T101=0,COUNTIFS($A$42:$A101,$A101)=1),"",SUM((Filters!$F$4:$F$1503)*'Share Calculation'!AO$4:AO$1503*(OFFSET(Filters!$BD$4:$BD$1503,0,$A101-1)=COUNTIFS($A$42:$A101,$A101)-1))/ $T101),"") -> 0.6481173726 | G101: =IF(G$42>0,IF(OR($T101=0,COUNTIFS($A$42:$A101,$A101)=1),"",SUM((Filters!$F$4:$F$1503)*'Share Calculation'!AP$4:AP$1503*(OFFSET(Filters!$BD$4:$BD$1503,0,$A101-1)=COUNTIFS($A$42:$A101,$A101)-1))/ $T101),"") -> 0.3518826274 | H101: =IF(H$42>0,IF(OR($T101=0,COUNTIFS($A$42:$A101,$A101)=1),"",SUM((Filters!$F$4:$F$1503)*'Share Calculation'!AQ$4:AQ$1503*(OFFSET(Filters!$BD$4:$BD$1503,0,$A101-1)=COUNTIFS($A$42:$A101,$A101)-1))/ $T101),"") ->  | I101: =IF(I$42>0,IF(OR($T101=0,COUNTIFS($A$42:$A101,$A101)=1),"",SUM((Filters!$F$4:$F$1503)*'Share Calculation'!AR$4:AR$1503*(OFFSET(Filters!$BD$4:$BD$1503,0,$A101-1)=COUNTIFS($A$42:$A101,$A101)-1))/ $T101),"") ->  | J101: =IF(J$42>0,IF(OR($T101=0,COUNTIFS($A$42:$A101,$A101)=1),"",SUM((Filters!$F$4:$F$1503)*'Share Calculation'!AS$4:AS$1503*(OFFSET(Filters!$BD$4:$BD$1503,0,$A101-1)=COUNTIFS($A$42:$A101,$A101)-1))/ $T101),"") ->  | K101: =IF(K$42>0,IF(OR($T101=0,COUNTIFS($A$42:$A101,$A101)=1),"",SUM((Filters!$F$4:$F$1503)*'Share Calculation'!AT$4:AT$1503*(OFFSET(Filters!$BD$4:$BD$1503,0,$A101-1)=COUNTIFS($A$42:$A101,$A101)-1))/ $T101),"") ->  | L101: =IF(L$42>0,IF(OR($T101=0,COUNTIFS($A$42:$A101,$A101)=1),"",SUM((Filters!$F$4:$F$1503)*'Share Calculation'!AU$4:AU$1503*(OFFSET(Filters!$BD$4:$BD$1503,0,$A101-1)=COUNTIFS($A$42:$A101,$A101)-1))/ $T101),"") ->  | M101: =IF(M$42>0,IF(OR($T101=0,COUNTIFS($A$42:$A101,$A101)=1),"",SUM((Filters!$F$4:$F$1503)*'Share Calculation'!AV$4:AV$1503*(OFFSET(Filters!$BD$4:$BD$1503,0,$A101-1)=COUNTIFS($A$42:$A101,$A101)-1))/ $T101),"") ->  | N101: =IF(N$42>0,IF(OR($T101=0,COUNTIFS($A$42:$A101,$A101)=1),"",SUM((Filters!$F$4:$F$1503)*'Share Calculation'!AW$4:AW$1503*(OFFSET(Filters!$BD$4:$BD$1503,0,$A101-1)=COUNTIFS($A$42:$A101,$A101)-1))/ $T101),"") ->  | O101: =IF(O$42>0,IF(OR($T101=0,COUNTIFS($A$42:$A101,$A101)=1),"",SUM((Filters!$F$4:$F$1503)*'Share Calculation'!AX$4:AX$1503*(OFFSET(Filters!$BD$4:$BD$1503,0,$A101-1)=COUNTIFS($A$42:$A101,$A101)-1))/ $T101),"") ->  | P101: =IF(P$42>0,IF(OR($T101=0,COUNTIFS($A$42:$A101,$A101)=1),"",SUM((Filters!$F$4:$F$1503)*'Share Calculation'!AY$4:AY$1503*(OFFSET(Filters!$BD$4:$BD$1503,0,$A101-1)=COUNTIFS($A$42:$A101,$A101)-1))/ $T101),"") ->  | Q101: =IF(Q$42>0,IF(OR($T101=0,COUNTIFS($A$42:$A101,$A101)=1),"",SUM((Filters!$F$4:$F$1503)*'Share Calculation'!AZ$4:AZ$1503*(OFFSET(Filters!$BD$4:$BD$1503,0,$A101-1)=COUNTIFS($A$42:$A101,$A101)-1))/ $T101),"") ->  | R101: =IF(COUNTIFS($A$42:$A101,$A101)=1,"",SUMIFS(Filters!$F$4:$F$1503,OFFSET(Filters!$BD$4:$BD$1503,0,$A101-1),COUNTIFS($A$42:$A101,$A101)-1)/Filters!$I$2) -> 0.3 | S101: Yes | T101: =IF(COUNTIFS($A$42:$A101,$A101)=1,"",COUNTIFS(OFFSET(Filters!$BD$4:$BD$1503,0,$A101-1),COUNTIFS($A$42:$A101,$A101)-1,Filters!$B$4:$B$1503,1)) -> 192
A102: 10 | C102: =VLOOKUP($A102,Filters!$H$4:$AG$1065,1+COUNTIFS($A$42:$A102,$A102),FALSE) -> Fairly pessimistic | F102: =IF(F$42>0,IF(OR($T102=0,COUNTIFS($A$42:$A102,$A102)=1),"",SUM((Filters!$F$4:$F$1503)*'Share Calculation'!AO$4:AO$1503*(OFFSET(Filters!$BD$4:$BD$1503,0,$A102-1)=COUNTIFS($A$42:$A102,$A102)-1))/ $T102),"") -> 0.6793988367 | G102: =IF(G$42>0,IF(OR($T102=0,COUNTIFS($A$42:$A102,$A102)=1),"",SUM((Filters!$F$4:$F$1503)*'Share Calculation'!AP$4:AP$1503*(OFFSET(Filters!$BD$4:$BD$1503,0,$A102-1)=COUNTIFS($A$42:$A102,$A102)-1))/ $T102),"") -> 0.3206011633 | H102: =IF(H$42>0,IF(OR($T102=0,COUNTIFS($A$42:$A102,$A102)=1),"",SUM((Filters!$F$4:$F$1503)*'Share Calculation'!AQ$4:AQ$1503*(OFFSET(Filters!$BD$4:$BD$1503,0,$A102-1)=COUNTIFS($A$42:$A102,$A102)-1))/ $T102),"") ->  | I102: =IF(I$42>0,IF(OR($T102=0,COUNTIFS($A$42:$A102,$A102)=1),"",SUM((Filters!$F$4:$F$1503)*'Share Calculation'!AR$4:AR$1503*(OFFSET(Filters!$BD$4:$BD$1503,0,$A102-1)=COUNTIFS($A$42:$A102,$A102)-1))/ $T102),"") ->  | J102: =IF(J$42>0,IF(OR($T102=0,COUNTIFS($A$42:$A102,$A102)=1),"",SUM((Filters!$F$4:$F$1503)*'Share Calculation'!AS$4:AS$1503*(OFFSET(Filters!$BD$4:$BD$1503,0,$A102-1)=COUNTIFS($A$42:$A102,$A102)-1))/ $T102),"") ->  | K102: =IF(K$42>0,IF(OR($T102=0,COUNTIFS($A$42:$A102,$A102)=1),"",SUM((Filters!$F$4:$F$1503)*'Share Calculation'!AT$4:AT$1503*(OFFSET(Filters!$BD$4:$BD$1503,0,$A102-1)=COUNTIFS($A$42:$A102,$A102)-1))/ $T102),"") ->  | L102: =IF(L$42>0,IF(OR($T102=0,COUNTIFS($A$42:$A102,$A102)=1),"",SUM((Filters!$F$4:$F$1503)*'Share Calculation'!AU$4:AU$1503*(OFFSET(Filters!$BD$4:$BD$1503,0,$A102-1)=COUNTIFS($A$42:$A102,$A102)-1))/ $T102),"") ->  | M102: =IF(M$42>0,IF(OR($T102=0,COUNTIFS($A$42:$A102,$A102)=1),"",SUM((Filters!$F$4:$F$1503)*'Share Calculation'!AV$4:AV$1503*(OFFSET(Filters!$BD$4:$BD$1503,0,$A102-1)=COUNTIFS($A$42:$A102,$A102)-1))/ $T102),"") ->  | N102: =IF(N$42>0,IF(OR($T102=0,COUNTIFS($A$42:$A102,$A102)=1),"",SUM((Filters!$F$4:$F$1503)*'Share Calculation'!AW$4:AW$1503*(OFFSET(Filters!$BD$4:$BD$1503,0,$A102-1)=COUNTIFS($A$42:$A102,$A102)-1))/ $T102),"") ->  | O102: =IF(O$42>0,IF(OR($T102=0,COUNTIFS($A$42:$A102,$A102)=1),"",SUM((Filters!$F$4:$F$1503)*'Share Calculation'!AX$4:AX$1503*(OFFSET(Filters!$BD$4:$BD$1503,0,$A102-1)=COUNTIFS($A$42:$A102,$A102)-1))/ $T102),"") ->  | P102: =IF(P$42>0,IF(OR($T102=0,COUNTIFS($A$42:$A102,$A102)=1),"",SUM((Filters!$F$4:$F$1503)*'Share Calculation'!AY$4:AY$1503*(OFFSET(Filters!$BD$4:$BD$1503,0,$A102-1)=COUNTIFS($A$42:$A102,$A102)-1))/ $T102),"") ->  | Q102: =IF(Q$42>0,IF(OR($T102=0,COUNTIFS($A$42:$A102,$A102)=1),"",SUM((Filters!$F$4:$F$1503)*'Share Calculation'!AZ$4:AZ$1503*(OFFSET(Filters!$BD$4:$BD$1503,0,$A102-1)=COUNTIFS($A$42:$A102,$A102)-1))/ $T102),"") ->  | R102: =IF(COUNTIFS($A$42:$A102,$A102)=1,"",SUMIFS(Filters!$F$4:$F$1503,OFFSET(Filters!$BD$4:$BD$1503,0,$A102-1),COUNTIFS($A$42:$A102,$A102)-1)/Filters!$I$2) -> 0.284375 | S102: Yes | T102: =IF(COUNTIFS($A$42:$A102,$A102)=1,"",COUNTIFS(OFFSET(Filters!$BD$4:$BD$1503,0,$A102-1),COUNTIFS($A$42:$A102,$A102)-1,Filters!$B$4:$B$1503,1)) -> 182
A103: 10 | C103: =VLOOKUP($A103,Filters!$H$4:$AG$1065,1+COUNTIFS($A$42:$A103,$A103),FALSE) -> Very pessimistic | F103: =IF(F$42>0,IF(OR($T103=0,COUNTIFS($A$42:$A103,$A103)=1),"",SUM((Filters!$F$4:$F$1503)*'Share Calculation'!AO$4:AO$1503*(OFFSET(Filters!$BD$4:$BD$1503,0,$A103-1)=COUNTIFS($A$42:$A103,$A103)-1))/ $T103),"") -> 0.6819469501 | G103: =IF(G$42>0,IF(OR($T103=0,COUNTIFS($A$42:$A103,$A103)=1),"",SUM((Filters!$F$4:$F$1503)*'Share Calculation'!AP$4:AP$1503*(OFFSET(Filters!$BD$4:$BD$1503,0,$A103-1)=COUNTIFS($A$42:$A103,$A103)-1))/ $T103),"") -> 0.3180530499 | H103: =IF(H$42>0,IF(OR($T103=0,COUNTIFS($A$42:$A103,$A103)=1),"",SUM((Filters!$F$4:$F$1503)*'Share Calculation'!AQ$4:AQ$1503*(OFFSET(Filters!$BD$4:$BD$1503,0,$A103-1)=COUNTIFS($A$42:$A103,$A103)-1))/ $T103),"") ->  | I103: =IF(I$42>0,IF(OR($T103=0,COUNTIFS($A$42:$A103,$A103)=1),"",SUM((Filters!$F$4:$F$1503)*'Share Calculation'!AR$4:AR$1503*(OFFSET(Filters!$BD$4:$BD$1503,0,$A103-1)=COUNTIFS($A$42:$A103,$A103)-1))/ $T103),"") ->  | J103: =IF(J$42>0,IF(OR($T103=0,COUNTIFS($A$42:$A103,$A103)=1),"",SUM((Filters!$F$4:$F$1503)*'Share Calculation'!AS$4:AS$1503*(OFFSET(Filters!$BD$4:$BD$1503,0,$A103-1)=COUNTIFS($A$42:$A103,$A103)-1))/ $T103),"") ->  | K103: =IF(K$42>0,IF(OR($T103=0,COUNTIFS($A$42:$A103,$A103)=1),"",SUM((Filters!$F$4:$F$1503)*'Share Calculation'!AT$4:AT$1503*(OFFSET(Filters!$BD$4:$BD$1503,0,$A103-1)=COUNTIFS($A$42:$A103,$A103)-1))/ $T103),"") ->  | L103: =IF(L$42>0,IF(OR($T103=0,COUNTIFS($A$42:$A103,$A103)=1),"",SUM((Filters!$F$4:$F$1503)*'Share Calculation'!AU$4:AU$1503*(OFFSET(Filters!$BD$4:$BD$1503,0,$A103-1)=COUNTIFS($A$42:$A103,$A103)-1))/ $T103),"") ->  | M103: =IF(M$42>0,IF(OR($T103=0,COUNTIFS($A$42:$A103,$A103)=1),"",SUM((Filters!$F$4:$F$1503)*'Share Calculation'!AV$4:AV$1503*(OFFSET(Filters!$BD$4:$BD$1503,0,$A103-1)=COUNTIFS($A$42:$A103,$A103)-1))/ $T103),"") ->  | N103: =IF(N$42>0,IF(OR($T103=0,COUNTIFS($A$42:$A103,$A103)=1),"",SUM((Filters!$F$4:$F$1503)*'Share Calculation'!AW$4:AW$1503*(OFFSET(Filters!$BD$4:$BD$1503,0,$A103-1)=COUNTIFS($A$42:$A103,$A103)-1))/ $T103),"") ->  | O103: =IF(O$42>0,IF(OR($T103=0,COUNTIFS($A$42:$A103,$A103)=1),"",SUM((Filters!$F$4:$F$1503)*'Share Calculation'!AX$4:AX$1503*(OFFSET(Filters!$BD$4:$BD$1503,0,$A103-1)=COUNTIFS($A$42:$A103,$A103)-1))/ $T103),"") ->  | P103: =IF(P$42>0,IF(OR($T103=0,COUNTIFS($A$42:$A103,$A103)=1),"",SUM((Filters!$F$4:$F$1503)*'Share Calculation'!AY$4:AY$1503*(OFFSET(Filters!$BD$4:$BD$1503,0,$A103-1)=COUNTIFS($A$42:$A103,$A103)-1))/ $T103),"") ->  | Q103: =IF(Q$42>0,IF(OR($T103=0,COUNTIFS($A$42:$A103,$A103)=1),"",SUM((Filters!$F$4:$F$1503)*'Share Calculation'!AZ$4:AZ$1503*(OFFSET(Filters!$BD$4:$BD$1503,0,$A103-1)=COUNTIFS($A$42:$A103,$A103)-1))/ $T103),"") ->  | R103: =IF(COUNTIFS($A$42:$A103,$A103)=1,"",SUMIFS(Filters!$F$4:$F$1503,OFFSET(Filters!$BD$4:$BD$1503,0,$A103-1),COUNTIFS($A$42:$A103,$A103)-1)/Filters!$I$2) -> 0.265625 | S103: Yes | T103: =IF(COUNTIFS($A$42:$A103,$A103)=1,"",COUNTIFS(OFFSET(Filters!$BD$4:$BD$1503,0,$A103-1),COUNTIFS($A$42:$A103,$A103)-1,Filters!$B$4:$B$1503,1)) -> 170
A104: 10 | C104: =VLOOKUP($A104,Filters!$H$4:$AG$1065,1+COUNTIFS($A$42:$A104,$A104),FALSE) -> Don’t know/No opinion | F104: =IF(F$42>0,IF(OR($T104=0,COUNTIFS($A$42:$A104,$A104)=1),"",SUM((Filters!$F$4:$F$1503)*'Share Calculation'!AO$4:AO$1503*(OFFSET(Filters!$BD$4:$BD$1503,0,$A104-1)=COUNTIFS($A$42:$A104,$A104)-1))/ $T104),"") -> 0.6049852367 | G104: =IF(G$42>0,IF(OR($T104=0,COUNTIFS($A$42:$A104,$A104)=1),"",SUM((Filters!$F$4:$F$1503)*'Share Calculation'!AP$4:AP$1503*(OFFSET(Filters!$BD$4:$BD$1503,0,$A104-1)=COUNTIFS($A$42:$A104,$A104)-1))/ $T104),"") -> 0.3950147633 | H104: =IF(H$42>0,IF(OR($T104=0,COUNTIFS($A$42:$A104,$A104)=1),"",SUM((Filters!$F$4:$F$1503)*'Share Calculation'!AQ$4:AQ$1503*(OFFSET(Filters!$BD$4:$BD$1503,0,$A104-1)=COUNTIFS($A$42:$A104,$A104)-1))/ $T104),"") ->  | I104: =IF(I$42>0,IF(OR($T104=0,COUNTIFS($A$42:$A104,$A104)=1),"",SUM((Filters!$F$4:$F$1503)*'Share Calculation'!AR$4:AR$1503*(OFFSET(Filters!$BD$4:$BD$1503,0,$A104-1)=COUNTIFS($A$42:$A104,$A104)-1))/ $T104),"") ->  | J104: =IF(J$42>0,IF(OR($T104=0,COUNTIFS($A$42:$A104,$A104)=1),"",SUM((Filters!$F$4:$F$1503)*'Share Calculation'!AS$4:AS$1503*(OFFSET(Filters!$BD$4:$BD$1503,0,$A104-1)=COUNTIFS($A$42:$A104,$A104)-1))/ $T104),"") ->  | K104: =IF(K$42>0,IF(OR($T104=0,COUNTIFS($A$42:$A104,$A104)=1),"",SUM((Filters!$F$4:$F$1503)*'Share Calculation'!AT$4:AT$1503*(OFFSET(Filters!$BD$4:$BD$1503,0,$A104-1)=COUNTIFS($A$42:$A104,$A104)-1))/ $T104),"") ->  | L104: =IF(L$42>0,IF(OR($T104=0,COUNTIFS($A$42:$A104,$A104)=1),"",SUM((Filters!$F$4:$F$1503)*'Share Calculation'!AU$4:AU$1503*(OFFSET(Filters!$BD$4:$BD$1503,0,$A104-1)=COUNTIFS($A$42:$A104,$A104)-1))/ $T104),"") ->  | M104: =IF(M$42>0,IF(OR($T104=0,COUNTIFS($A$42:$A104,$A104)=1),"",SUM((Filters!$F$4:$F$1503)*'Share Calculation'!AV$4:AV$1503*(OFFSET(Filters!$BD$4:$BD$1503,0,$A104-1)=COUNTIFS($A$42:$A104,$A104)-1))/ $T104),"") ->  | N104: =IF(N$42>0,IF(OR($T104=0,COUNTIFS($A$42:$A104,$A104)=1),"",SUM((Filters!$F$4:$F$1503)*'Share Calculation'!AW$4:AW$1503*(OFFSET(Filters!$BD$4:$BD$1503,0,$A104-1)=COUNTIFS($A$42:$A104,$A104)-1))/ $T104),"") ->  | O104: =IF(O$42>0,IF(OR($T104=0,COUNTIFS($A$42:$A104,$A104)=1),"",SUM((Filters!$F$4:$F$1503)*'Share Calculation'!AX$4:AX$1503*(OFFSET(Filters!$BD$4:$BD$1503,0,$A104-1)=COUNTIFS($A$42:$A104,$A104)-1))/ $T104),"") ->  | P104: =IF(P$42>0,IF(OR($T104=0,COUNTIFS($A$42:$A104,$A104)=1),"",SUM((Filters!$F$4:$F$1503)*'Share Calculation'!AY$4:AY$1503*(OFFSET(Filters!$BD$4:$BD$1503,0,$A104-1)=COUNTIFS($A$42:$A104,$A104)-1))/ $T104),"") ->  | Q104: =IF(Q$42>0,IF(OR($T104=0,COUNTIFS($A$42:$A104,$A104)=1),"",SUM((Filters!$F$4:$F$1503)*'Share Calculation'!AZ$4:AZ$1503*(OFFSET(Filters!$BD$4:$BD$1503,0,$A104-1)=COUNTIFS($A$42:$A104,$A104)-1))/ $T104),"") ->  | R104: =IF(COUNTIFS($A$42:$A104,$A104)=1,"",SUMIFS(Filters!$F$4:$F$1503,OFFSET(Filters!$BD$4:$BD$1503,0,$A104-1),COUNTIFS($A$42:$A104,$A104)-1)/Filters!$I$2) -> 0.046875 | S104: Yes | T104: =IF(COUNTIFS($A$42:$A104,$A104)=1,"",COUNTIFS(OFFSET(Filters!$BD$4:$BD$1503,0,$A104-1),COUNTIFS($A$42:$A104,$A104)-1,Filters!$B$4:$B$1503,1)) -> 30
A105: 10 | C105: =VLOOKUP($A105,Filters!$H$4:$AG$1065,1+COUNTIFS($A$42:$A105,$A105),FALSE) -> n/a | F105: =IF(F$42>0,IF(OR($T105=0,COUNTIFS($A$42:$A105,$A105)=1),"",SUM((Filters!$F$4:$F$1503)*'Share Calculation'!AO$4:AO$1503*(OFFSET(Filters!$BD$4:$BD$1503,0,$A105-1)=COUNTIFS($A$42:$A105,$A105)-1))/ $T105),"") ->  | G105: =IF(G$42>0,IF(OR($T105=0,COUNTIFS($A$42:$A105,$A105)=1),"",SUM((Filters!$F$4:$F$1503)*'Share Calculation'!AP$4:AP$1503*(OFFSET(Filters!$BD$4:$BD$1503,0,$A105-1)=COUNTIFS($A$42:$A105,$A105)-1))/ $T105),"") ->  | H105: =IF(H$42>0,IF(OR($T105=0,COUNTIFS($A$42:$A105,$A105)=1),"",SUM((Filters!$F$4:$F$1503)*'Share Calculation'!AQ$4:AQ$1503*(OFFSET(Filters!$BD$4:$BD$1503,0,$A105-1)=COUNTIFS($A$42:$A105,$A105)-1))/ $T105),"") ->  | I105: =IF(I$42>0,IF(OR($T105=0,COUNTIFS($A$42:$A105,$A105)=1),"",SUM((Filters!$F$4:$F$1503)*'Share Calculation'!AR$4:AR$1503*(OFFSET(Filters!$BD$4:$BD$1503,0,$A105-1)=COUNTIFS($A$42:$A105,$A105)-1))/ $T105),"") ->  | J105: =IF(J$42>0,IF(OR($T105=0,COUNTIFS($A$42:$A105,$A105)=1),"",SUM((Filters!$F$4:$F$1503)*'Share Calculation'!AS$4:AS$1503*(OFFSET(Filters!$BD$4:$BD$1503,0,$A105-1)=COUNTIFS($A$42:$A105,$A105)-1))/ $T105),"") ->  | K105: =IF(K$42>0,IF(OR($T105=0,COUNTIFS($A$42:$A105,$A105)=1),"",SUM((Filters!$F$4:$F$1503)*'Share Calculation'!AT$4:AT$1503*(OFFSET(Filters!$BD$4:$BD$1503,0,$A105-1)=COUNTIFS($A$42:$A105,$A105)-1))/ $T105),"") ->  | L105: =IF(L$42>0,IF(OR($T105=0,COUNTIFS($A$42:$A105,$A105)=1),"",SUM((Filters!$F$4:$F$1503)*'Share Calculation'!AU$4:AU$1503*(OFFSET(Filters!$BD$4:$BD$1503,0,$A105-1)=COUNTIFS($A$42:$A105,$A105)-1))/ $T105),"") ->  | M105: =IF(M$42>0,IF(OR($T105=0,COUNTIFS($A$42:$A105,$A105)=1),"",SUM((Filters!$F$4:$F$1503)*'Share Calculation'!AV$4:AV$1503*(OFFSET(Filters!$BD$4:$BD$1503,0,$A105-1)=COUNTIFS($A$42:$A105,$A105)-1))/ $T105),"") ->  | N105: =IF(N$42>0,IF(OR($T105=0,COUNTIFS($A$42:$A105,$A105)=1),"",SUM((Filters!$F$4:$F$1503)*'Share Calculation'!AW$4:AW$1503*(OFFSET(Filters!$BD$4:$BD$1503,0,$A105-1)=COUNTIFS($A$42:$A105,$A105)-1))/ $T105),"") ->  | O105: =IF(O$42>0,IF(OR($T105=0,COUNTIFS($A$42:$A105,$A105)=1),"",SUM((Filters!$F$4:$F$1503)*'Share Calculation'!AX$4:AX$1503*(OFFSET(Filters!$BD$4:$BD$1503,0,$A105-1)=COUNTIFS($A$42:$A105,$A105)-1))/ $T105),"") ->  | P105: =IF(P$42>0,IF(OR($T105=0,COUNTIFS($A$42:$A105,$A105)=1),"",SUM((Filters!$F$4:$F$1503)*'Share Calculation'!AY$4:AY$1503*(OFFSET(Filters!$BD$4:$BD$1503,0,$A105-1)=COUNTIFS($A$42:$A105,$A105)-1))/ $T105),"") ->  | Q105: =IF(Q$42>0,IF(OR($T105=0,COUNTIFS($A$42:$A105,$A105)=1),"",SUM((Filters!$F$4:$F$1503)*'Share Calculation'!AZ$4:AZ$1503*(OFFSET(Filters!$BD$4:$BD$1503,0,$A105-1)=COUNTIFS($A$42:$A105,$A105)-1))/ $T105),"") ->  | R105: =IF(COUNTIFS($A$42:$A105,$A105)=1,"",SUMIFS(Filters!$F$4:$F$1503,OFFSET(Filters!$BD$4:$BD$1503,0,$A105-1),COUNTIFS($A$42:$A105,$A105)-1)/Filters!$I$2) -> 0 | S105: Yes | T105: =IF(COUNTIFS($A$42:$A105,$A105)=1,"",COUNTIFS(OFFSET(Filters!$BD$4:$BD$1503,0,$A105-1),COUNTIFS($A$42:$A105,$A105)-1,Filters!$B$4:$B$1503,1)) -> 0
A106: 11 | C106: =VLOOKUP($A106,Filters!$H$4:$AG$1065,1+COUNTIFS($A$42:$A106,$A106),FALSE) -> New technology is positive and exciting | F106: =IF(F$42>0,IF(OR($T106=0,COUNTIFS($A$42:$A106,$A106)=1),"",SUM((Filters!$F$4:$F$1503)*'Share Calculation'!AO$4:AO$1503*(OFFSET(Filters!$BD$4:$BD$1503,0,$A106-1)=COUNTIFS($A$42:$A106,$A106)-1))/ $T106),"") ->  | G106: =IF(G$42>0,IF(OR($T106=0,COUNTIFS($A$42:$A106,$A106)=1),"",SUM((Filters!$F$4:$F$1503)*'Share Calculation'!AP$4:AP$1503*(OFFSET(Filters!$BD$4:$BD$1503,0,$A106-1)=COUNTIFS($A$42:$A106,$A106)-1))/ $T106),"") ->  | H106: =IF(H$42>0,IF(OR($T106=0,COUNTIFS($A$42:$A106,$A106)=1),"",SUM((Filters!$F$4:$F$1503)*'Share Calculation'!AQ$4:AQ$1503*(OFFSET(Filters!$BD$4:$BD$1503,0,$A106-1)=COUNTIFS($A$42:$A106,$A106)-1))/ $T106),"") ->  | I106: =IF(I$42>0,IF(OR($T106=0,COUNTIFS($A$42:$A106,$A106)=1),"",SUM((Filters!$F$4:$F$1503)*'Share Calculation'!AR$4:AR$1503*(OFFSET(Filters!$BD$4:$BD$1503,0,$A106-1)=COUNTIFS($A$42:$A106,$A106)-1))/ $T106),"") ->  | J106: =IF(J$42>0,IF(OR($T106=0,COUNTIFS($A$42:$A106,$A106)=1),"",SUM((Filters!$F$4:$F$1503)*'Share Calculation'!AS$4:AS$1503*(OFFSET(Filters!$BD$4:$BD$1503,0,$A106-1)=COUNTIFS($A$42:$A106,$A106)-1))/ $T106),"") ->  | K106: =IF(K$42>0,IF(OR($T106=0,COUNTIFS($A$42:$A106,$A106)=1),"",SUM((Filters!$F$4:$F$1503)*'Share Calculation'!AT$4:AT$1503*(OFFSET(Filters!$BD$4:$BD$1503,0,$A106-1)=COUNTIFS($A$42:$A106,$A106)-1))/ $T106),"") ->  | L106: =IF(L$42>0,IF(OR($T106=0,COUNTIFS($A$42:$A106,$A106)=1),"",SUM((Filters!$F$4:$F$1503)*'Share Calculation'!AU$4:AU$1503*(OFFSET(Filters!$BD$4:$BD$1503,0,$A106-1)=COUNTIFS($A$42:$A106,$A106)-1))/ $T106),"") ->  | M106: =IF(M$42>0,IF(OR($T106=0,COUNTIFS($A$42:$A106,$A106)=1),"",SUM((Filters!$F$4:$F$1503)*'Share Calculation'!AV$4:AV$1503*(OFFSET(Filters!$BD$4:$BD$1503,0,$A106-1)=COUNTIFS($A$42:$A106,$A106)-1))/ $T106),"") ->  | N106: =IF(N$42>0,IF(OR($T106=0,COUNTIFS($A$42:$A106,$A106)=1),"",SUM((Filters!$F$4:$F$1503)*'Share Calculation'!AW$4:AW$1503*(OFFSET(Filters!$BD$4:$BD$1503,0,$A106-1)=COUNTIFS($A$42:$A106,$A106)-1))/ $T106),"") ->  | O106: =IF(O$42>0,IF(OR($T106=0,COUNTIFS($A$42:$A106,$A106)=1),"",SUM((Filters!$F$4:$F$1503)*'Share Calculation'!AX$4:AX$1503*(OFFSET(Filters!$BD$4:$BD$1503,0,$A106-1)=COUNTIFS($A$42:$A106,$A106)-1))/ $T106),"") ->  | P106: =IF(P$42>0,IF(OR($T106=0,COUNTIFS($A$42:$A106,$A106)=1),"",SUM((Filters!$F$4:$F$1503)*'Share Calculation'!AY$4:AY$1503*(OFFSET(Filters!$BD$4:$BD$1503,0,$A106-1)=COUNTIFS($A$42:$A106,$A106)-1))/ $T106),"") ->  | Q106: =IF(Q$42>0,IF(OR($T106=0,COUNTIFS($A$42:$A106,$A106)=1),"",SUM((Filters!$F$4:$F$1503)*'Share Calculation'!AZ$4:AZ$1503*(OFFSET(Filters!$BD$4:$BD$1503,0,$A106-1)=COUNTIFS($A$42:$A106,$A106)-1))/ $T106),"") ->  | R106: =IF(COUNTIFS($A$42:$A106,$A106)=1,"",SUMIFS(Filters!$F$4:$F$1503,OFFSET(Filters!$BD$4:$BD$1503,0,$A106-1),COUNTIFS($A$42:$A106,$A106)-1)/Filters!$I$2) ->  | T106: =IF(COUNTIFS($A$42:$A106,$A106)=1,"",COUNTIFS(OFFSET(Filters!$BD$4:$BD$1503,0,$A106-1),COUNTIFS($A$42:$A106,$A106)-1,Filters!$B$4:$B$1503,1)) -> 
A107: 11 | C107: =VLOOKUP($A107,Filters!$H$4:$AG$1065,1+COUNTIFS($A$42:$A107,$A107),FALSE) -> Strongly agree | F107: =IF(F$42>0,IF(OR($T107=0,COUNTIFS($A$42:$A107,$A107)=1),"",SUM((Filters!$F$4:$F$1503)*'Share Calculation'!AO$4:AO$1503*(OFFSET(Filters!$BD$4:$BD$1503,0,$A107-1)=COUNTIFS($A$42:$A107,$A107)-1))/ $T107),"") -> 0.632373656 | G107: =IF(G$42>0,IF(OR($T107=0,COUNTIFS($A$42:$A107,$A107)=1),"",SUM((Filters!$F$4:$F$1503)*'Share Calculation'!AP$4:AP$1503*(OFFSET(Filters!$BD$4:$BD$1503,0,$A107-1)=COUNTIFS($A$42:$A107,$A107)-1))/ $T107),"") -> 0.367626344 | H107: =IF(H$42>0,IF(OR($T107=0,COUNTIFS($A$42:$A107,$A107)=1),"",SUM((Filters!$F$4:$F$1503)*'Share Calculation'!AQ$4:AQ$1503*(OFFSET(Filters!$BD$4:$BD$1503,0,$A107-1)=COUNTIFS($A$42:$A107,$A107)-1))/ $T107),"") ->  | I107: =IF(I$42>0,IF(OR($T107=0,COUNTIFS($A$42:$A107,$A107)=1),"",SUM((Filters!$F$4:$F$1503)*'Share Calculation'!AR$4:AR$1503*(OFFSET(Filters!$BD$4:$BD$1503,0,$A107-1)=COUNTIFS($A$42:$A107,$A107)-1))/ $T107),"") ->  | J107: =IF(J$42>0,IF(OR($T107=0,COUNTIFS($A$42:$A107,$A107)=1),"",SUM((Filters!$F$4:$F$1503)*'Share Calculation'!AS$4:AS$1503*(OFFSET(Filters!$BD$4:$BD$1503,0,$A107-1)=COUNTIFS($A$42:$A107,$A107)-1))/ $T107),"") ->  | K107: =IF(K$42>0,IF(OR($T107=0,COUNTIFS($A$42:$A107,$A107)=1),"",SUM((Filters!$F$4:$F$1503)*'Share Calculation'!AT$4:AT$1503*(OFFSET(Filters!$BD$4:$BD$1503,0,$A107-1)=COUNTIFS($A$42:$A107,$A107)-1))/ $T107),"") ->  | L107: =IF(L$42>0,IF(OR($T107=0,COUNTIFS($A$42:$A107,$A107)=1),"",SUM((Filters!$F$4:$F$1503)*'Share Calculation'!AU$4:AU$1503*(OFFSET(Filters!$BD$4:$BD$1503,0,$A107-1)=COUNTIFS($A$42:$A107,$A107)-1))/ $T107),"") ->  | M107: =IF(M$42>0,IF(OR($T107=0,COUNTIFS($A$42:$A107,$A107)=1),"",SUM((Filters!$F$4:$F$1503)*'Share Calculation'!AV$4:AV$1503*(OFFSET(Filters!$BD$4:$BD$1503,0,$A107-1)=COUNTIFS($A$42:$A107,$A107)-1))/ $T107),"") ->  | N107: =IF(N$42>0,IF(OR($T107=0,COUNTIFS($A$42:$A107,$A107)=1),"",SUM((Filters!$F$4:$F$1503)*'Share Calculation'!AW$4:AW$1503*(OFFSET(Filters!$BD$4:$BD$1503,0,$A107-1)=COUNTIFS($A$42:$A107,$A107)-1))/ $T107),"") ->  | O107: =IF(O$42>0,IF(OR($T107=0,COUNTIFS($A$42:$A107,$A107)=1),"",SUM((Filters!$F$4:$F$1503)*'Share Calculation'!AX$4:AX$1503*(OFFSET(Filters!$BD$4:$BD$1503,0,$A107-1)=COUNTIFS($A$42:$A107,$A107)-1))/ $T107),"") ->  | P107: =IF(P$42>0,IF(OR($T107=0,COUNTIFS($A$42:$A107,$A107)=1),"",SUM((Filters!$F$4:$F$1503)*'Share Calculation'!AY$4:AY$1503*(OFFSET(Filters!$BD$4:$BD$1503,0,$A107-1)=COUNTIFS($A$42:$A107,$A107)-1))/ $T107),"") ->  | Q107: =IF(Q$42>0,IF(OR($T107=0,COUNTIFS($A$42:$A107,$A107)=1),"",SUM((Filters!$F$4:$F$1503)*'Share Calculation'!AZ$4:AZ$1503*(OFFSET(Filters!$BD$4:$BD$1503,0,$A107-1)=COUNTIFS($A$42:$A107,$A107)-1))/ $T107),"") ->  | R107: =IF(COUNTIFS($A$42:$A107,$A107)=1,"",SUMIFS(Filters!$F$4:$F$1503,OFFSET(Filters!$BD$4:$BD$1503,0,$A107-1),COUNTIFS($A$42:$A107,$A107)-1)/Filters!$I$2) -> 0.2078125 | S107: Yes | T107: =IF(COUNTIFS($A$42:$A107,$A107)=1,"",COUNTIFS(OFFSET(Filters!$BD$4:$BD$1503,0,$A107-1),COUNTIFS($A$42:$A107,$A107)-1,Filters!$B$4:$B$1503,1)) -> 133
A108: 11 | C108: =VLOOKUP($A108,Filters!$H$4:$AG$1065,1+COUNTIFS($A$42:$A108,$A108),FALSE) -> Agree | F108: =IF(F$42>0,IF(OR($T108=0,COUNTIFS($A$42:$A108,$A108)=1),"",SUM((Filters!$F$4:$F$1503)*'Share Calculation'!AO$4:AO$1503*(OFFSET(Filters!$BD$4:$BD$1503,0,$A108-1)=COUNTIFS($A$42:$A108,$A108)-1))/ $T108),"") -> 0.6849530357 | G108: =IF(G$42>0,IF(OR($T108=0,COUNTIFS($A$42:$A108,$A108)=1),"",SUM((Filters!$F$4:$F$1503)*'Share Calculation'!AP$4:AP$1503*(OFFSET(Filters!$BD$4:$BD$1503,0,$A108-1)=COUNTIFS($A$42:$A108,$A108)-1))/ $T108),"") -> 0.3150469643 | H108: =IF(H$42>0,IF(OR($T108=0,COUNTIFS($A$42:$A108,$A108)=1),"",SUM((Filters!$F$4:$F$1503)*'Share Calculation'!AQ$4:AQ$1503*(OFFSET(Filters!$BD$4:$BD$1503,0,$A108-1)=COUNTIFS($A$42:$A108,$A108)-1))/ $T108),"") ->  | I108: =IF(I$42>0,IF(OR($T108=0,COUNTIFS($A$42:$A108,$A108)=1),"",SUM((Filters!$F$4:$F$1503)*'Share Calculation'!AR$4:AR$1503*(OFFSET(Filters!$BD$4:$BD$1503,0,$A108-1)=COUNTIFS($A$42:$A108,$A108)-1))/ $T108),"") ->  | J108: =IF(J$42>0,IF(OR($T108=0,COUNTIFS($A$42:$A108,$A108)=1),"",SUM((Filters!$F$4:$F$1503)*'Share Calculation'!AS$4:AS$1503*(OFFSET(Filters!$BD$4:$BD$1503,0,$A108-1)=COUNTIFS($A$42:$A108,$A108)-1))/ $T108),"") ->  | K108: =IF(K$42>0,IF(OR($T108=0,COUNTIFS($A$42:$A108,$A108)=1),"",SUM((Filters!$F$4:$F$1503)*'Share Calculation'!AT$4:AT$1503*(OFFSET(Filters!$BD$4:$BD$1503,0,$A108-1)=COUNTIFS($A$42:$A108,$A108)-1))/ $T108),"") ->  | L108: =IF(L$42>0,IF(OR($T108=0,COUNTIFS($A$42:$A108,$A108)=1),"",SUM((Filters!$F$4:$F$1503)*'Share Calculation'!AU$4:AU$1503*(OFFSET(Filters!$BD$4:$BD$1503,0,$A108-1)=COUNTIFS($A$42:$A108,$A108)-1))/ $T108),"") ->  | M108: =IF(M$42>0,IF(OR($T108=0,COUNTIFS($A$42:$A108,$A108)=1),"",SUM((Filters!$F$4:$F$1503)*'Share Calculation'!AV$4:AV$1503*(OFFSET(Filters!$BD$4:$BD$1503,0,$A108-1)=COUNTIFS($A$42:$A108,$A108)-1))/ $T108),"") ->  | N108: =IF(N$42>0,IF(OR($T108=0,COUNTIFS($A$42:$A108,$A108)=1),"",SUM((Filters!$F$4:$F$1503)*'Share Calculation'!AW$4:AW$1503*(OFFSET(Filters!$BD$4:$BD$1503,0,$A108-1)=COUNTIFS($A$42:$A108,$A108)-1))/ $T108),"") ->  | O108: =IF(O$42>0,IF(OR($T108=0,COUNTIFS($A$42:$A108,$A108)=1),"",SUM((Filters!$F$4:$F$1503)*'Share Calculation'!AX$4:AX$1503*(OFFSET(Filters!$BD$4:$BD$1503,0,$A108-1)=COUNTIFS($A$42:$A108,$A108)-1))/ $T108),"") ->  | P108: =IF(P$42>0,IF(OR($T108=0,COUNTIFS($A$42:$A108,$A108)=1),"",SUM((Filters!$F$4:$F$1503)*'Share Calculation'!AY$4:AY$1503*(OFFSET(Filters!$BD$4:$BD$1503,0,$A108-1)=COUNTIFS($A$42:$A108,$A108)-1))/ $T108),"") ->  | Q108: =IF(Q$42>0,IF(OR($T108=0,COUNTIFS($A$42:$A108,$A108)=1),"",SUM((Filters!$F$4:$F$1503)*'Share Calculation'!AZ$4:AZ$1503*(OFFSET(Filters!$BD$4:$BD$1503,0,$A108-1)=COUNTIFS($A$42:$A108,$A108)-1))/ $T108),"") ->  | R108: =IF(COUNTIFS($A$42:$A108,$A108)=1,"",SUMIFS(Filters!$F$4:$F$1503,OFFSET(Filters!$BD$4:$BD$1503,0,$A108-1),COUNTIFS($A$42:$A108,$A108)-1)/Filters!$I$2) -> 0.49375 | S108: Yes | T108: =IF(COUNTIFS($A$42:$A108,$A108)=1,"",COUNTIFS(OFFSET(Filters!$BD$4:$BD$1503,0,$A108-1),COUNTIFS($A$42:$A108,$A108)-1,Filters!$B$4:$B$1503,1)) -> 316
A109: 11 | C109: =VLOOKUP($A109,Filters!$H$4:$AG$1065,1+COUNTIFS($A$42:$A109,$A109),FALSE) -> Neither agree nor disagree | F109: =IF(F$42>0,IF(OR($T109=0,COUNTIFS($A$42:$A109,$A109)=1),"",SUM((Filters!$F$4:$F$1503)*'Share Calculation'!AO$4:AO$1503*(OFFSET(Filters!$BD$4:$BD$1503,0,$A109-1)=COUNTIFS($A$42:$A109,$A109)-1))/ $T109),"") -> 0.6503649926 | G109: =IF(G$42>0,IF(OR($T109=0,COUNTIFS($A$42:$A109,$A109)=1),"",SUM((Filters!$F$4:$F$1503)*'Share Calculation'!AP$4:AP$1503*(OFFSET(Filters!$BD$4:$BD$1503,0,$A109-1)=COUNTIFS($A$42:$A109,$A109)-1))/ $T109),"") -> 0.3496350074 | H109: =IF(H$42>0,IF(OR($T109=0,COUNTIFS($A$42:$A109,$A109)=1),"",SUM((Filters!$F$4:$F$1503)*'Share Calculation'!AQ$4:AQ$1503*(OFFSET(Filters!$BD$4:$BD$1503,0,$A109-1)=COUNTIFS($A$42:$A109,$A109)-1))/ $T109),"") ->  | I109: =IF(I$42>0,IF(OR($T109=0,COUNTIFS($A$42:$A109,$A109)=1),"",SUM((Filters!$F$4:$F$1503)*'Share Calculation'!AR$4:AR$1503*(OFFSET(Filters!$BD$4:$BD$1503,0,$A109-1)=COUNTIFS($A$42:$A109,$A109)-1))/ $T109),"") ->  | J109: =IF(J$42>0,IF(OR($T109=0,COUNTIFS($A$42:$A109,$A109)=1),"",SUM((Filters!$F$4:$F$1503)*'Share Calculation'!AS$4:AS$1503*(OFFSET(Filters!$BD$4:$BD$1503,0,$A109-1)=COUNTIFS($A$42:$A109,$A109)-1))/ $T109),"") ->  | K109: =IF(K$42>0,IF(OR($T109=0,COUNTIFS($A$42:$A109,$A109)=1),"",SUM((Filters!$F$4:$F$1503)*'Share Calculation'!AT$4:AT$1503*(OFFSET(Filters!$BD$4:$BD$1503,0,$A109-1)=COUNTIFS($A$42:$A109,$A109)-1))/ $T109),"") ->  | L109: =IF(L$42>0,IF(OR($T109=0,COUNTIFS($A$42:$A109,$A109)=1),"",SUM((Filters!$F$4:$F$1503)*'Share Calculation'!AU$4:AU$1503*(OFFSET(Filters!$BD$4:$BD$1503,0,$A109-1)=COUNTIFS($A$42:$A109,$A109)-1))/ $T109),"") ->  | M109: =IF(M$42>0,IF(OR($T109=0,COUNTIFS($A$42:$A109,$A109)=1),"",SUM((Filters!$F$4:$F$1503)*'Share Calculation'!AV$4:AV$1503*(OFFSET(Filters!$BD$4:$BD$1503,0,$A109-1)=COUNTIFS($A$42:$A109,$A109)-1))/ $T109),"") ->  | N109: =IF(N$42>0,IF(OR($T109=0,COUNTIFS($A$42:$A109,$A109)=1),"",SUM((Filters!$F$4:$F$1503)*'Share Calculation'!AW$4:AW$1503*(OFFSET(Filters!$BD$4:$BD$1503,0,$A109-1)=COUNTIFS($A$42:$A109,$A109)-1))/ $T109),"") ->  | O109: =IF(O$42>0,IF(OR($T109=0,COUNTIFS($A$42:$A109,$A109)=1),"",SUM((Filters!$F$4:$F$1503)*'Share Calculation'!AX$4:AX$1503*(OFFSET(Filters!$BD$4:$BD$1503,0,$A109-1)=COUNTIFS($A$42:$A109,$A109)-1))/ $T109),"") ->  | P109: =IF(P$42>0,IF(OR($T109=0,COUNTIFS($A$42:$A109,$A109)=1),"",SUM((Filters!$F$4:$F$1503)*'Share Calculation'!AY$4:AY$1503*(OFFSET(Filters!$BD$4:$BD$1503,0,$A109-1)=COUNTIFS($A$42:$A109,$A109)-1))/ $T109),"") ->  | Q109: =IF(Q$42>0,IF(OR($T109=0,COUNTIFS($A$42:$A109,$A109)=1),"",SUM((Filters!$F$4:$F$1503)*'Share Calculation'!AZ$4:AZ$1503*(OFFSET(Filters!$BD$4:$BD$1503,0,$A109-1)=COUNTIFS($A$42:$A109,$A109)-1))/ $T109),"") ->  | R109: =IF(COUNTIFS($A$42:$A109,$A109)=1,"",SUMIFS(Filters!$F$4:$F$1503,OFFSET(Filters!$BD$4:$BD$1503,0,$A109-1),COUNTIFS($A$42:$A109,$A109)-1)/Filters!$I$2) -> 0.2375 | S109: Yes | T109: =IF(COUNTIFS($A$42:$A109,$A109)=1,"",COUNTIFS(OFFSET(Filters!$BD$4:$BD$1503,0,$A109-1),COUNTIFS($A$42:$A109,$A109)-1,Filters!$B$4:$B$1503,1)) -> 152
A110: 11 | C110: =VLOOKUP($A110,Filters!$H$4:$AG$1065,1+COUNTIFS($A$42:$A110,$A110),FALSE) -> Disagree | F110: =IF(F$42>0,IF(OR($T110=0,COUNTIFS($A$42:$A110,$A110)=1),"",SUM((Filters!$F$4:$F$1503)*'Share Calculation'!AO$4:AO$1503*(OFFSET(Filters!$BD$4:$BD$1503,0,$A110-1)=COUNTIFS($A$42:$A110,$A110)-1))/ $T110),"") -> 0.5899660981 | G110: =IF(G$42>0,IF(OR($T110=0,COUNTIFS($A$42:$A110,$A110)=1),"",SUM((Filters!$F$4:$F$1503)*'Share Calculation'!AP$4:AP$1503*(OFFSET(Filters!$BD$4:$BD$1503,0,$A110-1)=COUNTIFS($A$42:$A110,$A110)-1))/ $T110),"") -> 0.4100339019 | H110: =IF(H$42>0,IF(OR($T110=0,COUNTIFS($A$42:$A110,$A110)=1),"",SUM((Filters!$F$4:$F$1503)*'Share Calculation'!AQ$4:AQ$1503*(OFFSET(Filters!$BD$4:$BD$1503,0,$A110-1)=COUNTIFS($A$42:$A110,$A110)-1))/ $T110),"") ->  | I110: =IF(I$42>0,IF(OR($T110=0,COUNTIFS($A$42:$A110,$A110)=1),"",SUM((Filters!$F$4:$F$1503)*'Share Calculation'!AR$4:AR$1503*(OFFSET(Filters!$BD$4:$BD$1503,0,$A110-1)=COUNTIFS($A$42:$A110,$A110)-1))/ $T110),"") ->  | J110: =IF(J$42>0,IF(OR($T110=0,COUNTIFS($A$42:$A110,$A110)=1),"",SUM((Filters!$F$4:$F$1503)*'Share Calculation'!AS$4:AS$1503*(OFFSET(Filters!$BD$4:$BD$1503,0,$A110-1)=COUNTIFS($A$42:$A110,$A110)-1))/ $T110),"") ->  | K110: =IF(K$42>0,IF(OR($T110=0,COUNTIFS($A$42:$A110,$A110)=1),"",SUM((Filters!$F$4:$F$1503)*'Share Calculation'!AT$4:AT$1503*(OFFSET(Filters!$BD$4:$BD$1503,0,$A110-1)=COUNTIFS($A$42:$A110,$A110)-1))/ $T110),"") ->  | L110: =IF(L$42>0,IF(OR($T110=0,COUNTIFS($A$42:$A110,$A110)=1),"",SUM((Filters!$F$4:$F$1503)*'Share Calculation'!AU$4:AU$1503*(OFFSET(Filters!$BD$4:$BD$1503,0,$A110-1)=COUNTIFS($A$42:$A110,$A110)-1))/ $T110),"") ->  | M110: =IF(M$42>0,IF(OR($T110=0,COUNTIFS($A$42:$A110,$A110)=1),"",SUM((Filters!$F$4:$F$1503)*'Share Calculation'!AV$4:AV$1503*(OFFSET(Filters!$BD$4:$BD$1503,0,$A110-1)=COUNTIFS($A$42:$A110,$A110)-1))/ $T110),"") ->  | N110: =IF(N$42>0,IF(OR($T110=0,COUNTIFS($A$42:$A110,$A110)=1),"",SUM((Filters!$F$4:$F$1503)*'Share Calculation'!AW$4:AW$1503*(OFFSET(Filters!$BD$4:$BD$1503,0,$A110-1)=COUNTIFS($A$42:$A110,$A110)-1))/ $T110),"") ->  | O110: =IF(O$42>0,IF(OR($T110=0,COUNTIFS($A$42:$A110,$A110)=1),"",SUM((Filters!$F$4:$F$1503)*'Share Calculation'!AX$4:AX$1503*(OFFSET(Filters!$BD$4:$BD$1503,0,$A110-1)=COUNTIFS($A$42:$A110,$A110)-1))/ $T110),"") ->  | P110: =IF(P$42>0,IF(OR($T110=0,COUNTIFS($A$42:$A110,$A110)=1),"",SUM((Filters!$F$4:$F$1503)*'Share Calculation'!AY$4:AY$1503*(OFFSET(Filters!$BD$4:$BD$1503,0,$A110-1)=COUNTIFS($A$42:$A110,$A110)-1))/ $T110),"") ->  | Q110: =IF(Q$42>0,IF(OR($T110=0,COUNTIFS($A$42:$A110,$A110)=1),"",SUM((Filters!$F$4:$F$1503)*'Share Calculation'!AZ$4:AZ$1503*(OFFSET(Filters!$BD$4:$BD$1503,0,$A110-1)=COUNTIFS($A$42:$A110,$A110)-1))/ $T110),"") ->  | R110: =IF(COUNTIFS($A$42:$A110,$A110)=1,"",SUMIFS(Filters!$F$4:$F$1503,OFFSET(Filters!$BD$4:$BD$1503,0,$A110-1),COUNTIFS($A$42:$A110,$A110)-1)/Filters!$I$2) -> 0.04375 | S110: Yes | T110: =IF(COUNTIFS($A$42:$A110,$A110)=1,"",COUNTIFS(OFFSET(Filters!$BD$4:$BD$1503,0,$A110-1),COUNTIFS($A$42:$A110,$A110)-1,Filters!$B$4:$B$1503,1)) -> 28
A111: 11 | C111: =VLOOKUP($A111,Filters!$H$4:$AG$1065,1+COUNTIFS($A$42:$A111,$A111),FALSE) -> Strongly disagree | F111: =IF(F$42>0,IF(OR($T111=0,COUNTIFS($A$42:$A111,$A111)=1),"",SUM((Filters!$F$4:$F$1503)*'Share Calculation'!AO$4:AO$1503*(OFFSET(Filters!$BD$4:$BD$1503,0,$A111-1)=COUNTIFS($A$42:$A111,$A111)-1))/ $T111),"") -> 0.5346856788 | G111: =IF(G$42>0,IF(OR($T111=0,COUNTIFS($A$42:$A111,$A111)=1),"",SUM((Filters!$F$4:$F$1503)*'Share Calculation'!AP$4:AP$1503*(OFFSET(Filters!$BD$4:$BD$1503,0,$A111-1)=COUNTIFS($A$42:$A111,$A111)-1))/ $T111),"") -> 0.4653143212 | H111: =IF(H$42>0,IF(OR($T111=0,COUNTIFS($A$42:$A111,$A111)=1),"",SUM((Filters!$F$4:$F$1503)*'Share Calculation'!AQ$4:AQ$1503*(OFFSET(Filters!$BD$4:$BD$1503,0,$A111-1)=COUNTIFS($A$42:$A111,$A111)-1))/ $T111),"") ->  | I111: =IF(I$42>0,IF(OR($T111=0,COUNTIFS($A$42:$A111,$A111)=1),"",SUM((Filters!$F$4:$F$1503)*'Share Calculation'!AR$4:AR$1503*(OFFSET(Filters!$BD$4:$BD$1503,0,$A111-1)=COUNTIFS($A$42:$A111,$A111)-1))/ $T111),"") ->  | J111: =IF(J$42>0,IF(OR($T111=0,COUNTIFS($A$42:$A111,$A111)=1),"",SUM((Filters!$F$4:$F$1503)*'Share Calculation'!AS$4:AS$1503*(OFFSET(Filters!$BD$4:$BD$1503,0,$A111-1)=COUNTIFS($A$42:$A111,$A111)-1))/ $T111),"") ->  | K111: =IF(K$42>0,IF(OR($T111=0,COUNTIFS($A$42:$A111,$A111)=1),"",SUM((Filters!$F$4:$F$1503)*'Share Calculation'!AT$4:AT$1503*(OFFSET(Filters!$BD$4:$BD$1503,0,$A111-1)=COUNTIFS($A$42:$A111,$A111)-1))/ $T111),"") ->  | L111: =IF(L$42>0,IF(OR($T111=0,COUNTIFS($A$42:$A111,$A111)=1),"",SUM((Filters!$F$4:$F$1503)*'Share Calculation'!AU$4:AU$1503*(OFFSET(Filters!$BD$4:$BD$1503,0,$A111-1)=COUNTIFS($A$42:$A111,$A111)-1))/ $T111),"") ->  | M111: =IF(M$42>0,IF(OR($T111=0,COUNTIFS($A$42:$A111,$A111)=1),"",SUM((Filters!$F$4:$F$1503)*'Share Calculation'!AV$4:AV$1503*(OFFSET(Filters!$BD$4:$BD$1503,0,$A111-1)=COUNTIFS($A$42:$A111,$A111)-1))/ $T111),"") ->  | N111: =IF(N$42>0,IF(OR($T111=0,COUNTIFS($A$42:$A111,$A111)=1),"",SUM((Filters!$F$4:$F$1503)*'Share Calculation'!AW$4:AW$1503*(OFFSET(Filters!$BD$4:$BD$1503,0,$A111-1)=COUNTIFS($A$42:$A111,$A111)-1))/ $T111),"") ->  | O111: =IF(O$42>0,IF(OR($T111=0,COUNTIFS($A$42:$A111,$A111)=1),"",SUM((Filters!$F$4:$F$1503)*'Share Calculation'!AX$4:AX$1503*(OFFSET(Filters!$BD$4:$BD$1503,0,$A111-1)=COUNTIFS($A$42:$A111,$A111)-1))/ $T111),"") ->  | P111: =IF(P$42>0,IF(OR($T111=0,COUNTIFS($A$42:$A111,$A111)=1),"",SUM((Filters!$F$4:$F$1503)*'Share Calculation'!AY$4:AY$1503*(OFFSET(Filters!$BD$4:$BD$1503,0,$A111-1)=COUNTIFS($A$42:$A111,$A111)-1))/ $T111),"") ->  | Q111: =IF(Q$42>0,IF(OR($T111=0,COUNTIFS($A$42:$A111,$A111)=1),"",SUM((Filters!$F$4:$F$1503)*'Share Calculation'!AZ$4:AZ$1503*(OFFSET(Filters!$BD$4:$BD$1503,0,$A111-1)=COUNTIFS($A$42:$A111,$A111)-1))/ $T111),"") ->  | R111: =IF(COUNTIFS($A$42:$A111,$A111)=1,"",SUMIFS(Filters!$F$4:$F$1503,OFFSET(Filters!$BD$4:$BD$1503,0,$A111-1),COUNTIFS($A$42:$A111,$A111)-1)/Filters!$I$2) -> 0.0171875 | S111: Yes | T111: =IF(COUNTIFS($A$42:$A111,$A111)=1,"",COUNTIFS(OFFSET(Filters!$BD$4:$BD$1503,0,$A111-1),COUNTIFS($A$42:$A111,$A111)-1,Filters!$B$4:$B$1503,1)) -> 11
A112: 11 | C112: =VLOOKUP($A112,Filters!$H$4:$AG$1065,1+COUNTIFS($A$42:$A112,$A112),FALSE) -> n/a | F112: =IF(F$42>0,IF(OR($T112=0,COUNTIFS($A$42:$A112,$A112)=1),"",SUM((Filters!$F$4:$F$1503)*'Share Calculation'!AO$4:AO$1503*(OFFSET(Filters!$BD$4:$BD$1503,0,$A112-1)=COUNTIFS($A$42:$A112,$A112)-1))/ $T112),"") ->  | G112: =IF(G$42>0,IF(OR($T112=0,COUNTIFS($A$42:$A112,$A112)=1),"",SUM((Filters!$F$4:$F$1503)*'Share Calculation'!AP$4:AP$1503*(OFFSET(Filters!$BD$4:$BD$1503,0,$A112-1)=COUNTIFS($A$42:$A112,$A112)-1))/ $T112),"") ->  | H112: =IF(H$42>0,IF(OR($T112=0,COUNTIFS($A$42:$A112,$A112)=1),"",SUM((Filters!$F$4:$F$1503)*'Share Calculation'!AQ$4:AQ$1503*(OFFSET(Filters!$BD$4:$BD$1503,0,$A112-1)=COUNTIFS($A$42:$A112,$A112)-1))/ $T112),"") ->  | I112: =IF(I$42>0,IF(OR($T112=0,COUNTIFS($A$42:$A112,$A112)=1),"",SUM((Filters!$F$4:$F$1503)*'Share Calculation'!AR$4:AR$1503*(OFFSET(Filters!$BD$4:$BD$1503,0,$A112-1)=COUNTIFS($A$42:$A112,$A112)-1))/ $T112),"") ->  | J112: =IF(J$42>0,IF(OR($T112=0,COUNTIFS($A$42:$A112,$A112)=1),"",SUM((Filters!$F$4:$F$1503)*'Share Calculation'!AS$4:AS$1503*(OFFSET(Filters!$BD$4:$BD$1503,0,$A112-1)=COUNTIFS($A$42:$A112,$A112)-1))/ $T112),"") ->  | K112: =IF(K$42>0,IF(OR($T112=0,COUNTIFS($A$42:$A112,$A112)=1),"",SUM((Filters!$F$4:$F$1503)*'Share Calculation'!AT$4:AT$1503*(OFFSET(Filters!$BD$4:$BD$1503,0,$A112-1)=COUNTIFS($A$42:$A112,$A112)-1))/ $T112),"") ->  | L112: =IF(L$42>0,IF(OR($T112=0,COUNTIFS($A$42:$A112,$A112)=1),"",SUM((Filters!$F$4:$F$1503)*'Share Calculation'!AU$4:AU$1503*(OFFSET(Filters!$BD$4:$BD$1503,0,$A112-1)=COUNTIFS($A$42:$A112,$A112)-1))/ $T112),"") ->  | M112: =IF(M$42>0,IF(OR($T112=0,COUNTIFS($A$42:$A112,$A112)=1),"",SUM((Filters!$F$4:$F$1503)*'Share Calculation'!AV$4:AV$1503*(OFFSET(Filters!$BD$4:$BD$1503,0,$A112-1)=COUNTIFS($A$42:$A112,$A112)-1))/ $T112),"") ->  | N112: =IF(N$42>0,IF(OR($T112=0,COUNTIFS($A$42:$A112,$A112)=1),"",SUM((Filters!$F$4:$F$1503)*'Share Calculation'!AW$4:AW$1503*(OFFSET(Filters!$BD$4:$BD$1503,0,$A112-1)=COUNTIFS($A$42:$A112,$A112)-1))/ $T112),"") ->  | O112: =IF(O$42>0,IF(OR($T112=0,COUNTIFS($A$42:$A112,$A112)=1),"",SUM((Filters!$F$4:$F$1503)*'Share Calculation'!AX$4:AX$1503*(OFFSET(Filters!$BD$4:$BD$1503,0,$A112-1)=COUNTIFS($A$42:$A112,$A112)-1))/ $T112),"") ->  | P112: =IF(P$42>0,IF(OR($T112=0,COUNTIFS($A$42:$A112,$A112)=1),"",SUM((Filters!$F$4:$F$1503)*'Share Calculation'!AY$4:AY$1503*(OFFSET(Filters!$BD$4:$BD$1503,0,$A112-1)=COUNTIFS($A$42:$A112,$A112)-1))/ $T112),"") ->  | Q112: =IF(Q$42>0,IF(OR($T112=0,COUNTIFS($A$42:$A112,$A112)=1),"",SUM((Filters!$F$4:$F$1503)*'Share Calculation'!AZ$4:AZ$1503*(OFFSET(Filters!$BD$4:$BD$1503,0,$A112-1)=COUNTIFS($A$42:$A112,$A112)-1))/ $T112),"") ->  | R112: =IF(COUNTIFS($A$42:$A112,$A112)=1,"",SUMIFS(Filters!$F$4:$F$1503,OFFSET(Filters!$BD$4:$BD$1503,0,$A112-1),COUNTIFS($A$42:$A112,$A112)-1)/Filters!$I$2) -> 0 | S112: Yes | T112: =IF(COUNTIFS($A$42:$A112,$A112)=1,"",COUNTIFS(OFFSET(Filters!$BD$4:$BD$1503,0,$A112-1),COUNTIFS($A$42:$A112,$A112)-1,Filters!$B$4:$B$1503,1)) -> 0
A113: 12 | C113: =VLOOKUP($A113,Filters!$H$4:$AG$1065,1+COUNTIFS($A$42:$A113,$A113),FALSE) -> I like to be one of the first to try out new gadgets and technology | F113: =IF(F$42>0,IF(OR($T113=0,COUNTIFS($A$42:$A113,$A113)=1),"",SUM((Filters!$F$4:$F$1503)*'Share Calculation'!AO$4:AO$1503*(OFFSET(Filters!$BD$4:$BD$1503,0,$A113-1)=COUNTIFS($A$42:$A113,$A113)-1))/ $T113),"") ->  | G113: =IF(G$42>0,IF(OR($T113=0,COUNTIFS($A$42:$A113,$A113)=1),"",SUM((Filters!$F$4:$F$1503)*'Share Calculation'!AP$4:AP$1503*(OFFSET(Filters!$BD$4:$BD$1503,0,$A113-1)=COUNTIFS($A$42:$A113,$A113)-1))/ $T113),"") ->  | H113: =IF(H$42>0,IF(OR($T113=0,COUNTIFS($A$42:$A113,$A113)=1),"",SUM((Filters!$F$4:$F$1503)*'Share Calculation'!AQ$4:AQ$1503*(OFFSET(Filters!$BD$4:$BD$1503,0,$A113-1)=COUNTIFS($A$42:$A113,$A113)-1))/ $T113),"") ->  | I113: =IF(I$42>0,IF(OR($T113=0,COUNTIFS($A$42:$A113,$A113)=1),"",SUM((Filters!$F$4:$F$1503)*'Share Calculation'!AR$4:AR$1503*(OFFSET(Filters!$BD$4:$BD$1503,0,$A113-1)=COUNTIFS($A$42:$A113,$A113)-1))/ $T113),"") ->  | J113: =IF(J$42>0,IF(OR($T113=0,COUNTIFS($A$42:$A113,$A113)=1),"",SUM((Filters!$F$4:$F$1503)*'Share Calculation'!AS$4:AS$1503*(OFFSET(Filters!$BD$4:$BD$1503,0,$A113-1)=COUNTIFS($A$42:$A113,$A113)-1))/ $T113),"") ->  | K113: =IF(K$42>0,IF(OR($T113=0,COUNTIFS($A$42:$A113,$A113)=1),"",SUM((Filters!$F$4:$F$1503)*'Share Calculation'!AT$4:AT$1503*(OFFSET(Filters!$BD$4:$BD$1503,0,$A113-1)=COUNTIFS($A$42:$A113,$A113)-1))/ $T113),"") ->  | L113: =IF(L$42>0,IF(OR($T113=0,COUNTIFS($A$42:$A113,$A113)=1),"",SUM((Filters!$F$4:$F$1503)*'Share Calculation'!AU$4:AU$1503*(OFFSET(Filters!$BD$4:$BD$1503,0,$A113-1)=COUNTIFS($A$42:$A113,$A113)-1))/ $T113),"") ->  | M113: =IF(M$42>0,IF(OR($T113=0,COUNTIFS($A$42:$A113,$A113)=1),"",SUM((Filters!$F$4:$F$1503)*'Share Calculation'!AV$4:AV$1503*(OFFSET(Filters!$BD$4:$BD$1503,0,$A113-1)=COUNTIFS($A$42:$A113,$A113)-1))/ $T113),"") ->  | N113: =IF(N$42>0,IF(OR($T113=0,COUNTIFS($A$42:$A113,$A113)=1),"",SUM((Filters!$F$4:$F$1503)*'Share Calculation'!AW$4:AW$1503*(OFFSET(Filters!$BD$4:$BD$1503,0,$A113-1)=COUNTIFS($A$42:$A113,$A113)-1))/ $T113),"") ->  | O113: =IF(O$42>0,IF(OR($T113=0,COUNTIFS($A$42:$A113,$A113)=1),"",SUM((Filters!$F$4:$F$1503)*'Share Calculation'!AX$4:AX$1503*(OFFSET(Filters!$BD$4:$BD$1503,0,$A113-1)=COUNTIFS($A$42:$A113,$A113)-1))/ $T113),"") ->  | P113: =IF(P$42>0,IF(OR($T113=0,COUNTIFS($A$42:$A113,$A113)=1),"",SUM((Filters!$F$4:$F$1503)*'Share Calculation'!AY$4:AY$1503*(OFFSET(Filters!$BD$4:$BD$1503,0,$A113-1)=COUNTIFS($A$42:$A113,$A113)-1))/ $T113),"") ->  | Q113: =IF(Q$42>0,IF(OR($T113=0,COUNTIFS($A$42:$A113,$A113)=1),"",SUM((Filters!$F$4:$F$1503)*'Share Calculation'!AZ$4:AZ$1503*(OFFSET(Filters!$BD$4:$BD$1503,0,$A113-1)=COUNTIFS($A$42:$A113,$A113)-1))/ $T113),"") ->  | R113: =IF(COUNTIFS($A$42:$A113,$A113)=1,"",SUMIFS(Filters!$F$4:$F$1503,OFFSET(Filters!$BD$4:$BD$1503,0,$A113-1),COUNTIFS($A$42:$A113,$A113)-1)/Filters!$I$2) ->  | S113: Yes | T113: =IF(COUNTIFS($A$42:$A113,$A113)=1,"",COUNTIFS(OFFSET(Filters!$BD$4:$BD$1503,0,$A113-1),COUNTIFS($A$42:$A113,$A113)-1,Filters!$B$4:$B$1503,1)) -> 
A114: 12 | C114: =VLOOKUP($A114,Filters!$H$4:$AG$1065,1+COUNTIFS($A$42:$A114,$A114),FALSE) -> Strongly agree | F114: =IF(F$42>0,IF(OR($T114=0,COUNTIFS($A$42:$A114,$A114)=1),"",SUM((Filters!$F$4:$F$1503)*'Share Calculation'!AO$4:AO$1503*(OFFSET(Filters!$BD$4:$BD$1503,0,$A114-1)=COUNTIFS($A$42:$A114,$A114)-1))/ $T114),"") -> 0.6152282643 | G114: =IF(G$42>0,IF(OR($T114=0,COUNTIFS($A$42:$A114,$A114)=1),"",SUM((Filters!$F$4:$F$1503)*'Share Calculation'!AP$4:AP$1503*(OFFSET(Filters!$BD$4:$BD$1503,0,$A114-1)=COUNTIFS($A$42:$A114,$A114)-1))/ $T114),"") -> 0.3847717357 | H114: =IF(H$42>0,IF(OR($T114=0,COUNTIFS($A$42:$A114,$A114)=1),"",SUM((Filters!$F$4:$F$1503)*'Share Calculation'!AQ$4:AQ$1503*(OFFSET(Filters!$BD$4:$BD$1503,0,$A114-1)=COUNTIFS($A$42:$A114,$A114)-1))/ $T114),"") ->  | I114: =IF(I$42>0,IF(OR($T114=0,COUNTIFS($A$42:$A114,$A114)=1),"",SUM((Filters!$F$4:$F$1503)*'Share Calculation'!AR$4:AR$1503*(OFFSET(Filters!$BD$4:$BD$1503,0,$A114-1)=COUNTIFS($A$42:$A114,$A114)-1))/ $T114),"") ->  | J114: =IF(J$42>0,IF(OR($T114=0,COUNTIFS($A$42:$A114,$A114)=1),"",SUM((Filters!$F$4:$F$1503)*'Share Calculation'!AS$4:AS$1503*(OFFSET(Filters!$BD$4:$BD$1503,0,$A114-1)=COUNTIFS($A$42:$A114,$A114)-1))/ $T114),"") ->  | K114: =IF(K$42>0,IF(OR($T114=0,COUNTIFS($A$42:$A114,$A114)=1),"",SUM((Filters!$F$4:$F$1503)*'Share Calculation'!AT$4:AT$1503*(OFFSET(Filters!$BD$4:$BD$1503,0,$A114-1)=COUNTIFS($A$42:$A114,$A114)-1))/ $T114),"") ->  | L114: =IF(L$42>0,IF(OR($T114=0,COUNTIFS($A$42:$A114,$A114)=1),"",SUM((Filters!$F$4:$F$1503)*'Share Calculation'!AU$4:AU$1503*(OFFSET(Filters!$BD$4:$BD$1503,0,$A114-1)=COUNTIFS($A$42:$A114,$A114)-1))/ $T114),"") ->  | M114: =IF(M$42>0,IF(OR($T114=0,COUNTIFS($A$42:$A114,$A114)=1),"",SUM((Filters!$F$4:$F$1503)*'Share Calculation'!AV$4:AV$1503*(OFFSET(Filters!$BD$4:$BD$1503,0,$A114-1)=COUNTIFS($A$42:$A114,$A114)-1))/ $T114),"") ->  | N114: =IF(N$42>0,IF(OR($T114=0,COUNTIFS($A$42:$A114,$A114)=1),"",SUM((Filters!$F$4:$F$1503)*'Share Calculation'!AW$4:AW$1503*(OFFSET(Filters!$BD$4:$BD$1503,0,$A114-1)=COUNTIFS($A$42:$A114,$A114)-1))/ $T114),"") ->  | O114: =IF(O$42>0,IF(OR($T114=0,COUNTIFS($A$42:$A114,$A114)=1),"",SUM((Filters!$F$4:$F$1503)*'Share Calculation'!AX$4:AX$1503*(OFFSET(Filters!$BD$4:$BD$1503,0,$A114-1)=COUNTIFS($A$42:$A114,$A114)-1))/ $T114),"") ->  | P114: =IF(P$42>0,IF(OR($T114=0,COUNTIFS($A$42:$A114,$A114)=1),"",SUM((Filters!$F$4:$F$1503)*'Share Calculation'!AY$4:AY$1503*(OFFSET(Filters!$BD$4:$BD$1503,0,$A114-1)=COUNTIFS($A$42:$A114,$A114)-1))/ $T114),"") ->  | Q114: =IF(Q$42>0,IF(OR($T114=0,COUNTIFS($A$42:$A114,$A114)=1),"",SUM((Filters!$F$4:$F$1503)*'Share Calculation'!AZ$4:AZ$1503*(OFFSET(Filters!$BD$4:$BD$1503,0,$A114-1)=COUNTIFS($A$42:$A114,$A114)-1))/ $T114),"") ->  | R114: =IF(COUNTIFS($A$42:$A114,$A114)=1,"",SUMIFS(Filters!$F$4:$F$1503,OFFSET(Filters!$BD$4:$BD$1503,0,$A114-1),COUNTIFS($A$42:$A114,$A114)-1)/Filters!$I$2) -> 0.1390625 | S114: Yes | T114: =IF(COUNTIFS($A$42:$A114,$A114)=1,"",COUNTIFS(OFFSET(Filters!$BD$4:$BD$1503,0,$A114-1),COUNTIFS($A$42:$A114,$A114)-1,Filters!$B$4:$B$1503,1)) -> 89
A115: 12 | C115: =VLOOKUP($A115,Filters!$H$4:$AG$1065,1+COUNTIFS($A$42:$A115,$A115),FALSE) -> Agree | F115: =IF(F$42>0,IF(OR($T115=0,COUNTIFS($A$42:$A115,$A115)=1),"",SUM((Filters!$F$4:$F$1503)*'Share Calculation'!AO$4:AO$1503*(OFFSET(Filters!$BD$4:$BD$1503,0,$A115-1)=COUNTIFS($A$42:$A115,$A115)-1))/ $T115),"") -> 0.6395580792 | G115: =IF(G$42>0,IF(OR($T115=0,COUNTIFS($A$42:$A115,$A115)=1),"",SUM((Filters!$F$4:$F$1503)*'Share Calculation'!AP$4:AP$1503*(OFFSET(Filters!$BD$4:$BD$1503,0,$A115-1)=COUNTIFS($A$42:$A115,$A115)-1))/ $T115),"") -> 0.3604419208 | H115: =IF(H$42>0,IF(OR($T115=0,COUNTIFS($A$42:$A115,$A115)=1),"",SUM((Filters!$F$4:$F$1503)*'Share Calculation'!AQ$4:AQ$1503*(OFFSET(Filters!$BD$4:$BD$1503,0,$A115-1)=COUNTIFS($A$42:$A115,$A115)-1))/ $T115),"") ->  | I115: =IF(I$42>0,IF(OR($T115=0,COUNTIFS($A$42:$A115,$A115)=1),"",SUM((Filters!$F$4:$F$1503)*'Share Calculation'!AR$4:AR$1503*(OFFSET(Filters!$BD$4:$BD$1503,0,$A115-1)=COUNTIFS($A$42:$A115,$A115)-1))/ $T115),"") ->  | J115: =IF(J$42>0,IF(OR($T115=0,COUNTIFS($A$42:$A115,$A115)=1),"",SUM((Filters!$F$4:$F$1503)*'Share Calculation'!AS$4:AS$1503*(OFFSET(Filters!$BD$4:$BD$1503,0,$A115-1)=COUNTIFS($A$42:$A115,$A115)-1))/ $T115),"") ->  | K115: =IF(K$42>0,IF(OR($T115=0,COUNTIFS($A$42:$A115,$A115)=1),"",SUM((Filters!$F$4:$F$1503)*'Share Calculation'!AT$4:AT$1503*(OFFSET(Filters!$BD$4:$BD$1503,0,$A115-1)=COUNTIFS($A$42:$A115,$A115)-1))/ $T115),"") ->  | L115: =IF(L$42>0,IF(OR($T115=0,COUNTIFS($A$42:$A115,$A115)=1),"",SUM((Filters!$F$4:$F$1503)*'Share Calculation'!AU$4:AU$1503*(OFFSET(Filters!$BD$4:$BD$1503,0,$A115-1)=COUNTIFS($A$42:$A115,$A115)-1))/ $T115),"") ->  | M115: =IF(M$42>0,IF(OR($T115=0,COUNTIFS($A$42:$A115,$A115)=1),"",SUM((Filters!$F$4:$F$1503)*'Share Calculation'!AV$4:AV$1503*(OFFSET(Filters!$BD$4:$BD$1503,0,$A115-1)=COUNTIFS($A$42:$A115,$A115)-1))/ $T115),"") ->  | N115: =IF(N$42>0,IF(OR($T115=0,COUNTIFS($A$42:$A115,$A115)=1),"",SUM((Filters!$F$4:$F$1503)*'Share Calculation'!AW$4:AW$1503*(OFFSET(Filters!$BD$4:$BD$1503,0,$A115-1)=COUNTIFS($A$42:$A115,$A115)-1))/ $T115),"") ->  | O115: =IF(O$42>0,IF(OR($T115=0,COUNTIFS($A$42:$A115,$A115)=1),"",SUM((Filters!$F$4:$F$1503)*'Share Calculation'!AX$4:AX$1503*(OFFSET(Filters!$BD$4:$BD$1503,0,$A115-1)=COUNTIFS($A$42:$A115,$A115)-1))/ $T115),"") ->  | P115: =IF(P$42>0,IF(OR($T115=0,COUNTIFS($A$42:$A115,$A115)=1),"",SUM((Filters!$F$4:$F$1503)*'Share Calculation'!AY$4:AY$1503*(OFFSET(Filters!$BD$4:$BD$1503,0,$A115-1)=COUNTIFS($A$42:$A115,$A115)-1))/ $T115),"") ->  | Q115: =IF(Q$42>0,IF(OR($T115=0,COUNTIFS($A$42:$A115,$A115)=1),"",SUM((Filters!$F$4:$F$1503)*'Share Calculation'!AZ$4:AZ$1503*(OFFSET(Filters!$BD$4:$BD$1503,0,$A115-1)=COUNTIFS($A$42:$A115,$A115)-1))/ $T115),"") ->  | R115: =IF(COUNTIFS($A$42:$A115,$A115)=1,"",SUMIFS(Filters!$F$4:$F$1503,OFFSET(Filters!$BD$4:$BD$1503,0,$A115-1),COUNTIFS($A$42:$A115,$A115)-1)/Filters!$I$2) -> 0.2734375 | S115: Yes | T115: =IF(COUNTIFS($A$42:$A115,$A115)=1,"",COUNTIFS(OFFSET(Filters!$BD$4:$BD$1503,0,$A115-1),COUNTIFS($A$42:$A115,$A115)-1,Filters!$B$4:$B$1503,1)) -> 175
A116: 12 | C116: =VLOOKUP($A116,Filters!$H$4:$AG$1065,1+COUNTIFS($A$42:$A116,$A116),FALSE) -> Neither agree nor disagree | F116: =IF(F$42>0,IF(OR($T116=0,COUNTIFS($A$42:$A116,$A116)=1),"",SUM((Filters!$F$4:$F$1503)*'Share Calculation'!AO$4:AO$1503*(OFFSET(Filters!$BD$4:$BD$1503,0,$A116-1)=COUNTIFS($A$42:$A116,$A116)-1))/ $T116),"") -> 0.6757971146 | G116: =IF(G$42>0,IF(OR($T116=0,COUNTIFS($A$42:$A116,$A116)=1),"",SUM((Filters!$F$4:$F$1503)*'Share Calculation'!AP$4:AP$1503*(OFFSET(Filters!$BD$4:$BD$1503,0,$A116-1)=COUNTIFS($A$42:$A116,$A116)-1))/ $T116),"") -> 0.3242028854 | H116: =IF(H$42>0,IF(OR($T116=0,COUNTIFS($A$42:$A116,$A116)=1),"",SUM((Filters!$F$4:$F$1503)*'Share Calculation'!AQ$4:AQ$1503*(OFFSET(Filters!$BD$4:$BD$1503,0,$A116-1)=COUNTIFS($A$42:$A116,$A116)-1))/ $T116),"") ->  | I116: =IF(I$42>0,IF(OR($T116=0,COUNTIFS($A$42:$A116,$A116)=1),"",SUM((Filters!$F$4:$F$1503)*'Share Calculation'!AR$4:AR$1503*(OFFSET(Filters!$BD$4:$BD$1503,0,$A116-1)=COUNTIFS($A$42:$A116,$A116)-1))/ $T116),"") ->  | J116: =IF(J$42>0,IF(OR($T116=0,COUNTIFS($A$42:$A116,$A116)=1),"",SUM((Filters!$F$4:$F$1503)*'Share Calculation'!AS$4:AS$1503*(OFFSET(Filters!$BD$4:$BD$1503,0,$A116-1)=COUNTIFS($A$42:$A116,$A116)-1))/ $T116),"") ->  | K116: =IF(K$42>0,IF(OR($T116=0,COUNTIFS($A$42:$A116,$A116)=1),"",SUM((Filters!$F$4:$F$1503)*'Share Calculation'!AT$4:AT$1503*(OFFSET(Filters!$BD$4:$BD$1503,0,$A116-1)=COUNTIFS($A$42:$A116,$A116)-1))/ $T116),"") ->  | L116: =IF(L$42>0,IF(OR($T116=0,COUNTIFS($A$42:$A116,$A116)=1),"",SUM((Filters!$F$4:$F$1503)*'Share Calculation'!AU$4:AU$1503*(OFFSET(Filters!$BD$4:$BD$1503,0,$A116-1)=COUNTIFS($A$42:$A116,$A116)-1))/ $T116),"") ->  | M116: =IF(M$42>0,IF(OR($T116=0,COUNTIFS($A$42:$A116,$A116)=1),"",SUM((Filters!$F$4:$F$1503)*'Share Calculation'!AV$4:AV$1503*(OFFSET(Filters!$BD$4:$BD$1503,0,$A116-1)=COUNTIFS($A$42:$A116,$A116)-1))/ $T116),"") ->  | N116: =IF(N$42>0,IF(OR($T116=0,COUNTIFS($A$42:$A116,$A116)=1),"",SUM((Filters!$F$4:$F$1503)*'Share Calculation'!AW$4:AW$1503*(OFFSET(Filters!$BD$4:$BD$1503,0,$A116-1)=COUNTIFS($A$42:$A116,$A116)-1))/ $T116),"") ->  | O116: =IF(O$42>0,IF(OR($T116=0,COUNTIFS($A$42:$A116,$A116)=1),"",SUM((Filters!$F$4:$F$1503)*'Share Calculation'!AX$4:AX$1503*(OFFSET(Filters!$BD$4:$BD$1503,0,$A116-1)=COUNTIFS($A$42:$A116,$A116)-1))/ $T116),"") ->  | P116: =IF(P$42>0,IF(OR($T116=0,COUNTIFS($A$42:$A116,$A116)=1),"",SUM((Filters!$F$4:$F$1503)*'Share Calculation'!AY$4:AY$1503*(OFFSET(Filters!$BD$4:$BD$1503,0,$A116-1)=COUNTIFS($A$42:$A116,$A116)-1))/ $T116),"") ->  | Q116: =IF(Q$42>0,IF(OR($T116=0,COUNTIFS($A$42:$A116,$A116)=1),"",SUM((Filters!$F$4:$F$1503)*'Share Calculation'!AZ$4:AZ$1503*(OFFSET(Filters!$BD$4:$BD$1503,0,$A116-1)=COUNTIFS($A$42:$A116,$A116)-1))/ $T116),"") ->  | R116: =IF(COUNTIFS($A$42:$A116,$A116)=1,"",SUMIFS(Filters!$F$4:$F$1503,OFFSET(Filters!$BD$4:$BD$1503,0,$A116-1),COUNTIFS($A$42:$A116,$A116)-1)/Filters!$I$2) -> 0.2546875 | S116: Yes | T116: =IF(COUNTIFS($A$42:$A116,$A116)=1,"",COUNTIFS(OFFSET(Filters!$BD$4:$BD$1503,0,$A116-1),COUNTIFS($A$42:$A116,$A116)-1,Filters!$B$4:$B$1503,1)) -> 163
A117: 12 | C117: =VLOOKUP($A117,Filters!$H$4:$AG$1065,1+COUNTIFS($A$42:$A117,$A117),FALSE) -> Disagree | F117: =IF(F$42>0,IF(OR($T117=0,COUNTIFS($A$42:$A117,$A117)=1),"",SUM((Filters!$F$4:$F$1503)*'Share Calculation'!AO$4:AO$1503*(OFFSET(Filters!$BD$4:$BD$1503,0,$A117-1)=COUNTIFS($A$42:$A117,$A117)-1))/ $T117),"") -> 0.681101927 | G117: =IF(G$42>0,IF(OR($T117=0,COUNTIFS($A$42:$A117,$A117)=1),"",SUM((Filters!$F$4:$F$1503)*'Share Calculation'!AP$4:AP$1503*(OFFSET(Filters!$BD$4:$BD$1503,0,$A117-1)=COUNTIFS($A$42:$A117,$A117)-1))/ $T117),"") -> 0.318898073 | H117: =IF(H$42>0,IF(OR($T117=0,COUNTIFS($A$42:$A117,$A117)=1),"",SUM((Filters!$F$4:$F$1503)*'Share Calculation'!AQ$4:AQ$1503*(OFFSET(Filters!$BD$4:$BD$1503,0,$A117-1)=COUNTIFS($A$42:$A117,$A117)-1))/ $T117),"") ->  | I117: =IF(I$42>0,IF(OR($T117=0,COUNTIFS($A$42:$A117,$A117)=1),"",SUM((Filters!$F$4:$F$1503)*'Share Calculation'!AR$4:AR$1503*(OFFSET(Filters!$BD$4:$BD$1503,0,$A117-1)=COUNTIFS($A$42:$A117,$A117)-1))/ $T117),"") ->  | J117: =IF(J$42>0,IF(OR($T117=0,COUNTIFS($A$42:$A117,$A117)=1),"",SUM((Filters!$F$4:$F$1503)*'Share Calculation'!AS$4:AS$1503*(OFFSET(Filters!$BD$4:$BD$1503,0,$A117-1)=COUNTIFS($A$42:$A117,$A117)-1))/ $T117),"") ->  | K117: =IF(K$42>0,IF(OR($T117=0,COUNTIFS($A$42:$A117,$A117)=1),"",SUM((Filters!$F$4:$F$1503)*'Share Calculation'!AT$4:AT$1503*(OFFSET(Filters!$BD$4:$BD$1503,0,$A117-1)=COUNTIFS($A$42:$A117,$A117)-1))/ $T117),"") ->  | L117: =IF(L$42>0,IF(OR($T117=0,COUNTIFS($A$42:$A117,$A117)=1),"",SUM((Filters!$F$4:$F$1503)*'Share Calculation'!AU$4:AU$1503*(OFFSET(Filters!$BD$4:$BD$1503,0,$A117-1)=COUNTIFS($A$42:$A117,$A117)-1))/ $T117),"") ->  | M117: =IF(M$42>0,IF(OR($T117=0,COUNTIFS($A$42:$A117,$A117)=1),"",SUM((Filters!$F$4:$F$1503)*'Share Calculation'!AV$4:AV$1503*(OFFSET(Filters!$BD$4:$BD$1503,0,$A117-1)=COUNTIFS($A$42:$A117,$A117)-1))/ $T117),"") ->  | N117: =IF(N$42>0,IF(OR($T117=0,COUNTIFS($A$42:$A117,$A117)=1),"",SUM((Filters!$F$4:$F$1503)*'Share Calculation'!AW$4:AW$1503*(OFFSET(Filters!$BD$4:$BD$1503,0,$A117-1)=COUNTIFS($A$42:$A117,$A117)-1))/ $T117),"") ->  | O117: =IF(O$42>0,IF(OR($T117=0,COUNTIFS($A$42:$A117,$A117)=1),"",SUM((Filters!$F$4:$F$1503)*'Share Calculation'!AX$4:AX$1503*(OFFSET(Filters!$BD$4:$BD$1503,0,$A117-1)=COUNTIFS($A$42:$A117,$A117)-1))/ $T117),"") ->  | P117: =IF(P$42>0,IF(OR($T117=0,COUNTIFS($A$42:$A117,$A117)=1),"",SUM((Filters!$F$4:$F$1503)*'Share Calculation'!AY$4:AY$1503*(OFFSET(Filters!$BD$4:$BD$1503,0,$A117-1)=COUNTIFS($A$42:$A117,$A117)-1))/ $T117),"") ->  | Q117: =IF(Q$42>0,IF(OR($T117=0,COUNTIFS($A$42:$A117,$A117)=1),"",SUM((Filters!$F$4:$F$1503)*'Share Calculation'!AZ$4:AZ$1503*(OFFSET(Filters!$BD$4:$BD$1503,0,$A117-1)=COUNTIFS($A$42:$A117,$A117)-1))/ $T117),"") ->  | R117: =IF(COUNTIFS($A$42:$A117,$A117)=1,"",SUMIFS(Filters!$F$4:$F$1503,OFFSET(Filters!$BD$4:$BD$1503,0,$A117-1),COUNTIFS($A$42:$A117,$A117)-1)/Filters!$I$2) -> 0.265625 | S117: Yes | T117: =IF(COUNTIFS($A$42:$A117,$A117)=1,"",COUNTIFS(OFFSET(Filters!$BD$4:$BD$1503,0,$A117-1),COUNTIFS($A$42:$A117,$A117)-1,Filters!$B$4:$B$1503,1)) -> 170
A118: 12 | C118: =VLOOKUP($A118,Filters!$H$4:$AG$1065,1+COUNTIFS($A$42:$A118,$A118),FALSE) -> Strongly disagree | F118: =IF(F$42>0,IF(OR($T118=0,COUNTIFS($A$42:$A118,$A118)=1),"",SUM((Filters!$F$4:$F$1503)*'Share Calculation'!AO$4:AO$1503*(OFFSET(Filters!$BD$4:$BD$1503,0,$A118-1)=COUNTIFS($A$42:$A118,$A118)-1))/ $T118),"") -> 0.6787602548 | G118: =IF(G$42>0,IF(OR($T118=0,COUNTIFS($A$42:$A118,$A118)=1),"",SUM((Filters!$F$4:$F$1503)*'Share Calculation'!AP$4:AP$1503*(OFFSET(Filters!$BD$4:$BD$1503,0,$A118-1)=COUNTIFS($A$42:$A118,$A118)-1))/ $T118),"") -> 0.3212397452 | H118: =IF(H$42>0,IF(OR($T118=0,COUNTIFS($A$42:$A118,$A118)=1),"",SUM((Filters!$F$4:$F$1503)*'Share Calculation'!AQ$4:AQ$1503*(OFFSET(Filters!$BD$4:$BD$1503,0,$A118-1)=COUNTIFS($A$42:$A118,$A118)-1))/ $T118),"") ->  | I118: =IF(I$42>0,IF(OR($T118=0,COUNTIFS($A$42:$A118,$A118)=1),"",SUM((Filters!$F$4:$F$1503)*'Share Calculation'!AR$4:AR$1503*(OFFSET(Filters!$BD$4:$BD$1503,0,$A118-1)=COUNTIFS($A$42:$A118,$A118)-1))/ $T118),"") ->  | J118: =IF(J$42>0,IF(OR($T118=0,COUNTIFS($A$42:$A118,$A118)=1),"",SUM((Filters!$F$4:$F$1503)*'Share Calculation'!AS$4:AS$1503*(OFFSET(Filters!$BD$4:$BD$1503,0,$A118-1)=COUNTIFS($A$42:$A118,$A118)-1))/ $T118),"") ->  | K118: =IF(K$42>0,IF(OR($T118=0,COUNTIFS($A$42:$A118,$A118)=1),"",SUM((Filters!$F$4:$F$1503)*'Share Calculation'!AT$4:AT$1503*(OFFSET(Filters!$BD$4:$BD$1503,0,$A118-1)=COUNTIFS($A$42:$A118,$A118)-1))/ $T118),"") ->  | L118: =IF(L$42>0,IF(OR($T118=0,COUNTIFS($A$42:$A118,$A118)=1),"",SUM((Filters!$F$4:$F$1503)*'Share Calculation'!AU$4:AU$1503*(OFFSET(Filters!$BD$4:$BD$1503,0,$A118-1)=COUNTIFS($A$42:$A118,$A118)-1))/ $T118),"") ->  | M118: =IF(M$42>0,IF(OR($T118=0,COUNTIFS($A$42:$A118,$A118)=1),"",SUM((Filters!$F$4:$F$1503)*'Share Calculation'!AV$4:AV$1503*(OFFSET(Filters!$BD$4:$BD$1503,0,$A118-1)=COUNTIFS($A$42:$A118,$A118)-1))/ $T118),"") ->  | N118: =IF(N$42>0,IF(OR($T118=0,COUNTIFS($A$42:$A118,$A118)=1),"",SUM((Filters!$F$4:$F$1503)*'Share Calculation'!AW$4:AW$1503*(OFFSET(Filters!$BD$4:$BD$1503,0,$A118-1)=COUNTIFS($A$42:$A118,$A118)-1))/ $T118),"") ->  | O118: =IF(O$42>0,IF(OR($T118=0,COUNTIFS($A$42:$A118,$A118)=1),"",SUM((Filters!$F$4:$F$1503)*'Share Calculation'!AX$4:AX$1503*(OFFSET(Filters!$BD$4:$BD$1503,0,$A118-1)=COUNTIFS($A$42:$A118,$A118)-1))/ $T118),"") ->  | P118: =IF(P$42>0,IF(OR($T118=0,COUNTIFS($A$42:$A118,$A118)=1),"",SUM((Filters!$F$4:$F$1503)*'Share Calculation'!AY$4:AY$1503*(OFFSET(Filters!$BD$4:$BD$1503,0,$A118-1)=COUNTIFS($A$42:$A118,$A118)-1))/ $T118),"") ->  | Q118: =IF(Q$42>0,IF(OR($T118=0,COUNTIFS($A$42:$A118,$A118)=1),"",SUM((Filters!$F$4:$F$1503)*'Share Calculation'!AZ$4:AZ$1503*(OFFSET(Filters!$BD$4:$BD$1503,0,$A118-1)=COUNTIFS($A$42:$A118,$A118)-1))/ $T118),"") ->  | R118: =IF(COUNTIFS($A$42:$A118,$A118)=1,"",SUMIFS(Filters!$F$4:$F$1503,OFFSET(Filters!$BD$4:$BD$1503,0,$A118-1),COUNTIFS($A$42:$A118,$A118)-1)/Filters!$I$2) -> 0.0671875 | S118: Yes | T118: =IF(COUNTIFS($A$42:$A118,$A118)=1,"",COUNTIFS(OFFSET(Filters!$BD$4:$BD$1503,0,$A118-1),COUNTIFS($A$42:$A118,$A118)-1,Filters!$B$4:$B$1503,1)) -> 43
A119: 12 | C119: =VLOOKUP($A119,Filters!$H$4:$AG$1065,1+COUNTIFS($A$42:$A119,$A119),FALSE) -> n/a | F119: =IF(F$42>0,IF(OR($T119=0,COUNTIFS($A$42:$A119,$A119)=1),"",SUM((Filters!$F$4:$F$1503)*'Share Calculation'!AO$4:AO$1503*(OFFSET(Filters!$BD$4:$BD$1503,0,$A119-1)=COUNTIFS($A$42:$A119,$A119)-1))/ $T119),"") ->  | G119: =IF(G$42>0,IF(OR($T119=0,COUNTIFS($A$42:$A119,$A119)=1),"",SUM((Filters!$F$4:$F$1503)*'Share Calculation'!AP$4:AP$1503*(OFFSET(Filters!$BD$4:$BD$1503,0,$A119-1)=COUNTIFS($A$42:$A119,$A119)-1))/ $T119),"") ->  | H119: =IF(H$42>0,IF(OR($T119=0,COUNTIFS($A$42:$A119,$A119)=1),"",SUM((Filters!$F$4:$F$1503)*'Share Calculation'!AQ$4:AQ$1503*(OFFSET(Filters!$BD$4:$BD$1503,0,$A119-1)=COUNTIFS($A$42:$A119,$A119)-1))/ $T119),"") ->  | I119: =IF(I$42>0,IF(OR($T119=0,COUNTIFS($A$42:$A119,$A119)=1),"",SUM((Filters!$F$4:$F$1503)*'Share Calculation'!AR$4:AR$1503*(OFFSET(Filters!$BD$4:$BD$1503,0,$A119-1)=COUNTIFS($A$42:$A119,$A119)-1))/ $T119),"") ->  | J119: =IF(J$42>0,IF(OR($T119=0,COUNTIFS($A$42:$A119,$A119)=1),"",SUM((Filters!$F$4:$F$1503)*'Share Calculation'!AS$4:AS$1503*(OFFSET(Filters!$BD$4:$BD$1503,0,$A119-1)=COUNTIFS($A$42:$A119,$A119)-1))/ $T119),"") ->  | K119: =IF(K$42>0,IF(OR($T119=0,COUNTIFS($A$42:$A119,$A119)=1),"",SUM((Filters!$F$4:$F$1503)*'Share Calculation'!AT$4:AT$1503*(OFFSET(Filters!$BD$4:$BD$1503,0,$A119-1)=COUNTIFS($A$42:$A119,$A119)-1))/ $T119),"") ->  | L119: =IF(L$42>0,IF(OR($T119=0,COUNTIFS($A$42:$A119,$A119)=1),"",SUM((Filters!$F$4:$F$1503)*'Share Calculation'!AU$4:AU$1503*(OFFSET(Filters!$BD$4:$BD$1503,0,$A119-1)=COUNTIFS($A$42:$A119,$A119)-1))/ $T119),"") ->  | M119: =IF(M$42>0,IF(OR($T119=0,COUNTIFS($A$42:$A119,$A119)=1),"",SUM((Filters!$F$4:$F$1503)*'Share Calculation'!AV$4:AV$1503*(OFFSET(Filters!$BD$4:$BD$1503,0,$A119-1)=COUNTIFS($A$42:$A119,$A119)-1))/ $T119),"") ->  | N119: =IF(N$42>0,IF(OR($T119=0,COUNTIFS($A$42:$A119,$A119)=1),"",SUM((Filters!$F$4:$F$1503)*'Share Calculation'!AW$4:AW$1503*(OFFSET(Filters!$BD$4:$BD$1503,0,$A119-1)=COUNTIFS($A$42:$A119,$A119)-1))/ $T119),"") ->  | O119: =IF(O$42>0,IF(OR($T119=0,COUNTIFS($A$42:$A119,$A119)=1),"",SUM((Filters!$F$4:$F$1503)*'Share Calculation'!AX$4:AX$1503*(OFFSET(Filters!$BD$4:$BD$1503,0,$A119-1)=COUNTIFS($A$42:$A119,$A119)-1))/ $T119),"") ->  | P119: =IF(P$42>0,IF(OR($T119=0,COUNTIFS($A$42:$A119,$A119)=1),"",SUM((Filters!$F$4:$F$1503)*'Share Calculation'!AY$4:AY$1503*(OFFSET(Filters!$BD$4:$BD$1503,0,$A119-1)=COUNTIFS($A$42:$A119,$A119)-1))/ $T119),"") ->  | Q119: =IF(Q$42>0,IF(OR($T119=0,COUNTIFS($A$42:$A119,$A119)=1),"",SUM((Filters!$F$4:$F$1503)*'Share Calculation'!AZ$4:AZ$1503*(OFFSET(Filters!$BD$4:$BD$1503,0,$A119-1)=COUNTIFS($A$42:$A119,$A119)-1))/ $T119),"") ->  | R119: =IF(COUNTIFS($A$42:$A119,$A119)=1,"",SUMIFS(Filters!$F$4:$F$1503,OFFSET(Filters!$BD$4:$BD$1503,0,$A119-1),COUNTIFS($A$42:$A119,$A119)-1)/Filters!$I$2) -> 0 | S119: Yes | T119: =IF(COUNTIFS($A$42:$A119,$A119)=1,"",COUNTIFS(OFFSET(Filters!$BD$4:$BD$1503,0,$A119-1),COUNTIFS($A$42:$A119,$A119)-1,Filters!$B$4:$B$1503,1)) -> 0
A120: 13 | C120: =VLOOKUP($A120,Filters!$H$4:$AG$1065,1+COUNTIFS($A$42:$A120,$A120),FALSE) -> I regularly manage my bills online (e.g. utilities, broadband, mobile phone etc.) | F120: =IF(F$42>0,IF(OR($T120=0,COUNTIFS($A$42:$A120,$A120)=1),"",SUM((Filters!$F$4:$F$1503)*'Share Calculation'!AO$4:AO$1503*(OFFSET(Filters!$BD$4:$BD$1503,0,$A120-1)=COUNTIFS($A$42:$A120,$A120)-1))/ $T120),"") ->  | G120: =IF(G$42>0,IF(OR($T120=0,COUNTIFS($A$42:$A120,$A120)=1),"",SUM((Filters!$F$4:$F$1503)*'Share Calculation'!AP$4:AP$1503*(OFFSET(Filters!$BD$4:$BD$1503,0,$A120-1)=COUNTIFS($A$42:$A120,$A120)-1))/ $T120),"") ->  | H120: =IF(H$42>0,IF(OR($T120=0,COUNTIFS($A$42:$A120,$A120)=1),"",SUM((Filters!$F$4:$F$1503)*'Share Calculation'!AQ$4:AQ$1503*(OFFSET(Filters!$BD$4:$BD$1503,0,$A120-1)=COUNTIFS($A$42:$A120,$A120)-1))/ $T120),"") ->  | I120: =IF(I$42>0,IF(OR($T120=0,COUNTIFS($A$42:$A120,$A120)=1),"",SUM((Filters!$F$4:$F$1503)*'Share Calculation'!AR$4:AR$1503*(OFFSET(Filters!$BD$4:$BD$1503,0,$A120-1)=COUNTIFS($A$42:$A120,$A120)-1))/ $T120),"") ->  | J120: =IF(J$42>0,IF(OR($T120=0,COUNTIFS($A$42:$A120,$A120)=1),"",SUM((Filters!$F$4:$F$1503)*'Share Calculation'!AS$4:AS$1503*(OFFSET(Filters!$BD$4:$BD$1503,0,$A120-1)=COUNTIFS($A$42:$A120,$A120)-1))/ $T120),"") ->  | K120: =IF(K$42>0,IF(OR($T120=0,COUNTIFS($A$42:$A120,$A120)=1),"",SUM((Filters!$F$4:$F$1503)*'Share Calculation'!AT$4:AT$1503*(OFFSET(Filters!$BD$4:$BD$1503,0,$A120-1)=COUNTIFS($A$42:$A120,$A120)-1))/ $T120),"") ->  | L120: =IF(L$42>0,IF(OR($T120=0,COUNTIFS($A$42:$A120,$A120)=1),"",SUM((Filters!$F$4:$F$1503)*'Share Calculation'!AU$4:AU$1503*(OFFSET(Filters!$BD$4:$BD$1503,0,$A120-1)=COUNTIFS($A$42:$A120,$A120)-1))/ $T120),"") ->  | M120: =IF(M$42>0,IF(OR($T120=0,COUNTIFS($A$42:$A120,$A120)=1),"",SUM((Filters!$F$4:$F$1503)*'Share Calculation'!AV$4:AV$1503*(OFFSET(Filters!$BD$4:$BD$1503,0,$A120-1)=COUNTIFS($A$42:$A120,$A120)-1))/ $T120),"") ->  | N120: =IF(N$42>0,IF(OR($T120=0,COUNTIFS($A$42:$A120,$A120)=1),"",SUM((Filters!$F$4:$F$1503)*'Share Calculation'!AW$4:AW$1503*(OFFSET(Filters!$BD$4:$BD$1503,0,$A120-1)=COUNTIFS($A$42:$A120,$A120)-1))/ $T120),"") ->  | O120: =IF(O$42>0,IF(OR($T120=0,COUNTIFS($A$42:$A120,$A120)=1),"",SUM((Filters!$F$4:$F$1503)*'Share Calculation'!AX$4:AX$1503*(OFFSET(Filters!$BD$4:$BD$1503,0,$A120-1)=COUNTIFS($A$42:$A120,$A120)-1))/ $T120),"") ->  | P120: =IF(P$42>0,IF(OR($T120=0,COUNTIFS($A$42:$A120,$A120)=1),"",SUM((Filters!$F$4:$F$1503)*'Share Calculation'!AY$4:AY$1503*(OFFSET(Filters!$BD$4:$BD$1503,0,$A120-1)=COUNTIFS($A$42:$A120,$A120)-1))/ $T120),"") ->  | Q120: =IF(Q$42>0,IF(OR($T120=0,COUNTIFS($A$42:$A120,$A120)=1),"",SUM((Filters!$F$4:$F$1503)*'Share Calculation'!AZ$4:AZ$1503*(OFFSET(Filters!$BD$4:$BD$1503,0,$A120-1)=COUNTIFS($A$42:$A120,$A120)-1))/ $T120),"") ->  | R120: =IF(COUNTIFS($A$42:$A120,$A120)=1,"",SUMIFS(Filters!$F$4:$F$1503,OFFSET(Filters!$BD$4:$BD$1503,0,$A120-1),COUNTIFS($A$42:$A120,$A120)-1)/Filters!$I$2) ->  | S120: Yes | T120: =IF(COUNTIFS($A$42:$A120,$A120)=1,"",COUNTIFS(OFFSET(Filters!$BD$4:$BD$1503,0,$A120-1),COUNTIFS($A$42:$A120,$A120)-1,Filters!$B$4:$B$1503,1)) -> 
A121: 13 | C121: =VLOOKUP($A121,Filters!$H$4:$AG$1065,1+COUNTIFS($A$42:$A121,$A121),FALSE) -> Strongly agree | F121: =IF(F$42>0,IF(OR($T121=0,COUNTIFS($A$42:$A121,$A121)=1),"",SUM((Filters!$F$4:$F$1503)*'Share Calculation'!AO$4:AO$1503*(OFFSET(Filters!$BD$4:$BD$1503,0,$A121-1)=COUNTIFS($A$42:$A121,$A121)-1))/ $T121),"") -> 0.6709383154 | G121: =IF(G$42>0,IF(OR($T121=0,COUNTIFS($A$42:$A121,$A121)=1),"",SUM((Filters!$F$4:$F$1503)*'Share Calculation'!AP$4:AP$1503*(OFFSET(Filters!$BD$4:$BD$1503,0,$A121-1)=COUNTIFS($A$42:$A121,$A121)-1))/ $T121),"") -> 0.3290616846 | H121: =IF(H$42>0,IF(OR($T121=0,COUNTIFS($A$42:$A121,$A121)=1),"",SUM((Filters!$F$4:$F$1503)*'Share Calculation'!AQ$4:AQ$1503*(OFFSET(Filters!$BD$4:$BD$1503,0,$A121-1)=COUNTIFS($A$42:$A121,$A121)-1))/ $T121),"") ->  | I121: =IF(I$42>0,IF(OR($T121=0,COUNTIFS($A$42:$A121,$A121)=1),"",SUM((Filters!$F$4:$F$1503)*'Share Calculation'!AR$4:AR$1503*(OFFSET(Filters!$BD$4:$BD$1503,0,$A121-1)=COUNTIFS($A$42:$A121,$A121)-1))/ $T121),"") ->  | J121: =IF(J$42>0,IF(OR($T121=0,COUNTIFS($A$42:$A121,$A121)=1),"",SUM((Filters!$F$4:$F$1503)*'Share Calculation'!AS$4:AS$1503*(OFFSET(Filters!$BD$4:$BD$1503,0,$A121-1)=COUNTIFS($A$42:$A121,$A121)-1))/ $T121),"") ->  | K121: =IF(K$42>0,IF(OR($T121=0,COUNTIFS($A$42:$A121,$A121)=1),"",SUM((Filters!$F$4:$F$1503)*'Share Calculation'!AT$4:AT$1503*(OFFSET(Filters!$BD$4:$BD$1503,0,$A121-1)=COUNTIFS($A$42:$A121,$A121)-1))/ $T121),"") ->  | L121: =IF(L$42>0,IF(OR($T121=0,COUNTIFS($A$42:$A121,$A121)=1),"",SUM((Filters!$F$4:$F$1503)*'Share Calculation'!AU$4:AU$1503*(OFFSET(Filters!$BD$4:$BD$1503,0,$A121-1)=COUNTIFS($A$42:$A121,$A121)-1))/ $T121),"") ->  | M121: =IF(M$42>0,IF(OR($T121=0,COUNTIFS($A$42:$A121,$A121)=1),"",SUM((Filters!$F$4:$F$1503)*'Share Calculation'!AV$4:AV$1503*(OFFSET(Filters!$BD$4:$BD$1503,0,$A121-1)=COUNTIFS($A$42:$A121,$A121)-1))/ $T121),"") ->  | N121: =IF(N$42>0,IF(OR($T121=0,COUNTIFS($A$42:$A121,$A121)=1),"",SUM((Filters!$F$4:$F$1503)*'Share Calculation'!AW$4:AW$1503*(OFFSET(Filters!$BD$4:$BD$1503,0,$A121-1)=COUNTIFS($A$42:$A121,$A121)-1))/ $T121),"") ->  | O121: =IF(O$42>0,IF(OR($T121=0,COUNTIFS($A$42:$A121,$A121)=1),"",SUM((Filters!$F$4:$F$1503)*'Share Calculation'!AX$4:AX$1503*(OFFSET(Filters!$BD$4:$BD$1503,0,$A121-1)=COUNTIFS($A$42:$A121,$A121)-1))/ $T121),"") ->  | P121: =IF(P$42>0,IF(OR($T121=0,COUNTIFS($A$42:$A121,$A121)=1),"",SUM((Filters!$F$4:$F$1503)*'Share Calculation'!AY$4:AY$1503*(OFFSET(Filters!$BD$4:$BD$1503,0,$A121-1)=COUNTIFS($A$42:$A121,$A121)-1))/ $T121),"") ->  | Q121: =IF(Q$42>0,IF(OR($T121=0,COUNTIFS($A$42:$A121,$A121)=1),"",SUM((Filters!$F$4:$F$1503)*'Share Calculation'!AZ$4:AZ$1503*(OFFSET(Filters!$BD$4:$BD$1503,0,$A121-1)=COUNTIFS($A$42:$A121,$A121)-1))/ $T121),"") ->  | R121: =IF(COUNTIFS($A$42:$A121,$A121)=1,"",SUMIFS(Filters!$F$4:$F$1503,OFFSET(Filters!$BD$4:$BD$1503,0,$A121-1),COUNTIFS($A$42:$A121,$A121)-1)/Filters!$I$2) -> 0.328125 | S121: Yes | T121: =IF(COUNTIFS($A$42:$A121,$A121)=1,"",COUNTIFS(OFFSET(Filters!$BD$4:$BD$1503,0,$A121-1),COUNTIFS($A$42:$A121,$A121)-1,Filters!$B$4:$B$1503,1)) -> 210
A122: 13 | C122: =VLOOKUP($A122,Filters!$H$4:$AG$1065,1+COUNTIFS($A$42:$A122,$A122),FALSE) -> Agree | F122: =IF(F$42>0,IF(OR($T122=0,COUNTIFS($A$42:$A122,$A122)=1),"",SUM((Filters!$F$4:$F$1503)*'Share Calculation'!AO$4:AO$1503*(OFFSET(Filters!$BD$4:$BD$1503,0,$A122-1)=COUNTIFS($A$42:$A122,$A122)-1))/ $T122),"") -> 0.6665186073 | G122: =IF(G$42>0,IF(OR($T122=0,COUNTIFS($A$42:$A122,$A122)=1),"",SUM((Filters!$F$4:$F$1503)*'Share Calculation'!AP$4:AP$1503*(OFFSET(Filters!$BD$4:$BD$1503,0,$A122-1)=COUNTIFS($A$42:$A122,$A122)-1))/ $T122),"") -> 0.3334813927 | H122: =IF(H$42>0,IF(OR($T122=0,COUNTIFS($A$42:$A122,$A122)=1),"",SUM((Filters!$F$4:$F$1503)*'Share Calculation'!AQ$4:AQ$1503*(OFFSET(Filters!$BD$4:$BD$1503,0,$A122-1)=COUNTIFS($A$42:$A122,$A122)-1))/ $T122),"") ->  | I122: =IF(I$42>0,IF(OR($T122=0,COUNTIFS($A$42:$A122,$A122)=1),"",SUM((Filters!$F$4:$F$1503)*'Share Calculation'!AR$4:AR$1503*(OFFSET(Filters!$BD$4:$BD$1503,0,$A122-1)=COUNTIFS($A$42:$A122,$A122)-1))/ $T122),"") ->  | J122: =IF(J$42>0,IF(OR($T122=0,COUNTIFS($A$42:$A122,$A122)=1),"",SUM((Filters!$F$4:$F$1503)*'Share Calculation'!AS$4:AS$1503*(OFFSET(Filters!$BD$4:$BD$1503,0,$A122-1)=COUNTIFS($A$42:$A122,$A122)-1))/ $T122),"") ->  | K122: =IF(K$42>0,IF(OR($T122=0,COUNTIFS($A$42:$A122,$A122)=1),"",SUM((Filters!$F$4:$F$1503)*'Share Calculation'!AT$4:AT$1503*(OFFSET(Filters!$BD$4:$BD$1503,0,$A122-1)=COUNTIFS($A$42:$A122,$A122)-1))/ $T122),"") ->  | L122: =IF(L$42>0,IF(OR($T122=0,COUNTIFS($A$42:$A122,$A122)=1),"",SUM((Filters!$F$4:$F$1503)*'Share Calculation'!AU$4:AU$1503*(OFFSET(Filters!$BD$4:$BD$1503,0,$A122-1)=COUNTIFS($A$42:$A122,$A122)-1))/ $T122),"") ->  | M122: =IF(M$42>0,IF(OR($T122=0,COUNTIFS($A$42:$A122,$A122)=1),"",SUM((Filters!$F$4:$F$1503)*'Share Calculation'!AV$4:AV$1503*(OFFSET(Filters!$BD$4:$BD$1503,0,$A122-1)=COUNTIFS($A$42:$A122,$A122)-1))/ $T122),"") ->  | N122: =IF(N$42>0,IF(OR($T122=0,COUNTIFS($A$42:$A122,$A122)=1),"",SUM((Filters!$F$4:$F$1503)*'Share Calculation'!AW$4:AW$1503*(OFFSET(Filters!$BD$4:$BD$1503,0,$A122-1)=COUNTIFS($A$42:$A122,$A122)-1))/ $T122),"") ->  | O122: =IF(O$42>0,IF(OR($T122=0,COUNTIFS($A$42:$A122,$A122)=1),"",SUM((Filters!$F$4:$F$1503)*'Share Calculation'!AX$4:AX$1503*(OFFSET(Filters!$BD$4:$BD$1503,0,$A122-1)=COUNTIFS($A$42:$A122,$A122)-1))/ $T122),"") ->  | P122: =IF(P$42>0,IF(OR($T122=0,COUNTIFS($A$42:$A122,$A122)=1),"",SUM((Filters!$F$4:$F$1503)*'Share Calculation'!AY$4:AY$1503*(OFFSET(Filters!$BD$4:$BD$1503,0,$A122-1)=COUNTIFS($A$42:$A122,$A122)-1))/ $T122),"") ->  | Q122: =IF(Q$42>0,IF(OR($T122=0,COUNTIFS($A$42:$A122,$A122)=1),"",SUM((Filters!$F$4:$F$1503)*'Share Calculation'!AZ$4:AZ$1503*(OFFSET(Filters!$BD$4:$BD$1503,0,$A122-1)=COUNTIFS($A$42:$A122,$A122)-1))/ $T122),"") ->  | R122: =IF(COUNTIFS($A$42:$A122,$A122)=1,"",SUMIFS(Filters!$F$4:$F$1503,OFFSET(Filters!$BD$4:$BD$1503,0,$A122-1),COUNTIFS($A$42:$A122,$A122)-1)/Filters!$I$2) -> 0.4828125 | S122: Yes | T122: =IF(COUNTIFS($A$42:$A122,$A122)=1,"",COUNTIFS(OFFSET(Filters!$BD$4:$BD$1503,0,$A122-1),COUNTIFS($A$42:$A122,$A122)-1,Filters!$B$4:$B$1503,1)) -> 309
A123: 13 | C123: =VLOOKUP($A123,Filters!$H$4:$AG$1065,1+COUNTIFS($A$42:$A123,$A123),FALSE) -> Neither agree nor disagree | F123: =IF(F$42>0,IF(OR($T123=0,COUNTIFS($A$42:$A123,$A123)=1),"",SUM((Filters!$F$4:$F$1503)*'Share Calculation'!AO$4:AO$1503*(OFFSET(Filters!$BD$4:$BD$1503,0,$A123-1)=COUNTIFS($A$42:$A123,$A123)-1))/ $T123),"") -> 0.6291706044 | G123: =IF(G$42>0,IF(OR($T123=0,COUNTIFS($A$42:$A123,$A123)=1),"",SUM((Filters!$F$4:$F$1503)*'Share Calculation'!AP$4:AP$1503*(OFFSET(Filters!$BD$4:$BD$1503,0,$A123-1)=COUNTIFS($A$42:$A123,$A123)-1))/ $T123),"") -> 0.3708293956 | H123: =IF(H$42>0,IF(OR($T123=0,COUNTIFS($A$42:$A123,$A123)=1),"",SUM((Filters!$F$4:$F$1503)*'Share Calculation'!AQ$4:AQ$1503*(OFFSET(Filters!$BD$4:$BD$1503,0,$A123-1)=COUNTIFS($A$42:$A123,$A123)-1))/ $T123),"") ->  | I123: =IF(I$42>0,IF(OR($T123=0,COUNTIFS($A$42:$A123,$A123)=1),"",SUM((Filters!$F$4:$F$1503)*'Share Calculation'!AR$4:AR$1503*(OFFSET(Filters!$BD$4:$BD$1503,0,$A123-1)=COUNTIFS($A$42:$A123,$A123)-1))/ $T123),"") ->  | J123: =IF(J$42>0,IF(OR($T123=0,COUNTIFS($A$42:$A123,$A123)=1),"",SUM((Filters!$F$4:$F$1503)*'Share Calculation'!AS$4:AS$1503*(OFFSET(Filters!$BD$4:$BD$1503,0,$A123-1)=COUNTIFS($A$42:$A123,$A123)-1))/ $T123),"") ->  | K123: =IF(K$42>0,IF(OR($T123=0,COUNTIFS($A$42:$A123,$A123)=1),"",SUM((Filters!$F$4:$F$1503)*'Share Calculation'!AT$4:AT$1503*(OFFSET(Filters!$BD$4:$BD$1503,0,$A123-1)=COUNTIFS($A$42:$A123,$A123)-1))/ $T123),"") ->  | L123: =IF(L$42>0,IF(OR($T123=0,COUNTIFS($A$42:$A123,$A123)=1),"",SUM((Filters!$F$4:$F$1503)*'Share Calculation'!AU$4:AU$1503*(OFFSET(Filters!$BD$4:$BD$1503,0,$A123-1)=COUNTIFS($A$42:$A123,$A123)-1))/ $T123),"") ->  | M123: =IF(M$42>0,IF(OR($T123=0,COUNTIFS($A$42:$A123,$A123)=1),"",SUM((Filters!$F$4:$F$1503)*'Share Calculation'!AV$4:AV$1503*(OFFSET(Filters!$BD$4:$BD$1503,0,$A123-1)=COUNTIFS($A$42:$A123,$A123)-1))/ $T123),"") ->  | N123: =IF(N$42>0,IF(OR($T123=0,COUNTIFS($A$42:$A123,$A123)=1),"",SUM((Filters!$F$4:$F$1503)*'Share Calculation'!AW$4:AW$1503*(OFFSET(Filters!$BD$4:$BD$1503,0,$A123-1)=COUNTIFS($A$42:$A123,$A123)-1))/ $T123),"") ->  | O123: =IF(O$42>0,IF(OR($T123=0,COUNTIFS($A$42:$A123,$A123)=1),"",SUM((Filters!$F$4:$F$1503)*'Share Calculation'!AX$4:AX$1503*(OFFSET(Filters!$BD$4:$BD$1503,0,$A123-1)=COUNTIFS($A$42:$A123,$A123)-1))/ $T123),"") ->  | P123: =IF(P$42>0,IF(OR($T123=0,COUNTIFS($A$42:$A123,$A123)=1),"",SUM((Filters!$F$4:$F$1503)*'Share Calculation'!AY$4:AY$1503*(OFFSET(Filters!$BD$4:$BD$1503,0,$A123-1)=COUNTIFS($A$42:$A123,$A123)-1))/ $T123),"") ->  | Q123: =IF(Q$42>0,IF(OR($T123=0,COUNTIFS($A$42:$A123,$A123)=1),"",SUM((Filters!$F$4:$F$1503)*'Share Calculation'!AZ$4:AZ$1503*(OFFSET(Filters!$BD$4:$BD$1503,0,$A123-1)=COUNTIFS($A$42:$A123,$A123)-1))/ $T123),"") ->  | R123: =IF(COUNTIFS($A$42:$A123,$A123)=1,"",SUMIFS(Filters!$F$4:$F$1503,OFFSET(Filters!$BD$4:$BD$1503,0,$A123-1),COUNTIFS($A$42:$A123,$A123)-1)/Filters!$I$2) -> 0.13125 | S123: Yes | T123: =IF(COUNTIFS($A$42:$A123,$A123)=1,"",COUNTIFS(OFFSET(Filters!$BD$4:$BD$1503,0,$A123-1),COUNTIFS($A$42:$A123,$A123)-1,Filters!$B$4:$B$1503,1)) -> 84
A124: 13 | C124: =VLOOKUP($A124,Filters!$H$4:$AG$1065,1+COUNTIFS($A$42:$A124,$A124),FALSE) -> Disagree | F124: =IF(F$42>0,IF(OR($T124=0,COUNTIFS($A$42:$A124,$A124)=1),"",SUM((Filters!$F$4:$F$1503)*'Share Calculation'!AO$4:AO$1503*(OFFSET(Filters!$BD$4:$BD$1503,0,$A124-1)=COUNTIFS($A$42:$A124,$A124)-1))/ $T124),"") -> 0.6099871113 | G124: =IF(G$42>0,IF(OR($T124=0,COUNTIFS($A$42:$A124,$A124)=1),"",SUM((Filters!$F$4:$F$1503)*'Share Calculation'!AP$4:AP$1503*(OFFSET(Filters!$BD$4:$BD$1503,0,$A124-1)=COUNTIFS($A$42:$A124,$A124)-1))/ $T124),"") -> 0.3900128887 | H124: =IF(H$42>0,IF(OR($T124=0,COUNTIFS($A$42:$A124,$A124)=1),"",SUM((Filters!$F$4:$F$1503)*'Share Calculation'!AQ$4:AQ$1503*(OFFSET(Filters!$BD$4:$BD$1503,0,$A124-1)=COUNTIFS($A$42:$A124,$A124)-1))/ $T124),"") ->  | I124: =IF(I$42>0,IF(OR($T124=0,COUNTIFS($A$42:$A124,$A124)=1),"",SUM((Filters!$F$4:$F$1503)*'Share Calculation'!AR$4:AR$1503*(OFFSET(Filters!$BD$4:$BD$1503,0,$A124-1)=COUNTIFS($A$42:$A124,$A124)-1))/ $T124),"") ->  | J124: =IF(J$42>0,IF(OR($T124=0,COUNTIFS($A$42:$A124,$A124)=1),"",SUM((Filters!$F$4:$F$1503)*'Share Calculation'!AS$4:AS$1503*(OFFSET(Filters!$BD$4:$BD$1503,0,$A124-1)=COUNTIFS($A$42:$A124,$A124)-1))/ $T124),"") ->  | K124: =IF(K$42>0,IF(OR($T124=0,COUNTIFS($A$42:$A124,$A124)=1),"",SUM((Filters!$F$4:$F$1503)*'Share Calculation'!AT$4:AT$1503*(OFFSET(Filters!$BD$4:$BD$1503,0,$A124-1)=COUNTIFS($A$42:$A124,$A124)-1))/ $T124),"") ->  | L124: =IF(L$42>0,IF(OR($T124=0,COUNTIFS($A$42:$A124,$A124)=1),"",SUM((Filters!$F$4:$F$1503)*'Share Calculation'!AU$4:AU$1503*(OFFSET(Filters!$BD$4:$BD$1503,0,$A124-1)=COUNTIFS($A$42:$A124,$A124)-1))/ $T124),"") ->  | M124: =IF(M$42>0,IF(OR($T124=0,COUNTIFS($A$42:$A124,$A124)=1),"",SUM((Filters!$F$4:$F$1503)*'Share Calculation'!AV$4:AV$1503*(OFFSET(Filters!$BD$4:$BD$1503,0,$A124-1)=COUNTIFS($A$42:$A124,$A124)-1))/ $T124),"") ->  | N124: =IF(N$42>0,IF(OR($T124=0,COUNTIFS($A$42:$A124,$A124)=1),"",SUM((Filters!$F$4:$F$1503)*'Share Calculation'!AW$4:AW$1503*(OFFSET(Filters!$BD$4:$BD$1503,0,$A124-1)=COUNTIFS($A$42:$A124,$A124)-1))/ $T124),"") ->  | O124: =IF(O$42>0,IF(OR($T124=0,COUNTIFS($A$42:$A124,$A124)=1),"",SUM((Filters!$F$4:$F$1503)*'Share Calculation'!AX$4:AX$1503*(OFFSET(Filters!$BD$4:$BD$1503,0,$A124-1)=COUNTIFS($A$42:$A124,$A124)-1))/ $T124),"") ->  | P124: =IF(P$42>0,IF(OR($T124=0,COUNTIFS($A$42:$A124,$A124)=1),"",SUM((Filters!$F$4:$F$1503)*'Share Calculation'!AY$4:AY$1503*(OFFSET(Filters!$BD$4:$BD$1503,0,$A124-1)=COUNTIFS($A$42:$A124,$A124)-1))/ $T124),"") ->  | Q124: =IF(Q$42>0,IF(OR($T124=0,COUNTIFS($A$42:$A124,$A124)=1),"",SUM((Filters!$F$4:$F$1503)*'Share Calculation'!AZ$4:AZ$1503*(OFFSET(Filters!$BD$4:$BD$1503,0,$A124-1)=COUNTIFS($A$42:$A124,$A124)-1))/ $T124),"") ->  | R124: =IF(COUNTIFS($A$42:$A124,$A124)=1,"",SUMIFS(Filters!$F$4:$F$1503,OFFSET(Filters!$BD$4:$BD$1503,0,$A124-1),COUNTIFS($A$42:$A124,$A124)-1)/Filters!$I$2) -> 0.040625 | S124: Yes | T124: =IF(COUNTIFS($A$42:$A124,$A124)=1,"",COUNTIFS(OFFSET(Filters!$BD$4:$BD$1503,0,$A124-1),COUNTIFS($A$42:$A124,$A124)-1,Filters!$B$4:$B$1503,1)) -> 26
A125: 13 | C125: =VLOOKUP($A125,Filters!$H$4:$AG$1065,1+COUNTIFS($A$42:$A125,$A125),FALSE) -> Strongly disagree | F125: =IF(F$42>0,IF(OR($T125=0,COUNTIFS($A$42:$A125,$A125)=1),"",SUM((Filters!$F$4:$F$1503)*'Share Calculation'!AO$4:AO$1503*(OFFSET(Filters!$BD$4:$BD$1503,0,$A125-1)=COUNTIFS($A$42:$A125,$A125)-1))/ $T125),"") -> 0.5677850954 | G125: =IF(G$42>0,IF(OR($T125=0,COUNTIFS($A$42:$A125,$A125)=1),"",SUM((Filters!$F$4:$F$1503)*'Share Calculation'!AP$4:AP$1503*(OFFSET(Filters!$BD$4:$BD$1503,0,$A125-1)=COUNTIFS($A$42:$A125,$A125)-1))/ $T125),"") -> 0.4322149046 | H125: =IF(H$42>0,IF(OR($T125=0,COUNTIFS($A$42:$A125,$A125)=1),"",SUM((Filters!$F$4:$F$1503)*'Share Calculation'!AQ$4:AQ$1503*(OFFSET(Filters!$BD$4:$BD$1503,0,$A125-1)=COUNTIFS($A$42:$A125,$A125)-1))/ $T125),"") ->  | I125: =IF(I$42>0,IF(OR($T125=0,COUNTIFS($A$42:$A125,$A125)=1),"",SUM((Filters!$F$4:$F$1503)*'Share Calculation'!AR$4:AR$1503*(OFFSET(Filters!$BD$4:$BD$1503,0,$A125-1)=COUNTIFS($A$42:$A125,$A125)-1))/ $T125),"") ->  | J125: =IF(J$42>0,IF(OR($T125=0,COUNTIFS($A$42:$A125,$A125)=1),"",SUM((Filters!$F$4:$F$1503)*'Share Calculation'!AS$4:AS$1503*(OFFSET(Filters!$BD$4:$BD$1503,0,$A125-1)=COUNTIFS($A$42:$A125,$A125)-1))/ $T125),"") ->  | K125: =IF(K$42>0,IF(OR($T125=0,COUNTIFS($A$42:$A125,$A125)=1),"",SUM((Filters!$F$4:$F$1503)*'Share Calculation'!AT$4:AT$1503*(OFFSET(Filters!$BD$4:$BD$1503,0,$A125-1)=COUNTIFS($A$42:$A125,$A125)-1))/ $T125),"") ->  | L125: =IF(L$42>0,IF(OR($T125=0,COUNTIFS($A$42:$A125,$A125)=1),"",SUM((Filters!$F$4:$F$1503)*'Share Calculation'!AU$4:AU$1503*(OFFSET(Filters!$BD$4:$BD$1503,0,$A125-1)=COUNTIFS($A$42:$A125,$A125)-1))/ $T125),"") ->  | M125: =IF(M$42>0,IF(OR($T125=0,COUNTIFS($A$42:$A125,$A125)=1),"",SUM((Filters!$F$4:$F$1503)*'Share Calculation'!AV$4:AV$1503*(OFFSET(Filters!$BD$4:$BD$1503,0,$A125-1)=COUNTIFS($A$42:$A125,$A125)-1))/ $T125),"") ->  | N125: =IF(N$42>0,IF(OR($T125=0,COUNTIFS($A$42:$A125,$A125)=1),"",SUM((Filters!$F$4:$F$1503)*'Share Calculation'!AW$4:AW$1503*(OFFSET(Filters!$BD$4:$BD$1503,0,$A125-1)=COUNTIFS($A$42:$A125,$A125)-1))/ $T125),"") ->  | O125: =IF(O$42>0,IF(OR($T125=0,COUNTIFS($A$42:$A125,$A125)=1),"",SUM((Filters!$F$4:$F$1503)*'Share Calculation'!AX$4:AX$1503*(OFFSET(Filters!$BD$4:$BD$1503,0,$A125-1)=COUNTIFS($A$42:$A125,$A125)-1))/ $T125),"") ->  | P125: =IF(P$42>0,IF(OR($T125=0,COUNTIFS($A$42:$A125,$A125)=1),"",SUM((Filters!$F$4:$F$1503)*'Share Calculation'!AY$4:AY$1503*(OFFSET(Filters!$BD$4:$BD$1503,0,$A125-1)=COUNTIFS($A$42:$A125,$A125)-1))/ $T125),"") ->  | Q125: =IF(Q$42>0,IF(OR($T125=0,COUNTIFS($A$42:$A125,$A125)=1),"",SUM((Filters!$F$4:$F$1503)*'Share Calculation'!AZ$4:AZ$1503*(OFFSET(Filters!$BD$4:$BD$1503,0,$A125-1)=COUNTIFS($A$42:$A125,$A125)-1))/ $T125),"") ->  | R125: =IF(COUNTIFS($A$42:$A125,$A125)=1,"",SUMIFS(Filters!$F$4:$F$1503,OFFSET(Filters!$BD$4:$BD$1503,0,$A125-1),COUNTIFS($A$42:$A125,$A125)-1)/Filters!$I$2) -> 0.0171875 | S125: Yes | T125: =IF(COUNTIFS($A$42:$A125,$A125)=1,"",COUNTIFS(OFFSET(Filters!$BD$4:$BD$1503,0,$A125-1),COUNTIFS($A$42:$A125,$A125)-1,Filters!$B$4:$B$1503,1)) -> 11
A126: 13 | C126: =VLOOKUP($A126,Filters!$H$4:$AG$1065,1+COUNTIFS($A$42:$A126,$A126),FALSE) -> n/a | F126: =IF(F$42>0,IF(OR($T126=0,COUNTIFS($A$42:$A126,$A126)=1),"",SUM((Filters!$F$4:$F$1503)*'Share Calculation'!AO$4:AO$1503*(OFFSET(Filters!$BD$4:$BD$1503,0,$A126-1)=COUNTIFS($A$42:$A126,$A126)-1))/ $T126),"") ->  | G126: =IF(G$42>0,IF(OR($T126=0,COUNTIFS($A$42:$A126,$A126)=1),"",SUM((Filters!$F$4:$F$1503)*'Share Calculation'!AP$4:AP$1503*(OFFSET(Filters!$BD$4:$BD$1503,0,$A126-1)=COUNTIFS($A$42:$A126,$A126)-1))/ $T126),"") ->  | H126: =IF(H$42>0,IF(OR($T126=0,COUNTIFS($A$42:$A126,$A126)=1),"",SUM((Filters!$F$4:$F$1503)*'Share Calculation'!AQ$4:AQ$1503*(OFFSET(Filters!$BD$4:$BD$1503,0,$A126-1)=COUNTIFS($A$42:$A126,$A126)-1))/ $T126),"") ->  | I126: =IF(I$42>0,IF(OR($T126=0,COUNTIFS($A$42:$A126,$A126)=1),"",SUM((Filters!$F$4:$F$1503)*'Share Calculation'!AR$4:AR$1503*(OFFSET(Filters!$BD$4:$BD$1503,0,$A126-1)=COUNTIFS($A$42:$A126,$A126)-1))/ $T126),"") ->  | J126: =IF(J$42>0,IF(OR($T126=0,COUNTIFS($A$42:$A126,$A126)=1),"",SUM((Filters!$F$4:$F$1503)*'Share Calculation'!AS$4:AS$1503*(OFFSET(Filters!$BD$4:$BD$1503,0,$A126-1)=COUNTIFS($A$42:$A126,$A126)-1))/ $T126),"") ->  | K126: =IF(K$42>0,IF(OR($T126=0,COUNTIFS($A$42:$A126,$A126)=1),"",SUM((Filters!$F$4:$F$1503)*'Share Calculation'!AT$4:AT$1503*(OFFSET(Filters!$BD$4:$BD$1503,0,$A126-1)=COUNTIFS($A$42:$A126,$A126)-1))/ $T126),"") ->  | L126: =IF(L$42>0,IF(OR($T126=0,COUNTIFS($A$42:$A126,$A126)=1),"",SUM((Filters!$F$4:$F$1503)*'Share Calculation'!AU$4:AU$1503*(OFFSET(Filters!$BD$4:$BD$1503,0,$A126-1)=COUNTIFS($A$42:$A126,$A126)-1))/ $T126),"") ->  | M126: =IF(M$42>0,IF(OR($T126=0,COUNTIFS($A$42:$A126,$A126)=1),"",SUM((Filters!$F$4:$F$1503)*'Share Calculation'!AV$4:AV$1503*(OFFSET(Filters!$BD$4:$BD$1503,0,$A126-1)=COUNTIFS($A$42:$A126,$A126)-1))/ $T126),"") ->  | N126: =IF(N$42>0,IF(OR($T126=0,COUNTIFS($A$42:$A126,$A126)=1),"",SUM((Filters!$F$4:$F$1503)*'Share Calculation'!AW$4:AW$1503*(OFFSET(Filters!$BD$4:$BD$1503,0,$A126-1)=COUNTIFS($A$42:$A126,$A126)-1))/ $T126),"") ->  | O126: =IF(O$42>0,IF(OR($T126=0,COUNTIFS($A$42:$A126,$A126)=1),"",SUM((Filters!$F$4:$F$1503)*'Share Calculation'!AX$4:AX$1503*(OFFSET(Filters!$BD$4:$BD$1503,0,$A126-1)=COUNTIFS($A$42:$A126,$A126)-1))/ $T126),"") ->  | P126: =IF(P$42>0,IF(OR($T126=0,COUNTIFS($A$42:$A126,$A126)=1),"",SUM((Filters!$F$4:$F$1503)*'Share Calculation'!AY$4:AY$1503*(OFFSET(Filters!$BD$4:$BD$1503,0,$A126-1)=COUNTIFS($A$42:$A126,$A126)-1))/ $T126),"") ->  | Q126: =IF(Q$42>0,IF(OR($T126=0,COUNTIFS($A$42:$A126,$A126)=1),"",SUM((Filters!$F$4:$F$1503)*'Share Calculation'!AZ$4:AZ$1503*(OFFSET(Filters!$BD$4:$BD$1503,0,$A126-1)=COUNTIFS($A$42:$A126,$A126)-1))/ $T126),"") ->  | R126: =IF(COUNTIFS($A$42:$A126,$A126)=1,"",SUMIFS(Filters!$F$4:$F$1503,OFFSET(Filters!$BD$4:$BD$1503,0,$A126-1),COUNTIFS($A$42:$A126,$A126)-1)/Filters!$I$2) -> 0 | S126: Yes | T126: =IF(COUNTIFS($A$42:$A126,$A126)=1,"",COUNTIFS(OFFSET(Filters!$BD$4:$BD$1503,0,$A126-1),COUNTIFS($A$42:$A126,$A126)-1,Filters!$B$4:$B$1503,1)) -> 0
A127: 14 | C127: =VLOOKUP($A127,Filters!$H$4:$AG$1065,1+COUNTIFS($A$42:$A127,$A127),FALSE) -> Water used in the day-to-day work | F127: =IF(F$42>0,IF(OR($T127=0,COUNTIFS($A$42:$A127,$A127)=1),"",SUM((Filters!$F$4:$F$1503)*'Share Calculation'!AO$4:AO$1503*(OFFSET(Filters!$BD$4:$BD$1503,0,$A127-1)=COUNTIFS($A$42:$A127,$A127)-1))/ $T127),"") ->  | G127: =IF(G$42>0,IF(OR($T127=0,COUNTIFS($A$42:$A127,$A127)=1),"",SUM((Filters!$F$4:$F$1503)*'Share Calculation'!AP$4:AP$1503*(OFFSET(Filters!$BD$4:$BD$1503,0,$A127-1)=COUNTIFS($A$42:$A127,$A127)-1))/ $T127),"") ->  | H127: =IF(H$42>0,IF(OR($T127=0,COUNTIFS($A$42:$A127,$A127)=1),"",SUM((Filters!$F$4:$F$1503)*'Share Calculation'!AQ$4:AQ$1503*(OFFSET(Filters!$BD$4:$BD$1503,0,$A127-1)=COUNTIFS($A$42:$A127,$A127)-1))/ $T127),"") ->  | I127: =IF(I$42>0,IF(OR($T127=0,COUNTIFS($A$42:$A127,$A127)=1),"",SUM((Filters!$F$4:$F$1503)*'Share Calculation'!AR$4:AR$1503*(OFFSET(Filters!$BD$4:$BD$1503,0,$A127-1)=COUNTIFS($A$42:$A127,$A127)-1))/ $T127),"") ->  | J127: =IF(J$42>0,IF(OR($T127=0,COUNTIFS($A$42:$A127,$A127)=1),"",SUM((Filters!$F$4:$F$1503)*'Share Calculation'!AS$4:AS$1503*(OFFSET(Filters!$BD$4:$BD$1503,0,$A127-1)=COUNTIFS($A$42:$A127,$A127)-1))/ $T127),"") ->  | K127: =IF(K$42>0,IF(OR($T127=0,COUNTIFS($A$42:$A127,$A127)=1),"",SUM((Filters!$F$4:$F$1503)*'Share Calculation'!AT$4:AT$1503*(OFFSET(Filters!$BD$4:$BD$1503,0,$A127-1)=COUNTIFS($A$42:$A127,$A127)-1))/ $T127),"") ->  | L127: =IF(L$42>0,IF(OR($T127=0,COUNTIFS($A$42:$A127,$A127)=1),"",SUM((Filters!$F$4:$F$1503)*'Share Calculation'!AU$4:AU$1503*(OFFSET(Filters!$BD$4:$BD$1503,0,$A127-1)=COUNTIFS($A$42:$A127,$A127)-1))/ $T127),"") ->  | M127: =IF(M$42>0,IF(OR($T127=0,COUNTIFS($A$42:$A127,$A127)=1),"",SUM((Filters!$F$4:$F$1503)*'Share Calculation'!AV$4:AV$1503*(OFFSET(Filters!$BD$4:$BD$1503,0,$A127-1)=COUNTIFS($A$42:$A127,$A127)-1))/ $T127),"") ->  | N127: =IF(N$42>0,IF(OR($T127=0,COUNTIFS($A$42:$A127,$A127)=1),"",SUM((Filters!$F$4:$F$1503)*'Share Calculation'!AW$4:AW$1503*(OFFSET(Filters!$BD$4:$BD$1503,0,$A127-1)=COUNTIFS($A$42:$A127,$A127)-1))/ $T127),"") ->  | O127: =IF(O$42>0,IF(OR($T127=0,COUNTIFS($A$42:$A127,$A127)=1),"",SUM((Filters!$F$4:$F$1503)*'Share Calculation'!AX$4:AX$1503*(OFFSET(Filters!$BD$4:$BD$1503,0,$A127-1)=COUNTIFS($A$42:$A127,$A127)-1))/ $T127),"") ->  | P127: =IF(P$42>0,IF(OR($T127=0,COUNTIFS($A$42:$A127,$A127)=1),"",SUM((Filters!$F$4:$F$1503)*'Share Calculation'!AY$4:AY$1503*(OFFSET(Filters!$BD$4:$BD$1503,0,$A127-1)=COUNTIFS($A$42:$A127,$A127)-1))/ $T127),"") ->  | Q127: =IF(Q$42>0,IF(OR($T127=0,COUNTIFS($A$42:$A127,$A127)=1),"",SUM((Filters!$F$4:$F$1503)*'Share Calculation'!AZ$4:AZ$1503*(OFFSET(Filters!$BD$4:$BD$1503,0,$A127-1)=COUNTIFS($A$42:$A127,$A127)-1))/ $T127),"") ->  | R127: =IF(COUNTIFS($A$42:$A127,$A127)=1,"",SUMIFS(Filters!$F$4:$F$1503,OFFSET(Filters!$BD$4:$BD$1503,0,$A127-1),COUNTIFS($A$42:$A127,$A127)-1)/Filters!$I$2) ->  | S127: Yes | T127: =IF(COUNTIFS($A$42:$A127,$A127)=1,"",COUNTIFS(OFFSET(Filters!$BD$4:$BD$1503,0,$A127-1),COUNTIFS($A$42:$A127,$A127)-1,Filters!$B$4:$B$1503,1)) -> 
A128: 14 | C128: =VLOOKUP($A128,Filters!$H$4:$AG$1065,1+COUNTIFS($A$42:$A128,$A128),FALSE) -> Yes | F128: =IF(F$42>0,IF(OR($T128=0,COUNTIFS($A$42:$A128,$A128)=1),"",SUM((Filters!$F$4:$F$1503)*'Share Calculation'!AO$4:AO$1503*(OFFSET(Filters!$BD$4:$BD$1503,0,$A128-1)=COUNTIFS($A$42:$A128,$A128)-1))/ $T128),"") ->  | G128: =IF(G$42>0,IF(OR($T128=0,COUNTIFS($A$42:$A128,$A128)=1),"",SUM((Filters!$F$4:$F$1503)*'Share Calculation'!AP$4:AP$1503*(OFFSET(Filters!$BD$4:$BD$1503,0,$A128-1)=COUNTIFS($A$42:$A128,$A128)-1))/ $T128),"") ->  | H128: =IF(H$42>0,IF(OR($T128=0,COUNTIFS($A$42:$A128,$A128)=1),"",SUM((Filters!$F$4:$F$1503)*'Share Calculation'!AQ$4:AQ$1503*(OFFSET(Filters!$BD$4:$BD$1503,0,$A128-1)=COUNTIFS($A$42:$A128,$A128)-1))/ $T128),"") ->  | I128: =IF(I$42>0,IF(OR($T128=0,COUNTIFS($A$42:$A128,$A128)=1),"",SUM((Filters!$F$4:$F$1503)*'Share Calculation'!AR$4:AR$1503*(OFFSET(Filters!$BD$4:$BD$1503,0,$A128-1)=COUNTIFS($A$42:$A128,$A128)-1))/ $T128),"") ->  | J128: =IF(J$42>0,IF(OR($T128=0,COUNTIFS($A$42:$A128,$A128)=1),"",SUM((Filters!$F$4:$F$1503)*'Share Calculation'!AS$4:AS$1503*(OFFSET(Filters!$BD$4:$BD$1503,0,$A128-1)=COUNTIFS($A$42:$A128,$A128)-1))/ $T128),"") ->  | K128: =IF(K$42>0,IF(OR($T128=0,COUNTIFS($A$42:$A128,$A128)=1),"",SUM((Filters!$F$4:$F$1503)*'Share Calculation'!AT$4:AT$1503*(OFFSET(Filters!$BD$4:$BD$1503,0,$A128-1)=COUNTIFS($A$42:$A128,$A128)-1))/ $T128),"") ->  | L128: =IF(L$42>0,IF(OR($T128=0,COUNTIFS($A$42:$A128,$A128)=1),"",SUM((Filters!$F$4:$F$1503)*'Share Calculation'!AU$4:AU$1503*(OFFSET(Filters!$BD$4:$BD$1503,0,$A128-1)=COUNTIFS($A$42:$A128,$A128)-1))/ $T128),"") ->  | M128: =IF(M$42>0,IF(OR($T128=0,COUNTIFS($A$42:$A128,$A128)=1),"",SUM((Filters!$F$4:$F$1503)*'Share Calculation'!AV$4:AV$1503*(OFFSET(Filters!$BD$4:$BD$1503,0,$A128-1)=COUNTIFS($A$42:$A128,$A128)-1))/ $T128),"") ->  | N128: =IF(N$42>0,IF(OR($T128=0,COUNTIFS($A$42:$A128,$A128)=1),"",SUM((Filters!$F$4:$F$1503)*'Share Calculation'!AW$4:AW$1503*(OFFSET(Filters!$BD$4:$BD$1503,0,$A128-1)=COUNTIFS($A$42:$A128,$A128)-1))/ $T128),"") ->  | O128: =IF(O$42>0,IF(OR($T128=0,COUNTIFS($A$42:$A128,$A128)=1),"",SUM((Filters!$F$4:$F$1503)*'Share Calculation'!AX$4:AX$1503*(OFFSET(Filters!$BD$4:$BD$1503,0,$A128-1)=COUNTIFS($A$42:$A128,$A128)-1))/ $T128),"") ->  | P128: =IF(P$42>0,IF(OR($T128=0,COUNTIFS($A$42:$A128,$A128)=1),"",SUM((Filters!$F$4:$F$1503)*'Share Calculation'!AY$4:AY$1503*(OFFSET(Filters!$BD$4:$BD$1503,0,$A128-1)=COUNTIFS($A$42:$A128,$A128)-1))/ $T128),"") ->  | Q128: =IF(Q$42>0,IF(OR($T128=0,COUNTIFS($A$42:$A128,$A128)=1),"",SUM((Filters!$F$4:$F$1503)*'Share Calculation'!AZ$4:AZ$1503*(OFFSET(Filters!$BD$4:$BD$1503,0,$A128-1)=COUNTIFS($A$42:$A128,$A128)-1))/ $T128),"") ->  | R128: =IF(COUNTIFS($A$42:$A128,$A128)=1,"",SUMIFS(Filters!$F$4:$F$1503,OFFSET(Filters!$BD$4:$BD$1503,0,$A128-1),COUNTIFS($A$42:$A128,$A128)-1)/Filters!$I$2) -> 0 | S128: Yes | T128: =IF(COUNTIFS($A$42:$A128,$A128)=1,"",COUNTIFS(OFFSET(Filters!$BD$4:$BD$1503,0,$A128-1),COUNTIFS($A$42:$A128,$A128)-1,Filters!$B$4:$B$1503,1)) -> 0
A129: 14 | C129: =VLOOKUP($A129,Filters!$H$4:$AG$1065,1+COUNTIFS($A$42:$A129,$A129),FALSE) -> No | F129: =IF(F$42>0,IF(OR($T129=0,COUNTIFS($A$42:$A129,$A129)=1),"",SUM((Filters!$F$4:$F$1503)*'Share Calculation'!AO$4:AO$1503*(OFFSET(Filters!$BD$4:$BD$1503,0,$A129-1)=COUNTIFS($A$42:$A129,$A129)-1))/ $T129),"") ->  | G129: =IF(G$42>0,IF(OR($T129=0,COUNTIFS($A$42:$A129,$A129)=1),"",SUM((Filters!$F$4:$F$1503)*'Share Calculation'!AP$4:AP$1503*(OFFSET(Filters!$BD$4:$BD$1503,0,$A129-1)=COUNTIFS($A$42:$A129,$A129)-1))/ $T129),"") ->  | H129: =IF(H$42>0,IF(OR($T129=0,COUNTIFS($A$42:$A129,$A129)=1),"",SUM((Filters!$F$4:$F$1503)*'Share Calculation'!AQ$4:AQ$1503*(OFFSET(Filters!$BD$4:$BD$1503,0,$A129-1)=COUNTIFS($A$42:$A129,$A129)-1))/ $T129),"") ->  | I129: =IF(I$42>0,IF(OR($T129=0,COUNTIFS($A$42:$A129,$A129)=1),"",SUM((Filters!$F$4:$F$1503)*'Share Calculation'!AR$4:AR$1503*(OFFSET(Filters!$BD$4:$BD$1503,0,$A129-1)=COUNTIFS($A$42:$A129,$A129)-1))/ $T129),"") ->  | J129: =IF(J$42>0,IF(OR($T129=0,COUNTIFS($A$42:$A129,$A129)=1),"",SUM((Filters!$F$4:$F$1503)*'Share Calculation'!AS$4:AS$1503*(OFFSET(Filters!$BD$4:$BD$1503,0,$A129-1)=COUNTIFS($A$42:$A129,$A129)-1))/ $T129),"") ->  | K129: =IF(K$42>0,IF(OR($T129=0,COUNTIFS($A$42:$A129,$A129)=1),"",SUM((Filters!$F$4:$F$1503)*'Share Calculation'!AT$4:AT$1503*(OFFSET(Filters!$BD$4:$BD$1503,0,$A129-1)=COUNTIFS($A$42:$A129,$A129)-1))/ $T129),"") ->  | L129: =IF(L$42>0,IF(OR($T129=0,COUNTIFS($A$42:$A129,$A129)=1),"",SUM((Filters!$F$4:$F$1503)*'Share Calculation'!AU$4:AU$1503*(OFFSET(Filters!$BD$4:$BD$1503,0,$A129-1)=COUNTIFS($A$42:$A129,$A129)-1))/ $T129),"") ->  | M129: =IF(M$42>0,IF(OR($T129=0,COUNTIFS($A$42:$A129,$A129)=1),"",SUM((Filters!$F$4:$F$1503)*'Share Calculation'!AV$4:AV$1503*(OFFSET(Filters!$BD$4:$BD$1503,0,$A129-1)=COUNTIFS($A$42:$A129,$A129)-1))/ $T129),"") ->  | N129: =IF(N$42>0,IF(OR($T129=0,COUNTIFS($A$42:$A129,$A129)=1),"",SUM((Filters!$F$4:$F$1503)*'Share Calculation'!AW$4:AW$1503*(OFFSET(Filters!$BD$4:$BD$1503,0,$A129-1)=COUNTIFS($A$42:$A129,$A129)-1))/ $T129),"") ->  | O129: =IF(O$42>0,IF(OR($T129=0,COUNTIFS($A$42:$A129,$A129)=1),"",SUM((Filters!$F$4:$F$1503)*'Share Calculation'!AX$4:AX$1503*(OFFSET(Filters!$BD$4:$BD$1503,0,$A129-1)=COUNTIFS($A$42:$A129,$A129)-1))/ $T129),"") ->  | P129: =IF(P$42>0,IF(OR($T129=0,COUNTIFS($A$42:$A129,$A129)=1),"",SUM((Filters!$F$4:$F$1503)*'Share Calculation'!AY$4:AY$1503*(OFFSET(Filters!$BD$4:$BD$1503,0,$A129-1)=COUNTIFS($A$42:$A129,$A129)-1))/ $T129),"") ->  | Q129: =IF(Q$42>0,IF(OR($T129=0,COUNTIFS($A$42:$A129,$A129)=1),"",SUM((Filters!$F$4:$F$1503)*'Share Calculation'!AZ$4:AZ$1503*(OFFSET(Filters!$BD$4:$BD$1503,0,$A129-1)=COUNTIFS($A$42:$A129,$A129)-1))/ $T129),"") ->  | R129: =IF(COUNTIFS($A$42:$A129,$A129)=1,"",SUMIFS(Filters!$F$4:$F$1503,OFFSET(Filters!$BD$4:$BD$1503,0,$A129-1),COUNTIFS($A$42:$A129,$A129)-1)/Filters!$I$2) -> 0 | S129: Yes | T129: =IF(COUNTIFS($A$42:$A129,$A129)=1,"",COUNTIFS(OFFSET(Filters!$BD$4:$BD$1503,0,$A129-1),COUNTIFS($A$42:$A129,$A129)-1,Filters!$B$4:$B$1503,1)) -> 0
A130: 14 | C130: =VLOOKUP($A130,Filters!$H$4:$AG$1065,1+COUNTIFS($A$42:$A130,$A130),FALSE) -> n/a | F130: =IF(F$42>0,IF(OR($T130=0,COUNTIFS($A$42:$A130,$A130)=1),"",SUM((Filters!$F$4:$F$1503)*'Share Calculation'!AO$4:AO$1503*(OFFSET(Filters!$BD$4:$BD$1503,0,$A130-1)=COUNTIFS($A$42:$A130,$A130)-1))/ $T130),"") -> 0.6590733244 | G130: =IF(G$42>0,IF(OR($T130=0,COUNTIFS($A$42:$A130,$A130)=1),"",SUM((Filters!$F$4:$F$1503)*'Share Calculation'!AP$4:AP$1503*(OFFSET(Filters!$BD$4:$BD$1503,0,$A130-1)=COUNTIFS($A$42:$A130,$A130)-1))/ $T130),"") -> 0.3409266756 | H130: =IF(H$42>0,IF(OR($T130=0,COUNTIFS($A$42:$A130,$A130)=1),"",SUM((Filters!$F$4:$F$1503)*'Share Calculation'!AQ$4:AQ$1503*(OFFSET(Filters!$BD$4:$BD$1503,0,$A130-1)=COUNTIFS($A$42:$A130,$A130)-1))/ $T130),"") ->  | I130: =IF(I$42>0,IF(OR($T130=0,COUNTIFS($A$42:$A130,$A130)=1),"",SUM((Filters!$F$4:$F$1503)*'Share Calculation'!AR$4:AR$1503*(OFFSET(Filters!$BD$4:$BD$1503,0,$A130-1)=COUNTIFS($A$42:$A130,$A130)-1))/ $T130),"") ->  | J130: =IF(J$42>0,IF(OR($T130=0,COUNTIFS($A$42:$A130,$A130)=1),"",SUM((Filters!$F$4:$F$1503)*'Share Calculation'!AS$4:AS$1503*(OFFSET(Filters!$BD$4:$BD$1503,0,$A130-1)=COUNTIFS($A$42:$A130,$A130)-1))/ $T130),"") ->  | K130: =IF(K$42>0,IF(OR($T130=0,COUNTIFS($A$42:$A130,$A130)=1),"",SUM((Filters!$F$4:$F$1503)*'Share Calculation'!AT$4:AT$1503*(OFFSET(Filters!$BD$4:$BD$1503,0,$A130-1)=COUNTIFS($A$42:$A130,$A130)-1))/ $T130),"") ->  | L130: =IF(L$42>0,IF(OR($T130=0,COUNTIFS($A$42:$A130,$A130)=1),"",SUM((Filters!$F$4:$F$1503)*'Share Calculation'!AU$4:AU$1503*(OFFSET(Filters!$BD$4:$BD$1503,0,$A130-1)=COUNTIFS($A$42:$A130,$A130)-1))/ $T130),"") ->  | M130: =IF(M$42>0,IF(OR($T130=0,COUNTIFS($A$42:$A130,$A130)=1),"",SUM((Filters!$F$4:$F$1503)*'Share Calculation'!AV$4:AV$1503*(OFFSET(Filters!$BD$4:$BD$1503,0,$A130-1)=COUNTIFS($A$42:$A130,$A130)-1))/ $T130),"") ->  | N130: =IF(N$42>0,IF(OR($T130=0,COUNTIFS($A$42:$A130,$A130)=1),"",SUM((Filters!$F$4:$F$1503)*'Share Calculation'!AW$4:AW$1503*(OFFSET(Filters!$BD$4:$BD$1503,0,$A130-1)=COUNTIFS($A$42:$A130,$A130)-1))/ $T130),"") ->  | O130: =IF(O$42>0,IF(OR($T130=0,COUNTIFS($A$42:$A130,$A130)=1),"",SUM((Filters!$F$4:$F$1503)*'Share Calculation'!AX$4:AX$1503*(OFFSET(Filters!$BD$4:$BD$1503,0,$A130-1)=COUNTIFS($A$42:$A130,$A130)-1))/ $T130),"") ->  | P130: =IF(P$42>0,IF(OR($T130=0,COUNTIFS($A$42:$A130,$A130)=1),"",SUM((Filters!$F$4:$F$1503)*'Share Calculation'!AY$4:AY$1503*(OFFSET(Filters!$BD$4:$BD$1503,0,$A130-1)=COUNTIFS($A$42:$A130,$A130)-1))/ $T130),"") ->  | Q130: =IF(Q$42>0,IF(OR($T130=0,COUNTIFS($A$42:$A130,$A130)=1),"",SUM((Filters!$F$4:$F$1503)*'Share Calculation'!AZ$4:AZ$1503*(OFFSET(Filters!$BD$4:$BD$1503,0,$A130-1)=COUNTIFS($A$42:$A130,$A130)-1))/ $T130),"") ->  | R130: =IF(COUNTIFS($A$42:$A130,$A130)=1,"",SUMIFS(Filters!$F$4:$F$1503,OFFSET(Filters!$BD$4:$BD$1503,0,$A130-1),COUNTIFS($A$42:$A130,$A130)-1)/Filters!$I$2) -> 1 | S130: Yes | T130: =IF(COUNTIFS($A$42:$A130,$A130)=1,"",COUNTIFS(OFFSET(Filters!$BD$4:$BD$1503,0,$A130-1),COUNTIFS($A$42:$A130,$A130)-1,Filters!$B$4:$B$1503,1)) -> 640
A131: 15 | C131: =VLOOKUP($A131,Filters!$H$4:$AG$1065,1+COUNTIFS($A$42:$A131,$A131),FALSE) -> Importance of water | F131: =IF(F$42>0,IF(OR($T131=0,COUNTIFS($A$42:$A131,$A131)=1),"",SUM((Filters!$F$4:$F$1503)*'Share Calculation'!AO$4:AO$1503*(OFFSET(Filters!$BD$4:$BD$1503,0,$A131-1)=COUNTIFS($A$42:$A131,$A131)-1))/ $T131),"") ->  | G131: =IF(G$42>0,IF(OR($T131=0,COUNTIFS($A$42:$A131,$A131)=1),"",SUM((Filters!$F$4:$F$1503)*'Share Calculation'!AP$4:AP$1503*(OFFSET(Filters!$BD$4:$BD$1503,0,$A131-1)=COUNTIFS($A$42:$A131,$A131)-1))/ $T131),"") ->  | H131: =IF(H$42>0,IF(OR($T131=0,COUNTIFS($A$42:$A131,$A131)=1),"",SUM((Filters!$F$4:$F$1503)*'Share Calculation'!AQ$4:AQ$1503*(OFFSET(Filters!$BD$4:$BD$1503,0,$A131-1)=COUNTIFS($A$42:$A131,$A131)-1))/ $T131),"") ->  | I131: =IF(I$42>0,IF(OR($T131=0,COUNTIFS($A$42:$A131,$A131)=1),"",SUM((Filters!$F$4:$F$1503)*'Share Calculation'!AR$4:AR$1503*(OFFSET(Filters!$BD$4:$BD$1503,0,$A131-1)=COUNTIFS($A$42:$A131,$A131)-1))/ $T131),"") ->  | J131: =IF(J$42>0,IF(OR($T131=0,COUNTIFS($A$42:$A131,$A131)=1),"",SUM((Filters!$F$4:$F$1503)*'Share Calculation'!AS$4:AS$1503*(OFFSET(Filters!$BD$4:$BD$1503,0,$A131-1)=COUNTIFS($A$42:$A131,$A131)-1))/ $T131),"") ->  | K131: =IF(K$42>0,IF(OR($T131=0,COUNTIFS($A$42:$A131,$A131)=1),"",SUM((Filters!$F$4:$F$1503)*'Share Calculation'!AT$4:AT$1503*(OFFSET(Filters!$BD$4:$BD$1503,0,$A131-1)=COUNTIFS($A$42:$A131,$A131)-1))/ $T131),"") ->  | L131: =IF(L$42>0,IF(OR($T131=0,COUNTIFS($A$42:$A131,$A131)=1),"",SUM((Filters!$F$4:$F$1503)*'Share Calculation'!AU$4:AU$1503*(OFFSET(Filters!$BD$4:$BD$1503,0,$A131-1)=COUNTIFS($A$42:$A131,$A131)-1))/ $T131),"") ->  | M131: =IF(M$42>0,IF(OR($T131=0,COUNTIFS($A$42:$A131,$A131)=1),"",SUM((Filters!$F$4:$F$1503)*'Share Calculation'!AV$4:AV$1503*(OFFSET(Filters!$BD$4:$BD$1503,0,$A131-1)=COUNTIFS($A$42:$A131,$A131)-1))/ $T131),"") ->  | N131: =IF(N$42>0,IF(OR($T131=0,COUNTIFS($A$42:$A131,$A131)=1),"",SUM((Filters!$F$4:$F$1503)*'Share Calculation'!AW$4:AW$1503*(OFFSET(Filters!$BD$4:$BD$1503,0,$A131-1)=COUNTIFS($A$42:$A131,$A131)-1))/ $T131),"") ->  | O131: =IF(O$42>0,IF(OR($T131=0,COUNTIFS($A$42:$A131,$A131)=1),"",SUM((Filters!$F$4:$F$1503)*'Share Calculation'!AX$4:AX$1503*(OFFSET(Filters!$BD$4:$BD$1503,0,$A131-1)=COUNTIFS($A$42:$A131,$A131)-1))/ $T131),"") ->  | P131: =IF(P$42>0,IF(OR($T131=0,COUNTIFS($A$42:$A131,$A131)=1),"",SUM((Filters!$F$4:$F$1503)*'Share Calculation'!AY$4:AY$1503*(OFFSET(Filters!$BD$4:$BD$1503,0,$A131-1)=COUNTIFS($A$42:$A131,$A131)-1))/ $T131),"") ->  | Q131: =IF(Q$42>0,IF(OR($T131=0,COUNTIFS($A$42:$A131,$A131)=1),"",SUM((Filters!$F$4:$F$1503)*'Share Calculation'!AZ$4:AZ$1503*(OFFSET(Filters!$BD$4:$BD$1503,0,$A131-1)=COUNTIFS($A$42:$A131,$A131)-1))/ $T131),"") ->  | R131: =IF(COUNTIFS($A$42:$A131,$A131)=1,"",SUMIFS(Filters!$F$4:$F$1503,OFFSET(Filters!$BD$4:$BD$1503,0,$A131-1),COUNTIFS($A$42:$A131,$A131)-1)/Filters!$I$2) ->  | S131: Yes | T131: =IF(COUNTIFS($A$42:$A131,$A131)=1,"",COUNTIFS(OFFSET(Filters!$BD$4:$BD$1503,0,$A131-1),COUNTIFS($A$42:$A131,$A131)-1,Filters!$B$4:$B$1503,1)) -> 
A132: 15 | C132: =VLOOKUP($A132,Filters!$H$4:$AG$1065,1+COUNTIFS($A$42:$A132,$A132),FALSE) -> It is critical to the running of the business | F132: =IF(F$42>0,IF(OR($T132=0,COUNTIFS($A$42:$A132,$A132)=1),"",SUM((Filters!$F$4:$F$1503)*'Share Calculation'!AO$4:AO$1503*(OFFSET(Filters!$BD$4:$BD$1503,0,$A132-1)=COUNTIFS($A$42:$A132,$A132)-1))/ $T132),"") ->  | G132: =IF(G$42>0,IF(OR($T132=0,COUNTIFS($A$42:$A132,$A132)=1),"",SUM((Filters!$F$4:$F$1503)*'Share Calculation'!AP$4:AP$1503*(OFFSET(Filters!$BD$4:$BD$1503,0,$A132-1)=COUNTIFS($A$42:$A132,$A132)-1))/ $T132),"") ->  | H132: =IF(H$42>0,IF(OR($T132=0,COUNTIFS($A$42:$A132,$A132)=1),"",SUM((Filters!$F$4:$F$1503)*'Share Calculation'!AQ$4:AQ$1503*(OFFSET(Filters!$BD$4:$BD$1503,0,$A132-1)=COUNTIFS($A$42:$A132,$A132)-1))/ $T132),"") ->  | I132: =IF(I$42>0,IF(OR($T132=0,COUNTIFS($A$42:$A132,$A132)=1),"",SUM((Filters!$F$4:$F$1503)*'Share Calculation'!AR$4:AR$1503*(OFFSET(Filters!$BD$4:$BD$1503,0,$A132-1)=COUNTIFS($A$42:$A132,$A132)-1))/ $T132),"") ->  | J132: =IF(J$42>0,IF(OR($T132=0,COUNTIFS($A$42:$A132,$A132)=1),"",SUM((Filters!$F$4:$F$1503)*'Share Calculation'!AS$4:AS$1503*(OFFSET(Filters!$BD$4:$BD$1503,0,$A132-1)=COUNTIFS($A$42:$A132,$A132)-1))/ $T132),"") ->  | K132: =IF(K$42>0,IF(OR($T132=0,COUNTIFS($A$42:$A132,$A132)=1),"",SUM((Filters!$F$4:$F$1503)*'Share Calculation'!AT$4:AT$1503*(OFFSET(Filters!$BD$4:$BD$1503,0,$A132-1)=COUNTIFS($A$42:$A132,$A132)-1))/ $T132),"") ->  | L132: =IF(L$42>0,IF(OR($T132=0,COUNTIFS($A$42:$A132,$A132)=1),"",SUM((Filters!$F$4:$F$1503)*'Share Calculation'!AU$4:AU$1503*(OFFSET(Filters!$BD$4:$BD$1503,0,$A132-1)=COUNTIFS($A$42:$A132,$A132)-1))/ $T132),"") ->  | M132: =IF(M$42>0,IF(OR($T132=0,COUNTIFS($A$42:$A132,$A132)=1),"",SUM((Filters!$F$4:$F$1503)*'Share Calculation'!AV$4:AV$1503*(OFFSET(Filters!$BD$4:$BD$1503,0,$A132-1)=COUNTIFS($A$42:$A132,$A132)-1))/ $T132),"") ->  | N132: =IF(N$42>0,IF(OR($T132=0,COUNTIFS($A$42:$A132,$A132)=1),"",SUM((Filters!$F$4:$F$1503)*'Share Calculation'!AW$4:AW$1503*(OFFSET(Filters!$BD$4:$BD$1503,0,$A132-1)=COUNTIFS($A$42:$A132,$A132)-1))/ $T132),"") ->  | O132: =IF(O$42>0,IF(OR($T132=0,COUNTIFS($A$42:$A132,$A132)=1),"",SUM((Filters!$F$4:$F$1503)*'Share Calculation'!AX$4:AX$1503*(OFFSET(Filters!$BD$4:$BD$1503,0,$A132-1)=COUNTIFS($A$42:$A132,$A132)-1))/ $T132),"") ->  | P132: =IF(P$42>0,IF(OR($T132=0,COUNTIFS($A$42:$A132,$A132)=1),"",SUM((Filters!$F$4:$F$1503)*'Share Calculation'!AY$4:AY$1503*(OFFSET(Filters!$BD$4:$BD$1503,0,$A132-1)=COUNTIFS($A$42:$A132,$A132)-1))/ $T132),"") ->  | Q132: =IF(Q$42>0,IF(OR($T132=0,COUNTIFS($A$42:$A132,$A132)=1),"",SUM((Filters!$F$4:$F$1503)*'Share Calculation'!AZ$4:AZ$1503*(OFFSET(Filters!$BD$4:$BD$1503,0,$A132-1)=COUNTIFS($A$42:$A132,$A132)-1))/ $T132),"") ->  | R132: =IF(COUNTIFS($A$42:$A132,$A132)=1,"",SUMIFS(Filters!$F$4:$F$1503,OFFSET(Filters!$BD$4:$BD$1503,0,$A132-1),COUNTIFS($A$42:$A132,$A132)-1)/Filters!$I$2) -> 0 | S132: Yes | T132: =IF(COUNTIFS($A$42:$A132,$A132)=1,"",COUNTIFS(OFFSET(Filters!$BD$4:$BD$1503,0,$A132-1),COUNTIFS($A$42:$A132,$A132)-1,Filters!$B$4:$B$1503,1)) -> 0
A133: 15 | C133: =VLOOKUP($A133,Filters!$H$4:$AG$1065,1+COUNTIFS($A$42:$A133,$A133),FALSE) -> It is critical to the running of the business w/ negative impact if removed | F133: =IF(F$42>0,IF(OR($T133=0,COUNTIFS($A$42:$A133,$A133)=1),"",SUM((Filters!$F$4:$F$1503)*'Share Calculation'!AO$4:AO$1503*(OFFSET(Filters!$BD$4:$BD$1503,0,$A133-1)=COUNTIFS($A$42:$A133,$A133)-1))/ $T133),"") ->  | G133: =IF(G$42>0,IF(OR($T133=0,COUNTIFS($A$42:$A133,$A133)=1),"",SUM((Filters!$F$4:$F$1503)*'Share Calculation'!AP$4:AP$1503*(OFFSET(Filters!$BD$4:$BD$1503,0,$A133-1)=COUNTIFS($A$42:$A133,$A133)-1))/ $T133),"") ->  | H133: =IF(H$42>0,IF(OR($T133=0,COUNTIFS($A$42:$A133,$A133)=1),"",SUM((Filters!$F$4:$F$1503)*'Share Calculation'!AQ$4:AQ$1503*(OFFSET(Filters!$BD$4:$BD$1503,0,$A133-1)=COUNTIFS($A$42:$A133,$A133)-1))/ $T133),"") ->  | I133: =IF(I$42>0,IF(OR($T133=0,COUNTIFS($A$42:$A133,$A133)=1),"",SUM((Filters!$F$4:$F$1503)*'Share Calculation'!AR$4:AR$1503*(OFFSET(Filters!$BD$4:$BD$1503,0,$A133-1)=COUNTIFS($A$42:$A133,$A133)-1))/ $T133),"") ->  | J133: =IF(J$42>0,IF(OR($T133=0,COUNTIFS($A$42:$A133,$A133)=1),"",SUM((Filters!$F$4:$F$1503)*'Share Calculation'!AS$4:AS$1503*(OFFSET(Filters!$BD$4:$BD$1503,0,$A133-1)=COUNTIFS($A$42:$A133,$A133)-1))/ $T133),"") ->  | K133: =IF(K$42>0,IF(OR($T133=0,COUNTIFS($A$42:$A133,$A133)=1),"",SUM((Filters!$F$4:$F$1503)*'Share Calculation'!AT$4:AT$1503*(OFFSET(Filters!$BD$4:$BD$1503,0,$A133-1)=COUNTIFS($A$42:$A133,$A133)-1))/ $T133),"") ->  | L133: =IF(L$42>0,IF(OR($T133=0,COUNTIFS($A$42:$A133,$A133)=1),"",SUM((Filters!$F$4:$F$1503)*'Share Calculation'!AU$4:AU$1503*(OFFSET(Filters!$BD$4:$BD$1503,0,$A133-1)=COUNTIFS($A$42:$A133,$A133)-1))/ $T133),"") ->  | M133: =IF(M$42>0,IF(OR($T133=0,COUNTIFS($A$42:$A133,$A133)=1),"",SUM((Filters!$F$4:$F$1503)*'Share Calculation'!AV$4:AV$1503*(OFFSET(Filters!$BD$4:$BD$1503,0,$A133-1)=COUNTIFS($A$42:$A133,$A133)-1))/ $T133),"") ->  | N133: =IF(N$42>0,IF(OR($T133=0,COUNTIFS($A$42:$A133,$A133)=1),"",SUM((Filters!$F$4:$F$1503)*'Share Calculation'!AW$4:AW$1503*(OFFSET(Filters!$BD$4:$BD$1503,0,$A133-1)=COUNTIFS($A$42:$A133,$A133)-1))/ $T133),"") ->  | O133: =IF(O$42>0,IF(OR($T133=0,COUNTIFS($A$42:$A133,$A133)=1),"",SUM((Filters!$F$4:$F$1503)*'Share Calculation'!AX$4:AX$1503*(OFFSET(Filters!$BD$4:$BD$1503,0,$A133-1)=COUNTIFS($A$42:$A133,$A133)-1))/ $T133),"") ->  | P133: =IF(P$42>0,IF(OR($T133=0,COUNTIFS($A$42:$A133,$A133)=1),"",SUM((Filters!$F$4:$F$1503)*'Share Calculation'!AY$4:AY$1503*(OFFSET(Filters!$BD$4:$BD$1503,0,$A133-1)=COUNTIFS($A$42:$A133,$A133)-1))/ $T133),"") ->  | Q133: =IF(Q$42>0,IF(OR($T133=0,COUNTIFS($A$42:$A133,$A133)=1),"",SUM((Filters!$F$4:$F$1503)*'Share Calculation'!AZ$4:AZ$1503*(OFFSET(Filters!$BD$4:$BD$1503,0,$A133-1)=COUNTIFS($A$42:$A133,$A133)-1))/ $T133),"") ->  | R133: =IF(COUNTIFS($A$42:$A133,$A133)=1,"",SUMIFS(Filters!$F$4:$F$1503,OFFSET(Filters!$BD$4:$BD$1503,0,$A133-1),COUNTIFS($A$42:$A133,$A133)-1)/Filters!$I$2) -> 0 | S133: Yes | T133: =IF(COUNTIFS($A$42:$A133,$A133)=1,"",COUNTIFS(OFFSET(Filters!$BD$4:$BD$1503,0,$A133-1),COUNTIFS($A$42:$A133,$A133)-1,Filters!$B$4:$B$1503,1)) -> 0
A134: 15 | C134: =VLOOKUP($A134,Filters!$H$4:$AG$1065,1+COUNTIFS($A$42:$A134,$A134),FALSE) -> It is not critical | F134: =IF(F$42>0,IF(OR($T134=0,COUNTIFS($A$42:$A134,$A134)=1),"",SUM((Filters!$F$4:$F$1503)*'Share Calculation'!AO$4:AO$1503*(OFFSET(Filters!$BD$4:$BD$1503,0,$A134-1)=COUNTIFS($A$42:$A134,$A134)-1))/ $T134),"") ->  | G134: =IF(G$42>0,IF(OR($T134=0,COUNTIFS($A$42:$A134,$A134)=1),"",SUM((Filters!$F$4:$F$1503)*'Share Calculation'!AP$4:AP$1503*(OFFSET(Filters!$BD$4:$BD$1503,0,$A134-1)=COUNTIFS($A$42:$A134,$A134)-1))/ $T134),"") ->  | H134: =IF(H$42>0,IF(OR($T134=0,COUNTIFS($A$42:$A134,$A134)=1),"",SUM((Filters!$F$4:$F$1503)*'Share Calculation'!AQ$4:AQ$1503*(OFFSET(Filters!$BD$4:$BD$1503,0,$A134-1)=COUNTIFS($A$42:$A134,$A134)-1))/ $T134),"") ->  | I134: =IF(I$42>0,IF(OR($T134=0,COUNTIFS($A$42:$A134,$A134)=1),"",SUM((Filters!$F$4:$F$1503)*'Share Calculation'!AR$4:AR$1503*(OFFSET(Filters!$BD$4:$BD$1503,0,$A134-1)=COUNTIFS($A$42:$A134,$A134)-1))/ $T134),"") ->  | J134: =IF(J$42>0,IF(OR($T134=0,COUNTIFS($A$42:$A134,$A134)=1),"",SUM((Filters!$F$4:$F$1503)*'Share Calculation'!AS$4:AS$1503*(OFFSET(Filters!$BD$4:$BD$1503,0,$A134-1)=COUNTIFS($A$42:$A134,$A134)-1))/ $T134),"") ->  | K134: =IF(K$42>0,IF(OR($T134=0,COUNTIFS($A$42:$A134,$A134)=1),"",SUM((Filters!$F$4:$F$1503)*'Share Calculation'!AT$4:AT$1503*(OFFSET(Filters!$BD$4:$BD$1503,0,$A134-1)=COUNTIFS($A$42:$A134,$A134)-1))/ $T134),"") ->  | L134: =IF(L$42>0,IF(OR($T134=0,COUNTIFS($A$42:$A134,$A134)=1),"",SUM((Filters!$F$4:$F$1503)*'Share Calculation'!AU$4:AU$1503*(OFFSET(Filters!$BD$4:$BD$1503,0,$A134-1)=COUNTIFS($A$42:$A134,$A134)-1))/ $T134),"") ->  | M134: =IF(M$42>0,IF(OR($T134=0,COUNTIFS($A$42:$A134,$A134)=1),"",SUM((Filters!$F$4:$F$1503)*'Share Calculation'!AV$4:AV$1503*(OFFSET(Filters!$BD$4:$BD$1503,0,$A134-1)=COUNTIFS($A$42:$A134,$A134)-1))/ $T134),"") ->  | N134: =IF(N$42>0,IF(OR($T134=0,COUNTIFS($A$42:$A134,$A134)=1),"",SUM((Filters!$F$4:$F$1503)*'Share Calculation'!AW$4:AW$1503*(OFFSET(Filters!$BD$4:$BD$1503,0,$A134-1)=COUNTIFS($A$42:$A134,$A134)-1))/ $T134),"") ->  | O134: =IF(O$42>0,IF(OR($T134=0,COUNTIFS($A$42:$A134,$A134)=1),"",SUM((Filters!$F$4:$F$1503)*'Share Calculation'!AX$4:AX$1503*(OFFSET(Filters!$BD$4:$BD$1503,0,$A134-1)=COUNTIFS($A$42:$A134,$A134)-1))/ $T134),"") ->  | P134: =IF(P$42>0,IF(OR($T134=0,COUNTIFS($A$42:$A134,$A134)=1),"",SUM((Filters!$F$4:$F$1503)*'Share Calculation'!AY$4:AY$1503*(OFFSET(Filters!$BD$4:$BD$1503,0,$A134-1)=COUNTIFS($A$42:$A134,$A134)-1))/ $T134),"") ->  | Q134: =IF(Q$42>0,IF(OR($T134=0,COUNTIFS($A$42:$A134,$A134)=1),"",SUM((Filters!$F$4:$F$1503)*'Share Calculation'!AZ$4:AZ$1503*(OFFSET(Filters!$BD$4:$BD$1503,0,$A134-1)=COUNTIFS($A$42:$A134,$A134)-1))/ $T134),"") ->  | R134: =IF(COUNTIFS($A$42:$A134,$A134)=1,"",SUMIFS(Filters!$F$4:$F$1503,OFFSET(Filters!$BD$4:$BD$1503,0,$A134-1),COUNTIFS($A$42:$A134,$A134)-1)/Filters!$I$2) -> 0 | S134: Yes | T134: =IF(COUNTIFS($A$42:$A134,$A134)=1,"",COUNTIFS(OFFSET(Filters!$BD$4:$BD$1503,0,$A134-1),COUNTIFS($A$42:$A134,$A134)-1,Filters!$B$4:$B$1503,1)) -> 0
A135: 15 | C135: =VLOOKUP($A135,Filters!$H$4:$AG$1065,1+COUNTIFS($A$42:$A135,$A135),FALSE) -> n/a | F135: =IF(F$42>0,IF(OR($T135=0,COUNTIFS($A$42:$A135,$A135)=1),"",SUM((Filters!$F$4:$F$1503)*'Share Calculation'!AO$4:AO$1503*(OFFSET(Filters!$BD$4:$BD$1503,0,$A135-1)=COUNTIFS($A$42:$A135,$A135)-1))/ $T135),"") -> 0.6590733244 | G135: =IF(G$42>0,IF(OR($T135=0,COUNTIFS($A$42:$A135,$A135)=1),"",SUM((Filters!$F$4:$F$1503)*'Share Calculation'!AP$4:AP$1503*(OFFSET(Filters!$BD$4:$BD$1503,0,$A135-1)=COUNTIFS($A$42:$A135,$A135)-1))/ $T135),"") -> 0.3409266756 | H135: =IF(H$42>0,IF(OR($T135=0,COUNTIFS($A$42:$A135,$A135)=1),"",SUM((Filters!$F$4:$F$1503)*'Share Calculation'!AQ$4:AQ$1503*(OFFSET(Filters!$BD$4:$BD$1503,0,$A135-1)=COUNTIFS($A$42:$A135,$A135)-1))/ $T135),"") ->  | I135: =IF(I$42>0,IF(OR($T135=0,COUNTIFS($A$42:$A135,$A135)=1),"",SUM((Filters!$F$4:$F$1503)*'Share Calculation'!AR$4:AR$1503*(OFFSET(Filters!$BD$4:$BD$1503,0,$A135-1)=COUNTIFS($A$42:$A135,$A135)-1))/ $T135),"") ->  | J135: =IF(J$42>0,IF(OR($T135=0,COUNTIFS($A$42:$A135,$A135)=1),"",SUM((Filters!$F$4:$F$1503)*'Share Calculation'!AS$4:AS$1503*(OFFSET(Filters!$BD$4:$BD$1503,0,$A135-1)=COUNTIFS($A$42:$A135,$A135)-1))/ $T135),"") ->  | K135: =IF(K$42>0,IF(OR($T135=0,COUNTIFS($A$42:$A135,$A135)=1),"",SUM((Filters!$F$4:$F$1503)*'Share Calculation'!AT$4:AT$1503*(OFFSET(Filters!$BD$4:$BD$1503,0,$A135-1)=COUNTIFS($A$42:$A135,$A135)-1))/ $T135),"") ->  | L135: =IF(L$42>0,IF(OR($T135=0,COUNTIFS($A$42:$A135,$A135)=1),"",SUM((Filters!$F$4:$F$1503)*'Share Calculation'!AU$4:AU$1503*(OFFSET(Filters!$BD$4:$BD$1503,0,$A135-1)=COUNTIFS($A$42:$A135,$A135)-1))/ $T135),"") ->  | M135: =IF(M$42>0,IF(OR($T135=0,COUNTIFS($A$42:$A135,$A135)=1),"",SUM((Filters!$F$4:$F$1503)*'Share Calculation'!AV$4:AV$1503*(OFFSET(Filters!$BD$4:$BD$1503,0,$A135-1)=COUNTIFS($A$42:$A135,$A135)-1))/ $T135),"") ->  | N135: =IF(N$42>0,IF(OR($T135=0,COUNTIFS($A$42:$A135,$A135)=1),"",SUM((Filters!$F$4:$F$1503)*'Share Calculation'!AW$4:AW$1503*(OFFSET(Filters!$BD$4:$BD$1503,0,$A135-1)=COUNTIFS($A$42:$A135,$A135)-1))/ $T135),"") ->  | O135: =IF(O$42>0,IF(OR($T135=0,COUNTIFS($A$42:$A135,$A135)=1),"",SUM((Filters!$F$4:$F$1503)*'Share Calculation'!AX$4:AX$1503*(OFFSET(Filters!$BD$4:$BD$1503,0,$A135-1)=COUNTIFS($A$42:$A135,$A135)-1))/ $T135),"") ->  | P135: =IF(P$42>0,IF(OR($T135=0,COUNTIFS($A$42:$A135,$A135)=1),"",SUM((Filters!$F$4:$F$1503)*'Share Calculation'!AY$4:AY$1503*(OFFSET(Filters!$BD$4:$BD$1503,0,$A135-1)=COUNTIFS($A$42:$A135,$A135)-1))/ $T135),"") ->  | Q135: =IF(Q$42>0,IF(OR($T135=0,COUNTIFS($A$42:$A135,$A135)=1),"",SUM((Filters!$F$4:$F$1503)*'Share Calculation'!AZ$4:AZ$1503*(OFFSET(Filters!$BD$4:$BD$1503,0,$A135-1)=COUNTIFS($A$42:$A135,$A135)-1))/ $T135),"") ->  | R135: =IF(COUNTIFS($A$42:$A135,$A135)=1,"",SUMIFS(Filters!$F$4:$F$1503,OFFSET(Filters!$BD$4:$BD$1503,0,$A135-1),COUNTIFS($A$42:$A135,$A135)-1)/Filters!$I$2) -> 1 | S135: Yes | T135: =IF(COUNTIFS($A$42:$A135,$A135)=1,"",COUNTIFS(OFFSET(Filters!$BD$4:$BD$1503,0,$A135-1),COUNTIFS($A$42:$A135,$A135)-1,Filters!$B$4:$B$1503,1)) -> 640
A136: 16 | C136: =VLOOKUP($A136,Filters!$H$4:$AG$1065,1+COUNTIFS($A$42:$A136,$A136),FALSE) -> No. of sites | F136: =IF(F$42>0,IF(OR($T136=0,COUNTIFS($A$42:$A136,$A136)=1),"",SUM((Filters!$F$4:$F$1503)*'Share Calculation'!AO$4:AO$1503*(OFFSET(Filters!$BD$4:$BD$1503,0,$A136-1)=COUNTIFS($A$42:$A136,$A136)-1))/ $T136),"") ->  | G136: =IF(G$42>0,IF(OR($T136=0,COUNTIFS($A$42:$A136,$A136)=1),"",SUM((Filters!$F$4:$F$1503)*'Share Calculation'!AP$4:AP$1503*(OFFSET(Filters!$BD$4:$BD$1503,0,$A136-1)=COUNTIFS($A$42:$A136,$A136)-1))/ $T136),"") ->  | H136: =IF(H$42>0,IF(OR($T136=0,COUNTIFS($A$42:$A136,$A136)=1),"",SUM((Filters!$F$4:$F$1503)*'Share Calculation'!AQ$4:AQ$1503*(OFFSET(Filters!$BD$4:$BD$1503,0,$A136-1)=COUNTIFS($A$42:$A136,$A136)-1))/ $T136),"") ->  | I136: =IF(I$42>0,IF(OR($T136=0,COUNTIFS($A$42:$A136,$A136)=1),"",SUM((Filters!$F$4:$F$1503)*'Share Calculation'!AR$4:AR$1503*(OFFSET(Filters!$BD$4:$BD$1503,0,$A136-1)=COUNTIFS($A$42:$A136,$A136)-1))/ $T136),"") ->  | J136: =IF(J$42>0,IF(OR($T136=0,COUNTIFS($A$42:$A136,$A136)=1),"",SUM((Filters!$F$4:$F$1503)*'Share Calculation'!AS$4:AS$1503*(OFFSET(Filters!$BD$4:$BD$1503,0,$A136-1)=COUNTIFS($A$42:$A136,$A136)-1))/ $T136),"") ->  | K136: =IF(K$42>0,IF(OR($T136=0,COUNTIFS($A$42:$A136,$A136)=1),"",SUM((Filters!$F$4:$F$1503)*'Share Calculation'!AT$4:AT$1503*(OFFSET(Filters!$BD$4:$BD$1503,0,$A136-1)=COUNTIFS($A$42:$A136,$A136)-1))/ $T136),"") ->  | L136: =IF(L$42>0,IF(OR($T136=0,COUNTIFS($A$42:$A136,$A136)=1),"",SUM((Filters!$F$4:$F$1503)*'Share Calculation'!AU$4:AU$1503*(OFFSET(Filters!$BD$4:$BD$1503,0,$A136-1)=COUNTIFS($A$42:$A136,$A136)-1))/ $T136),"") ->  | M136: =IF(M$42>0,IF(OR($T136=0,COUNTIFS($A$42:$A136,$A136)=1),"",SUM((Filters!$F$4:$F$1503)*'Share Calculation'!AV$4:AV$1503*(OFFSET(Filters!$BD$4:$BD$1503,0,$A136-1)=COUNTIFS($A$42:$A136,$A136)-1))/ $T136),"") ->  | N136: =IF(N$42>0,IF(OR($T136=0,COUNTIFS($A$42:$A136,$A136)=1),"",SUM((Filters!$F$4:$F$1503)*'Share Calculation'!AW$4:AW$1503*(OFFSET(Filters!$BD$4:$BD$1503,0,$A136-1)=COUNTIFS($A$42:$A136,$A136)-1))/ $T136),"") ->  | O136: =IF(O$42>0,IF(OR($T136=0,COUNTIFS($A$42:$A136,$A136)=1),"",SUM((Filters!$F$4:$F$1503)*'Share Calculation'!AX$4:AX$1503*(OFFSET(Filters!$BD$4:$BD$1503,0,$A136-1)=COUNTIFS($A$42:$A136,$A136)-1))/ $T136),"") ->  | P136: =IF(P$42>0,IF(OR($T136=0,COUNTIFS($A$42:$A136,$A136)=1),"",SUM((Filters!$F$4:$F$1503)*'Share Calculation'!AY$4:AY$1503*(OFFSET(Filters!$BD$4:$BD$1503,0,$A136-1)=COUNTIFS($A$42:$A136,$A136)-1))/ $T136),"") ->  | Q136: =IF(Q$42>0,IF(OR($T136=0,COUNTIFS($A$42:$A136,$A136)=1),"",SUM((Filters!$F$4:$F$1503)*'Share Calculation'!AZ$4:AZ$1503*(OFFSET(Filters!$BD$4:$BD$1503,0,$A136-1)=COUNTIFS($A$42:$A136,$A136)-1))/ $T136),"") ->  | R136: =IF(COUNTIFS($A$42:$A136,$A136)=1,"",SUMIFS(Filters!$F$4:$F$1503,OFFSET(Filters!$BD$4:$BD$1503,0,$A136-1),COUNTIFS($A$42:$A136,$A136)-1)/Filters!$I$2) ->  | S136: Yes | T136: =IF(COUNTIFS($A$42:$A136,$A136)=1,"",COUNTIFS(OFFSET(Filters!$BD$4:$BD$1503,0,$A136-1),COUNTIFS($A$42:$A136,$A136)-1,Filters!$B$4:$B$1503,1)) -> 
A137: 16 | C137: =VLOOKUP($A137,Filters!$H$4:$AG$1065,1+COUNTIFS($A$42:$A137,$A137),FALSE) -> 1 | F137: =IF(F$42>0,IF(OR($T137=0,COUNTIFS($A$42:$A137,$A137)=1),"",SUM((Filters!$F$4:$F$1503)*'Share Calculation'!AO$4:AO$1503*(OFFSET(Filters!$BD$4:$BD$1503,0,$A137-1)=COUNTIFS($A$42:$A137,$A137)-1))/ $T137),"") ->  | G137: =IF(G$42>0,IF(OR($T137=0,COUNTIFS($A$42:$A137,$A137)=1),"",SUM((Filters!$F$4:$F$1503)*'Share Calculation'!AP$4:AP$1503*(OFFSET(Filters!$BD$4:$BD$1503,0,$A137-1)=COUNTIFS($A$42:$A137,$A137)-1))/ $T137),"") ->  | H137: =IF(H$42>0,IF(OR($T137=0,COUNTIFS($A$42:$A137,$A137)=1),"",SUM((Filters!$F$4:$F$1503)*'Share Calculation'!AQ$4:AQ$1503*(OFFSET(Filters!$BD$4:$BD$1503,0,$A137-1)=COUNTIFS($A$42:$A137,$A137)-1))/ $T137),"") ->  | I137: =IF(I$42>0,IF(OR($T137=0,COUNTIFS($A$42:$A137,$A137)=1),"",SUM((Filters!$F$4:$F$1503)*'Share Calculation'!AR$4:AR$1503*(OFFSET(Filters!$BD$4:$BD$1503,0,$A137-1)=COUNTIFS($A$42:$A137,$A137)-1))/ $T137),"") ->  | J137: =IF(J$42>0,IF(OR($T137=0,COUNTIFS($A$42:$A137,$A137)=1),"",SUM((Filters!$F$4:$F$1503)*'Share Calculation'!AS$4:AS$1503*(OFFSET(Filters!$BD$4:$BD$1503,0,$A137-1)=COUNTIFS($A$42:$A137,$A137)-1))/ $T137),"") ->  | K137: =IF(K$42>0,IF(OR($T137=0,COUNTIFS($A$42:$A137,$A137)=1),"",SUM((Filters!$F$4:$F$1503)*'Share Calculation'!AT$4:AT$1503*(OFFSET(Filters!$BD$4:$BD$1503,0,$A137-1)=COUNTIFS($A$42:$A137,$A137)-1))/ $T137),"") ->  | L137: =IF(L$42>0,IF(OR($T137=0,COUNTIFS($A$42:$A137,$A137)=1),"",SUM((Filters!$F$4:$F$1503)*'Share Calculation'!AU$4:AU$1503*(OFFSET(Filters!$BD$4:$BD$1503,0,$A137-1)=COUNTIFS($A$42:$A137,$A137)-1))/ $T137),"") ->  | M137: =IF(M$42>0,IF(OR($T137=0,COUNTIFS($A$42:$A137,$A137)=1),"",SUM((Filters!$F$4:$F$1503)*'Share Calculation'!AV$4:AV$1503*(OFFSET(Filters!$BD$4:$BD$1503,0,$A137-1)=COUNTIFS($A$42:$A137,$A137)-1))/ $T137),"") ->  | N137: =IF(N$42>0,IF(OR($T137=0,COUNTIFS($A$42:$A137,$A137)=1),"",SUM((Filters!$F$4:$F$1503)*'Share Calculation'!AW$4:AW$1503*(OFFSET(Filters!$BD$4:$BD$1503,0,$A137-1)=COUNTIFS($A$42:$A137,$A137)-1))/ $T137),"") ->  | O137: =IF(O$42>0,IF(OR($T137=0,COUNTIFS($A$42:$A137,$A137)=1),"",SUM((Filters!$F$4:$F$1503)*'Share Calculation'!AX$4:AX$1503*(OFFSET(Filters!$BD$4:$BD$1503,0,$A137-1)=COUNTIFS($A$42:$A137,$A137)-1))/ $T137),"") ->  | P137: =IF(P$42>0,IF(OR($T137=0,COUNTIFS($A$42:$A137,$A137)=1),"",SUM((Filters!$F$4:$F$1503)*'Share Calculation'!AY$4:AY$1503*(OFFSET(Filters!$BD$4:$BD$1503,0,$A137-1)=COUNTIFS($A$42:$A137,$A137)-1))/ $T137),"") ->  | Q137: =IF(Q$42>0,IF(OR($T137=0,COUNTIFS($A$42:$A137,$A137)=1),"",SUM((Filters!$F$4:$F$1503)*'Share Calculation'!AZ$4:AZ$1503*(OFFSET(Filters!$BD$4:$BD$1503,0,$A137-1)=COUNTIFS($A$42:$A137,$A137)-1))/ $T137),"") ->  | R137: =IF(COUNTIFS($A$42:$A137,$A137)=1,"",SUMIFS(Filters!$F$4:$F$1503,OFFSET(Filters!$BD$4:$BD$1503,0,$A137-1),COUNTIFS($A$42:$A137,$A137)-1)/Filters!$I$2) -> 0 | S137: Yes | T137: =IF(COUNTIFS($A$42:$A137,$A137)=1,"",COUNTIFS(OFFSET(Filters!$BD$4:$BD$1503,0,$A137-1),COUNTIFS($A$42:$A137,$A137)-1,Filters!$B$4:$B$1503,1)) -> 0
A138: 16 | C138: =VLOOKUP($A138,Filters!$H$4:$AG$1065,1+COUNTIFS($A$42:$A138,$A138),FALSE) -> 2-4 | F138: =IF(F$42>0,IF(OR($T138=0,COUNTIFS($A$42:$A138,$A138)=1),"",SUM((Filters!$F$4:$F$1503)*'Share Calculation'!AO$4:AO$1503*(OFFSET(Filters!$BD$4:$BD$1503,0,$A138-1)=COUNTIFS($A$42:$A138,$A138)-1))/ $T138),"") ->  | G138: =IF(G$42>0,IF(OR($T138=0,COUNTIFS($A$42:$A138,$A138)=1),"",SUM((Filters!$F$4:$F$1503)*'Share Calculation'!AP$4:AP$1503*(OFFSET(Filters!$BD$4:$BD$1503,0,$A138-1)=COUNTIFS($A$42:$A138,$A138)-1))/ $T138),"") ->  | H138: =IF(H$42>0,IF(OR($T138=0,COUNTIFS($A$42:$A138,$A138)=1),"",SUM((Filters!$F$4:$F$1503)*'Share Calculation'!AQ$4:AQ$1503*(OFFSET(Filters!$BD$4:$BD$1503,0,$A138-1)=COUNTIFS($A$42:$A138,$A138)-1))/ $T138),"") ->  | I138: =IF(I$42>0,IF(OR($T138=0,COUNTIFS($A$42:$A138,$A138)=1),"",SUM((Filters!$F$4:$F$1503)*'Share Calculation'!AR$4:AR$1503*(OFFSET(Filters!$BD$4:$BD$1503,0,$A138-1)=COUNTIFS($A$42:$A138,$A138)-1))/ $T138),"") ->  | J138: =IF(J$42>0,IF(OR($T138=0,COUNTIFS($A$42:$A138,$A138)=1),"",SUM((Filters!$F$4:$F$1503)*'Share Calculation'!AS$4:AS$1503*(OFFSET(Filters!$BD$4:$BD$1503,0,$A138-1)=COUNTIFS($A$42:$A138,$A138)-1))/ $T138),"") ->  | K138: =IF(K$42>0,IF(OR($T138=0,COUNTIFS($A$42:$A138,$A138)=1),"",SUM((Filters!$F$4:$F$1503)*'Share Calculation'!AT$4:AT$1503*(OFFSET(Filters!$BD$4:$BD$1503,0,$A138-1)=COUNTIFS($A$42:$A138,$A138)-1))/ $T138),"") ->  | L138: =IF(L$42>0,IF(OR($T138=0,COUNTIFS($A$42:$A138,$A138)=1),"",SUM((Filters!$F$4:$F$1503)*'Share Calculation'!AU$4:AU$1503*(OFFSET(Filters!$BD$4:$BD$1503,0,$A138-1)=COUNTIFS($A$42:$A138,$A138)-1))/ $T138),"") ->  | M138: =IF(M$42>0,IF(OR($T138=0,COUNTIFS($A$42:$A138,$A138)=1),"",SUM((Filters!$F$4:$F$1503)*'Share Calculation'!AV$4:AV$1503*(OFFSET(Filters!$BD$4:$BD$1503,0,$A138-1)=COUNTIFS($A$42:$A138,$A138)-1))/ $T138),"") ->  | N138: =IF(N$42>0,IF(OR($T138=0,COUNTIFS($A$42:$A138,$A138)=1),"",SUM((Filters!$F$4:$F$1503)*'Share Calculation'!AW$4:AW$1503*(OFFSET(Filters!$BD$4:$BD$1503,0,$A138-1)=COUNTIFS($A$42:$A138,$A138)-1))/ $T138),"") ->  | O138: =IF(O$42>0,IF(OR($T138=0,COUNTIFS($A$42:$A138,$A138)=1),"",SUM((Filters!$F$4:$F$1503)*'Share Calculation'!AX$4:AX$1503*(OFFSET(Filters!$BD$4:$BD$1503,0,$A138-1)=COUNTIFS($A$42:$A138,$A138)-1))/ $T138),"") ->  | P138: =IF(P$42>0,IF(OR($T138=0,COUNTIFS($A$42:$A138,$A138)=1),"",SUM((Filters!$F$4:$F$1503)*'Share Calculation'!AY$4:AY$1503*(OFFSET(Filters!$BD$4:$BD$1503,0,$A138-1)=COUNTIFS($A$42:$A138,$A138)-1))/ $T138),"") ->  | Q138: =IF(Q$42>0,IF(OR($T138=0,COUNTIFS($A$42:$A138,$A138)=1),"",SUM((Filters!$F$4:$F$1503)*'Share Calculation'!AZ$4:AZ$1503*(OFFSET(Filters!$BD$4:$BD$1503,0,$A138-1)=COUNTIFS($A$42:$A138,$A138)-1))/ $T138),"") ->  | R138: =IF(COUNTIFS($A$42:$A138,$A138)=1,"",SUMIFS(Filters!$F$4:$F$1503,OFFSET(Filters!$BD$4:$BD$1503,0,$A138-1),COUNTIFS($A$42:$A138,$A138)-1)/Filters!$I$2) -> 0 | S138: Yes | T138: =IF(COUNTIFS($A$42:$A138,$A138)=1,"",COUNTIFS(OFFSET(Filters!$BD$4:$BD$1503,0,$A138-1),COUNTIFS($A$42:$A138,$A138)-1,Filters!$B$4:$B$1503,1)) -> 0
A139: 16 | C139: =VLOOKUP($A139,Filters!$H$4:$AG$1065,1+COUNTIFS($A$42:$A139,$A139),FALSE) -> 5+ | F139: =IF(F$42>0,IF(OR($T139=0,COUNTIFS($A$42:$A139,$A139)=1),"",SUM((Filters!$F$4:$F$1503)*'Share Calculation'!AO$4:AO$1503*(OFFSET(Filters!$BD$4:$BD$1503,0,$A139-1)=COUNTIFS($A$42:$A139,$A139)-1))/ $T139),"") ->  | G139: =IF(G$42>0,IF(OR($T139=0,COUNTIFS($A$42:$A139,$A139)=1),"",SUM((Filters!$F$4:$F$1503)*'Share Calculation'!AP$4:AP$1503*(OFFSET(Filters!$BD$4:$BD$1503,0,$A139-1)=COUNTIFS($A$42:$A139,$A139)-1))/ $T139),"") ->  | H139: =IF(H$42>0,IF(OR($T139=0,COUNTIFS($A$42:$A139,$A139)=1),"",SUM((Filters!$F$4:$F$1503)*'Share Calculation'!AQ$4:AQ$1503*(OFFSET(Filters!$BD$4:$BD$1503,0,$A139-1)=COUNTIFS($A$42:$A139,$A139)-1))/ $T139),"") ->  | I139: =IF(I$42>0,IF(OR($T139=0,COUNTIFS($A$42:$A139,$A139)=1),"",SUM((Filters!$F$4:$F$1503)*'Share Calculation'!AR$4:AR$1503*(OFFSET(Filters!$BD$4:$BD$1503,0,$A139-1)=COUNTIFS($A$42:$A139,$A139)-1))/ $T139),"") ->  | J139: =IF(J$42>0,IF(OR($T139=0,COUNTIFS($A$42:$A139,$A139)=1),"",SUM((Filters!$F$4:$F$1503)*'Share Calculation'!AS$4:AS$1503*(OFFSET(Filters!$BD$4:$BD$1503,0,$A139-1)=COUNTIFS($A$42:$A139,$A139)-1))/ $T139),"") ->  | K139: =IF(K$42>0,IF(OR($T139=0,COUNTIFS($A$42:$A139,$A139)=1),"",SUM((Filters!$F$4:$F$1503)*'Share Calculation'!AT$4:AT$1503*(OFFSET(Filters!$BD$4:$BD$1503,0,$A139-1)=COUNTIFS($A$42:$A139,$A139)-1))/ $T139),"") ->  | L139: =IF(L$42>0,IF(OR($T139=0,COUNTIFS($A$42:$A139,$A139)=1),"",SUM((Filters!$F$4:$F$1503)*'Share Calculation'!AU$4:AU$1503*(OFFSET(Filters!$BD$4:$BD$1503,0,$A139-1)=COUNTIFS($A$42:$A139,$A139)-1))/ $T139),"") ->  | M139: =IF(M$42>0,IF(OR($T139=0,COUNTIFS($A$42:$A139,$A139)=1),"",SUM((Filters!$F$4:$F$1503)*'Share Calculation'!AV$4:AV$1503*(OFFSET(Filters!$BD$4:$BD$1503,0,$A139-1)=COUNTIFS($A$42:$A139,$A139)-1))/ $T139),"") ->  | N139: =IF(N$42>0,IF(OR($T139=0,COUNTIFS($A$42:$A139,$A139)=1),"",SUM((Filters!$F$4:$F$1503)*'Share Calculation'!AW$4:AW$1503*(OFFSET(Filters!$BD$4:$BD$1503,0,$A139-1)=COUNTIFS($A$42:$A139,$A139)-1))/ $T139),"") ->  | O139: =IF(O$42>0,IF(OR($T139=0,COUNTIFS($A$42:$A139,$A139)=1),"",SUM((Filters!$F$4:$F$1503)*'Share Calculation'!AX$4:AX$1503*(OFFSET(Filters!$BD$4:$BD$1503,0,$A139-1)=COUNTIFS($A$42:$A139,$A139)-1))/ $T139),"") ->  | P139: =IF(P$42>0,IF(OR($T139=0,COUNTIFS($A$42:$A139,$A139)=1),"",SUM((Filters!$F$4:$F$1503)*'Share Calculation'!AY$4:AY$1503*(OFFSET(Filters!$BD$4:$BD$1503,0,$A139-1)=COUNTIFS($A$42:$A139,$A139)-1))/ $T139),"") ->  | Q139: =IF(Q$42>0,IF(OR($T139=0,COUNTIFS($A$42:$A139,$A139)=1),"",SUM((Filters!$F$4:$F$1503)*'Share Calculation'!AZ$4:AZ$1503*(OFFSET(Filters!$BD$4:$BD$1503,0,$A139-1)=COUNTIFS($A$42:$A139,$A139)-1))/ $T139),"") ->  | R139: =IF(COUNTIFS($A$42:$A139,$A139)=1,"",SUMIFS(Filters!$F$4:$F$1503,OFFSET(Filters!$BD$4:$BD$1503,0,$A139-1),COUNTIFS($A$42:$A139,$A139)-1)/Filters!$I$2) -> 0 | S139: Yes | T139: =IF(COUNTIFS($A$42:$A139,$A139)=1,"",COUNTIFS(OFFSET(Filters!$BD$4:$BD$1503,0,$A139-1),COUNTIFS($A$42:$A139,$A139)-1,Filters!$B$4:$B$1503,1)) -> 0
A140: 16 | C140: =VLOOKUP($A140,Filters!$H$4:$AG$1065,1+COUNTIFS($A$42:$A140,$A140),FALSE) -> n/a | F140: =IF(F$42>0,IF(OR($T140=0,COUNTIFS($A$42:$A140,$A140)=1),"",SUM((Filters!$F$4:$F$1503)*'Share Calculation'!AO$4:AO$1503*(OFFSET(Filters!$BD$4:$BD$1503,0,$A140-1)=COUNTIFS($A$42:$A140,$A140)-1))/ $T140),"") -> 0.6590733244 | G140: =IF(G$42>0,IF(OR($T140=0,COUNTIFS($A$42:$A140,$A140)=1),"",SUM((Filters!$F$4:$F$1503)*'Share Calculation'!AP$4:AP$1503*(OFFSET(Filters!$BD$4:$BD$1503,0,$A140-1)=COUNTIFS($A$42:$A140,$A140)-1))/ $T140),"") -> 0.3409266756 | H140: =IF(H$42>0,IF(OR($T140=0,COUNTIFS($A$42:$A140,$A140)=1),"",SUM((Filters!$F$4:$F$1503)*'Share Calculation'!AQ$4:AQ$1503*(OFFSET(Filters!$BD$4:$BD$1503,0,$A140-1)=COUNTIFS($A$42:$A140,$A140)-1))/ $T140),"") ->  | I140: =IF(I$42>0,IF(OR($T140=0,COUNTIFS($A$42:$A140,$A140)=1),"",SUM((Filters!$F$4:$F$1503)*'Share Calculation'!AR$4:AR$1503*(OFFSET(Filters!$BD$4:$BD$1503,0,$A140-1)=COUNTIFS($A$42:$A140,$A140)-1))/ $T140),"") ->  | J140: =IF(J$42>0,IF(OR($T140=0,COUNTIFS($A$42:$A140,$A140)=1),"",SUM((Filters!$F$4:$F$1503)*'Share Calculation'!AS$4:AS$1503*(OFFSET(Filters!$BD$4:$BD$1503,0,$A140-1)=COUNTIFS($A$42:$A140,$A140)-1))/ $T140),"") ->  | K140: =IF(K$42>0,IF(OR($T140=0,COUNTIFS($A$42:$A140,$A140)=1),"",SUM((Filters!$F$4:$F$1503)*'Share Calculation'!AT$4:AT$1503*(OFFSET(Filters!$BD$4:$BD$1503,0,$A140-1)=COUNTIFS($A$42:$A140,$A140)-1))/ $T140),"") ->  | L140: =IF(L$42>0,IF(OR($T140=0,COUNTIFS($A$42:$A140,$A140)=1),"",SUM((Filters!$F$4:$F$1503)*'Share Calculation'!AU$4:AU$1503*(OFFSET(Filters!$BD$4:$BD$1503,0,$A140-1)=COUNTIFS($A$42:$A140,$A140)-1))/ $T140),"") ->  | M140: =IF(M$42>0,IF(OR($T140=0,COUNTIFS($A$42:$A140,$A140)=1),"",SUM((Filters!$F$4:$F$1503)*'Share Calculation'!AV$4:AV$1503*(OFFSET(Filters!$BD$4:$BD$1503,0,$A140-1)=COUNTIFS($A$42:$A140,$A140)-1))/ $T140),"") ->  | N140: =IF(N$42>0,IF(OR($T140=0,COUNTIFS($A$42:$A140,$A140)=1),"",SUM((Filters!$F$4:$F$1503)*'Share Calculation'!AW$4:AW$1503*(OFFSET(Filters!$BD$4:$BD$1503,0,$A140-1)=COUNTIFS($A$42:$A140,$A140)-1))/ $T140),"") ->  | O140: =IF(O$42>0,IF(OR($T140=0,COUNTIFS($A$42:$A140,$A140)=1),"",SUM((Filters!$F$4:$F$1503)*'Share Calculation'!AX$4:AX$1503*(OFFSET(Filters!$BD$4:$BD$1503,0,$A140-1)=COUNTIFS($A$42:$A140,$A140)-1))/ $T140),"") ->  | P140: =IF(P$42>0,IF(OR($T140=0,COUNTIFS($A$42:$A140,$A140)=1),"",SUM((Filters!$F$4:$F$1503)*'Share Calculation'!AY$4:AY$1503*(OFFSET(Filters!$BD$4:$BD$1503,0,$A140-1)=COUNTIFS($A$42:$A140,$A140)-1))/ $T140),"") ->  | Q140: =IF(Q$42>0,IF(OR($T140=0,COUNTIFS($A$42:$A140,$A140)=1),"",SUM((Filters!$F$4:$F$1503)*'Share Calculation'!AZ$4:AZ$1503*(OFFSET(Filters!$BD$4:$BD$1503,0,$A140-1)=COUNTIFS($A$42:$A140,$A140)-1))/ $T140),"") ->  | R140: =IF(COUNTIFS($A$42:$A140,$A140)=1,"",SUMIFS(Filters!$F$4:$F$1503,OFFSET(Filters!$BD$4:$BD$1503,0,$A140-1),COUNTIFS($A$42:$A140,$A140)-1)/Filters!$I$2) -> 1 | S140: Yes | T140: =IF(COUNTIFS($A$42:$A140,$A140)=1,"",COUNTIFS(OFFSET(Filters!$BD$4:$BD$1503,0,$A140-1),COUNTIFS($A$42:$A140,$A140)-1,Filters!$B$4:$B$1503,1)) -> 640
A141: 17 | C141: =VLOOKUP($A141,Filters!$H$4:$AG$1065,1+COUNTIFS($A$42:$A141,$A141),FALSE) -> Head count | F141: =IF(F$42>0,IF(OR($T141=0,COUNTIFS($A$42:$A141,$A141)=1),"",SUM((Filters!$F$4:$F$1503)*'Share Calculation'!AO$4:AO$1503*(OFFSET(Filters!$BD$4:$BD$1503,0,$A141-1)=COUNTIFS($A$42:$A141,$A141)-1))/ $T141),"") ->  | G141: =IF(G$42>0,IF(OR($T141=0,COUNTIFS($A$42:$A141,$A141)=1),"",SUM((Filters!$F$4:$F$1503)*'Share Calculation'!AP$4:AP$1503*(OFFSET(Filters!$BD$4:$BD$1503,0,$A141-1)=COUNTIFS($A$42:$A141,$A141)-1))/ $T141),"") ->  | H141: =IF(H$42>0,IF(OR($T141=0,COUNTIFS($A$42:$A141,$A141)=1),"",SUM((Filters!$F$4:$F$1503)*'Share Calculation'!AQ$4:AQ$1503*(OFFSET(Filters!$BD$4:$BD$1503,0,$A141-1)=COUNTIFS($A$42:$A141,$A141)-1))/ $T141),"") ->  | I141: =IF(I$42>0,IF(OR($T141=0,COUNTIFS($A$42:$A141,$A141)=1),"",SUM((Filters!$F$4:$F$1503)*'Share Calculation'!AR$4:AR$1503*(OFFSET(Filters!$BD$4:$BD$1503,0,$A141-1)=COUNTIFS($A$42:$A141,$A141)-1))/ $T141),"") ->  | J141: =IF(J$42>0,IF(OR($T141=0,COUNTIFS($A$42:$A141,$A141)=1),"",SUM((Filters!$F$4:$F$1503)*'Share Calculation'!AS$4:AS$1503*(OFFSET(Filters!$BD$4:$BD$1503,0,$A141-1)=COUNTIFS($A$42:$A141,$A141)-1))/ $T141),"") ->  | K141: =IF(K$42>0,IF(OR($T141=0,COUNTIFS($A$42:$A141,$A141)=1),"",SUM((Filters!$F$4:$F$1503)*'Share Calculation'!AT$4:AT$1503*(OFFSET(Filters!$BD$4:$BD$1503,0,$A141-1)=COUNTIFS($A$42:$A141,$A141)-1))/ $T141),"") ->  | L141: =IF(L$42>0,IF(OR($T141=0,COUNTIFS($A$42:$A141,$A141)=1),"",SUM((Filters!$F$4:$F$1503)*'Share Calculation'!AU$4:AU$1503*(OFFSET(Filters!$BD$4:$BD$1503,0,$A141-1)=COUNTIFS($A$42:$A141,$A141)-1))/ $T141),"") ->  | M141: =IF(M$42>0,IF(OR($T141=0,COUNTIFS($A$42:$A141,$A141)=1),"",SUM((Filters!$F$4:$F$1503)*'Share Calculation'!AV$4:AV$1503*(OFFSET(Filters!$BD$4:$BD$1503,0,$A141-1)=COUNTIFS($A$42:$A141,$A141)-1))/ $T141),"") ->  | N141: =IF(N$42>0,IF(OR($T141=0,COUNTIFS($A$42:$A141,$A141)=1),"",SUM((Filters!$F$4:$F$1503)*'Share Calculation'!AW$4:AW$1503*(OFFSET(Filters!$BD$4:$BD$1503,0,$A141-1)=COUNTIFS($A$42:$A141,$A141)-1))/ $T141),"") ->  | O141: =IF(O$42>0,IF(OR($T141=0,COUNTIFS($A$42:$A141,$A141)=1),"",SUM((Filters!$F$4:$F$1503)*'Share Calculation'!AX$4:AX$1503*(OFFSET(Filters!$BD$4:$BD$1503,0,$A141-1)=COUNTIFS($A$42:$A141,$A141)-1))/ $T141),"") ->  | P141: =IF(P$42>0,IF(OR($T141=0,COUNTIFS($A$42:$A141,$A141)=1),"",SUM((Filters!$F$4:$F$1503)*'Share Calculation'!AY$4:AY$1503*(OFFSET(Filters!$BD$4:$BD$1503,0,$A141-1)=COUNTIFS($A$42:$A141,$A141)-1))/ $T141),"") ->  | Q141: =IF(Q$42>0,IF(OR($T141=0,COUNTIFS($A$42:$A141,$A141)=1),"",SUM((Filters!$F$4:$F$1503)*'Share Calculation'!AZ$4:AZ$1503*(OFFSET(Filters!$BD$4:$BD$1503,0,$A141-1)=COUNTIFS($A$42:$A141,$A141)-1))/ $T141),"") ->  | R141: =IF(COUNTIFS($A$42:$A141,$A141)=1,"",SUMIFS(Filters!$F$4:$F$1503,OFFSET(Filters!$BD$4:$BD$1503,0,$A141-1),COUNTIFS($A$42:$A141,$A141)-1)/Filters!$I$2) ->  | S141: Yes | T141: =IF(COUNTIFS($A$42:$A141,$A141)=1,"",COUNTIFS(OFFSET(Filters!$BD$4:$BD$1503,0,$A141-1),COUNTIFS($A$42:$A141,$A141)-1,Filters!$B$4:$B$1503,1)) -> 
A142: 17 | C142: =VLOOKUP($A142,Filters!$H$4:$AG$1065,1+COUNTIFS($A$42:$A142,$A142),FALSE) -> 1 (0 employees) | F142: =IF(F$42>0,IF(OR($T142=0,COUNTIFS($A$42:$A142,$A142)=1),"",SUM((Filters!$F$4:$F$1503)*'Share Calculation'!AO$4:AO$1503*(OFFSET(Filters!$BD$4:$BD$1503,0,$A142-1)=COUNTIFS($A$42:$A142,$A142)-1))/ $T142),"") ->  | G142: =IF(G$42>0,IF(OR($T142=0,COUNTIFS($A$42:$A142,$A142)=1),"",SUM((Filters!$F$4:$F$1503)*'Share Calculation'!AP$4:AP$1503*(OFFSET(Filters!$BD$4:$BD$1503,0,$A142-1)=COUNTIFS($A$42:$A142,$A142)-1))/ $T142),"") ->  | H142: =IF(H$42>0,IF(OR($T142=0,COUNTIFS($A$42:$A142,$A142)=1),"",SUM((Filters!$F$4:$F$1503)*'Share Calculation'!AQ$4:AQ$1503*(OFFSET(Filters!$BD$4:$BD$1503,0,$A142-1)=COUNTIFS($A$42:$A142,$A142)-1))/ $T142),"") ->  | I142: =IF(I$42>0,IF(OR($T142=0,COUNTIFS($A$42:$A142,$A142)=1),"",SUM((Filters!$F$4:$F$1503)*'Share Calculation'!AR$4:AR$1503*(OFFSET(Filters!$BD$4:$BD$1503,0,$A142-1)=COUNTIFS($A$42:$A142,$A142)-1))/ $T142),"") ->  | J142: =IF(J$42>0,IF(OR($T142=0,COUNTIFS($A$42:$A142,$A142)=1),"",SUM((Filters!$F$4:$F$1503)*'Share Calculation'!AS$4:AS$1503*(OFFSET(Filters!$BD$4:$BD$1503,0,$A142-1)=COUNTIFS($A$42:$A142,$A142)-1))/ $T142),"") ->  | K142: =IF(K$42>0,IF(OR($T142=0,COUNTIFS($A$42:$A142,$A142)=1),"",SUM((Filters!$F$4:$F$1503)*'Share Calculation'!AT$4:AT$1503*(OFFSET(Filters!$BD$4:$BD$1503,0,$A142-1)=COUNTIFS($A$42:$A142,$A142)-1))/ $T142),"") ->  | L142: =IF(L$42>0,IF(OR($T142=0,COUNTIFS($A$42:$A142,$A142)=1),"",SUM((Filters!$F$4:$F$1503)*'Share Calculation'!AU$4:AU$1503*(OFFSET(Filters!$BD$4:$BD$1503,0,$A142-1)=COUNTIFS($A$42:$A142,$A142)-1))/ $T142),"") ->  | M142: =IF(M$42>0,IF(OR($T142=0,COUNTIFS($A$42:$A142,$A142)=1),"",SUM((Filters!$F$4:$F$1503)*'Share Calculation'!AV$4:AV$1503*(OFFSET(Filters!$BD$4:$BD$1503,0,$A142-1)=COUNTIFS($A$42:$A142,$A142)-1))/ $T142),"") ->  | N142: =IF(N$42>0,IF(OR($T142=0,COUNTIFS($A$42:$A142,$A142)=1),"",SUM((Filters!$F$4:$F$1503)*'Share Calculation'!AW$4:AW$1503*(OFFSET(Filters!$BD$4:$BD$1503,0,$A142-1)=COUNTIFS($A$42:$A142,$A142)-1))/ $T142),"") ->  | O142: =IF(O$42>0,IF(OR($T142=0,COUNTIFS($A$42:$A142,$A142)=1),"",SUM((Filters!$F$4:$F$1503)*'Share Calculation'!AX$4:AX$1503*(OFFSET(Filters!$BD$4:$BD$1503,0,$A142-1)=COUNTIFS($A$42:$A142,$A142)-1))/ $T142),"") ->  | P142: =IF(P$42>0,IF(OR($T142=0,COUNTIFS($A$42:$A142,$A142)=1),"",SUM((Filters!$F$4:$F$1503)*'Share Calculation'!AY$4:AY$1503*(OFFSET(Filters!$BD$4:$BD$1503,0,$A142-1)=COUNTIFS($A$42:$A142,$A142)-1))/ $T142),"") ->  | Q142: =IF(Q$42>0,IF(OR($T142=0,COUNTIFS($A$42:$A142,$A142)=1),"",SUM((Filters!$F$4:$F$1503)*'Share Calculation'!AZ$4:AZ$1503*(OFFSET(Filters!$BD$4:$BD$1503,0,$A142-1)=COUNTIFS($A$42:$A142,$A142)-1))/ $T142),"") ->  | R142: =IF(COUNTIFS($A$42:$A142,$A142)=1,"",SUMIFS(Filters!$F$4:$F$1503,OFFSET(Filters!$BD$4:$BD$1503,0,$A142-1),COUNTIFS($A$42:$A142,$A142)-1)/Filters!$I$2) -> 0 | S142: Yes | T142: =IF(COUNTIFS($A$42:$A142,$A142)=1,"",COUNTIFS(OFFSET(Filters!$BD$4:$BD$1503,0,$A142-1),COUNTIFS($A$42:$A142,$A142)-1,Filters!$B$4:$B$1503,1)) -> 0
A143: 17 | C143: =VLOOKUP($A143,Filters!$H$4:$AG$1065,1+COUNTIFS($A$42:$A143,$A143),FALSE) -> 2-9 | F143: =IF(F$42>0,IF(OR($T143=0,COUNTIFS($A$42:$A143,$A143)=1),"",SUM((Filters!$F$4:$F$1503)*'Share Calculation'!AO$4:AO$1503*(OFFSET(Filters!$BD$4:$BD$1503,0,$A143-1)=COUNTIFS($A$42:$A143,$A143)-1))/ $T143),"") ->  | G143: =IF(G$42>0,IF(OR($T143=0,COUNTIFS($A$42:$A143,$A143)=1),"",SUM((Filters!$F$4:$F$1503)*'Share Calculation'!AP$4:AP$1503*(OFFSET(Filters!$BD$4:$BD$1503,0,$A143-1)=COUNTIFS($A$42:$A143,$A143)-1))/ $T143),"") ->  | H143: =IF(H$42>0,IF(OR($T143=0,COUNTIFS($A$42:$A143,$A143)=1),"",SUM((Filters!$F$4:$F$1503)*'Share Calculation'!AQ$4:AQ$1503*(OFFSET(Filters!$BD$4:$BD$1503,0,$A143-1)=COUNTIFS($A$42:$A143,$A143)-1))/ $T143),"") ->  | I143: =IF(I$42>0,IF(OR($T143=0,COUNTIFS($A$42:$A143,$A143)=1),"",SUM((Filters!$F$4:$F$1503)*'Share Calculation'!AR$4:AR$1503*(OFFSET(Filters!$BD$4:$BD$1503,0,$A143-1)=COUNTIFS($A$42:$A143,$A143)-1))/ $T143),"") ->  | J143: =IF(J$42>0,IF(OR($T143=0,COUNTIFS($A$42:$A143,$A143)=1),"",SUM((Filters!$F$4:$F$1503)*'Share Calculation'!AS$4:AS$1503*(OFFSET(Filters!$BD$4:$BD$1503,0,$A143-1)=COUNTIFS($A$42:$A143,$A143)-1))/ $T143),"") ->  | K143: =IF(K$42>0,IF(OR($T143=0,COUNTIFS($A$42:$A143,$A143)=1),"",SUM((Filters!$F$4:$F$1503)*'Share Calculation'!AT$4:AT$1503*(OFFSET(Filters!$BD$4:$BD$1503,0,$A143-1)=COUNTIFS($A$42:$A143,$A143)-1))/ $T143),"") ->  | L143: =IF(L$42>0,IF(OR($T143=0,COUNTIFS($A$42:$A143,$A143)=1),"",SUM((Filters!$F$4:$F$1503)*'Share Calculation'!AU$4:AU$1503*(OFFSET(Filters!$BD$4:$BD$1503,0,$A143-1)=COUNTIFS($A$42:$A143,$A143)-1))/ $T143),"") ->  | M143: =IF(M$42>0,IF(OR($T143=0,COUNTIFS($A$42:$A143,$A143)=1),"",SUM((Filters!$F$4:$F$1503)*'Share Calculation'!AV$4:AV$1503*(OFFSET(Filters!$BD$4:$BD$1503,0,$A143-1)=COUNTIFS($A$42:$A143,$A143)-1))/ $T143),"") ->  | N143: =IF(N$42>0,IF(OR($T143=0,COUNTIFS($A$42:$A143,$A143)=1),"",SUM((Filters!$F$4:$F$1503)*'Share Calculation'!AW$4:AW$1503*(OFFSET(Filters!$BD$4:$BD$1503,0,$A143-1)=COUNTIFS($A$42:$A143,$A143)-1))/ $T143),"") ->  | O143: =IF(O$42>0,IF(OR($T143=0,COUNTIFS($A$42:$A143,$A143)=1),"",SUM((Filters!$F$4:$F$1503)*'Share Calculation'!AX$4:AX$1503*(OFFSET(Filters!$BD$4:$BD$1503,0,$A143-1)=COUNTIFS($A$42:$A143,$A143)-1))/ $T143),"") ->  | P143: =IF(P$42>0,IF(OR($T143=0,COUNTIFS($A$42:$A143,$A143)=1),"",SUM((Filters!$F$4:$F$1503)*'Share Calculation'!AY$4:AY$1503*(OFFSET(Filters!$BD$4:$BD$1503,0,$A143-1)=COUNTIFS($A$42:$A143,$A143)-1))/ $T143),"") ->  | Q143: =IF(Q$42>0,IF(OR($T143=0,COUNTIFS($A$42:$A143,$A143)=1),"",SUM((Filters!$F$4:$F$1503)*'Share Calculation'!AZ$4:AZ$1503*(OFFSET(Filters!$BD$4:$BD$1503,0,$A143-1)=COUNTIFS($A$42:$A143,$A143)-1))/ $T143),"") ->  | R143: =IF(COUNTIFS($A$42:$A143,$A143)=1,"",SUMIFS(Filters!$F$4:$F$1503,OFFSET(Filters!$BD$4:$BD$1503,0,$A143-1),COUNTIFS($A$42:$A143,$A143)-1)/Filters!$I$2) -> 0 | S143: Yes | T143: =IF(COUNTIFS($A$42:$A143,$A143)=1,"",COUNTIFS(OFFSET(Filters!$BD$4:$BD$1503,0,$A143-1),COUNTIFS($A$42:$A143,$A143)-1,Filters!$B$4:$B$1503,1)) -> 0
A144: 17 | C144: =VLOOKUP($A144,Filters!$H$4:$AG$1065,1+COUNTIFS($A$42:$A144,$A144),FALSE) -> 10-49 | F144: =IF(F$42>0,IF(OR($T144=0,COUNTIFS($A$42:$A144,$A144)=1),"",SUM((Filters!$F$4:$F$1503)*'Share Calculation'!AO$4:AO$1503*(OFFSET(Filters!$BD$4:$BD$1503,0,$A144-1)=COUNTIFS($A$42:$A144,$A144)-1))/ $T144),"") ->  | G144: =IF(G$42>0,IF(OR($T144=0,COUNTIFS($A$42:$A144,$A144)=1),"",SUM((Filters!$F$4:$F$1503)*'Share Calculation'!AP$4:AP$1503*(OFFSET(Filters!$BD$4:$BD$1503,0,$A144-1)=COUNTIFS($A$42:$A144,$A144)-1))/ $T144),"") ->  | H144: =IF(H$42>0,IF(OR($T144=0,COUNTIFS($A$42:$A144,$A144)=1),"",SUM((Filters!$F$4:$F$1503)*'Share Calculation'!AQ$4:AQ$1503*(OFFSET(Filters!$BD$4:$BD$1503,0,$A144-1)=COUNTIFS($A$42:$A144,$A144)-1))/ $T144),"") ->  | I144: =IF(I$42>0,IF(OR($T144=0,COUNTIFS($A$42:$A144,$A144)=1),"",SUM((Filters!$F$4:$F$1503)*'Share Calculation'!AR$4:AR$1503*(OFFSET(Filters!$BD$4:$BD$1503,0,$A144-1)=COUNTIFS($A$42:$A144,$A144)-1))/ $T144),"") ->  | J144: =IF(J$42>0,IF(OR($T144=0,COUNTIFS($A$42:$A144,$A144)=1),"",SUM((Filters!$F$4:$F$1503)*'Share Calculation'!AS$4:AS$1503*(OFFSET(Filters!$BD$4:$BD$1503,0,$A144-1)=COUNTIFS($A$42:$A144,$A144)-1))/ $T144),"") ->  | K144: =IF(K$42>0,IF(OR($T144=0,COUNTIFS($A$42:$A144,$A144)=1),"",SUM((Filters!$F$4:$F$1503)*'Share Calculation'!AT$4:AT$1503*(OFFSET(Filters!$BD$4:$BD$1503,0,$A144-1)=COUNTIFS($A$42:$A144,$A144)-1))/ $T144),"") ->  | L144: =IF(L$42>0,IF(OR($T144=0,COUNTIFS($A$42:$A144,$A144)=1),"",SUM((Filters!$F$4:$F$1503)*'Share Calculation'!AU$4:AU$1503*(OFFSET(Filters!$BD$4:$BD$1503,0,$A144-1)=COUNTIFS($A$42:$A144,$A144)-1))/ $T144),"") ->  | M144: =IF(M$42>0,IF(OR($T144=0,COUNTIFS($A$42:$A144,$A144)=1),"",SUM((Filters!$F$4:$F$1503)*'Share Calculation'!AV$4:AV$1503*(OFFSET(Filters!$BD$4:$BD$1503,0,$A144-1)=COUNTIFS($A$42:$A144,$A144)-1))/ $T144),"") ->  | N144: =IF(N$42>0,IF(OR($T144=0,COUNTIFS($A$42:$A144,$A144)=1),"",SUM((Filters!$F$4:$F$1503)*'Share Calculation'!AW$4:AW$1503*(OFFSET(Filters!$BD$4:$BD$1503,0,$A144-1)=COUNTIFS($A$42:$A144,$A144)-1))/ $T144),"") ->  | O144: =IF(O$42>0,IF(OR($T144=0,COUNTIFS($A$42:$A144,$A144)=1),"",SUM((Filters!$F$4:$F$1503)*'Share Calculation'!AX$4:AX$1503*(OFFSET(Filters!$BD$4:$BD$1503,0,$A144-1)=COUNTIFS($A$42:$A144,$A144)-1))/ $T144),"") ->  | P144: =IF(P$42>0,IF(OR($T144=0,COUNTIFS($A$42:$A144,$A144)=1),"",SUM((Filters!$F$4:$F$1503)*'Share Calculation'!AY$4:AY$1503*(OFFSET(Filters!$BD$4:$BD$1503,0,$A144-1)=COUNTIFS($A$42:$A144,$A144)-1))/ $T144),"") ->  | Q144: =IF(Q$42>0,IF(OR($T144=0,COUNTIFS($A$42:$A144,$A144)=1),"",SUM((Filters!$F$4:$F$1503)*'Share Calculation'!AZ$4:AZ$1503*(OFFSET(Filters!$BD$4:$BD$1503,0,$A144-1)=COUNTIFS($A$42:$A144,$A144)-1))/ $T144),"") ->  | R144: =IF(COUNTIFS($A$42:$A144,$A144)=1,"",SUMIFS(Filters!$F$4:$F$1503,OFFSET(Filters!$BD$4:$BD$1503,0,$A144-1),COUNTIFS($A$42:$A144,$A144)-1)/Filters!$I$2) -> 0 | S144: Yes | T144: =IF(COUNTIFS($A$42:$A144,$A144)=1,"",COUNTIFS(OFFSET(Filters!$BD$4:$BD$1503,0,$A144-1),COUNTIFS($A$42:$A144,$A144)-1,Filters!$B$4:$B$1503,1)) -> 0
A145: 17 | C145: =VLOOKUP($A145,Filters!$H$4:$AG$1065,1+COUNTIFS($A$42:$A145,$A145),FALSE) -> 50-99 | F145: =IF(F$42>0,IF(OR($T145=0,COUNTIFS($A$42:$A145,$A145)=1),"",SUM((Filters!$F$4:$F$1503)*'Share Calculation'!AO$4:AO$1503*(OFFSET(Filters!$BD$4:$BD$1503,0,$A145-1)=COUNTIFS($A$42:$A145,$A145)-1))/ $T145),"") ->  | G145: =IF(G$42>0,IF(OR($T145=0,COUNTIFS($A$42:$A145,$A145)=1),"",SUM((Filters!$F$4:$F$1503)*'Share Calculation'!AP$4:AP$1503*(OFFSET(Filters!$BD$4:$BD$1503,0,$A145-1)=COUNTIFS($A$42:$A145,$A145)-1))/ $T145),"") ->  | H145: =IF(H$42>0,IF(OR($T145=0,COUNTIFS($A$42:$A145,$A145)=1),"",SUM((Filters!$F$4:$F$1503)*'Share Calculation'!AQ$4:AQ$1503*(OFFSET(Filters!$BD$4:$BD$1503,0,$A145-1)=COUNTIFS($A$42:$A145,$A145)-1))/ $T145),"") ->  | I145: =IF(I$42>0,IF(OR($T145=0,COUNTIFS($A$42:$A145,$A145)=1),"",SUM((Filters!$F$4:$F$1503)*'Share Calculation'!AR$4:AR$1503*(OFFSET(Filters!$BD$4:$BD$1503,0,$A145-1)=COUNTIFS($A$42:$A145,$A145)-1))/ $T145),"") ->  | J145: =IF(J$42>0,IF(OR($T145=0,COUNTIFS($A$42:$A145,$A145)=1),"",SUM((Filters!$F$4:$F$1503)*'Share Calculation'!AS$4:AS$1503*(OFFSET(Filters!$BD$4:$BD$1503,0,$A145-1)=COUNTIFS($A$42:$A145,$A145)-1))/ $T145),"") ->  | K145: =IF(K$42>0,IF(OR($T145=0,COUNTIFS($A$42:$A145,$A145)=1),"",SUM((Filters!$F$4:$F$1503)*'Share Calculation'!AT$4:AT$1503*(OFFSET(Filters!$BD$4:$BD$1503,0,$A145-1)=COUNTIFS($A$42:$A145,$A145)-1))/ $T145),"") ->  | L145: =IF(L$42>0,IF(OR($T145=0,COUNTIFS($A$42:$A145,$A145)=1),"",SUM((Filters!$F$4:$F$1503)*'Share Calculation'!AU$4:AU$1503*(OFFSET(Filters!$BD$4:$BD$1503,0,$A145-1)=COUNTIFS($A$42:$A145,$A145)-1))/ $T145),"") ->  | M145: =IF(M$42>0,IF(OR($T145=0,COUNTIFS($A$42:$A145,$A145)=1),"",SUM((Filters!$F$4:$F$1503)*'Share Calculation'!AV$4:AV$1503*(OFFSET(Filters!$BD$4:$BD$1503,0,$A145-1)=COUNTIFS($A$42:$A145,$A145)-1))/ $T145),"") ->  | N145: =IF(N$42>0,IF(OR($T145=0,COUNTIFS($A$42:$A145,$A145)=1),"",SUM((Filters!$F$4:$F$1503)*'Share Calculation'!AW$4:AW$1503*(OFFSET(Filters!$BD$4:$BD$1503,0,$A145-1)=COUNTIFS($A$42:$A145,$A145)-1))/ $T145),"") ->  | O145: =IF(O$42>0,IF(OR($T145=0,COUNTIFS($A$42:$A145,$A145)=1),"",SUM((Filters!$F$4:$F$1503)*'Share Calculation'!AX$4:AX$1503*(OFFSET(Filters!$BD$4:$BD$1503,0,$A145-1)=COUNTIFS($A$42:$A145,$A145)-1))/ $T145),"") ->  | P145: =IF(P$42>0,IF(OR($T145=0,COUNTIFS($A$42:$A145,$A145)=1),"",SUM((Filters!$F$4:$F$1503)*'Share Calculation'!AY$4:AY$1503*(OFFSET(Filters!$BD$4:$BD$1503,0,$A145-1)=COUNTIFS($A$42:$A145,$A145)-1))/ $T145),"") ->  | Q145: =IF(Q$42>0,IF(OR($T145=0,COUNTIFS($A$42:$A145,$A145)=1),"",SUM((Filters!$F$4:$F$1503)*'Share Calculation'!AZ$4:AZ$1503*(OFFSET(Filters!$BD$4:$BD$1503,0,$A145-1)=COUNTIFS($A$42:$A145,$A145)-1))/ $T145),"") ->  | R145: =IF(COUNTIFS($A$42:$A145,$A145)=1,"",SUMIFS(Filters!$F$4:$F$1503,OFFSET(Filters!$BD$4:$BD$1503,0,$A145-1),COUNTIFS($A$42:$A145,$A145)-1)/Filters!$I$2) -> 0 | S145: Yes | T145: =IF(COUNTIFS($A$42:$A145,$A145)=1,"",COUNTIFS(OFFSET(Filters!$BD$4:$BD$1503,0,$A145-1),COUNTIFS($A$42:$A145,$A145)-1,Filters!$B$4:$B$1503,1)) -> 0
A146: 17 | C146: =VLOOKUP($A146,Filters!$H$4:$AG$1065,1+COUNTIFS($A$42:$A146,$A146),FALSE) -> 100-249 | F146: =IF(F$42>0,IF(OR($T146=0,COUNTIFS($A$42:$A146,$A146)=1),"",SUM((Filters!$F$4:$F$1503)*'Share Calculation'!AO$4:AO$1503*(OFFSET(Filters!$BD$4:$BD$1503,0,$A146-1)=COUNTIFS($A$42:$A146,$A146)-1))/ $T146),"") ->  | G146: =IF(G$42>0,IF(OR($T146=0,COUNTIFS($A$42:$A146,$A146)=1),"",SUM((Filters!$F$4:$F$1503)*'Share Calculation'!AP$4:AP$1503*(OFFSET(Filters!$BD$4:$BD$1503,0,$A146-1)=COUNTIFS($A$42:$A146,$A146)-1))/ $T146),"") ->  | H146: =IF(H$42>0,IF(OR($T146=0,COUNTIFS($A$42:$A146,$A146)=1),"",SUM((Filters!$F$4:$F$1503)*'Share Calculation'!AQ$4:AQ$1503*(OFFSET(Filters!$BD$4:$BD$1503,0,$A146-1)=COUNTIFS($A$42:$A146,$A146)-1))/ $T146),"") ->  | I146: =IF(I$42>0,IF(OR($T146=0,COUNTIFS($A$42:$A146,$A146)=1),"",SUM((Filters!$F$4:$F$1503)*'Share Calculation'!AR$4:AR$1503*(OFFSET(Filters!$BD$4:$BD$1503,0,$A146-1)=COUNTIFS($A$42:$A146,$A146)-1))/ $T146),"") ->  | J146: =IF(J$42>0,IF(OR($T146=0,COUNTIFS($A$42:$A146,$A146)=1),"",SUM((Filters!$F$4:$F$1503)*'Share Calculation'!AS$4:AS$1503*(OFFSET(Filters!$BD$4:$BD$1503,0,$A146-1)=COUNTIFS($A$42:$A146,$A146)-1))/ $T146),"") ->  | K146: =IF(K$42>0,IF(OR($T146=0,COUNTIFS($A$42:$A146,$A146)=1),"",SUM((Filters!$F$4:$F$1503)*'Share Calculation'!AT$4:AT$1503*(OFFSET(Filters!$BD$4:$BD$1503,0,$A146-1)=COUNTIFS($A$42:$A146,$A146)-1))/ $T146),"") ->  | L146: =IF(L$42>0,IF(OR($T146=0,COUNTIFS($A$42:$A146,$A146)=1),"",SUM((Filters!$F$4:$F$1503)*'Share Calculation'!AU$4:AU$1503*(OFFSET(Filters!$BD$4:$BD$1503,0,$A146-1)=COUNTIFS($A$42:$A146,$A146)-1))/ $T146),"") ->  | M146: =IF(M$42>0,IF(OR($T146=0,COUNTIFS($A$42:$A146,$A146)=1),"",SUM((Filters!$F$4:$F$1503)*'Share Calculation'!AV$4:AV$1503*(OFFSET(Filters!$BD$4:$BD$1503,0,$A146-1)=COUNTIFS($A$42:$A146,$A146)-1))/ $T146),"") ->  | N146: =IF(N$42>0,IF(OR($T146=0,COUNTIFS($A$42:$A146,$A146)=1),"",SUM((Filters!$F$4:$F$1503)*'Share Calculation'!AW$4:AW$1503*(OFFSET(Filters!$BD$4:$BD$1503,0,$A146-1)=COUNTIFS($A$42:$A146,$A146)-1))/ $T146),"") ->  | O146: =IF(O$42>0,IF(OR($T146=0,COUNTIFS($A$42:$A146,$A146)=1),"",SUM((Filters!$F$4:$F$1503)*'Share Calculation'!AX$4:AX$1503*(OFFSET(Filters!$BD$4:$BD$1503,0,$A146-1)=COUNTIFS($A$42:$A146,$A146)-1))/ $T146),"") ->  | P146: =IF(P$42>0,IF(OR($T146=0,COUNTIFS($A$42:$A146,$A146)=1),"",SUM((Filters!$F$4:$F$1503)*'Share Calculation'!AY$4:AY$1503*(OFFSET(Filters!$BD$4:$BD$1503,0,$A146-1)=COUNTIFS($A$42:$A146,$A146)-1))/ $T146),"") ->  | Q146: =IF(Q$42>0,IF(OR($T146=0,COUNTIFS($A$42:$A146,$A146)=1),"",SUM((Filters!$F$4:$F$1503)*'Share Calculation'!AZ$4:AZ$1503*(OFFSET(Filters!$BD$4:$BD$1503,0,$A146-1)=COUNTIFS($A$42:$A146,$A146)-1))/ $T146),"") ->  | R146: =IF(COUNTIFS($A$42:$A146,$A146)=1,"",SUMIFS(Filters!$F$4:$F$1503,OFFSET(Filters!$BD$4:$BD$1503,0,$A146-1),COUNTIFS($A$42:$A146,$A146)-1)/Filters!$I$2) -> 0 | S146: Yes | T146: =IF(COUNTIFS($A$42:$A146,$A146)=1,"",COUNTIFS(OFFSET(Filters!$BD$4:$BD$1503,0,$A146-1),COUNTIFS($A$42:$A146,$A146)-1,Filters!$B$4:$B$1503,1)) -> 0
A147: 17 | C147: =VLOOKUP($A147,Filters!$H$4:$AG$1065,1+COUNTIFS($A$42:$A147,$A147),FALSE) -> 250+ | F147: =IF(F$42>0,IF(OR($T147=0,COUNTIFS($A$42:$A147,$A147)=1),"",SUM((Filters!$F$4:$F$1503)*'Share Calculation'!AO$4:AO$1503*(OFFSET(Filters!$BD$4:$BD$1503,0,$A147-1)=COUNTIFS($A$42:$A147,$A147)-1))/ $T147),"") ->  | G147: =IF(G$42>0,IF(OR($T147=0,COUNTIFS($A$42:$A147,$A147)=1),"",SUM((Filters!$F$4:$F$1503)*'Share Calculation'!AP$4:AP$1503*(OFFSET(Filters!$BD$4:$BD$1503,0,$A147-1)=COUNTIFS($A$42:$A147,$A147)-1))/ $T147),"") ->  | H147: =IF(H$42>0,IF(OR($T147=0,COUNTIFS($A$42:$A147,$A147)=1),"",SUM((Filters!$F$4:$F$1503)*'Share Calculation'!AQ$4:AQ$1503*(OFFSET(Filters!$BD$4:$BD$1503,0,$A147-1)=COUNTIFS($A$42:$A147,$A147)-1))/ $T147),"") ->  | I147: =IF(I$42>0,IF(OR($T147=0,COUNTIFS($A$42:$A147,$A147)=1),"",SUM((Filters!$F$4:$F$1503)*'Share Calculation'!AR$4:AR$1503*(OFFSET(Filters!$BD$4:$BD$1503,0,$A147-1)=COUNTIFS($A$42:$A147,$A147)-1))/ $T147),"") ->  | J147: =IF(J$42>0,IF(OR($T147=0,COUNTIFS($A$42:$A147,$A147)=1),"",SUM((Filters!$F$4:$F$1503)*'Share Calculation'!AS$4:AS$1503*(OFFSET(Filters!$BD$4:$BD$1503,0,$A147-1)=COUNTIFS($A$42:$A147,$A147)-1))/ $T147),"") ->  | K147: =IF(K$42>0,IF(OR($T147=0,COUNTIFS($A$42:$A147,$A147)=1),"",SUM((Filters!$F$4:$F$1503)*'Share Calculation'!AT$4:AT$1503*(OFFSET(Filters!$BD$4:$BD$1503,0,$A147-1)=COUNTIFS($A$42:$A147,$A147)-1))/ $T147),"") ->  | L147: =IF(L$42>0,IF(OR($T147=0,COUNTIFS($A$42:$A147,$A147)=1),"",SUM((Filters!$F$4:$F$1503)*'Share Calculation'!AU$4:AU$1503*(OFFSET(Filters!$BD$4:$BD$1503,0,$A147-1)=COUNTIFS($A$42:$A147,$A147)-1))/ $T147),"") ->  | M147: =IF(M$42>0,IF(OR($T147=0,COUNTIFS($A$42:$A147,$A147)=1),"",SUM((Filters!$F$4:$F$1503)*'Share Calculation'!AV$4:AV$1503*(OFFSET(Filters!$BD$4:$BD$1503,0,$A147-1)=COUNTIFS($A$42:$A147,$A147)-1))/ $T147),"") ->  | N147: =IF(N$42>0,IF(OR($T147=0,COUNTIFS($A$42:$A147,$A147)=1),"",SUM((Filters!$F$4:$F$1503)*'Share Calculation'!AW$4:AW$1503*(OFFSET(Filters!$BD$4:$BD$1503,0,$A147-1)=COUNTIFS($A$42:$A147,$A147)-1))/ $T147),"") ->  | O147: =IF(O$42>0,IF(OR($T147=0,COUNTIFS($A$42:$A147,$A147)=1),"",SUM((Filters!$F$4:$F$1503)*'Share Calculation'!AX$4:AX$1503*(OFFSET(Filters!$BD$4:$BD$1503,0,$A147-1)=COUNTIFS($A$42:$A147,$A147)-1))/ $T147),"") ->  | P147: =IF(P$42>0,IF(OR($T147=0,COUNTIFS($A$42:$A147,$A147)=1),"",SUM((Filters!$F$4:$F$1503)*'Share Calculation'!AY$4:AY$1503*(OFFSET(Filters!$BD$4:$BD$1503,0,$A147-1)=COUNTIFS($A$42:$A147,$A147)-1))/ $T147),"") ->  | Q147: =IF(Q$42>0,IF(OR($T147=0,COUNTIFS($A$42:$A147,$A147)=1),"",SUM((Filters!$F$4:$F$1503)*'Share Calculation'!AZ$4:AZ$1503*(OFFSET(Filters!$BD$4:$BD$1503,0,$A147-1)=COUNTIFS($A$42:$A147,$A147)-1))/ $T147),"") ->  | R147: =IF(COUNTIFS($A$42:$A147,$A147)=1,"",SUMIFS(Filters!$F$4:$F$1503,OFFSET(Filters!$BD$4:$BD$1503,0,$A147-1),COUNTIFS($A$42:$A147,$A147)-1)/Filters!$I$2) -> 0 | S147: Yes | T147: =IF(COUNTIFS($A$42:$A147,$A147)=1,"",COUNTIFS(OFFSET(Filters!$BD$4:$BD$1503,0,$A147-1),COUNTIFS($A$42:$A147,$A147)-1,Filters!$B$4:$B$1503,1)) -> 0
A148: 17 | C148: =VLOOKUP($A148,Filters!$H$4:$AG$1065,1+COUNTIFS($A$42:$A148,$A148),FALSE) -> n/a | F148: =IF(F$42>0,IF(OR($T148=0,COUNTIFS($A$42:$A148,$A148)=1),"",SUM((Filters!$F$4:$F$1503)*'Share Calculation'!AO$4:AO$1503*(OFFSET(Filters!$BD$4:$BD$1503,0,$A148-1)=COUNTIFS($A$42:$A148,$A148)-1))/ $T148),"") -> 0.6590733244 | G148: =IF(G$42>0,IF(OR($T148=0,COUNTIFS($A$42:$A148,$A148)=1),"",SUM((Filters!$F$4:$F$1503)*'Share Calculation'!AP$4:AP$1503*(OFFSET(Filters!$BD$4:$BD$1503,0,$A148-1)=COUNTIFS($A$42:$A148,$A148)-1))/ $T148),"") -> 0.3409266756 | H148: =IF(H$42>0,IF(OR($T148=0,COUNTIFS($A$42:$A148,$A148)=1),"",SUM((Filters!$F$4:$F$1503)*'Share Calculation'!AQ$4:AQ$1503*(OFFSET(Filters!$BD$4:$BD$1503,0,$A148-1)=COUNTIFS($A$42:$A148,$A148)-1))/ $T148),"") ->  | I148: =IF(I$42>0,IF(OR($T148=0,COUNTIFS($A$42:$A148,$A148)=1),"",SUM((Filters!$F$4:$F$1503)*'Share Calculation'!AR$4:AR$1503*(OFFSET(Filters!$BD$4:$BD$1503,0,$A148-1)=COUNTIFS($A$42:$A148,$A148)-1))/ $T148),"") ->  | J148: =IF(J$42>0,IF(OR($T148=0,COUNTIFS($A$42:$A148,$A148)=1),"",SUM((Filters!$F$4:$F$1503)*'Share Calculation'!AS$4:AS$1503*(OFFSET(Filters!$BD$4:$BD$1503,0,$A148-1)=COUNTIFS($A$42:$A148,$A148)-1))/ $T148),"") ->  | K148: =IF(K$42>0,IF(OR($T148=0,COUNTIFS($A$42:$A148,$A148)=1),"",SUM((Filters!$F$4:$F$1503)*'Share Calculation'!AT$4:AT$1503*(OFFSET(Filters!$BD$4:$BD$1503,0,$A148-1)=COUNTIFS($A$42:$A148,$A148)-1))/ $T148),"") ->  | L148: =IF(L$42>0,IF(OR($T148=0,COUNTIFS($A$42:$A148,$A148)=1),"",SUM((Filters!$F$4:$F$1503)*'Share Calculation'!AU$4:AU$1503*(OFFSET(Filters!$BD$4:$BD$1503,0,$A148-1)=COUNTIFS($A$42:$A148,$A148)-1))/ $T148),"") ->  | M148: =IF(M$42>0,IF(OR($T148=0,COUNTIFS($A$42:$A148,$A148)=1),"",SUM((Filters!$F$4:$F$1503)*'Share Calculation'!AV$4:AV$1503*(OFFSET(Filters!$BD$4:$BD$1503,0,$A148-1)=COUNTIFS($A$42:$A148,$A148)-1))/ $T148),"") ->  | N148: =IF(N$42>0,IF(OR($T148=0,COUNTIFS($A$42:$A148,$A148)=1),"",SUM((Filters!$F$4:$F$1503)*'Share Calculation'!AW$4:AW$1503*(OFFSET(Filters!$BD$4:$BD$1503,0,$A148-1)=COUNTIFS($A$42:$A148,$A148)-1))/ $T148),"") ->  | O148: =IF(O$42>0,IF(OR($T148=0,COUNTIFS($A$42:$A148,$A148)=1),"",SUM((Filters!$F$4:$F$1503)*'Share Calculation'!AX$4:AX$1503*(OFFSET(Filters!$BD$4:$BD$1503,0,$A148-1)=COUNTIFS($A$42:$A148,$A148)-1))/ $T148),"") ->  | P148: =IF(P$42>0,IF(OR($T148=0,COUNTIFS($A$42:$A148,$A148)=1),"",SUM((Filters!$F$4:$F$1503)*'Share Calculation'!AY$4:AY$1503*(OFFSET(Filters!$BD$4:$BD$1503,0,$A148-1)=COUNTIFS($A$42:$A148,$A148)-1))/ $T148),"") ->  | Q148: =IF(Q$42>0,IF(OR($T148=0,COUNTIFS($A$42:$A148,$A148)=1),"",SUM((Filters!$F$4:$F$1503)*'Share Calculation'!AZ$4:AZ$1503*(OFFSET(Filters!$BD$4:$BD$1503,0,$A148-1)=COUNTIFS($A$42:$A148,$A148)-1))/ $T148),"") ->  | R148: =IF(COUNTIFS($A$42:$A148,$A148)=1,"",SUMIFS(Filters!$F$4:$F$1503,OFFSET(Filters!$BD$4:$BD$1503,0,$A148-1),COUNTIFS($A$42:$A148,$A148)-1)/Filters!$I$2) -> 1 | S148: Yes | T148: =IF(COUNTIFS($A$42:$A148,$A148)=1,"",COUNTIFS(OFFSET(Filters!$BD$4:$BD$1503,0,$A148-1),COUNTIFS($A$42:$A148,$A148)-1,Filters!$B$4:$B$1503,1)) -> 640
